Workbook

Sheet Cover
B5: التقرير الاحصائي السنوي عن نشاط قطاع التأمين بدولة الإمارات العربية المتحدة
B6: ANNUAL STATISTICAL REPORT FOR THE
B7: .INSURANCE SECTOR OF THE U.A.E
B8: 2025
B9: جدول رقم | I9: Table
B10: 1 | C10: تطور نشاط قطاع التأمين | H10: Insurance Sector Developments | I10: 1
B11: 1A | C11: اجمالي الأقساط المكتتبة لتأمين الممتلكات والمسؤوليات والتأمين على الأشخاص وتكوين الأموال وفقاً لشركات التأمين الوطنية وشركات التأمين الأجنبية. | H11: Gross Written Premium - Non-Life / Life - National vs Foreign | I11: 1A
B12: 1B | C12: اجمالي الأقساط المكتتبة لتأمين الممتلكات والمسؤوليات والتأمين على الأشخاص وتكوين الأموال وفقا لشركات التأمين التقليدي والتأمين التكافلي الوطنية. | H12: Gross Written Premium - Non-Life / Life - National Traditional vs Takaful | I12: 1B
B13: 1C | C13: اجمالي الأقساط المكتتبة لتأمين الممتلكات والمسؤوليات والتأمين على الأشخاص وتكوين الأموال للشركات الوطنية والشركات الأجنبية خلال عشر سنوات. | H13: Gross Written Premium - Non-Life / Life - National vs Foreign | I13: 1C
B14: 2A | C14: اجمالي الأقساط المكتتبة وفقا لشركات التأمين الوطنية وشركات التأمين الاجنبية ووفقا لكل فرع من فروع التأمين. | H14: GWP by LOB - National vs Foreign | I14: 2A
B15: 2B | C15: اجمالي الأقساط المكتتبة وفقا لشركات التأمين التقليدي الوطنية وشركات التأمين التكافلي ووفقا لكل فرع من فروع التأمين. | H15: GWP by LOB - National Traditional vs Takaful | I15: 2B
B16: 2C | C16: اجمالي الأقساط المكتتبة لشركات التامين على الأشخاص وتكوين الأموال وشركات تامين الممتلكات والمسؤوليات والشركات التي تمارس النوعين معا. | H16: GWP by LOB - Life, Non-Life & Composite | I16: 2C
B17: 3A | C17: صافي الأقساط المكتتبة وفقا لشركات التأمين الوطنية والأجنبية. | H17: NWP by LOB - National vs Foreign | I17: 3A
B18: 3B | C18: صافي الأقساط المكتتبة وفقا لشركات التأمين التقليدي الوطنية وشركات التأمين التكافلي الوطنية. | H18: NWP by LOB - National Traditional vs Takaful | I18: 3B
B19: 4A | C19: نسبة الأقساط المحتفظ بها وفقا لشركات التأمين الوطنية وشركات التأمين الأجنبية. | H19: Premium Retention by LOB - National vs Foreign | I19: 4A
B20: 4B | C20: نسبة الأقساط المحتفظ بها وفقا لشركات التأمين التقليدي الوطنية وشركات التأمين التكافلي الوطنية. | H20: Premium Retention by LOB - National Traditional vs Takaful | I20: 4B
B21: 4C | C21: توزيع أقساط إعادة التأمين حسب التوزيع الجغرافي والتصنيف لكافة شركات التأمين العاملة في القطاع | H21: Ceded premiums per geographic location and rating - All Companies | I21: 4C
B22: 4D | C22: توزيع أقساط إعادة التأمين حسب التوزيع الجغرافي - شركات التأمين التقليدي والتكافلي الوطنية | H22: Ceded premiums per geographic location and rating - Traditional & Takaful National Companies | I22: 4D
B23: 4E | C23: توزيع أقساط إعادة التأمين حسب التوزيع الجغرافي والتصنيف لشركات التامين | H23: Ceded premiums per geographic location and rating - Life, Non-Life & Composite | I23: 4E
B24: 5A | C24: اجمالي الأقساط المكتسبة وفقا لشركات التأمين الوطنية وشركات التأمين الأجنبية. | H24: GEP by LOB - National vs Foreign | I24: 5A
B25: 5B | C25: اجمالي الأقساط المكتسبة وفقا لشركات التأمين التقليدي الوطنية وشركات التأمين التكافلي. | H25: GEP by LOB - National Traditional vs Takaful | I25: 5B
B26: 6A | C26: صافي الأقساط المكتسبة وفقا لشركات التأمين الوطنية وشركات التأمين الأجنبية. | H26: NEP by LOB - National vs Foreign | I26: 6A
B27: 6B | C27: صافي الأقساط المكتسبة وفقا لشركات التأمين التقليدي الوطنية وشركات التأمين التكافلي الوطنية. | H27: NEP by LOB - National Traditional vs Takaful | I27: 6B
B28: 7 | C28: اجمالي الأقساط المكتتبة وأعداد وثائق التأمين ومعدل القسط لكل وثيقة من كل فرع من فروع التامين. | H28: No of Policies & GWP per Policy by LOB | I28: 7
B29: 8 | C29: اجمالي الأقساط المكتتبة والعمولات المدفوعة حسب قنوات التوزيع لشركات التأمين الوطنية وشركات التأمين الأجنبية. | H29: GWP & Commission Paid by Distribution Channel - National vs Foreign | I29: 8
B30: 9A | C30: اجمالي المخصصات الفنية وفقا لشركات التأمين الوطنية وشركات التأمين الأجنبية. | H30: Gross Tech Prov by LOB - National vs Foreign | I30: 9A
B31: 9B | C31: اجمالي المخصصات الفنية وفقا لشركات التأمين التقليدي الوطنية وشركات التأمين التكافلي الوطنية. | H31: Gross Tech Prov by LOB - National Traditional vs Takaful | I31: 9B
B32: 9C | C32: اجمالي المخصصات الفنية لشركات التامين على الأشخاص وتكوين الأموال وشركات تامين الممتلكات والمسؤوليات والشركات التي تمارس النوعين معا. | H32: Gross Tech Prov by LOB - Life, Non-Life & Composite | I32: 9C
B33: 10A | C33: صافي المخصصات الفنية حسب فرع التأمين وفقا لشركات التأمين الوطنية والأجنبية. | H33: Net Tech Prov by LOB - National vs Foreign | I33: 10A
B34: 10B | C34: صافي المخصصات الفنية وفقا لشركات التأمين التقليدي الوطنية وشركات التأمين التكافلي. | H34: Net Tech Prov by LOB - National Traditional vs Takaful | I34: 10B
B35: 11A | C35: إجمالي انواع المخصصات الفنية قبل استبعاد إعادة التامين ووفقا لكل نوع من المخصصات الفنية. | H35: Gross / Net Tech Prov by Type by LOB - National vs Foreign | I35: 11A
B36: 11B | C36: صافي انواع المخصصات الفنية بعد استبعاد إعادة التامين ووفقا لكل نوع من المخصصات الفنية. | H36: Gross / Net Tech Prov by Type by LOB - National Traditional vs Takaful | I36: 11B
B37: 12A | C37: اجمالي المطالبات المدفوعة والمتكبدة وفقا لشركات التأمين الوطنية وشركات التأمين الأجنبية. | H37: Gross Claims Paid & Incurred by LOB - National vs Foreign | I37: 12A
B38: 12B | C38: اجمالي المطالبات المدفوعة والمتكبدة وفقا لشركات التأمين التقليدي الوطنية وشركات التأمين التكافلي الوطنية. | H38: Gross Claims Paid & Incurred by LOB - National Traditional vs Takaful | I38: 12B
B39: 13A | C39: صافي المطالبات المدفوعة والمتكبدة وفقا لشركات التأمين الوطنية وشركات التأمين الأجنبية. | H39: Net Claims Paid & Incurred by LOB - National vs Foreign | I39: 13A
B40: 13B | C40: صافي المطالبات المدفوعة والمتكبدة وفقا لشركات التأمين التقليدي الوطنية وشركات التأمين التكافلي الوطنية. | H40: Net Claims Paid & Incurred by LOB - National Traditional vs Takaful | I40: 13B
B41: 14A | C41: نسب الخسارة "الإجمالية" قبل استبعاد إعادة التأمين وفقا لشركات التأمين الوطنية والاجنبية. | H41: Gross Loss Ratios by LOB - National vs Foreign | I41: 14A
B42: 14B | C42: نسب الخسارة "الإجمالية" قبل استبعاد إعادة التأمين وفقا لشركات التأمين التقليدي الوطنية وشركات التأمين التكافلي الوطنية. | H42: Gross Loss Ratios by LOB - National Traditional vs Takaful | I42: 14B
B43: 15A | C43: نسب الخسارة "الصافية" بعد استبعاد إعادة التامين وفقا لشركات التأمين الوطنية وشركات التأمين الأجنبية. | H43: Net Loss Ratios by LOB - National vs Foreign | I43: 15A
B44: 15B | C44: نسب الخسارة "الصافية" بعد استبعاد إعادة التامين وفقا لشركات التأمين التقليدي الوطنية وشركات التأمين التكافلي الوطنية ووفقا لكل فرع من فروع التأمين. | H44: Net Loss Ratios by LOB - National Traditional vs Takaful | I44: 15B
B45: 16A | C45: نسبة العمولات ونسبة المصاريف والنسبة المجمعة "الإجمالية" قبل استبعاد إعادة التأمين وفقا لشركات التأمين الوطنية والاجنبية ووفقا لكل فرع من فروع التأمين. | H45: Gross Combined Ratios by LOB - National vs Foreign | I45: 16A
B46: 16B | C46: نسبة العمولات ونسبة المصاريف والنسبة المجمعة "الإجمالية" قبل استبعاد إعادة التأمين لشركات التأمين التقليدي الوطنية وشركات التأمين التكافلي الوطنية ووفقا لكل فرع من فروع التأمين. | H46: Gross Combined Ratios by LOB - National Traditional vs Takaful | I46: 16B
B47: 17A | C47: نسبة العمولات ونسبة المصاريف والنسبة المجمعة "الصافية" بعد استبعاد إعادة التأمين وفقا لشركات التأمين الوطنية وشركات التأمين الاجنبية ووفقا لكل فرع من فروع التأمين. | H47: Net Combined Ratios by LOB - National vs Foreign | I47: 17A
B48: 17B | C48: نسبة العمولات ونسبة المصاريف والنسبة المجمعة "الصافية" لشركات التأمين التقليدي الوطنية وشركات التأمين التكافلي ووفقا لكل فرع من فروع التأمين. | H48: Net Combined Ratios by LOB - National Traditional vs Takaful | I48: 17B
B49: 18 | C49: تحليل ربحية فرع تأمين المركبات “إجمالي" قبل استبعاد إعادة التأمين وبعد استبعاد إعادة التامين "صافي". | H49: Motor Profitability by Policy Type - Gross / Net | I49: 18
B50: 19 | C50: تحليل ربحية فرع التأمين الصحي “إجمالي" قبل استبعاد إعادة التأمين و"صافي" بعد استبعاد إعادة التامين. | H50: Medical Profitability by Policy Type - Gross / Net | I50: 19
B51: 20A | C51: اجمالي الأموال المستثمرة للشركات وفقا للفئات الاستثمارية وفقا لشركات التأمين الوطنية وشركات التأمين الأجنبية. | H51: Invested Assets by Class - National vs Foreign | I51: 20A
B52: 20B | C52: اجمالي الأموال المستثمرة للشركات وفقا للفئات الاستثمارية لشركات التأمين التقليدي الوطنية وشركات التأمين التكافلي. | H52: Invested Assets by Class - National Traditional vs Takaful | I52: 20B
B53: 21A | C53: قائمة المركز المالي للشركات وفقا لشركات التأمين الوطنية وشركات الاجنبية العاملة في الدولة. | H53: Balance Sheet Key Figures - National vs Foreign | I53: 21A
B54: 21B | C54: قائمة المركز المالي لشركات التأمين التقليدي الوطنية وشركات التأمين التكافلي الوطنية. | H54: Balance Sheet Key Figures - National Traditional vs Takaful | I54: 21B
B55: 22A | C55: قائمة الدخل للشركات وفقا لشركات التأمين الوطنية والأجنبية. | H55: Income Statement Key Figures - National vs Foreign | I55: 22A
B56: 22B | C56: قائمة الدخل لشركات التأمين التقليدي الوطنية وشركات التأمين التكافلي الوطنية. | H56: Income Statement Key Figures - National Traditional vs Takaful | I56: 22B
B57: 23A | C57: تحليل الملاءة المالية لكافة شركات التأمين العاملة في القطاع. | H57: Solvency Analysis - All Companies | I57: 23A
B58: 23B | C58: تحليل الملاءة المالية لشركات التأمين الوطنية. | H58: Solvency Analysis - National Companies | I58: 23B
B59: 24A | C59: اجمالي الأقساط المكتتبة حسب الامارة ووفقا لكل فرع من فروع التأمين. | H59: GWP by LOB by Emirate | I59: 24A
B60: 24B | C60: صافي الأقساط المكتتبة حسب الامارة ووفقا لكل فرع من فروع التأمين. | H60: NWP by LOB by Emirate | I60: 24B
B61: 25 | C61: عدد وثائق التأمين حسب الامارة ووفقا لكل فرع من فروع التأمين. | H61: Number of Policies by Emirate | I61: 25
B62: 26A | C62: اجمالي الأقساط غير المكتسبة حسب الامارة ووفقا لكل فرع من فروع التأمين. | H62: Gross UPR by LOB by Emirate | I62: 26A
B63: 26B | C63: صافي الأقساط غير المكتسبة حسب الامارة ووفقا لكل فرع من فروع التأمين. | H63: Net UPR by LOB by Emirate | I63: 26B
B64: 27A | C64: اجمالي المطالبات المدفوعة حسب الامارة ووفقا لكل فرع من فروع التأمين. | H64: Gross Paid Claims by LOB by Emirate | I64: 27A
B65: 27B | C65: صافي المطالبات المدفوعة حسب الامارة ووفقا لكل فرع من فروع التأمين. | H65: Net Paid Claims by LOB by Emirate | I65: 27B
B66: 28A | C66: بيانات التأمين لإمارة دبي بالقيمة الاجمالية. | H66: Gross Results for Dubai | I66: 28A
B67: 28B | C67: بيانات التأمين لإمارة دبي بالقيمة الصافية. | H67: Net Results for Dubai | I67: 28B
B68: 29A | C68: بيانات التأمين لإمارة أبو ظبي بالقيمة الاجمالية. | H68: Gross Results for Abu Dhabi | I68: 29A
B69: 29B | C69: بيانات التأمين لإمارة أبو ظبي بالقيمة الصافية. | H69: Net Results for Abu Dhabi | I69: 29B
B70: 30A | C70: بيانات التأمين لإمارة عجمان بالقيمة الاجمالية. | H70: Gross Results for Ajman | I70: 30A
B71: 30B | C71: بيانات التأمين لإمارة عجمان بالقيمة الصافية. | H71: Net Results for Ajman | I71: 30B
B72: 31A | C72: بيانات التأمين لإمارة أم القيوين بالقيمة الاجمالية. | H72: Gross Results for Umm Al Quwain | I72: 31A
B73: 31B | C73: بيانات التأمين لإمارة ام القيوين بالقيمة الصافية. | H73: Net Results for Umm Al Quwain | I73: 31B
B74: 32A | C74: بيانات التأمين لإمارة الشارقة بالقيمة الاجمالية. | H74: Gross Results for Sharjah | I74: 32A
B75: 32B | C75: بيانات التأمين لإمارة الشارقة بالقيمة الصافية. | H75: Net Results for Sharjah | I75: 32B
B76: 33A | C76: بيانات التأمين لإمارة رأس الخيمة بالقيمة الاجمالية. | H76: Gross Results for Ras Al Khaimah | I76: 33A
B77: 33B | C77: بيانات التأمين لإمارة رأس الخيمة بالقيمة الصافية. | H77: Net Results for Ras Al Khaimah | I77: 33B
B78: 34A | C78: بيانات التأمين لإمارة الفجيرة بالقيمة الاجمالية. | H78: Gross Results for Fujairah | I78: 34A
B79: 34B | C79: بيانات التأمين لإمارة الفجيرة بالقيمة الصافية. | H79: Net Results for Fujairah | I79: 34B
B80: 35 | C80: دليل شركات التأمين في دولة الإمارات العربية المتحدة | H80: Directory of insurance companies in the UAE | I80: 35
B81: 36 | C81: قائمة مُصطلحات التأمين المُستخدمة في التقرير | H81: Glossary of Insurance Terms Used in The Report | I81: 36

Sheet Insurance Sector Development

Sheet 1A
B6: إجمالي الاقساط المكتتبة
B7: Gross Written Premium
B8: (2018 - 2025)
B11: جدول رقم 1A | K11: TABLE 1A
B12: بالألف درهم | K12: AED in 000's
B13: البيــــــــان | C13: 2018 | D13: 2019 | E13: 2020 | F13: 2021 | G13: 2022 | H13: 2023 | I13: 2024 | J13: 2025 | K13: DESCRIPTION
B14: تأمين الممتلكات والمسؤوليات | C14: 31747732.61 | D14: 32526275.99 | E14: 32166056.18 | F14: 32940064.95 | G14: 37106523.92 | H14: 43837231.3 | I14: 54068702.91 | J14: 63504638.04 | K14: Property and Liability Insurance
B15: التأمين على الأشخاص وتكوين الأموال | C15: 11970700.23 | D15: 11494538.22 | E15: 10330736.22 | F15: 11376964.14 | G15: 10139921.51 | H15: 9540611.513 | I15: 11042065.86 | J15: 11335948.45 | K15: Insurance of Persons & Fund Accumulation
B16: اجمالي الأقساط | C16: =SUM(C14:C15) -> 43718432.84 | D16: 44020814.21 | E16: 42496792.4 | F16: 44317029.09 | G16: 47246445.43 | H16: 53377842.82 | I16: 65110768.77 | J16: 74840586.49 | K16: TOTAL
B18: جدول رقم 1AA | C18: National Companies الشركات الوطنية | K18: TABLE 1AA
B19: بالألف درهم | K19: AED in 000's
B20: البيــــــــان | C20: 2018 | D20: 2019 | E20: 2020 | F20: 2021 | G20: 2022 | H20: 2023 | I20: 2024 | J20: 2025 | K20: DESCRIPTION
B21: تأمين الممتلكات والمسؤوليات | C21: 24692124.36 | D21: 25988129.04 | E21: 26054212.76 | F21: 26629539.15 | G21: 30289262.55 | H21: 35811365.73 | I21: 43689297.58 | J21: 49417495.61 | K21: Property and Liability Insurance
B22: التأمين على الأشخاص وتكوين الأموال | C22: 2990432.688 | D22: 3049857.184 | E22: 3008326.207 | F22: 3639522.35 | G22: 3438475.659 | H22: 3328659.48 | I22: 3998947.661 | J22: 4911052.719 | K22: Insurance of Persons & Fund Accumulation
B23: اجمالي الأقساط | C23: =SUM(C21:C22) -> 27682557.05 | D23: 29037986.23 | E23: 29062538.96 | F23: 30269061.5 | G23: 33727738.21 | H23: 39140025.21 | I23: 47688245.24 | J23: 54328548.33 | K23: TOTAL
B25: حصة الشركات الوطنية | K25: Share of National Companies
B26: البيــــــــان | C26: 2018 | D26: 2019 | E26: 2020 | F26: 2021 | G26: 2022 | H26: 2023 | I26: 2024 | J26: 2025 | K26: DESCRIPTION
B27: تأمين الممتلكات والمسؤوليات | C27: =C21/C14 -> 0.7777602471 | D27: 0.7989887638 | E27: 0.8099908988 | F27: 0.8084240025 | G27: 0.8162786311 | H27: =H21/H14 -> 0.8169166862 | I27: 0.8080330252 | J27: =J21/J14 -> 0.7781714397 | K27: Property and Liability Insurance
B28: التأمين على الأشخاص وتكوين الأموال | C28: 0.2498126786 | D28: 0.2653309881 | E28: 0.2912015314 | F28: 0.3199027706 | G28: 0.3391027886 | H28: =H22/H15 -> 0.348893724 | I28: 0.3621557516 | J28: =J22/J15 -> 0.4332282155 | K28: Insurance of Persons & Fund Accumulation
B29: اجمالي الأقساط | C29: 0.6332010379 | D29: 0.6596421885 | E29: 0.6838760604 | F29: 0.6830119735 | G29: 0.7138682689 | H29: =H23/H16 -> 0.7332635255 | I29: 0.7324171737 | J29: =J23/J16 -> 0.7259236048 | K29: TOTAL
B31: جدول رقم 1AB | C31: Foreign Branches الشركات الأجنبية | K31: TABLE 1AB
B32: بالألف درهم | K32: AED in 000's
B33: البيــــــــان | C33: 2018 | D33: 2019 | E33: 2020 | F33: 2021 | G33: 2022 | H33: 2023 | I33: 2024 | J33: 2025 | K33: DESCRIPTION
B34: تأمين الممتلكات والمسؤوليات | C34: 7055608 | D34: 6538147 | E34: 6111843 | F34: 6310526 | G34: 6817261.37 | H34: 8025865.574 | I34: 10379405.33 | J34: 14087142.43 | K34: Property and Liability Insurance
B35: التأمين على الأشخاص وتكوين الأموال | C35: 8980268 | D35: 8444681 | E35: 7322410 | F35: 7737442 | G35: 6701445.849 | H35: 6211952.033 | I35: 7043118.199 | J35: 6424895.733 | K35: Insurance of Persons & Fund Accumulation
B36: اجمالي الأقساط | C36: =SUM(C34:C35) -> 16035876 | D36: 14982828 | E36: 13434253 | F36: =SUM(F34:F35) -> 14047968 | G36: =SUM(G34:G35) -> 13518707.22 | H36: =SUM(H34:H35) -> 14237817.61 | I36: =SUM(I34:I35) -> 17422523.53 | J36: =SUM(J34:J35) -> 20512038.16 | K36: TOTAL
B38: حصة الشركات الأجنبية | K38: Share of Foreign Companies
B39: البيــــــــان | C39: 2018 | D39: 2019 | E39: 2020 | F39: 2021 | G39: 2022 | H39: 2023 | I39: 2024 | J39: 2025 | K39: DESCRIPTION
B40: تأمين الممتلكات والمسؤوليات | C40: =C34/C14 -> 0.222239745 | D40: 0.2010112379 | E40: 0.190009088 | F40: 0.1915760036 | G40: 0.1837213689 | H40: =H34/H14 -> 0.1830833138 | I40: 0.1919669748 | J40: =J34/J14 -> 0.2218285603 | K40: Property and Liability Insurance
B41: التأمين على الأشخاص وتكوين الأموال | C41: 0.75018736 | D41: 0.7346690086 | E41: 0.7087984676 | F41: 0.6800972477 | G41: 0.6608972114 | H41: =H35/H15 -> 0.651106276 | I41: 0.6378442484 | J41: =J35/J15 -> 0.5667717845 | K41: Insurance of Persons & Fund Accumulation
B42: اجمالي الأقساط | C42: 0.3667989669 | D42: 0.3403578118 | E42: 0.3161239294 | F42: 0.3169880357 | G42: 0.2861317311 | H42: =H36/H16 -> 0.2667364745 | I42: 0.2675828263 | J42: =J36/J16 -> 0.2740763952 | K42: TOTAL

Sheet 1B
B6: إجمالي الاقساط المكتتبة
B7: Gross Written Premium
B8: (2018 - 2025)
B11: جدول رقم 1B | K11: TABLE 1B
B12: بالألف درهم | K12: AED in 000's
B13: البيــــــــان | C13: 2018 | D13: 2019 | E13: 2020 | F13: 2021 | G13: 2022 | H13: 2023 | I13: 2024 | J13: 2025 | K13: DESCRIPTION
B14: تأمين الممتلكات والمسؤوليات | C14: 24692124.36 | D14: 25988129.04 | E14: 26054212.76 | F14: 26629539.15 | G14: 30289262.55 | H14: 35811365.73 | I14: 43689297.58 | J14: 49417495.61 | K14: Property and Liability Insurance
B15: التأمين على الأشخاص وتكوين الأموال | C15: 2990432.688 | D15: 3049857.184 | E15: 3008326.207 | F15: 3639522.35 | G15: 3438475.659 | H15: 3328659.48 | I15: 3998947.661 | J15: 4911052.719 | K15: Insurance of Persons & Fund Accumulation
B16: اجمالي الأقساط | C16: =SUM(C14:C15) -> 27682557.05 | D16: 29037986.23 | E16: 29062538.96 | F16: 30269061.5 | G16: 33727738.21 | H16: 39140025.21 | I16: 47688245.24 | J16: 54328548.33 | K16: TOTAL
B18: جدول رقم 1BA | C18: National Traditional Insurance Companies شركات التأمين التقليدي الوطنية | K18: TABLE 1BA
B19: بالألف درهم | K19: AED in 000's
B20: البيــــــــان | C20: 2018 | D20: 2019 | E20: 2020 | F20: 2021 | G20: 2022 | H20: 2023 | I20: 2024 | J20: 2025 | K20: DESCRIPTION
B21: تأمين الممتلكات والمسؤوليات | C21: 21909074.99 | D21: 23090567.86 | E21: 23247009.88 | F21: 23874472.57 | G21: 27430471.11 | H21: 32309076.19 | I21: 39786851.83 | J21: 44956181.1 | K21: Property and Liability Insurance
B22: التأمين على الأشخاص وتكوين الأموال | C22: 1347855.84 | D22: 1352897.674 | E22: 1487048.125 | F22: 2043977.188 | G22: 2127418.427 | H22: 1976398.59 | I22: 2418317.279 | J22: 3025650.762 | K22: Insurance of Persons & Fund Accumulation
B23: اجمالي الأقساط | C23: =SUM(C21:C22) -> 23256930.83 | D23: 24443465.53 | E23: 24734058.01 | F23: 25918449.76 | G23: 29557889.53 | H23: 34285474.78 | I23: 42205169.11 | J23: 47981831.86 | K23: TOTAL
B25: حصة شركات التأمين التقليدي | K25: Share of Traditional Insurance Companies
B26: البيــــــــان | C26: 2018 | D26: 2019 | E26: 2020 | F26: 2021 | G26: 2022 | H26: 2023 | I26: 2024 | J26: 2025 | K26: DESCRIPTION
B27: تأمين الممتلكات والمسؤوليات | C27: =C21/C14 -> 0.8872899987 | D27: 0.8885044329 | E27: 0.8922553177 | F27: 0.896540959 | G27: 0.9056170007 | H27: =H21/H14 -> 0.9022017322 | I27: 0.9106773062 | J27: =J21/J14 -> 0.9097219626 | K27: Property and Liability Insurance
B28: التأمين على الأشخاص وتكوين الأموال | C28: 0.4507226817 | D28: 0.4435937791 | E28: 0.4943107972 | F28: 0.56160589 | G28: 0.6187097535 | H28: =H22/H15 -> 0.5937521102 | I28: 0.6047384172 | J28: =J22/J15 -> 0.6160900596 | K28: Insurance of Persons & Fund Accumulation
B29: اجمالي الأقساط | C29: 0.8401294285 | D29: 0.8417755053 | E29: 0.8510632205 | F29: 0.8562686939 | G29: 0.8763673789 | H29: =H23/H16 -> 0.8759696653 | I29: 0.8850224809 | J29: =J23/J16 -> 0.8831789792 | K29: TOTAL
B31: جدول رقم 1BB | C31: National Takaful Insurance Companies شركات التأمين التكافلي الوطنية | K31: TABLE 1BB
B32: بالألف درهم | K32: AED in 000's
B33: البيــــــــان | C33: 2018 | D33: 2019 | E33: 2020 | F33: 2021 | G33: 2022 | H33: 2023 | I33: 2024 | J33: 2025 | K33: DESCRIPTION
B34: تأمين الممتلكات والمسؤوليات | C34: 2783049.368 | D34: 2897561.187 | E34: 2807202.876 | F34: 2755066.582 | G34: 2858791.447 | H34: 3502289.537 | I34: 3902445.748 | J34: 4461314.516 | K34: Property and Liability Insurance
B35: التأمين على الأشخاص وتكوين الأموال | C35: 1642576.847 | D35: 1696959.51 | E35: 1521278.081 | F35: 1595545.161 | G35: 1311057.232 | H35: 1352260.89 | I35: 1580630.382 | J35: 1885401.957 | K35: Insurance of Persons & Fund Accumulation
B36: اجمالي الأقساط | C36: =SUM(C34:C35) -> 4425626.215 | D36: 4594520.697 | E36: 4328480.957 | F36: 4350611.743 | G36: 4169848.679 | H36: 4854550.427 | I36: 5483076.13 | J36: 6346716.473 | K36: TOTAL
B38: حصة شركات التأمين التكافلي | K38: Share of Takaful Insurance Companies
B39: البيــــــــان | C39: 2018 | D39: 2019 | E39: 2020 | F39: 2021 | G39: 2022 | H39: 2023 | I39: 2024 | J39: 2025 | K39: DESCRIPTION
B40: تأمين الممتلكات والمسؤوليات | C40: =C34/C14 -> 0.1127100013 | D40: =D34/D14 -> 0.1114955671 | E40: 0.1077446823 | F40: 0.103459041 | G40: 0.09438299934 | H40: =H34/H14 -> 0.09779826783 | I40: 0.08932269376 | J40: =J34/J14 -> 0.09027803738 | K40: Property and Liability Insurance
B41: التأمين على الأشخاص وتكوين الأموال | C41: 0.5492773183 | D41: 0.5564062209 | E41: 0.5056892028 | F41: 0.43839411 | G41: 0.3812902465 | H41: =H35/H15 -> 0.4062478898 | I41: 0.3952615828 | J41: =J35/J15 -> 0.3839099404 | K41: Insurance of Persons & Fund Accumulation
B42: اجمالي الأقساط | C42: 0.1598705715 | D42: 0.1582244947 | E42: 0.1489367795 | F42: 0.1437313061 | G42: 0.1236326211 | H42: =H36/H16 -> 0.1240303347 | I42: 0.1149775191 | J42: =J36/J16 -> 0.1168210208 | K42: TOTAL

Sheet 1C
B6: إجمالي الاقساط المكتتبة
B7: Gross Written Premium
B8: (2013 - 2025)
B10: جدول رقم 1C | P10: TABLE 1C
B11: بالألف درهم | P11: AED in 000's
B12: البيــــــــان | C12: 2013 | D12: 2014 | E12: 2015 | F12: 2016 | G12: 2017 | H12: 2018 | I12: 2019 | J12: 2020 | K12: 2021 | L12: 2022 | M12: 2023 | N12: 2024 | O12: 2025 | P12: DESCRIPTION
B13: تأمين الممتلكات والمسؤوليات | C13: 22473259 | D13: 24888224 | E13: 27464821.68 | F13: 29863254.12 | G13: 33079472.07 | H13: 31747732.61 | I13: 32526275.99 | J13: 32166056.18 | K13: 32940064.95 | L13: 37106523.92 | M13: 43837231.3 | N13: 54068702.91 | O13: 63504638.04 | P13: Property and Liability Insurance
B14: التأمين على الأشخاص وتكوين الأموال | C14: 7030665 | D14: 8645603 | E14: 9488889.281 | F14: 10145897.15 | G14: 11744756.07 | H14: 11970700.23 | I14: 11494538.22 | J14: 10330736.22 | K14: 11376964.14 | L14: 10139921.51 | M14: 9540611.513 | N14: 11042065.86 | O14: 11335948.45 | P14: Insurance of Persons & Fund Accumulation
B15: اجمالي الأقساط | C15: =SUM(C13:C14) -> 29503924 | D15: =SUM(D13:D14) -> 33533827 | E15: 36953710.97 | F15: 40009151.27 | G15: 44824228.14 | H15: 43718432.84 | I15: 44020814.21 | J15: 42496792.4 | K15: 44317029.09 | L15: 47246445.43 | M15: 53377842.82 | N15: 65110768.77 | O15: 74840586.49 | P15: TOTAL
B17: جدول رقم 1CA | C17: National Companies الشركات الوطنية | P17: TABLE 1CA
B18: بالألف درهم | P18: AED in 000's
B19: البيــــــــان | C19: 2013 | D19: 2014 | E19: 2015 | F19: 2016 | G19: 2017 | H19: 2018 | I19: 2019 | J19: 2020 | K19: 2021 | L19: 2022 | M19: 2023 | N19: 2024 | O19: 2025 | P19: DESCRIPTION
B20: تأمين الممتلكات والمسؤوليات | C20: 16714660 | D20: 18658198 | E20: 20347929 | F20: 22691772.4 | G20: 25771056.49 | H20: 24692124.36 | I20: 25988129.04 | J20: 26054212.76 | K20: 26629539.15 | L20: 30289262.55 | M20: 35811365.73 | N20: 43689297.58 | O20: 49417495.61 | P20: Property and Liability Insurance
B21: التأمين على الأشخاص وتكوين الأموال | C21: 1533114 | D21: 1563509 | E21: 1953052 | F21: 2203769.705 | G21: 2372508.936 | H21: 2990432.688 | I21: 3049857.184 | J21: 3008326.207 | K21: 3639522.35 | L21: 3438475.659 | M21: 3328659.48 | N21: 3998947.661 | O21: 4911052.719 | P21: Insurance of Persons & Fund Accumulation
B22: اجمالي الأقساط | C22: =SUM(C20:C21) -> 18247774 | D22: =SUM(D20:D21) -> 20221707 | E22: 22300981 | F22: 24895542.1 | G22: 28143565.43 | H22: 27682557.05 | I22: 29037986.23 | J22: 29062538.96 | K22: 30269061.5 | L22: 33727738.21 | M22: 39140025.21 | N22: 47688245.24 | O22: 54328548.33 | P22: TOTAL
B24: حصة الشركات الوطنية | P24: Share of National Companies
B25: البيــــــــان | C25: 2013 | D25: 2014 | E25: 2015 | F25: 2016 | G25: 2017 | H25: 2018 | I25: 2019 | J25: 2020 | K25: 2021 | L25: 2022 | M25: 2023 | N25: 2024 | O25: 2025 | P25: DESCRIPTION
B26: تأمين الممتلكات والمسؤوليات | C26: =C20/C13 -> 0.7437577256 | D26: 0.7496797682 | E26: 0.7408724234 | F26: 0.7598559857 | G26: 0.779064927 | H26: 0.7777602471 | I26: 0.7989887638 | J26: 0.8099908988 | K26: 0.8084240025 | L26: 0.8162786311 | M26: =M20/M13 -> 0.8169166862 | N26: 0.8080330252 | O26: =O20/O13 -> 0.7781714397 | P26: Property and Liability Insurance
B27: التأمين على الأشخاص وتكوين الأموال | C27: =C21/C14 -> 0.2180610227 | D27: 0.1808444131 | E27: 0.2058251437 | F27: 0.2172079682 | G27: 0.2020058076 | H27: 0.2498126786 | I27: 0.2653309881 | J27: 0.2912015314 | K27: 0.3199027706 | L27: 0.3391027886 | M27: =M21/M14 -> 0.348893724 | N27: 0.3621557516 | O27: =O21/O14 -> 0.4332282155 | P27: Insurance of Persons & Fund Accumulation
B28: اجمالي الأقساط | C28: =C22/C15 -> 0.618486341 | D28: 0.6030241344 | E28: 0.6034842081 | F28: 0.6222461939 | G28: 0.6278650318 | H28: 0.6332010379 | I28: 0.6596421885 | J28: 0.6838760604 | K28: 0.6830119735 | L28: 0.7138682689 | M28: =M22/M15 -> 0.7332635255 | N28: =N22/N15 -> 0.7324171737 | O28: 0.7259236048 | P28: TOTAL
B30: جدول رقم 1CB | C30: Foreign Branches الشركات الأجنبية | P30: TABLE 1CB
B31: بالألف درهم | P31: AED in 000's
B32: البيــــــــان | C32: 2013 | D32: 2014 | E32: 2015 | F32: 2016 | G32: 2017 | H32: 2018 | I32: 2019 | J32: 2020 | K32: 2021 | L32: 2022 | M32: 2023 | N32: 2024 | O32: 2025 | P32: DESCRIPTION
B33: تأمين الممتلكات والمسؤوليات | C33: 5758599 | D33: 6230026 | E33: 7116892 | F33: 7171481.725 | G33: 7308415.578 | H33: 7055608.25 | I33: 6538146.946 | J33: 6111843.423 | K33: 6310525.8 | L33: 6817261.37 | M33: 8025865.574 | N33: 10379405.33 | O33: 14087142.43 | P33: Property and Liability Insurance
B34: التأمين على الأشخاص وتكوين الأموال | C34: 5497551 | D34: 7082094 | E34: 7535837 | F34: 7942127.445 | G34: 9372247.136 | H34: 8980267.538 | I34: 8444681.037 | J34: 7322410.01 | K34: 7737441.791 | L34: 6701445.849 | M34: 6211952.033 | N34: 7043118.199 | O34: 6424895.733 | P34: Insurance of Persons & Fund Accumulation
B35: اجمالي الأقساط | C35: =SUM(C33:C34) -> 11256150 | D35: =SUM(D33:D34) -> 13312120 | E35: 14652729 | F35: 15113609.17 | G35: 16680662.71 | H35: 16035875.79 | I35: 14982827.98 | J35: 13434253.43 | K35: 14047967.59 | L35: 13518707.22 | M35: 14237817.61 | N35: 17422523.53 | O35: 20512038.16 | P35: TOTAL
B37: حصة الشركات الأجنبية | P37: Share of Foreign Companies
B38: البيــــــــان | C38: 2013 | D38: 2014 | E38: 2015 | F38: 2016 | G38: 2017 | H38: 2018 | I38: 2019 | J38: 2020 | K38: 2021 | L38: 2022 | M38: 2023 | N38: 2024 | O38: 2025 | P38: DESCRIPTION
B39: تأمين الممتلكات والمسؤوليات | C39: =C33/C13 -> 0.2562422744 | D39: 0.2503202318 | E39: 0.2591275517 | F39: 0.2401440143 | G39: 0.220935073 | H39: 0.2222397529 | I39: 0.2010112362 | J39: 0.1900091012 | K39: 0.1915759975 | L39: 0.1837213689 | M39: =M33/M13 -> 0.1830833138 | N39: 0.1919669748 | O39: =O33/O13 -> 0.2218285603 | P39: Property and Liability Insurance
B40: التأمين على الأشخاص وتكوين الأموال | C40: =C34/C14 -> 0.7819389773 | D40: 0.8191555869 | E40: 0.7941748266 | F40: 0.7827920318 | G40: 0.7979941924 | H40: 0.7501873214 | I40: 0.7346690119 | J40: 0.7087984686 | K40: 0.6800972294 | L40: 0.6608972114 | M40: =M34/M14 -> 0.651106276 | N40: 0.6378442484 | O40: =O34/O14 -> 0.5667717845 | P40: Insurance of Persons & Fund Accumulation
B41: اجمالي الأقساط | C41: =C35/C15 -> 0.381513659 | D41: 0.3969758656 | E41: 0.3965157657 | F41: 0.3777538061 | G41: 0.3721349682 | H41: 0.3667989621 | I41: 0.3403578115 | J41: 0.3161239396 | K41: 0.3169880265 | L41: 0.2861317311 | M41: =M35/M15 -> 0.2667364745 | N41: 0.2675828263 | O41: =O35/O15 -> 0.2740763952 | P41: TOTAL

Sheet 2A
B6: إجمالي الأقساط المكتتبة حسب فرع التأمين
B7: الشركات الوطنية والاجنبية
B8: Gross Written Premium by Line of Business
B9: National & Foreign Companies
B11: جدول رقم 2A | I11: TABLE 2A
B12: بالألف درهم | I12: AED in 000's
B13: فروع التأمين | C13: الشركات الوطنية | E13: الشركات الأجنبية | G13: الاجمالي | I13: Line of Business
C14: NATIONAL COMPANIES | E14: FOREIGN COMPANIES | G14: TOTAL
C15: 2024 | D15: 2025 | E15: 2024 | F15: 2025 | G15: 2024 | H15: 2025
B16: تأمين الحريق | C16: 5535805.614 | D16: 6225545.336 | E16: 697449.6603 | F16: 661642.8403 | G16: =E16+C16 -> 6233255.274 | H16: =F16+D16 -> 6887188.176 | I16: Fire
B17: التأمين البحري والطيران | C17: 1966032.43 | D17: 1872220.795 | E17: 351538.2553 | F17: 386333.5245 | G17: 2317570.685 | H17: 2258554.319 | I17: Marine & Aviation
B18: تأمين السيارات والمركبات الأخرى | C18: 6056078.039 | D18: 7593083.992 | E18: 1995567.082 | F18: 2482821.714 | G18: 8051645.121 | H18: 10075905.71 | I18: Motor & Transportation
B19: التأمين الهندسي والانشاءات والطاقة | C19: 3928029.822 | D19: 4013284.788 | E19: 174507.3799 | F19: 270797.5963 | G19: 4102537.202 | H19: 4284082.384 | I19: Engineering, Construction & Energy
B20: أخرى | C20: 5024759.234 | D20: 5917596.515 | E20: 563761.3974 | F20: 589680.2336 | G20: 5588520.631 | H20: 6507276.748 | I20: Other
B21: اعادة التأمين غير النسبية - المسؤوليات والممتلكات | C21: 5753.65417 | D21: 5654.24779 | E21: 0 | F21: 0 | G21: 5753.65417 | H21: 5654.24779 | I21: Reinsurance - Property & Liability
B22: المجموع - تأمين الممتلكات والمسؤوليات | C22: =C16+C17+C18+C19+C20+C21 -> 22516458.79 | D22: =D16+D17+D18+D19+D20+D21 -> 25627385.67 | E22: =E16+E17+E18+E19+E20+E21 -> 3782823.775 | F22: 4391275.908 | G22: =G16+G17+G18+G19+G20+G21 -> 26299282.57 | H22: 30018661.58 | I22: Total - Property & Liability Insurance
B24: المجموع - تأمين صحي | C24: 22280623.77 | D24: 25218671.61 | E24: 9037133.596 | F24: 11204025.52 | G24: =E24+C24 -> 31317757.37 | H24: 36422697.13 | I24: Total - Health Insurance
B26: تأمين حياة جماعي | C26: 885725.5169 | D26: 1195575.54 | E26: 235860.5531 | F26: 252687.8006 | G26: =E26+C26 -> 1121586.07 | H26: 1448263.341 | I26: Group Life
B27: تأمين ائتمان حياة جماعي | C27: 611483.4385 | D27: 704160.5419 | E27: 18832 | F27: 16375 | G27: 630315.4385 | H27: 720535.5419 | I27: Group Credit Life
B28: تأمين حياة فردي | C28: 1393953.718 | D28: 1582754.969 | E28: 4306106.946 | F28: 4619520.053 | G28: 5700060.664 | H28: 6202275.022 | I28: Individual Life
B29: دفعات الحياة وتكوين الأموال | C29: 0 | D29: 0 | E29: 41766.65936 | F29: 28153.87919 | G29: 41766.65936 | H29: 28153.87919 | I29: Annuities & Fund Accumulation
B30: المجموع - تأمين الأشخاص وعمليات تكوين الأموال | C30: =C26+C27+C28+C29 -> 2891162.674 | D30: =D26+D27+D28+D29 -> 3482491.051 | E30: =E26+E27+E28+E29 -> 4602566.158 | F30: 4916736.733 | G30: =SUM(G26:G29) -> 7493728.832 | H30: =SUM(H26:H29) -> 8399227.783 | I30: Total - Insurance of Persons & Fund Accumulation
B32: المجموع - كافة فروع التأمين | C32: =C22+C24+C30 -> 47688245.24 | D32: =D22+D24+D30 -> 54328548.33 | E32: =E22+E24+E30 -> 17422523.53 | F32: 20512038.16 | G32: =G22+G24+G30 -> 65110768.77 | H32: =H22+H24+H30 -> 74840586.49 | I32: TOTAL - All Types of Business Combined

Sheet 2B
B6: إجمالي الأقساط المكتتبة حسب فرع التأمين
B7: شركات التأمين التقليدي الوطنية وشركات التأمين التكافلي الوطنية
B8: Gross Written Premium by Line of Business
B9: Traditional & Takaful National Companies
B11: جدول رقم 2B | I11: TABLE 2B
B12: بالألف درهم | I12: AED in 000's
B13: فروع التأمين | C13: شركات التأمين التقليدي الوطنية | E13: شركات التأمين التكافلي الوطنية | G13: الشركات الوطنية | I13: Line of Business
C14: TRADITIONAL COMPANIES | E14: TAKAFUL COMPANIES | G14: NATIONAL COMPANIES
C15: 2024 | D15: 2025 | E15: 2024 | F15: 2025 | G15: 2024 | H15: 2025
B16: تأمين الحريق | C16: 4929402.127 | D16: 5521953.208 | E16: 606403.4865 | F16: 703592.1279 | G16: =E16+C16 -> 5535805.614 | H16: =F16+D16 -> 6225545.336 | I16: Fire
B17: التأمين البحري والطيران | C17: 1843213.048 | D17: 1696031.226 | E17: 122819.3821 | F17: 176189.5683 | G17: =E17+C17 -> 1966032.43 | H17: 1872220.795 | I17: Marine & Aviation
B18: تأمين السيارات والمركبات الأخرى | C18: 4823143.369 | D18: 6070542.13 | E18: 1232934.669 | F18: 1522541.862 | G18: 6056078.039 | H18: 7593083.992 | I18: Motor & Transportation
B19: التأمين الهندسي والانشاءات والطاقة | C19: 3666610.461 | D19: 3698463.378 | E19: 261419.3612 | F19: 314821.4092 | G19: 3928029.822 | H19: 4013284.788 | I19: Engineering, Construction & Energy
B20: أخرى | C20: 4459301.014 | D20: 5215557.802 | E20: 565458.2198 | F20: 702038.7129 | G20: 5024759.234 | H20: 5917596.515 | I20: Other
B21: اعادة التأمين غير النسبية - المسؤوليات والممتلكات | C21: 5753.65417 | D21: 5654.24779 | E21: 0 | F21: 0 | G21: =E21+C21 -> 5753.65417 | H21: 5654.24779 | I21: Reinsurance - Property & Liability
B22: المجموع - تأمين الممتلكات والمسؤوليات | C22: =C16+C17+C18+C19+C20+C21 -> 19727423.67 | D22: =D16+D17+D18+D19+D20+D21 -> 22208201.99 | E22: =E16+E17+E18+E19+E20+E21 -> 2789035.119 | F22: 3419183.681 | G22: =G16+G17+G18+G19+G20+G21 -> 22516458.79 | H22: =H16+H17+H18+H19+H20+H21 -> 25627385.67 | I22: Total - Property & Liability Insurance
B24: المجموع - تأمين صحي | C24: 20250076.98 | D24: 23010073.12 | E24: 2030546.791 | F24: 2208598.491 | G24: =E24+C24 -> 22280623.77 | H24: =F24+D24 -> 25218671.61 | I24: Total - Health Insurance
B26: تأمين حياة جماعي | C26: 836574.9112 | D26: 1158808.556 | E26: 49150.60578 | F26: 36766.98348 | G26: =E26+C26 -> 885725.5169 | H26: 1195575.54 | I26: Group Life
B27: تأمين ائتمان حياة جماعي | C27: 286258.5353 | D27: 290885.295 | E27: 325224.9032 | F27: 413275.247 | G27: 611483.4385 | H27: 704160.5419 | I27: Group Credit Life
B28: تأمين حياة فردي | C28: 1104835.007 | D28: 1313862.898 | E28: 289118.7115 | F28: 268892.0707 | G28: 1393953.718 | H28: 1582754.969 | I28: Individual Life
B29: دفعات الحياة وتكوين الأموال | C29: 0 | D29: 0 | E29: 0 | F29: 0 | G29: 0 | H29: 0 | I29: Annuities & Fund Accumulation
B30: المجموع - تأمين الأشخاص وعمليات تكوين الأموال | C30: =C26+C27+C28+C29 -> 2227668.454 | D30: =D26+D27+D28+D29 -> 2763556.75 | E30: =E26+E27+E28+E29 -> 663494.2204 | F30: 718934.3012 | G30: 2891162.674 | H30: 3482491.051 | I30: Total - Insurance of Persons & Fund Accumulation
B32: المجموع - كافة فروع التأمين | C32: =C22+C24+C30 -> 42205169.11 | D32: =D22+D24+D30 -> 47981831.86 | E32: =E22+E24+E30 -> 5483076.13 | F32: 6346716.473 | G32: 47688245.24 | H32: 54328548.33 | I32: TOTAL - All Types of Business Combined

Sheet 2C
B6: إجمالي الأقساط المكتتبة حسب فرع التأمين
B7: شركات التأمين على الحياة وشركات التأمينات العامة وشركات التأمين على الحياة والتأمينات العامة
B8: Gross Written Premium by Line of Business
B9: Life, Non-Life & Composite Companies
B11: جدول رقم 2C | K11: TABLE 2C
B12: بالألف درهم | K12: AED in 000's
B13: فروع التأمين | C13: شركات التأمين على الأشخاص وتكوين الأموال | E13: شركات تأمين الممتلكات والمسؤوليات | G13: شركات التأمين (النوعين معاً) | I13: الاجمالي | K13: Line of Business
C14: LIFE COMPANIES | E14: NON-LIFE COMPANIES | G14: COMPOSITE COMPANIES | I14: TOTAL
C15: 2024 | D15: 2025 | E15: 2024 | F15: 2025 | G15: 2024 | H15: 2025 | I15: 2024 | J15: 2025
B16: تأمين الحريق | C16: 0 | D16: 0 | E16: 1432441.154 | F16: 1607870.264 | G16: 4800814.12 | H16: 5279317.912 | I16: =G16+E16+C16 -> 6233255.274 | J16: =H16+F16+D16 -> 6887188.176 | K16: Fire
B17: التأمين البحري والطيران | C17: 0 | D17: 0 | E17: 515465.1115 | F17: 581635.7739 | G17: 1802105.574 | H17: 1676918.545 | I17: =G17+E17+C17 -> 2317570.685 | J17: 2258554.319 | K17: Marine & Aviation
B18: تأمين السيارات والمركبات الأخرى | C18: 0 | D18: 0 | E18: 3259802.393 | F18: 4190421.888 | G18: 4791842.728 | H18: 5885483.818 | I18: 8051645.121 | J18: 10075905.71 | K18: Motor & Transportation
B19: التأمين الهندسي والانشاءات والطاقة | C19: 0 | D19: 0 | E19: 602648.6839 | F19: 667131.15 | G19: 3499888.518 | H19: 3616951.234 | I19: 4102537.202 | J19: 4284082.384 | K19: Engineering, Construction & Energy
B20: أخرى | C20: 0 | D20: 0 | E20: 1179418.455 | F20: 1224871.321 | G20: 4409102.176 | H20: 5282405.427 | I20: 5588520.631 | J20: 6507276.748 | K20: Other
B21: اعادة التأمين غير النسبية - المسؤوليات والممتلكات | C21: 0 | D21: 0 | E21: 5753.65417 | F21: 5654.24779 | G21: 0 | H21: 0 | I21: =G21+E21+C21 -> 5753.65417 | J21: =H21+F21+D21 -> 5654.24779 | K21: Reinsurance - Property & Liability
B22: المجموع - تأمين الممتلكات والمسؤوليات | C22: =C16+C17+C18+C19+C20+C21 -> 0 | D22: =D16+D17+D18+D19+D20+D21 -> 0 | E22: =E16+E17+E18+E19+E20+E21 -> 6995529.451 | F22: 8277584.645 | G22: =G16+G17+G18+G19+G20+G21 -> 19303753.12 | H22: 21741076.94 | I22: =I16+I17+I18+I19+I20+I21 -> 26299282.57 | J22: =J16+J17+J18+J19+J20+J21 -> 30018661.58 | K22: Total - Property & Liability Insurance
B24: المجموع - تأمين صحي | C24: 2105443.986 | D24: 1244081.435 | E24: 14003865.36 | F24: 17612396.82 | G24: 15208448.02 | H24: 17566218.87 | I24: =G24+E24+C24 -> 31317757.37 | J24: =H24+F24+D24 -> 36422697.13 | K24: Total - Health Insurance
B26: تأمين حياة جماعي | C26: 235679.9452 | D26: 230698.1353 | E26: 0 | F26: 0 | G26: 885906.1249 | H26: 1217565.205 | I26: =G26+E26+C26 -> 1121586.07 | J26: =H26+F26+D26 -> 1448263.341 | K26: Group Life
B27: تأمين ائتمان حياة جماعي | C27: 116257.8395 | D27: 132323.5916 | E27: 0 | F27: 0 | G27: 514057.599 | H27: 588211.9504 | I27: =G27+E27+C27 -> 630315.4385 | J27: =H27+F27+D27 -> 720535.5419 | K27: Group Credit Life
B28: تأمين حياة فردي | C28: 3099739.479 | D28: 3123311.552 | E28: 0 | F28: 0 | G28: 2600321.185 | H28: 3078963.47 | I28: 5700060.664 | J28: 6202275.022 | K28: Individual Life
B29: دفعات الحياة وتكوين الأموال | C29: 8957.659356 | D29: 1466.879189 | E29: 0 | F29: 0 | G29: 32809 | H29: 26687 | I29: 41766.65936 | J29: 28153.87919 | K29: Annuities & Fund Accumulation
B30: المجموع - تأمين الأشخاص وعمليات تكوين الأموال | C30: =C26+C27+C28+C29 -> 3460634.924 | D30: =D26+D27+D28+D29 -> 3487800.158 | E30: =E26+E27+E28+E29 -> 0 | F30: 0 | G30: =G26+G27+G28+G29 -> 4033093.909 | H30: 4911427.626 | I30: =I26+I27+I28+I29 -> 7493728.832 | J30: =J26+J27+J28+J29 -> 8399227.783 | K30: Total - Insurance of Persons & Fund Accumulation
B32: المجموع - كافة فروع التأمين | C32: =C22+C24+C30 -> 5566078.91 | D32: =D22+D24+D30 -> 4731881.592 | E32: =E22+E24+E30 -> 20999394.81 | F32: 25889981.47 | G32: =G22+G24+G30 -> 38545295.05 | H32: =H22+H24+H30 -> 44218723.44 | I32: =I22+I24+I30 -> 65110768.77 | J32: 74840586.49 | K32: TOTAL - All Types of Business Combined

Sheet 3A
B6: صافي الأقساط المكتتبة حسب فرع التأمين
B7: الشركات الوطنية والاجنبية
B8: Net Written Premium by Line of Business
B9: National & Foreign Companies
B11: جدول رقم 3A | I11: TABLE 3A
B12: بالألف درهم | I12: AED in 000's
B13: فروع التأمين | C13: الشركات الوطنية | E13: الشركات الأجنبية | G13: الاجمالي | I13: Line of Business
C14: NATIONAL COMPANIES | E14: FOREIGN COMPANIES | G14: TOTAL
C15: 2024 | D15: 2025 | E15: 2024 | F15: 2025 | G15: 2024 | H15: 2025
B16: تأمين الحريق | C16: 744574.3196 | D16: 1134626.704 | E16: 205764.2327 | F16: 269708.9345 | G16: =E16+C16 -> 950338.5523 | H16: =F16+D16 -> 1404335.638 | I16: Fire
B17: التأمين البحري والطيران | C17: 334632.9483 | D17: 355067.2846 | E17: 175803.2639 | F17: 187824.6756 | G17: 510436.2121 | H17: 542891.9603 | I17: Marine & Aviation
B18: تأمين السيارات والمركبات الأخرى | C18: 4736122.285 | D18: 6380445.451 | E18: 1854797.92 | F18: 2343798.843 | G18: 6590920.205 | H18: 8724244.294 | I18: Motor & Transportation
B19: التأمين الهندسي والانشاءات والطاقة | C19: 568344.6163 | D19: 595415.167 | E19: 86066.1371 | F19: 78123.86818 | G19: 654410.7534 | H19: 673539.0352 | I19: Engineering, Construction & Energy
B20: أخرى | C20: 1272279.659 | D20: 1538816.707 | E20: 251407.7242 | F20: 255576.312 | G20: 1523687.384 | H20: 1794393.019 | I20: Other
B21: اعادة التأمين غير النسبية - المسؤوليات والممتلكات | C21: 4431.73023 | D21: 3916.89457 | E21: 0 | F21: 0 | G21: 4431.73023 | H21: 3916.89457 | I21: Reinsurance - Property & Liability
B22: المجموع - تأمين الممتلكات والمسؤوليات | C22: =C16+C17+C18+C19+C20+C21 -> 7660385.559 | D22: =D16+D17+D18+D19+D20+D21 -> 10008288.21 | E22: =E16+E17+E18+E19+E20+E21 -> 2573839.278 | F22: =F16+F17+F18+F19+F20+F21 -> 3135032.633 | G22: =G16+G17+G18+G19+G20+G21 -> 10234224.84 | H22: 13143320.84 | I22: Total - Property & Liability Insurance
B24: المجموع - تأمين صحي | C24: 12885991.83 | D24: 14471498.86 | E24: 6566189.562 | F24: 7601170.694 | G24: =E24+C24 -> 19452181.39 | H24: =F24+D24 -> 22072669.56 | I24: Total - Health Insurance
B26: تأمين حياة جماعي | C26: 357227.3416 | D26: 426694.7555 | E26: 64355.1338 | F26: 60507.60117 | G26: =E26+C26 -> 421582.4754 | H26: =F26+D26 -> 487202.3567 | I26: Group Life
B27: تأمين ائتمان حياة جماعي | C27: 185927.5765 | D27: 245357.0399 | E27: 2537 | F27: 3718 | G27: 188464.5765 | H27: 249075.0399 | I27: Group Credit Life
B28: تأمين حياة فردي | C28: 1282025.685 | D28: 1474105.199 | E28: 4109649.988 | F28: 4444149.903 | G28: 5391675.673 | H28: 5918255.102 | I28: Individual Life
B29: دفعات الحياة وتكوين الأموال | C29: -0.00639 | D29: 0 | E29: 41760.23691 | F29: 28151.61205 | G29: 41760.23052 | H29: 28151.61205 | I29: Annuities & Fund Accumulation
B30: المجموع - تأمين الأشخاص وعمليات تكوين الأموال | C30: =C26+C27+C28+C29 -> 1825180.597 | D30: =D26+D27+D28+D29 -> 2146156.995 | E30: =E26+E27+E28+E29 -> 4218302.359 | F30: 4536527.116 | G30: 6043482.956 | H30: 6682684.111 | I30: Total - Insurance of Persons & Fund Accumulation
B32: المجموع - كافة فروع التأمين | C32: =C22+C24+C30 -> 22371557.98 | D32: =D22+D24+D30 -> 26625944.07 | E32: =E22+E24+E30 -> 13358331.2 | F32: 15272730.44 | G32: 35729889.18 | H32: 41898674.51 | I32: TOTAL - All Types of Business Combined

Sheet 3B
B6: صافي الأقساط المكتتبة حسب فرع التأمين
B7: شركات التأمين التقليدي الوطنية وشركات التأمين التكافلي الوطنية
B8: Net Written Premium by Line of Business
B9: Traditional & Takaful National Companies
B11: جدول رقم 3B | I11: TABLE 3B
B12: بالألف درهم | I12: AED in 000's
B13: فروع التأمين | C13: شركات التأمين التقليدي الوطنية | E13: شركات التأمين التكافلي الوطنية | G13: الشركات الوطنية | I13: Line of Business
C14: TRADITIONAL COMPANIES | E14: TAKAFUL OPERATORS | G14: NATIONAL COMPANIES
C15: 2024 | D15: 2025 | E15: 2024 | F15: 2025 | G15: 2024 | H15: 2025
B16: تأمين الحريق | C16: 678728.8043 | D16: 1023474.234 | E16: 65845.51535 | F16: 111152.4697 | G16: =E16+C16 -> 744574.3196 | H16: =F16+D16 -> 1134626.704 | I16: Fire
B17: التأمين البحري والطيران | C17: 294775.5589 | D17: 308414.9834 | E17: 39857.38933 | F17: 46652.30121 | G17: =E17+C17 -> 334632.9483 | H17: =F17+D17 -> 355067.2846 | I17: Marine & Aviation
B18: تأمين السيارات والمركبات الأخرى | C18: 3857122.956 | D18: 5022694.773 | E18: 878999.329 | F18: 1357750.678 | G18: 4736122.285 | H18: =F18+D18 -> 6380445.451 | I18: Motor & Transportation
B19: التأمين الهندسي والانشاءات والطاقة | C19: 497177.2047 | D19: 518140.803 | E19: 71167.41158 | F19: 77274.36397 | G19: 568344.6163 | H19: =F19+D19 -> 595415.167 | I19: Engineering, Construction & Energy
B20: أخرى | C20: 1083337.287 | D20: 1262200.883 | E20: 188942.3722 | F20: 276615.8244 | G20: 1272279.659 | H20: =F20+D20 -> 1538816.707 | I20: Other
B21: اعادة التأمين غير النسبية - المسؤوليات والممتلكات | C21: 4431.73023 | D21: 3916.89457 | E21: 0 | F21: 0 | G21: 4431.73023 | H21: =F21+D21 -> 3916.89457 | I21: Reinsurance - Property & Liability
B22: المجموع - تأمين الممتلكات والمسؤوليات | C22: =C16+C17+C18+C19+C20+C21 -> 6415573.541 | D22: =D16+D17+D18+D19+D20+D21 -> 8138842.571 | E22: =E16+E17+E18+E19+E20+E21 -> 1244812.017 | F22: 1869445.637 | G22: 7660385.559 | H22: 10008288.21 | I22: Total - Property & Liability Insurance
B24: المجموع - تأمين صحي | C24: 11807357.34 | D24: 13222023.14 | E24: 1078634.488 | F24: 1249475.727 | G24: =E24+C24 -> 12885991.83 | H24: =F24+D24 -> 14471498.86 | I24: Total - Health Insurance
B26: تأمين حياة جماعي | C26: 345835.1099 | D26: 415415.1235 | E26: 11392.23166 | F26: 11279.63201 | G26: =E26+C26 -> 357227.3416 | H26: 426694.7555 | I26: Group Life
B27: تأمين ائتمان حياة جماعي | C27: 79363.25593 | D27: 105665.1734 | E27: 106564.3206 | F27: 139691.8665 | G27: 185927.5765 | H27: 245357.0399 | I27: Group Credit Life
B28: تأمين حياة فردي | C28: 1040962.824 | D28: 1253931.93 | E28: 241062.8609 | F28: 220173.2693 | G28: 1282025.685 | H28: 1474105.199 | I28: Individual Life
B29: دفعات الحياة وتكوين الأموال | C29: 0 | D29: 0 | E29: -0.00639 | F29: 0 | G29: -0.00639 | H29: 0 | I29: Annuities & Fund Accumulation
B30: المجموع - تأمين الأشخاص وعمليات تكوين الأموال | C30: =C26+C27+C28+C29 -> 1466161.19 | D30: =D26+D27+D28+D29 -> 1775012.227 | E30: =E26+E27+E28+E29 -> 359019.4068 | F30: 371144.7678 | G30: 1825180.597 | H30: 2146156.995 | I30: Total - Insurance of Persons & Fund Accumulation
B32: المجموع - كافة فروع التأمين | C32: =C22+C24+C30 -> 19689092.07 | D32: =D22+D24+D30 -> 23135877.94 | E32: =E22+E24+E30 -> 2682465.912 | F32: 3490066.132 | G32: 22371557.98 | H32: 26625944.07 | I32: TOTAL - All Types of Business Combined

Sheet 4A
B6: نسب الاحتفاظ بالاقساط المكتتبة حسب فرع التأمين
B7: (صافي الأقساط المكتتبة الى إجمالي الاقساط المكتتبة)
B8: Retention Ratios of Written Premium by Line of Business
B9: (Net Written Premium ÷ Gross Written Premium)
B11: جدول رقم 4A | I11: TABLE 4A
B12: بالألف درهم | I12: AED in 000's
B13: فروع التأمين | C13: الشركات الوطنية | E13: الشركات الأجنبية | G13: الاجمالي | I13: Line of Business
C14: NATIONAL COMPANIES | E14: FOREIGN COMPANIES | G14: TOTAL
C15: 2024 | D15: 2025 | E15: 2024 | F15: 2025 | G15: 2024 | H15: 2025
B16: تأمين الحريق | C16: =IFERROR('3A'!C16/'2A'!C16,"") -> 0.1345015291 | D16: =IFERROR('3A'!D16/'2A'!D16,"") -> 0.1822533838 | E16: =IFERROR('3A'!E16/'2A'!E16,"") -> 0.2950237765 | F16: =IFERROR('3A'!F16/'2A'!F16,"") -> 0.4076352348 | G16: =IFERROR('3A'!G16/'2A'!G16,"") -> 0.1524626396 | H16: =IFERROR('3A'!H16/'2A'!H16,"") -> 0.203905513 | I16: Fire
B17: التأمين البحري والطيران | C17: =IFERROR('3A'!C17/'2A'!C17,"") -> 0.1702072373 | D17: =IFERROR('3A'!D17/'2A'!D17,"") -> 0.1896503263 | E17: =IFERROR('3A'!E17/'2A'!E17,"") -> 0.5000971053 | F17: =IFERROR('3A'!F17/'2A'!F17,"") -> 0.4861723452 | G17: =IFERROR('3A'!G17/'2A'!G17,"") -> 0.2202462326 | H17: =IFERROR('3A'!H17/'2A'!H17,"") -> 0.2403714428 | I17: Marine & Aviation
B18: تأمين السيارات والمركبات الأخرى | C18: =IFERROR('3A'!C18/'2A'!C18,"") -> 0.7820444609 | D18: =IFERROR('3A'!D18/'2A'!D18,"") -> 0.8402969673 | E18: =IFERROR('3A'!E18/'2A'!E18,"") -> 0.9294590677 | F18: =IFERROR('3A'!F18/'2A'!F18,"") -> 0.9440060999 | G18: =IFERROR('3A'!G18/'2A'!G18,"") -> 0.8185805641 | H18: =IFERROR('3A'!H18/'2A'!H18,"") -> 0.8658521178 | I18: Motor & Transportation
B19: التأمين الهندسي والانشاءات والطاقة | C19: =IFERROR('3A'!C19/'2A'!C19,"") -> 0.1446894861 | D19: =IFERROR('3A'!D19/'2A'!D19,"") -> 0.1483610555 | E19: =IFERROR('3A'!E19/'2A'!E19,"") -> 0.4931948274 | F19: =IFERROR('3A'!F19/'2A'!F19,"") -> 0.2884954271 | G19: =IFERROR('3A'!G19/'2A'!G19,"") -> 0.1595136671 | H19: =IFERROR('3A'!H19/'2A'!H19,"") -> 0.1572189736 | I19: Engineering, Construction & Energy
B20: أخرى | C20: =IFERROR('3A'!C20/'2A'!C20,"") -> 0.2532021138 | D20: =IFERROR('3A'!D20/'2A'!D20,"") -> 0.2600408297 | E20: =IFERROR('3A'!E20/'2A'!E20,"") -> 0.445947036 | F20: =IFERROR('3A'!F20/'2A'!F20,"") -> 0.4334150909 | G20: =IFERROR('3A'!G20/'2A'!G20,"") -> 0.2726459262 | H20: =IFERROR('3A'!H20/'2A'!H20,"") -> 0.2757517605 | I20: Other
B21: اعادة التأمين غير النسبية - المسؤوليات والممتلكات | C21: =IFERROR('3A'!C21/'2A'!C21,"") -> 0.7702461947 | D21: =IFERROR('3A'!D21/'2A'!D21,"") -> 0.6927348633 | E21: - | F21: - | G21: =IFERROR('3A'!G21/'2A'!G21,"") -> 0.7702461947 | H21: =IFERROR('3A'!H21/'2A'!H21,"") -> 0.6927348633 | I21: Reinsurance - Property & Liability
B22: المجموع - تأمين الممتلكات والمسؤوليات | C22: =IFERROR('3A'!C22/'2A'!C22,"") -> 0.3402127141 | D22: =IFERROR('3A'!D22/'2A'!D22,"") -> 0.3905309865 | E22: =IFERROR('3A'!E22/'2A'!E22,"") -> 0.6804015811 | F22: =IFERROR('3A'!F22/'2A'!F22,"") -> 0.713922946 | G22: =IFERROR('3A'!G22/'2A'!G22,"") -> 0.3891446396 | H22: =IFERROR('3A'!H22/'2A'!H22,"") -> 0.4378383362 | I22: Total - Property & Liability Insurance
B24: المجموع - تأمين صحي | C24: =IFERROR('3A'!C24/'2A'!C24,"") -> 0.5783496888 | D24: =IFERROR('3A'!D24/'2A'!D24,"") -> 0.5738406483 | E24: =IFERROR('3A'!E24/'2A'!E24,"") -> 0.7265787865 | F24: =IFERROR('3A'!F24/'2A'!F24,"") -> 0.6784321118 | G24: =IFERROR('3A'!G24/'2A'!G24,"") -> 0.6211230631 | H24: =IFERROR('3A'!H24/'2A'!H24,"") -> 0.6060141422 | I24: Total - Health Insurance
B26: تأمين حياة جماعي | C26: =IFERROR('3A'!C26/'2A'!C26,"") -> 0.4033160779 | D26: =IFERROR('3A'!D26/'2A'!D26,"") -> 0.3568948521 | E26: =IFERROR('3A'!E26/'2A'!E26,"") -> 0.272852467 | F26: =IFERROR('3A'!F26/'2A'!F26,"") -> 0.2394559652 | G26: =IFERROR('3A'!G26/'2A'!G26,"") -> 0.3758806271 | H26: =IFERROR('3A'!H26/'2A'!H26,"") -> 0.3364045357 | I26: Group Life
B27: تأمين ائتمان حياة جماعي | C27: =IFERROR('3A'!C27/'2A'!C27,"") -> 0.3040598727 | D27: =IFERROR('3A'!D27/'2A'!D27,"") -> 0.3484390637 | E27: =IFERROR('3A'!E27/'2A'!E27,"") -> 0.1347175021 | F27: =IFERROR('3A'!F27/'2A'!F27,"") -> 0.2270534351 | G27: =IFERROR('3A'!G27/'2A'!G27,"") -> 0.2990004131 | H27: =IFERROR('3A'!H27/'2A'!H27,"") -> 0.3456804355 | I27: Group Credit Life
B28: تأمين حياة فردي | C28: =IFERROR('3A'!C28/'2A'!C28,"") -> 0.9197046274 | D28: =IFERROR('3A'!D28/'2A'!D28,"") -> 0.9313540176 | E28: =IFERROR('3A'!E28/'2A'!E28,"") -> 0.95437713 | F28: =IFERROR('3A'!F28/'2A'!F28,"") -> 0.9620371493 | G28: =IFERROR('3A'!G28/'2A'!G28,"") -> 0.9458979458 | H28: =IFERROR('3A'!H28/'2A'!H28,"") -> 0.9542071387 | I28: Individual Life
B29: دفعات الحياة وتكوين الأموال | C29: - | D29: - | E29: =IFERROR('3A'!E29/'2A'!E29,"") -> 0.9998462303 | F29: =IFERROR('3A'!F29/'2A'!F29,"") -> 0.9999194733 | G29: =IFERROR('3A'!G29/'2A'!G29,"") -> 0.9998460773 | H29: =IFERROR('3A'!H29/'2A'!H29,"") -> 0.9999194733 | I29: Annuities & Fund Accumulation
B30: المجموع - تأمين الأشخاص وعمليات تكوين الأموال | C30: =IFERROR('3A'!C30/'2A'!C30,"") -> 0.6312964031 | D30: =IFERROR('3A'!D30/'2A'!D30,"") -> 0.6162706417 | E30: =IFERROR('3A'!E30/'2A'!E30,"") -> 0.9165109667 | F30: =IFERROR('3A'!F30/'2A'!F30,"") -> 0.9226703326 | G30: =IFERROR('3A'!G30/'2A'!G30,"") -> 0.8064720637 | H30: =IFERROR('3A'!H30/'2A'!H30,"") -> 0.795630775 | I30: Total - Insurance of Persons & Fund Accumulation
B32: المجموع - كافة فروع التأمين | C32: =IFERROR('3A'!C32/'2A'!C32,"") -> 0.4691210144 | D32: =IFERROR('3A'!D32/'2A'!D32,"") -> 0.4900912114 | E32: =IFERROR('3A'!E32/'2A'!E32,"") -> 0.7667276888 | F32: =IFERROR('3A'!F32/'2A'!F32,"") -> 0.7445740069 | G32: =IFERROR('3A'!G32/'2A'!G32,"") -> 0.5487554494 | H32: =IFERROR('3A'!H32/'2A'!H32,"") -> 0.5598389386 | I32: TOTAL - All Types of Business Combined

Sheet 4B
B6: نسب الاحتفاظ بالاقساط المكتتبة حسب فرع التأمين
B7: (صافي الأقساط المكتتبة الى إجمالي الاقساط المكتتبة)
B8: Retention Ratios of Written Premium by Line of Business
B9: (Net Written Premium ÷ Gross Written Premium)
B11: جدول رقم 4B | I11: TABLE 4B
B12: بالألف درهم | I12: AED in 000's
B13: فروع التأمين | C13: شركات التأمين التقليدي الوطنية | E13: شركات التأمين التكافلي الوطنية | G13: الشركات الوطنية | I13: Line of Business
C14: TRADITIONAL COMPANIES | E14: TAKAFUL OPERATORS | G14: NATIONAL COMPANIES
C15: 2024 | D15: 2025 | E15: 2024 | F15: 2025 | G15: 2024 | H15: 2025
B16: تأمين الحريق | C16: =IFERROR('3B'!C16/'2B'!C16,"") -> 0.1376898834 | D16: =IFERROR('3B'!D16/'2B'!D16,"") -> 0.1853464155 | E16: =IFERROR('3B'!E16/'2B'!E16,"") -> 0.1085836688 | F16: =IFERROR('3B'!F16/'2B'!F16,"") -> 0.1579785579 | G16: =IFERROR('3B'!G16/'2B'!G16,"") -> 0.1345015291 | H16: =IFERROR('3B'!H16/'2B'!H16,"") -> 0.1822533838 | I16: Fire
B17: التأمين البحري والطيران | C17: =IFERROR('3B'!C17/'2B'!C17,"") -> 0.1599248439 | D17: =IFERROR('3B'!D17/'2B'!D17,"") -> 0.1818451091 | E17: =IFERROR('3B'!E17/'2B'!E17,"") -> 0.3245203539 | F17: =IFERROR('3B'!F17/'2B'!F17,"") -> 0.2647846956 | G17: =IFERROR('3B'!G17/'2B'!G17,"") -> 0.1702072373 | H17: =IFERROR('3B'!H17/'2B'!H17,"") -> 0.1896503263 | I17: Marine & Aviation
B18: تأمين السيارات والمركبات الأخرى | C18: =IFERROR('3B'!C18/'2B'!C18,"") -> 0.7997114455 | D18: =IFERROR('3B'!D18/'2B'!D18,"") -> 0.8273881749 | E18: =IFERROR('3B'!E18/'2B'!E18,"") -> 0.7129326078 | F18: =IFERROR('3B'!F18/'2B'!F18,"") -> 0.8917657447 | G18: =IFERROR('3B'!G18/'2B'!G18,"") -> 0.7820444609 | H18: =IFERROR('3B'!H18/'2B'!H18,"") -> 0.8402969673 | I18: Motor & Transportation
B19: التأمين الهندسي والانشاءات والطاقة | C19: =IFERROR('3B'!C19/'2B'!C19,"") -> 0.1355958616 | D19: =IFERROR('3B'!D19/'2B'!D19,"") -> 0.1400962373 | E19: =IFERROR('3B'!E19/'2B'!E19,"") -> 0.2722346626 | F19: =IFERROR('3B'!F19/'2B'!F19,"") -> 0.2454546029 | G19: =IFERROR('3B'!G19/'2B'!G19,"") -> 0.1446894861 | H19: =IFERROR('3B'!H19/'2B'!H19,"") -> 0.1483610555 | I19: Engineering, Construction & Energy
B20: أخرى | C20: =IFERROR('3B'!C20/'2B'!C20,"") -> 0.2429388112 | D20: =IFERROR('3B'!D20/'2B'!D20,"") -> 0.2420068823 | E20: =IFERROR('3B'!E20/'2B'!E20,"") -> 0.3341402876 | F20: =IFERROR('3B'!F20/'2B'!F20,"") -> 0.3940179071 | G20: =IFERROR('3B'!G20/'2B'!G20,"") -> 0.2532021138 | H20: =IFERROR('3B'!H20/'2B'!H20,"") -> 0.2600408297 | I20: Other
B21: اعادة التأمين غير النسبية - المسؤوليات والممتلكات | C21: =IFERROR('3B'!C21/'2B'!C21,"") -> 0.7702461947 | D21: =IFERROR('3B'!D21/'2B'!D21,"") -> 0.6927348633 | E21: - | F21: - | G21: =IFERROR('3B'!G21/'2B'!G21,"") -> 0.7702461947 | H21: =IFERROR('3B'!H21/'2B'!H21,"") -> 0.6927348633 | I21: Reinsurance - Property & Liability
B22: المجموع - تأمين الممتلكات والمسؤوليات | C22: =IFERROR('3B'!C22/'2B'!C22,"") -> 0.3252109169 | D22: =IFERROR('3B'!D22/'2B'!D22,"") -> 0.3664791312 | E22: =IFERROR('3B'!E22/'2B'!E22,"") -> 0.4463235364 | F22: =IFERROR('3B'!F22/'2B'!F22,"") -> 0.5467520355 | G22: =IFERROR('3B'!G22/'2B'!G22,"") -> 0.3402127141 | H22: =IFERROR('3B'!H22/'2B'!H22,"") -> 0.3905309865 | I22: Total - Property & Liability Insurance
B24: المجموع - تأمين صحي | C24: =IFERROR('3B'!C24/'2B'!C24,"") -> 0.5830771581 | D24: =IFERROR('3B'!D24/'2B'!D24,"") -> 0.5746189101 | E24: =IFERROR('3B'!E24/'2B'!E24,"") -> 0.5312039558 | F24: =IFERROR('3B'!F24/'2B'!F24,"") -> 0.5657324011 | G24: =IFERROR('3B'!G24/'2B'!G24,"") -> 0.5783496888 | H24: =IFERROR('3B'!H24/'2B'!H24,"") -> 0.5738406483 | I24: Total - Health Insurance
B26: تأمين حياة جماعي | C26: =IFERROR('3B'!C26/'2B'!C26,"") -> 0.413394073 | D26: =IFERROR('3B'!D26/'2B'!D26,"") -> 0.3584846877 | E26: =IFERROR('3B'!E26/'2B'!E26,"") -> 0.2317821212 | F26: =IFERROR('3B'!F26/'2B'!F26,"") -> 0.3067869851 | G26: =IFERROR('3B'!G26/'2B'!G26,"") -> 0.4033160779 | H26: =IFERROR('3B'!H26/'2B'!H26,"") -> 0.3568948521 | I26: Group Life
B27: تأمين ائتمان حياة جماعي | C27: =IFERROR('3B'!C27/'2B'!C27,"") -> 0.2772432823 | D27: =IFERROR('3B'!D27/'2B'!D27,"") -> 0.3632537472 | E27: =IFERROR('3B'!E27/'2B'!E27,"") -> 0.3276634708 | F27: =IFERROR('3B'!F27/'2B'!F27,"") -> 0.3380116946 | G27: =IFERROR('3B'!G27/'2B'!G27,"") -> 0.3040598727 | H27: =IFERROR('3B'!H27/'2B'!H27,"") -> 0.3484390637 | I27: Group Credit Life
B28: تأمين حياة فردي | C28: =IFERROR('3B'!C28/'2B'!C28,"") -> 0.9421884876 | D28: =IFERROR('3B'!D28/'2B'!D28,"") -> 0.9543856758 | E28: =IFERROR('3B'!E28/'2B'!E28,"") -> 0.8337850556 | F28: =IFERROR('3B'!F28/'2B'!F28,"") -> 0.8188165187 | G28: =IFERROR('3B'!G28/'2B'!G28,"") -> 0.9197046274 | H28: =IFERROR('3B'!H28/'2B'!H28,"") -> 0.9313540176 | I28: Individual Life
B29: دفعات الحياة وتكوين الأموال | C29: - | D29: - | E29: - | F29: - | G29: - | H29: - | I29: Annuities & Fund Accumulation
B30: المجموع - تأمين الأشخاص وعمليات تكوين الأموال | C30: =IFERROR('3B'!C30/'2B'!C30,"") -> 0.6581595155 | D30: =IFERROR('3B'!D30/'2B'!D30,"") -> 0.642292664 | E30: =IFERROR('3B'!E30/'2B'!E30,"") -> 0.5411040454 | F30: =IFERROR('3B'!F30/'2B'!F30,"") -> 0.5162429546 | G30: =IFERROR('3B'!G30/'2B'!G30,"") -> 0.6312964031 | H30: =IFERROR('3B'!H30/'2B'!H30,"") -> 0.6162706417 | I30: Total - Insurance of Persons & Fund Accumulation
B32: المجموع - كافة فروع التأمين | C32: =IFERROR('3B'!C32/'2B'!C32,"") -> 0.4665090197 | D32: =IFERROR('3B'!D32/'2B'!D32,"") -> 0.4821799635 | E32: =IFERROR('3B'!E32/'2B'!E32,"") -> 0.4892264576 | F32: =IFERROR('3B'!F32/'2B'!F32,"") -> 0.5499010626 | G32: =IFERROR('3B'!G32/'2B'!G32,"") -> 0.4691210144 | H32: =IFERROR('3B'!H32/'2B'!H32,"") -> 0.4900912114 | I32: TOTAL - All Types of Business Combined

Sheet 4C
B6: توزيع أقساط إعادة التأمين حسب التوزيع الجغرافي والتصنيف لكافة شركات التأمين العاملة في القطاع
B7: Ceded premiums per geographic location and rating - All Companies
B8: (2025)
B10: جدول رقم 4C | F10: TABLE 4C
B11: بالألف درهم | F11: AED in 000's
B12: البيــــــــان | C12: الشركات الوطنية | D12: الشركات الأجنبية | E12: الاجمالي | F12: DESCRIPTION
C13: NATIONAL COMPANIES | D13: FOREIGN COMPANIES | E13: TOTAL
B14: داخل الدولة | F14: Inside UAE
B15: AAA | C15: 16083.82046 | D15: 2096.657657 | E15: =C15+D15 -> 18180.47812 | F15: AAA
B16: AA | C16: 1059499.364 | D16: 25394.78812 | E16: =C16+D16 -> 1084894.152 | F16: AA
B17: A | C17: 3332622.943 | D17: 105978.3068 | E17: 3438601.249 | F17: A
B18: BBB | C18: 152726.1677 | D18: 16019.42831 | E18: 168745.596 | F18: BBB
B19: BB | C19: 5518.715275 | D19: 2899.229078 | E19: 8417.944353 | F19: BB
B20: B | C20: 34981.02154 | D20: 272.5700588 | E20: 35253.5916 | F20: B
B21: أخري | C21: 12097.36281 | D21: 0 | E21: 12097.36281 | F21: Other
B22: غير مُصنفة | C22: 227857.3838 | D22: 11706.40213 | E22: 239563.7859 | F22: Unrated
B23: الاجمالي حسب نوع التصنيف | C23: =C15+C16+C17+C18+C19+C20+C21+C22 -> 4841386.778 | D23: =D15+D16+D17+D18+D19+D20+D21+D22 -> 164367.3821 | E23: =E15+E16+E17+E18+E19+E20+E21+E22 -> 5005754.16 | F23: Totals for All Rating Types
B25: مجلس التعاون الخليجي عدا دولة الإمارات | F25: GCC Excl UAE
B26: AAA | C26: 0 | D26: 0 | E26: =C26+D26 -> 0 | F26: AAA
B27: AA | C27: 233090.1819 | D27: 3627.980025 | E27: 236718.1619 | F27: AA
B28: A | C28: 783097.9218 | D28: 861122.0119 | E28: 1644219.934 | F28: A
B29: BBB | C29: 74802.10507 | D29: 37368.42396 | E29: 112170.529 | F29: BBB
B30: BB | C30: 3829.609525 | D30: 137.5221475 | E30: 3967.131673 | F30: BB
B31: B | C31: 12514.74021 | D31: 239.221 | E31: 12753.96121 | F31: B
B32: أخري | C32: 6449.092087 | D32: 0 | E32: 6449.092087 | F32: Other
B33: غير مُصنفة | C33: 15204.20122 | D33: 0 | E33: 15204.20122 | F33: Unrated
B34: الاجمالي حسب نوع التصنيف | C34: =C26+C27+C28+C29+C30+C31+C32+C33 -> 1128987.852 | D34: =D26+D27+D28+D29+D30+D31+D32+D33 -> 902495.159 | E34: =E26+E27+E28+E29+E30+E31+E32+E33 -> 2031483.011 | F34: Totals for All Rating Types
B36: منطقة الشرق الأوسط وشمال أفريقيا عدا منطقة مجلس التعاون الخليجي | F36: MENA Excl GCC
B37: AAA | C37: 2339.877145 | D37: 9.73666 | E37: =C37+D37 -> 2349.613805 | F37: AAA
B38: AA | C38: 75483.52025 | D38: 0 | E38: =C38+D38 -> 75483.52025 | F38: AA
B39: A | C39: 508156.9217 | D39: 8229.712244 | E39: 516386.634 | F39: A
B40: BBB | C40: 184928.3121 | D40: 7814.033369 | E40: 192742.3455 | F40: BBB
B41: BB | C41: 56465.19843 | D41: 0 | E41: 56465.19843 | F41: BB
B42: B | C42: 215340.6283 | D42: 6377.906984 | E42: 221718.5353 | F42: B
B43: أخري | C43: 681.0553004 | D43: 0 | E43: 681.0553004 | F43: Other
B44: غير مُصنفة | C44: 20641.45142 | D44: 5453.574165 | E44: 26095.02559 | F44: Unrated
B45: الاجمالي حسب نوع التصنيف | C45: =C37+C38+C39+C40+C41+C42+C43+C44 -> 1064036.965 | D45: =D37+D38+D39+D40+D41+D42+D43+D44 -> 27884.96342 | E45: 1091921.928 | F45: Totals for All Rating Types
B47: خارج منطقة الشرق الأوسط وشمال أفريقيا | F47: Outside MENA
B48: AAA | C48: 276979.9298 | D48: 6271.685727 | E48: =C48+D48 -> 283251.6156 | F48: AAA
B49: AA | C49: 6960247.938 | D49: 1600567.655 | E49: 8560815.593 | F49: AA
B50: A | C50: 12437704.58 | D50: 2432014.66 | E50: 14869719.24 | F50: A
B51: BBB | C51: 315002.0002 | D51: 12355.29304 | E51: 327357.2933 | F51: BBB
B52: BB | C52: 98289.04539 | D52: 2105.919474 | E52: 100394.9649 | F52: BB
B53: B | C53: -18219.35796 | D53: 2868.684723 | E53: -15350.67323 | F53: B
B54: أخري | C54: 27699.85178 | D54: 536.33093 | E54: 28236.18271 | F54: Other
B55: غير مُصنفة | C55: 570488.6789 | D55: 87839.98861 | E55: 658328.6676 | F55: Unrated
B56: الاجمالي حسب نوع التصنيف | C56: =C48+C49+C50+C51+C52+C53+C54+C55 -> 20668192.67 | D56: =D48+D49+D50+D51+D52+D53+D54+D55 -> 4144560.217 | E56: 24812752.88 | F56: Totals for All Rating Types
B58: كافة المناطق حسب التوزيع الجغرافي | F58: Totals for All Regions
B59: AAA | C59: =C15+C26+C37+C48 -> 295403.6274 | D59: =D15+D26+D37+D48 -> 8378.080044 | E59: =C59+D59 -> 303781.7075 | F59: AAA
B60: AA | C60: =C16+C27+C38+C49 -> 8328321.004 | D60: 1629590.423 | E60: 9957911.427 | F60: AA
B61: A | C61: =C17+C28+C39+C50 -> 17061582.37 | D61: 3407344.691 | E61: 20468927.06 | F61: A
B62: BBB | C62: =C18+C29+C40+C51 -> 727458.5851 | D62: 73557.17868 | E62: 801015.7638 | F62: BBB
B63: BB | C63: =C19+C30+C41+C52 -> 164102.5686 | D63: 5142.6707 | E63: 169245.2393 | F63: BB
B64: B | C64: =C20+C31+C42+C53 -> 244617.0321 | D64: 9758.382765 | E64: 254375.4148 | F64: B
B65: أخري | C65: =C21+C32+C43+C54 -> 46927.36198 | D65: 536.33093 | E65: =C65+D65 -> 47463.69291 | F65: Other
B66: غير مُصنفة | C66: =C22+C33+C44+C55 -> 834191.7154 | D66: 104999.9649 | E66: =C66+D66 -> 939191.6803 | F66: Unrated
B67: الاجمالي حسب نوع التصنيف | C67: =C59+C60+C61+C62+C63+C64+C65+C66 -> 27702604.26 | D67: =D59+D60+D61+D62+D63+D64+D65+D66 -> 5239307.722 | E67: =E59+E60+E61+E62+E63+E64+E65+E66 -> 32941911.98 | F67: Totals for All Rating Types

Sheet 4D
B6: توزيع أقساط إعادة التأمين حسب التوزيع الجغرافي
B7: شركات التأمين التقليدي الوطنية وشركات التأمين التكافلي الوطنية
B8: Ceded premiums per geographic location and rating
B9: Traditional & Takaful National Companies
B10: (2025)
B12: جدول رقم 4D | F12: TABLE 4D
B13: بالألف درهم | F13: AED in 000's
B14: البيــــــــان | C14: شركات التأمين التقليدي الوطنية | D14: شركات التأمين التكافلي الوطنية | E14: إجمالي الشركات الوطنية | F14: DESCRIPTION
C15: TRADITIONAL COMPANIES | D15: TAKAFUL OPERATORS | E15: TOTAL of NATIONAL COMPANIES
B16: داخل الدولة | F16: Inside UAE
B17: AAA | C17: 5442.780772 | D17: 10641.03969 | E17: =C17+D17 -> 16083.82046 | F17: AAA
B18: AA | C18: 856156.1445 | D18: 203343.219 | E18: =C18+D18 -> 1059499.364 | F18: AA
B19: A | C19: 2711846.364 | D19: 620776.5788 | E19: 3332622.943 | F19: A
B20: BBB | C20: 72957.17915 | D20: 79768.9885 | E20: 152726.1677 | F20: BBB
B21: BB | C21: -1031.393634 | D21: 6550.108909 | E21: 5518.715275 | F21: BB
B22: B | C22: 31529.85532 | D22: 3451.166221 | E22: 34981.02154 | F22: B
B23: أخري | C23: 11702.10913 | D23: 395.2536859 | E23: =C23+D23 -> 12097.36281 | F23: Other
B24: غير مُصنفة | C24: 196448.2039 | D24: 31409.17994 | E24: 227857.3838 | F24: Unrated
B25: الاجمالي حسب نوع التصنيف | C25: =C17+C18+C19+C20+C21+C22+C23+C24 -> 3885051.243 | D25: =D17+D18+D19+D20+D21+D22+D23+D24 -> 956335.5347 | E25: =E17+E18+E19+E20+E21+E22+E23+E24 -> 4841386.778 | F25: Totals for All Rating Types
B27: مجلس التعاون الخليجي عدا دولة الإمارات | F27: GCC Excl UAE
B28: AAA | C28: 0 | D28: 0 | E28: =C28+D28 -> 0 | F28: AAA
B29: AA | C29: 103864.8335 | D29: 129225.3484 | E29: =C29+D29 -> 233090.1819 | F29: AA
B30: A | C30: 550517.5797 | D30: 232580.3421 | E30: =C30+D30 -> 783097.9218 | F30: A
B31: BBB | C31: 24596.65644 | D31: 50205.44863 | E31: 74802.10507 | F31: BBB
B32: BB | C32: -9501.251529 | D32: 13330.86105 | E32: 3829.609525 | F32: BB
B33: B | C33: -4026.994914 | D33: 16541.73513 | E33: 12514.74021 | F33: B
B34: أخري | C34: 6449.092087 | D34: 0 | E34: 6449.092087 | F34: Other
B35: غير مُصنفة | C35: 13937.77324 | D35: 1266.42798 | E35: 15204.20122 | F35: Unrated
B36: الاجمالي حسب نوع التصنيف | C36: =C28+C29+C30+C31+C32+C33+C34+C35 -> 685837.6886 | D36: =D28+D29+D30+D31+D32+D33+D34+D35 -> 443150.1633 | E36: =E28+E29+E30+E31+E32+E33+E34+E35 -> 1128987.852 | F36: Totals for All Rating Types
B38: منطقة الشرق الأوسط وشمال أفريقيا عدا منطقة مجلس التعاون الخليجي | F38: MENA Excl GCC
B39: AAA | C39: -918.6225737 | D39: 3258.499719 | E39: =C39+D39 -> 2339.877145 | F39: AAA
B40: AA | C40: 65700.91908 | D40: 9782.601176 | E40: =C40+D40 -> 75483.52025 | F40: AA
B41: A | C41: 474623.6871 | D41: 33533.23461 | E41: =C41+D41 -> 508156.9217 | F41: A
B42: BBB | C42: 143335.8518 | D42: 41592.46032 | E42: 184928.3121 | F42: BBB
B43: BB | C43: 55058.9729 | D43: 1406.225526 | E43: 56465.19843 | F43: BB
B44: B | C44: 201650.6111 | D44: 13690.01718 | E44: 215340.6283 | F44: B
B45: أخري | C45: 681.0553004 | D45: 0 | E45: 681.0553004 | F45: Other
B46: غير مُصنفة | C46: 20635.51042 | D46: 5.941 | E46: 20641.45142 | F46: Unrated
B47: الاجمالي حسب نوع التصنيف | C47: =C39+C40+C41+C42+C43+C44+C45+C46 -> 960767.9852 | D47: =D39+D40+D41+D42+D43+D44+D45+D46 -> 103268.9795 | E47: =E39+E40+E41+E42+E43+E44+E45+E46 -> 1064036.965 | F47: Totals for All Rating Types
B49: خارج منطقة الشرق الأوسط وشمال أفريقيا | F49: Outside MENA
B50: AAA | C50: 184574.256 | D50: 92405.67383 | E50: =C50+D50 -> 276979.9298 | F50: AAA
B51: AA | C51: 6563059.403 | D51: 397188.5354 | E51: =C51+D51 -> 6960247.938 | F51: AA
B52: A | C52: 11646793.38 | D52: 790911.2036 | E52: 12437704.58 | F52: A
B53: BBB | C53: 257551.5324 | D53: 57450.46781 | E53: 315002.0002 | F53: BBB
B54: BB | C54: 98289.04539 | D54: 0 | E54: 98289.04539 | F54: BB
B55: B | C55: -18584.19882 | D55: 364.8408691 | E55: -18219.35796 | F55: B
B56: أخري | C56: 27699.85178 | D56: 0 | E56: 27699.85178 | F56: Other
B57: غير مُصنفة | C57: 554913.7404 | D57: 15574.93851 | E57: =C57+D57 -> 570488.6789 | F57: Unrated
B58: الاجمالي حسب نوع التصنيف | C58: =C50+C51+C52+C53+C54+C55+C56+C57 -> 19314297.01 | D58: =D50+D51+D52+D53+D54+D55+D56+D57 -> 1353895.66 | E58: =E50+E51+E52+E53+E54+E55+E56+E57 -> 20668192.67 | F58: Totals for All Rating Types
B60: كافة المناطق حسب التوزيع الجغرافي | F60: Totals for All Regions
B61: AAA | C61: =C17+C28+C39+C50 -> 189098.4142 | D61: =D17+D28+D39+D50 -> 106305.2132 | E61: =C61+D61 -> 295403.6274 | F61: AAA
B62: AA | C62: =C18+C29+C40+C51 -> 7588781.3 | D62: 739539.704 | E62: =C62+D62 -> 8328321.004 | F62: AA
B63: A | C63: =C19+C30+C41+C52 -> 15383781.01 | D63: 1677801.359 | E63: 17061582.37 | F63: A
B64: BBB | C64: =C20+C31+C42+C53 -> 498441.2198 | D64: 229017.3653 | E64: 727458.5851 | F64: BBB
B65: BB | C65: =C21+C32+C43+C54 -> 142815.3731 | D65: 21287.19549 | E65: 164102.5686 | F65: BB
B66: B | C66: =C22+C33+C44+C55 -> 210569.2727 | D66: 34047.75939 | E66: 244617.0321 | F66: B
B67: أخري | C67: =C23+C34+C45+C56 -> 46532.1083 | D67: 395.2536859 | E67: 46927.36198 | F67: Other
B68: غير مُصنفة | C68: =C24+C35+C46+C57 -> 785935.228 | D68: 48256.48743 | E68: 834191.7154 | F68: Unrated
B69: الاجمالي حسب نوع التصنيف | C69: =C61+C62+C63+C64+C65+C66+C67+C68 -> 24845953.92 | D69: =D61+D62+D63+D64+D65+D66+D67+D68 -> 2856650.337 | E69: 27702604.26 | F69: Totals for All Rating Types

Sheet 4E
B6: توزيع أقساط إعادة التأمين حسب التوزيع الجغرافي والتصنيف
B7: لشركات التامين على الأشخاص وتكوين الأموال وشركات تامين الممتلكات والمسؤوليات والشركات التي تمارس النوعين معاً
B8: Ceded premiums per geographic location and rating -
B9: Life, Non-Life & Composite
B11: جدول رقم 4E | K11: TABLE 4E
B12: بالألف درهم | K12: AED in 000's
B13: البيــــــــان | C13: شركات التأمين على الأشخاص وتكوين الأموال | E13: شركات تأمين الممتلكات والمسؤوليات | G13: شركات التأمين (النوعين معاً) | I13: الاجمالي | K13: DESCRIPTION
C14: LIFE COMPANIES | E14: NON-LIFE COMPANIES | G14: COMPOSITE COMPANIES | I14: TOTAL
C15: 2024 | D15: 2025 | E15: 2024 | F15: 2025 | G15: 2024 | H15: 2025 | I15: 2024 | J15: 2025
B16: داخل الدولة | K16: Inside UAE
B17: AAA | C17: 0 | D17: 0 | E17: 6213.11287 | F17: 13221.67893 | G17: 792.3249725 | H17: 4958.799182 | I17: =C17+E17+G17 -> 7005.437842 | J17: =D17+F17+H17 -> 18180.47812 | K17: AAA
B18: AA | C18: 100155.4207 | D18: 101022.6021 | E18: 115392.5337 | F18: 101389.8634 | G18: 653556.0748 | H18: 882481.6861 | I18: =C18+E18+G18 -> 869104.0292 | J18: =D18+F18+H18 -> 1084894.152 | K18: AA
B19: A | C19: 88154.16189 | D19: 55972.07199 | E19: 923783.2071 | F19: 1100442.165 | G19: 1833496.441 | H19: 2282187.013 | I19: 2845433.81 | J19: 3438601.249 | K19: A
B20: BBB | C20: 7409.206622 | D20: 3990.389096 | E20: 302046.9765 | F20: 95361.28124 | G20: 20275.91376 | H20: 69393.92563 | I20: 329732.0969 | J20: 168745.596 | K20: BBB
B21: BB | C21: 5.53547 | D21: 0 | E21: 31311.78445 | F21: 9299.274128 | G21: 0 | H21: -881.3297752 | I21: 31317.31992 | J21: 8417.944353 | K21: BB
B22: B | C22: 0 | D22: 0 | E22: 59451.04368 | F22: 3964.350146 | G22: 0 | H22: 31289.24145 | I22: 59451.04368 | J22: 35253.5916 | K22: B
B23: أخري | C23: 0 | D23: 0 | E23: 113.10115 | F23: 110.35873 | G23: 19069.95916 | H23: 11987.00408 | I23: 19183.06031 | J23: 12097.36281 | K23: Other
B24: غير مُصنفة | C24: 3046.663755 | D24: 252.4879426 | E24: 91259.36404 | F24: 36625.22719 | G24: 170701.4069 | H24: 202686.0708 | I24: 265007.4347 | J24: 239563.7859 | K24: Unrated
B25: الاجمالي حسب نوع التصنيف | C25: =C17+C18+C19+C20+C21+C22+C23+C24 -> 198770.9884 | D25: =D17+D18+D19+D20+D21+D22+D23+D24 -> 161237.5512 | E25: =E17+E18+E19+E20+E21+E22+E23+E24 -> 1529571.123 | F25: 1360414.198 | G25: =G17+G18+G19+G20+G21+G22+G23+G24 -> 2697892.12 | H25: 3484102.41 | I25: 4426234.232 | J25: 5005754.16 | K25: Totals for All Rating Types
B27: مجلس التعاون الخليجي عدا دولة الإمارات | K27: GCC Excl UAE
B28: AAA | C28: 0 | D28: 0 | E28: 0 | F28: 0 | G28: 0 | H28: 0 | I28: =C28+E28+G28 -> 0 | J28: =D28+F28+H28 -> 0 | K28: AAA
B29: AA | C29: 0 | D29: 14.31587251 | E29: 8874.451637 | F29: 6033.708716 | G29: 183547.5469 | H29: 230670.1374 | I29: 192421.9986 | J29: 236718.1619 | K29: AA
B30: A | C30: 60807.33802 | D30: 82435.43379 | E30: 430499.036 | F30: 1219635.158 | G30: 340932.0878 | H30: 342149.342 | I30: 832238.4618 | J30: 1644219.934 | K30: A
B31: BBB | C31: 0 | D31: 0 | E31: 21572.4571 | F31: 87219.23246 | G31: 63930.70183 | H31: 24951.29657 | I31: 85503.15893 | J31: 112170.529 | K31: BBB
B32: BB | C32: 0 | D32: 452.72613 | E32: 3662.145466 | F32: 13058.8986 | G32: 18463.20629 | H32: -9544.493056 | I32: 22125.35176 | J32: 3967.131673 | K32: BB
B33: B | C33: 0 | D33: 0 | E33: 2431.63282 | F33: 21426.50014 | G33: 10260.51965 | H33: -8672.538932 | I33: 12692.15247 | J33: 12753.96121 | K33: B
B34: أخري | C34: 0 | D34: 0 | E34: 0 | F34: 0 | G34: 455.8600885 | H34: 6449.092087 | I34: 455.8600885 | J34: 6449.092087 | K34: Other
B35: غير مُصنفة | C35: 0 | D35: 1266.42798 | E35: 1062.033323 | F35: 0 | G35: 4519.452341 | H35: 13937.77324 | I35: 5581.485664 | J35: 15204.20122 | K35: Unrated
B36: الاجمالي حسب نوع التصنيف | C36: =C28+C29+C30+C31+C32+C33+C34+C35 -> 60807.33802 | D36: =D28+D29+D30+D31+D32+D33+D34+D35 -> 84168.90377 | E36: =E28+E29+E30+E31+E32+E33+E34+E35 -> 468101.7563 | F36: 1347373.498 | G36: =G28+G29+G30+G31+G32+G33+G34+G35 -> 622109.375 | H36: 599940.6093 | I36: 1151018.469 | J36: 2031483.011 | K36: Totals for All Rating Types
B38: منطقة الشرق الأوسط وشمال أفريقيا عدا منطقة مجلس التعاون الخليجي | K38: MENA Excl GCC
B39: AAA | C39: 990.760469 | D39: -21.69810002 | E39: 1188.41015 | F39: 3289.934479 | G39: 7576.510251 | H39: -918.6225737 | I39: =C39+E39+G39 -> 9755.68087 | J39: =D39+F39+H39 -> 2349.613805 | K39: AAA
B40: AA | C40: 0 | D40: 0 | E40: 1533.222084 | F40: 9888.820126 | G40: 135564.4803 | H40: 65594.70013 | I40: 137097.7024 | J40: 75483.52025 | K40: AA
B41: A | C41: 0 | D41: 0 | E41: 17779.76674 | F41: 26841.73825 | G41: 489252.9675 | H41: 489544.8957 | I41: 507032.7342 | J41: 516386.634 | K41: A
B42: BBB | C42: 0 | D42: 0 | E42: 9339.852344 | F42: 37962.31676 | G42: 213340.1346 | H42: 154780.0287 | I42: 222679.987 | J42: 192742.3455 | K42: BBB
B43: BB | C43: 0 | D43: 0 | E43: 358.5876024 | F43: 2135.390893 | G43: 59922.73887 | H43: 54329.80753 | I43: 60281.32647 | J43: 56465.19843 | K43: BB
B44: B | C44: 0 | D44: 0 | E44: 22424.37105 | F44: 21652.06726 | G44: 163349.762 | H44: 200066.468 | I44: 185774.1331 | J44: 221718.5353 | K44: B
B45: أخري | C45: 0 | D45: 0 | E45: 0 | F45: 0 | G45: 2632.667459 | H45: 681.0553004 | I45: 2632.667459 | J45: 681.0553004 | K45: Other
B46: غير مُصنفة | C46: 0 | D46: 0 | E46: 5049.13008 | F46: 9391.955165 | G46: 1704.84363 | H46: 16703.07042 | I46: 6753.97371 | J46: 26095.02559 | K46: Unrated
B47: الاجمالي حسب نوع التصنيف | C47: =C39+C40+C41+C42+C43+C44+C45+C46 -> 990.760469 | D47: =D39+D40+D41+D42+D43+D44+D45+D46 -> -21.69810002 | E47: =E39+E40+E41+E42+E43+E44+E45+E46 -> 57673.34006 | F47: 111162.2229 | G47: =G39+G40+G41+G42+G43+G44+G45+G46 -> 1073344.105 | H47: 980781.4033 | I47: 1132008.205 | J47: 1091921.928 | K47: Totals for All Rating Types
B49: خارج منطقة الشرق الأوسط وشمال أفريقيا | K49: Outside MENA
B50: AAA | C50: 1152.541911 | D50: 1406.128599 | E50: 70029.57511 | F50: 31599.85179 | G50: 252318.0277 | H50: 250245.6352 | I50: =C50+E50+G50 -> 323500.1447 | J50: =D50+F50+H50 -> 283251.6156 | K50: AAA
B51: AA | C51: 630938.7967 | D51: 405912.0188 | E51: 1575208.234 | F51: 1995627.132 | G51: 4733104.876 | H51: 6159276.442 | I51: 6939251.907 | J51: 8560815.593 | K51: AA
B52: A | C52: 249098.447 | D52: 263890.3629 | E52: 2636893.905 | F52: 2889508.368 | G52: 11090406.24 | H52: 11716320.51 | I52: 13976398.59 | J52: 14869719.24 | K52: A
B53: BBB | C53: 16145.4192 | D53: 19446.30894 | E53: 45581.4332 | F53: 68644.31942 | G53: 320404.1555 | H53: 239266.6649 | I53: 382131.0079 | J53: 327357.2933 | K53: BBB
B54: BB | C54: 0 | D54: 0 | E54: 1145.557743 | F54: 5211.616464 | G54: 93785.18368 | H54: 95183.3484 | I54: =C54+E54+G54 -> 94930.74142 | J54: =D54+F54+H54 -> 100394.9649 | K54: BB
B55: B | C55: 0 | D55: 0 | E55: 18356.92966 | F55: 7016.216588 | G55: 152676.8977 | H55: -22366.88982 | I55: 171033.8274 | J55: -15350.67323 | K55: B
B56: أخري | C56: 0 | D56: 0 | E56: 2849.331235 | F56: 536.33093 | G56: 23679.99755 | H56: 27699.85178 | I56: 26529.32879 | J56: 28236.18271 | K56: Other
B57: غير مُصنفة | C57: 75.65613 | D57: 0 | E57: 31986.53595 | F57: 115825.8963 | G57: 725780.9435 | H57: 542502.7712 | I57: 757843.1356 | J57: 658328.6676 | K57: Unrated
B58: الاجمالي حسب نوع التصنيف | C58: =C50+C51+C52+C53+C54+C55+C56+C57 -> 897410.861 | D58: =D50+D51+D52+D53+D54+D55+D56+D57 -> 690654.8193 | E58: =E50+E51+E52+E53+E54+E55+E56+E57 -> 4382051.502 | F58: 5113969.731 | G58: =G50+G51+G52+G53+G54+G55+G56+G57 -> 17392156.32 | H58: 19008128.33 | I58: 22671618.68 | J58: 24812752.88 | K58: Totals for All Rating Types
B60: كافة المناطق حسب التوزيع الجغرافي | K60: Totals for All Regions
B61: AAA | C61: =C17+C28+C39+C50 -> 2143.30238 | D61: =D17+D28+D39+D50 -> 1384.430499 | E61: =E17+E28+E39+E50 -> 77431.09813 | F61: 48111.4652 | G61: =G17+G28+G39+G50 -> 260686.8629 | H61: 254285.8118 | I61: =C61+E61+G61 -> 340261.2634 | J61: =D61+F61+H61 -> 303781.7075 | K61: AAA
B62: AA | C62: =C18+C29+C40+C51 -> 731094.2174 | D62: =D18+D29+D40+D51 -> 506948.9368 | E62: =E18+E29+E40+E51 -> 1701008.441 | F62: 2112939.524 | G62: =G18+G29+G40+G51 -> 5705772.978 | H62: 7338022.966 | I62: 8137875.637 | J62: 9957911.427 | K62: AA
B63: A | C63: =C19+C30+C41+C52 -> 398059.9469 | D63: =D19+D30+D41+D52 -> 402297.8687 | E63: =E19+E30+E41+E52 -> 4008955.915 | F63: 5236427.428 | G63: =G19+G30+G41+G52 -> 13754087.74 | H63: 14830201.76 | I63: 18161103.6 | J63: 20468927.06 | K63: A
B64: BBB | C64: =C20+C31+C42+C53 -> 23554.62583 | D64: =D20+D31+D42+D53 -> 23436.69803 | E64: =E20+E31+E42+E53 -> 378540.7191 | F64: 289187.1499 | G64: =G20+G31+G42+G53 -> 617950.9057 | H64: 488391.9159 | I64: 1020046.251 | J64: 801015.7638 | K64: BBB
B65: BB | C65: =C21+C32+C43+C54 -> 5.53547 | D65: =D21+D32+D43+D54 -> 452.72613 | E65: =E21+E32+E43+E54 -> 36478.07526 | F65: 29705.18008 | G65: =G21+G32+G43+G54 -> 172171.1288 | H65: 139087.3331 | I65: =C65+E65+G65 -> 208654.7396 | J65: =D65+F65+H65 -> 169245.2393 | K65: BB
B66: B | C66: =C22+C33+C44+C55 -> 0 | D66: =D22+D33+D44+D55 -> 0 | E66: =E22+E33+E44+E55 -> 102663.9772 | F66: 54059.13414 | G66: =G22+G33+G44+G55 -> 326287.1794 | H66: 200316.2807 | I66: =C66+E66+G66 -> 428951.1566 | J66: =D66+F66+H66 -> 254375.4148 | K66: B
B67: أخري | C67: =C23+C34+C45+C56 -> 0 | D67: =D23+D34+D45+D56 -> 0 | E67: =E23+E34+E45+E56 -> 2962.432385 | F67: 646.68966 | G67: =G23+G34+G45+G56 -> 45838.48426 | H67: 46817.00325 | I67: 48800.91664 | J67: 47463.69291 | K67: Other
B68: غير مُصنفة | C68: =C24+C35+C46+C57 -> 3122.319885 | D68: =D24+D35+D46+D57 -> 1518.915923 | E68: =E24+E35+E46+E57 -> 129357.0634 | F68: 161843.0787 | G68: =G24+G35+G46+G57 -> 902706.6464 | H68: 775829.6857 | I68: 1035186.03 | J68: =D68+F68+H68 -> 939191.6803 | K68: Unrated
B69: الاجمالي حسب نوع التصنيف | C69: =C61+C62+C63+C64+C65+C66+C67+C68 -> 1157979.948 | D69: =D61+D62+D63+D64+D65+D66+D67+D68 -> 936039.5761 | E69: =E61+E62+E63+E64+E65+E66+E67+E68 -> 6437397.722 | F69: 7932919.651 | G69: =G61+G62+G63+G64+G65+G66+G67+G68 -> 21785501.92 | H69: 24072952.76 | I69: 29380879.59 | J69: 32941911.98 | K69: Totals for All Rating Types

Sheet 5A
B6: إجمالي الأقساط المكتسبة حسب فرع التأمين
B7: الشركات الوطنية والاجنبية
B8: Gross Earned Premium by Line of Business
B9: National & Foreign Companies
B11: جدول رقم 5A | I11: TABLE 5A
B12: بالألف درهم | I12: AED in 000's
B13: فروع التأمين | C13: الشركات الوطنية | E13: الشركات الأجنبية | G13: الاجمالي | I13: Line of Business
C14: NATIONAL COMPANIES | E14: FOREIGN COMPANIES | G14: TOTAL
C15: 2024 | D15: 2025 | E15: 2024 | F15: 2025 | G15: 2024 | H15: 2025
B16: تأمين الحريق | C16: 4905939.945 | D16: 5957054.428 | E16: 661673.5256 | F16: 693820.1634 | G16: =E16+C16 -> 5567613.471 | H16: =F16+D16 -> 6650874.591 | I16: Fire
B17: التأمين البحري والطيران | C17: 1924394.747 | D17: 1977078.743 | E17: 339288.0314 | F17: 380366.8945 | G17: =E17+C17 -> 2263682.778 | H17: =F17+D17 -> 2357445.638 | I17: Marine & Aviation
B18: تأمين السيارات والمركبات الأخرى | C18: 5096599.147 | D18: 6866706.852 | E18: 1753088.365 | F18: 2288275.8 | G18: 6849687.512 | H18: =F18+D18 -> 9154982.653 | I18: Motor & Transportation
B19: التأمين الهندسي والانشاءات والطاقة | C19: 3322918.016 | D19: 3807173.641 | E19: 187638.9087 | F19: 189634.2661 | G19: 3510556.925 | H19: =F19+D19 -> 3996807.907 | I19: Engineering, Construction & Energy
B20: أخرى | C20: 4673355.817 | D20: 5063161.791 | E20: 547392.3327 | F20: 566544.9913 | G20: 5220748.15 | H20: =F20+D20 -> 5629706.782 | I20: Other
B21: اعادة التأمين غير النسبية - المسؤوليات والممتلكات | C21: 5899.103031 | D21: 5903.667203 | E21: 0 | F21: 0 | G21: 5899.103031 | H21: =F21+D21 -> 5903.667203 | I21: Reinsurance - Property & Liability
B22: المجموع - تأمين الممتلكات والمسؤوليات | C22: =C16+C17+C18+C19+C20+C21 -> 19929106.78 | D22: =D16+D17+D18+D19+D20+D21 -> 23677079.12 | E22: =E16+E17+E18+E19+E20+E21 -> 3489081.164 | F22: 4118642.116 | G22: =G16+G17+G18+G19+G20+G21 -> 23418187.94 | H22: =H16+H17+H18+H19+H20+H21 -> 27795721.24 | I22: Total - Property & Liability Insurance
B24: المجموع - تأمين صحي | C24: 21062489.73 | D24: 24098912.84 | E24: 8372468.755 | F24: 10696113.49 | G24: =E24+C24 -> 29434958.48 | H24: =F24+D24 -> 34795026.33 | I24: Total - Health Insurance
B26: تأمين حياة جماعي | C26: 867758.8165 | D26: 1163600.732 | E26: 226338.0651 | F26: 246645.6595 | G26: =E26+C26 -> 1094096.882 | H26: 1410246.392 | I26: Group Life
B27: تأمين ائتمان حياة جماعي | C27: 612658.9576 | D27: 701751.9991 | E27: 19524 | F27: 16982 | G27: 632182.9576 | H27: 718733.9991 | I27: Group Credit Life
B28: تأمين حياة فردي | C28: 1450219.372 | D28: 1597933.92 | E28: 4306189.494 | F28: 4619604.994 | G28: 5756408.866 | H28: 6217538.914 | I28: Individual Life
B29: دفعات الحياة وتكوين الأموال | C29: 0 | D29: 0 | E29: 41766.65936 | F29: 28153.87919 | G29: 41766.65936 | H29: 28153.87919 | I29: Annuities & Fund Accumulation
B30: المجموع - تأمين الأشخاص وعمليات تكوين الأموال | C30: =C26+C27+C28+C29 -> 2930637.146 | D30: =D26+D27+D28+D29 -> 3463286.651 | E30: =E26+E27+E28+E29 -> 4593818.219 | F30: 4911386.533 | G30: =G26+G27+G28+G29 -> 7524455.365 | H30: =H26+H27+H28+H29 -> 8374673.184 | I30: Total - Insurance of Persons & Fund Accumulation
B32: المجموع - كافة فروع التأمين | C32: =C22+C24+C30 -> 43922233.65 | D32: =D22+D24+D30 -> 51239278.62 | E32: =E22+E24+E30 -> 16455368.14 | F32: 19726142.14 | G32: =G22+G24+G30 -> 60377601.79 | H32: =H22+H24+H30 -> 70965420.75 | I32: TOTAL - All Types of Business Combined

Sheet 5B
B6: إجمالي الأقساط المكتسبة حسب فرع التأمين
B7: شركات التأمين التقليدي الوطنية وشركات التأمين التكافلي الوطنية
B8: Gross Earned Premium by Line of Business
B9: Traditional & Takaful National Companies
B11: جدول رقم 5B | I11: TABLE 5B
B12: بالألف درهم | I12: AED in 000's
B13: فروع التأمين | C13: شركات التأمين التقليدي الوطنية | E13: شركات التأمين التكافلي الوطنية | G13: الشركات الوطنية | I13: Line of Business
C14: TRADITIONAL COMPANIES | E14: TAKAFUL OPERATORS | G14: NATIONAL COMPANIES
C15: 2024 | D15: 2025 | E15: 2024 | F15: 2025 | G15: 2024 | H15: 2025
B16: تأمين الحريق | C16: 4334285.538 | D16: 5278845.883 | E16: 571654.4073 | F16: 678208.5449 | G16: =E16+C16 -> 4905939.945 | H16: 5957054.428 | I16: Fire
B17: التأمين البحري والطيران | C17: 1812032.293 | D17: 1824123.393 | E17: 112362.4543 | F17: 152955.3497 | G17: 1924394.747 | H17: 1977078.743 | I17: Marine & Aviation
B18: تأمين السيارات والمركبات الأخرى | C18: 4059951.496 | D18: 5522221.797 | E18: 1036647.651 | F18: 1344485.055 | G18: 5096599.147 | H18: 6866706.852 | I18: Motor & Transportation
B19: التأمين الهندسي والانشاءات والطاقة | C19: 3135646.917 | D19: 3543523.123 | E19: 187271.0989 | F19: 263650.5181 | G19: 3322918.016 | H19: 3807173.641 | I19: Engineering, Construction & Energy
B20: أخرى | C20: 4158028.755 | D20: 4411599.498 | E20: 515327.0618 | F20: 651562.2933 | G20: 4673355.817 | H20: 5063161.791 | I20: Other
B21: اعادة التأمين غير النسبية - المسؤوليات والممتلكات | C21: 5899.103031 | D21: 5903.667203 | E21: 0 | F21: 0 | G21: 5899.103031 | H21: 5903.667203 | I21: Reinsurance - Property & Liability
B22: المجموع - تأمين الممتلكات والمسؤوليات | C22: 17505844.1 | D22: =D16+D17+D18+D19+D20+D21 -> 20586217.36 | E22: 2423262.673 | F22: =F16+F17+F18+F19+F20+F21 -> 3090861.761 | G22: =G16+G17+G18+G19+G20+G21 -> 19929106.78 | H22: 23677079.12 | I22: Total - Property & Liability Insurance
B24: المجموع - تأمين صحي | C24: 19139873.84 | D24: 21983123.68 | E24: 1922615.891 | F24: 2115789.167 | G24: =E24+C24 -> 21062489.73 | H24: 24098912.84 | I24: Total - Health Insurance
B26: تأمين حياة جماعي | C26: 823619.141 | D26: 1128330.586 | E26: 44139.67551 | F26: 35270.1464 | G26: =E26+C26 -> 867758.8165 | H26: =F26+D26 -> 1163600.732 | I26: Group Life
B27: تأمين ائتمان حياة جماعي | C27: 287960.2759 | D27: 291343.5961 | E27: 324698.6816 | F27: 410408.403 | G27: 612658.9576 | H27: 701751.9991 | I27: Group Credit Life
B28: تأمين حياة فردي | C28: 1150788.39 | D28: 1331215.24 | E28: 299430.9824 | F28: 266718.6798 | G28: 1450219.372 | H28: 1597933.92 | I28: Individual Life
B29: دفعات الحياة وتكوين الأموال | C29: 0 | D29: 0 | E29: 0 | F29: 0 | G29: 0 | H29: 0 | I29: Annuities & Fund Accumulation
B30: المجموع - تأمين الأشخاص وعمليات تكوين الأموال | C30: 2262367.807 | D30: =D26+D27+D28+D29 -> 2750889.422 | E30: 668269.3395 | F30: 712397.2292 | G30: =G26+G27+G28+G29 -> 2930637.146 | H30: =H26+H27+H28+H29 -> 3463286.651 | I30: Total - Insurance of Persons & Fund Accumulation
B32: المجموع - كافة فروع التأمين | C32: 38908085.75 | D32: =D22+D24+D30 -> 45320230.46 | E32: 5014147.903 | F32: 5919048.156 | G32: =G22+G24+G30 -> 43922233.65 | H32: =H22+H24+H30 -> 51239278.62 | I32: TOTAL - All Types of Business Combined

Sheet 6A
B6: صافي الأقساط المكتسبة حسب فرع التأمين
B7: الشركات الوطنية والاجنبية
B8: Net Earned Premium by Line of Business
B9: National & Foreign Companies
B11: جدول رقم 6A | I11: TABLE 6A
B12: بالألف درهم | I12: AED in 000's
B13: فروع التأمين | C13: الشركات الوطنية | E13: الشركات الأجنبية | G13: الاجمالي | I13: Line of Business
C14: NATIONAL COMPANIES | E14: FOREIGN COMPANIES | G14: TOTAL
C15: 2024 | D15: 2025 | E15: 2024 | F15: 2025 | G15: 2024 | H15: 2025
B16: تأمين الحريق | C16: 700625.9645 | D16: 996498.6803 | E16: 194386.0111 | F16: 315859.5744 | G16: =E16+C16 -> 895011.9756 | H16: =F16+D16 -> 1312358.255 | I16: Fire
B17: التأمين البحري والطيران | C17: 332593.5944 | D17: 350786.3884 | E17: 179071.4593 | F17: 190780.3112 | G17: 511665.0537 | H17: 541566.6996 | I17: Marine & Aviation
B18: تأمين السيارات والمركبات الأخرى | C18: 3779270.605 | D18: 5618051.715 | E18: 1618998.718 | F18: 2169479.779 | G18: 5398269.323 | H18: 7787531.494 | I18: Motor & Transportation
B19: التأمين الهندسي والانشاءات والطاقة | C19: 550018.448 | D19: 539267.2662 | E19: 95722.2725 | F19: 91803.1815 | G19: 645740.7205 | H19: 631070.4477 | I19: Engineering, Construction & Energy
B20: أخرى | C20: 1212406.336 | D20: 1376949.642 | E20: 242418.3408 | F20: 250350.0176 | G20: 1454824.677 | H20: 1627299.66 | I20: Other
B21: اعادة التأمين غير النسبية - المسؤوليات والممتلكات | C21: 3422.164785 | D21: 4345.181062 | E21: 0 | F21: 0 | G21: 3422.164785 | H21: 4345.181062 | I21: Reinsurance - Property & Liability
B22: المجموع - تأمين الممتلكات والمسؤوليات | C22: =C16+C17+C18+C19+C20+C21 -> 6578337.113 | D22: =D16+D17+D18+D19+D20+D21 -> 8885898.873 | E22: =E16+E17+E18+E19+E20+E21 -> 2330596.801 | F22: 3018272.864 | G22: 8908933.915 | H22: 11904171.74 | I22: Total - Property & Liability Insurance
B24: المجموع - تأمين صحي | C24: 12197171.34 | D24: 13974173.87 | E24: 6033197.746 | F24: 7388826.895 | G24: =E24+C24 -> 18230369.09 | H24: =F24+D24 -> 21363000.76 | I24: Total - Health Insurance
B26: تأمين حياة جماعي | C26: 380517.6534 | D26: 399664.1898 | E26: 60298.82372 | F26: 57801.08191 | G26: =E26+C26 -> 440816.4771 | H26: =F26+D26 -> 457465.2717 | I26: Group Life
B27: تأمين ائتمان حياة جماعي | C27: 187518.7449 | D27: 245410.1991 | E27: 2862 | F27: 4012 | G27: 190380.7449 | H27: 249422.1991 | I27: Group Credit Life
B28: تأمين حياة فردي | C28: 1341775.949 | D28: 1488407.196 | E28: 4109736.781 | F28: 4444184.893 | G28: 5451512.73 | H28: 5932592.088 | I28: Individual Life
B29: دفعات الحياة وتكوين الأموال | C29: -0.00639 | D29: 0 | E29: 41760.23691 | F29: 28151.61205 | G29: 41760.23052 | H29: 28151.61205 | I29: Annuities & Fund Accumulation
B30: المجموع - تأمين الأشخاص وعمليات تكوين الأموال | C30: =C26+C27+C28+C29 -> 1909812.341 | D30: =D26+D27+D28+D29 -> 2133481.585 | E30: =E26+E27+E28+E29 -> 4214657.842 | F30: 4534149.587 | G30: 6124470.183 | H30: 6667631.171 | I30: Total - Insurance of Persons & Fund Accumulation
B32: المجموع - كافة فروع التأمين | C32: =C22+C24+C30 -> 20685320.8 | D32: =D22+D24+D30 -> 24993554.33 | E32: =E22+E24+E30 -> 12578452.39 | F32: 14941249.35 | G32: 33263773.18 | H32: 39934803.67 | I32: TOTAL - All Types of Business Combined

Sheet 6B
B6: صافي الأقساط المكتسبة حسب فرع التأمين
B7: شركات التأمين التقليدي الوطنية وشركات التأمين التكافلي الوطنية
B8: Net Earned Premium by Line of Business
B9: Traditional & Takaful National Companies
B11: جدول رقم 6B | I11: TABLE 6B
B12: بالألف درهم | I12: AED in 000's
B13: فروع التأمين | C13: شركات التأمين التقليدي الوطنية | E13: شركات التأمين التكافلي الوطنية | G13: الشركات الوطنية | I13: Line of Business
C14: TRADITIONAL COMPANIES | E14: TAKAFUL OPERATORS | G14: NATIONAL COMPANIES
C15: 2024 | D15: 2025 | E15: 2024 | F15: 2025 | G15: 2024 | H15: 2025
B16: تأمين الحريق | C16: 637011.6922 | D16: 897480.8347 | E16: 63614.2723 | F16: 99017.84554 | G16: =C16+E16 -> 700625.9645 | H16: =D16+F16 -> 996498.6803 | I16: Fire
B17: التأمين البحري والطيران | C17: 306767.7478 | D17: 313627.3777 | E17: 25825.84652 | F17: 37159.01068 | G17: =C17+E17 -> 332593.5944 | H17: =D17+F17 -> 350786.3884 | I17: Marine & Aviation
B18: تأمين السيارات والمركبات الأخرى | C18: 3106747.546 | D18: 4422213.252 | E18: 672523.0595 | F18: 1195838.463 | G18: =C18+E18 -> 3779270.605 | H18: =D18+F18 -> 5618051.715 | I18: Motor & Transportation
B19: التأمين الهندسي والانشاءات والطاقة | C19: 486637.2459 | D19: 476432.4696 | E19: 63381.20215 | F19: 62834.79662 | G19: 550018.448 | H19: 539267.2662 | I19: Engineering, Construction & Energy
B20: أخرى | C20: 1047956.545 | D20: 1138343.141 | E20: 164449.7911 | F20: 238606.5011 | G20: 1212406.336 | H20: 1376949.642 | I20: Other
B21: اعادة التأمين غير النسبية - المسؤوليات والممتلكات | C21: 3422.164785 | D21: 4345.181062 | E21: 0 | F21: 0 | G21: 3422.164785 | H21: 4345.181062 | I21: Reinsurance - Property & Liability
B22: المجموع - تأمين الممتلكات والمسؤوليات | C22: =C16+C17+C18+C19+C20+C21 -> 5588542.941 | D22: =D16+D17+D18+D19+D20+D21 -> 7252442.256 | E22: =E16+E17+E18+E19+E20+E21 -> 989794.1716 | F22: 1633456.617 | G22: 6578337.113 | H22: 8885898.873 | I22: Total - Property & Liability Insurance
B24: المجموع - تأمين صحي | C24: 11054272.49 | D24: 12827219.17 | E24: 1142898.851 | F24: 1146954.701 | G24: =C24+E24 -> 12197171.34 | H24: =D24+F24 -> 13974173.87 | I24: Total - Health Insurance
B26: تأمين حياة جماعي | C26: 370419.6632 | D26: 388631.879 | E26: 10097.99022 | F26: 11032.3108 | G26: =C26+E26 -> 380517.6534 | H26: =D26+F26 -> 399664.1898 | I26: Group Life
B27: تأمين ائتمان حياة جماعي | C27: 82708.20386 | D27: 106309.2434 | E27: 104810.541 | F27: 139100.9557 | G27: 187518.7449 | H27: 245410.1991 | I27: Group Credit Life
B28: تأمين حياة فردي | C28: 1090652.055 | D28: 1271077.049 | E28: 251123.8938 | F28: 217330.1472 | G28: 1341775.949 | H28: 1488407.196 | I28: Individual Life
B29: دفعات الحياة وتكوين الأموال | C29: 0 | D29: 0 | E29: -0.00639 | F29: 0 | G29: -0.00639 | H29: 0 | I29: Annuities & Fund Accumulation
B30: المجموع - تأمين الأشخاص وعمليات تكوين الأموال | C30: =C26+C27+C28+C29 -> 1543779.922 | D30: =D26+D27+D28+D29 -> 1766018.171 | E30: =E26+E27+E28+E29 -> 366032.4186 | F30: 367463.4137 | G30: 1909812.341 | H30: 2133481.585 | I30: Total - Insurance of Persons & Fund Accumulation
B32: المجموع - كافة فروع التأمين | C32: =C22+C24+C30 -> 18186595.35 | D32: =D22+D24+D30 -> 21845679.59 | E32: =E22+E24+E30 -> 2498725.441 | F32: 3147874.731 | G32: 20685320.8 | H32: 24993554.33 | I32: TOTAL - All Types of Business Combined

Sheet 7
B6: عدد وثائق التأمين ومعدل إجمالي الأقساط المكتتبة حسب فرع التأمين
B7: No. of Policies and Average Gross Written Premium
B8: (2025)
B10: جدول رقم 7 | L10: TABLE 7
B12: فروع التأمين | C12: الشركات الوطنية | F12: الشركات الأجنبية | I12: الاجمالي | L12: Line of Business
C13: NATIONAL COMPANIES | F13: FOREIGN COMPANIES | I13: TOTAL
C14: إجمالي الأقساط بالألف درهم | D14: عدد الوثائق | E14: معدل الأقساط | F14: إجمالي الأقساط بالألف درهم | G14: عدد الوثائق | H14: معدل الأقساط | I14: إجمالي الأقساط بالألف درهم | J14: عدد الوثائق | K14: معدل الأقساط
C15: GWP | D15: No. of Pols. | E15: Avg GWP | F15: GWP | G15: No. of Pols. | H15: Avg GWP | I15: GWP | J15: No. of Pols. | K15: Avg GWP
B16: تأمين الحريق | C16: 6225545.336 | D16: 178653.64 | E16: 34847.01088 | F16: 661642.8403 | G16: 44195 | H16: 14970.98858 | I16: =F16+C16 -> 6887188.176 | J16: =G16+D16 -> 222848.64 | K16: =I16*1000/J16 -> 30905.22866 | L16: Fire
B17: التأمين البحري والطيران | C17: 1872220.795 | D17: 132893.1 | E17: 14088.17158 | F17: 386333.5245 | G17: 119933 | H17: 3221.244565 | I17: =F17+C17 -> 2258554.319 | J17: =G17+D17 -> 252826.1 | K17: =I17*1000/J17 -> 8933.232444 | L17: Marine & Aviation
B18: تأمين السيارات والمركبات الأخرى | C18: 7593083.992 | D18: 4771013 | E18: 1591.503522 | F18: 2482821.714 | G18: 836070 | H18: 2969.633779 | I18: 10075905.71 | J18: =G18+D18 -> 5607083 | K18: 1796.995997 | L18: Motor & Transportation
B19: التأمين الهندسي والانشاءات والطاقة | C19: 4013284.788 | D19: 67435 | E19: 59513.38011 | F19: 270797.5963 | G19: 13011 | H19: 20812.97335 | I19: 4284082.384 | J19: =G19+D19 -> 80446 | K19: 53254.13798 | L19: Engineering, Construction & Energy
B20: أخرى | C20: 5917596.515 | D20: 7686047 | E20: 769.9141723 | F20: 589680.2336 | G20: 180977 | H20: 3258.315883 | I20: 6507276.748 | J20: =G20+D20 -> 7867024 | K20: 827.1586242 | L20: Other
B21: اعادة التأمين غير النسبية - المسؤوليات والممتلكات | C21: 5654.24779 | D21: 1032 | E21: 5478.922277 | F21: 0 | G21: 0 | I21: 5654.24779 | J21: =G21+D21 -> 1032 | K21: 5478.922277 | L21: Reinsurance - Property & Liability
B22: المجموع - تأمين الممتلكات والمسؤوليات | C22: =C16+C17+C18+C19+C20+C21 -> 25627385.67 | D22: =D16+D17+D18+D19+D20+D21 -> 12837073.74 | E22: =C22*1000/D22 -> 1996.357285 | F22: 4391275.908 | G22: 1194186 | H22: =F22*1000/G22 -> 3677.212686 | I22: =C22+F22 -> 30018661.58 | J22: =D22+G22 -> 14031259.74 | K22: 2139.413149 | L22: Total - Property & Liability Insurance
B24: المجموع - تأمين صحي | C24: 25218671.61 | D24: 2483354 | E24: 10155.08526 | F24: 11204025.52 | G24: 352501 | H24: 31784.37939 | I24: =F24+C24 -> 36422697.13 | J24: =G24+D24 -> 2835855 | K24: =I24*1000/J24 -> 12843.63874 | L24: Total - Health Insurance
B26: تأمين حياة جماعي | C26: 1195575.54 | D26: 14309 | E26: 83554.09462 | F26: 252687.8006 | G26: 1516 | H26: 166680.6072 | I26: =F26+C26 -> 1448263.341 | J26: =G26+D26 -> 15825 | K26: =I26*1000/J26 -> 91517.43068 | L26: Group Life
B27: تأمين ائتمان حياة جماعي | C27: 704160.5419 | D27: 1233 | E27: 571095.33 | F27: 16375 | G27: 12 | H27: 1364583.333 | I27: 720535.5419 | J27: 1245 | K27: 578743.4072 | L27: Group Credit Life
B28: تأمين حياة فردي | C28: 1582754.969 | D28: 192660.4961 | E28: 8215.2543 | F28: 4619520.053 | G28: 173211 | H28: 26669.90002 | I28: 6202275.022 | J28: 365871.4961 | K28: 16952.05855 | L28: Individual Life
B29: دفعات الحياة وتكوين الأموال | C29: 0 | D29: 0 | F29: 28153.87919 | G29: 509 | H29: 55312.13986 | I29: 28153.87919 | J29: 509 | K29: 55312.13986 | L29: Annuities & Fund Accumulation
B30: المجموع - تأمين الأشخاص وعمليات تكوين الأموال | C30: =C26+C27+C28+C29 -> 3482491.051 | D30: =D26+D27+D28+D29 -> 208202.4961 | E30: =C30*1000/D30 -> 16726.46158 | F30: 4916736.733 | G30: 175248 | H30: =F30*1000/G30 -> 28055.87928 | I30: =C30+F30 -> 8399227.783 | J30: =D30+G30 -> 383450.4961 | K30: =I30*1000/J30 -> 21904.33412 | L30: Total - Insurance of Persons & Fund Accumulation
B32: المجموع - كافة فروع التأمين | C32: =C22+C24+C30 -> 54328548.33 | D32: =D22+D24+D30 -> 15528630.24 | E32: =C32*1000/D32 -> 3498.605318 | F32: =F22+F24+F30 -> 20512038.16 | G32: =G22+G24+G30 -> 1721935 | H32: =F32*1000/G32 -> 11912.20235 | I32: =I22+I24+I30 -> 74840586.49 | J32: =J22+J24+J30 -> 17250565.24 | K32: =I32*1000/J32 -> 4338.442565 | L32: TOTAL - All Types of Business Combined

Sheet 8
B6: إجمالي الأقساط المكتتبة والعمولات المدفوعة حسب قنوات التوزيع الشركات الوطنية والاجنبية
B7: Gross Written Premium & Commission Paid by Distribution Channel
B8: (2025)
B10: جدول رقم 8 | I10: TABLE 8
B11: بالألف درهم | C11: Gross Written Premiums (اجمالي الاقساط المكتتبة) | I11: AED in 000's
B12: فروع التأمين | C12: الشركات الوطنية | E12: الشركات الأجنبية | G12: الاجمالي | I12: Distribution Channel
C13: NATIONAL COMPANIES | E13: FOREIGN COMPANIES | G13: TOTAL
C14: تأمينات عامة | D14: تأمين على الحياة | E14: تأمينات عامة | F14: تأمين على الحياة | G14: تأمينات عامة | H14: تأمين على الحياة
C15: Non-Life | D15: Life | E15: Non-Life | F15: Life | G15: Non-Life | H15: Life
B16: الوثائق المباعة من خلال الوكلاء | C16: 1478411.988 | D16: 300955.3642 | E16: 288158.5744 | F16: 747016.7616 | G16: =E16+C16 -> 1766570.562 | H16: =F16+D16 -> 1047972.126 | I16: Policies Sold Through Agents
B17: الوثائق المباعة من خلال الوسطاء | C17: 22576577.34 | D17: 1788220.126 | E17: 10846153.02 | F17: 2882731.181 | G17: 33422730.36 | H17: 4670951.307 | I17: Policies Sold Through Brokers
B18: الوثائق المباعة من خلال البنوك | C18: 167962.1183 | D18: 1285696.563 | E18: 159715.4453 | F18: 2753012.53 | G18: 327677.5636 | H18: 4038709.093 | I18: Policies Sold Through Banks
B19: الوثائق المباعة من خلال شركات التمويل | C19: 15158.92525 | D19: 0 | E19: 56058.57006 | F19: 0 | G19: 71217.49531 | H19: 0 | I19: Policies Sold Through Financial Institutions
B20: الوثائق المباعة عبر الانترنت | C20: 116642.5159 | D20: 0 | E20: 190359.3693 | F20: 0 | G20: =E20+C20 -> 307001.8852 | H20: =F20+D20 -> 0 | I20: Policies Sold Online
B21: الأخرى | C21: 25062742.73 | D21: 1536180.666 | E21: 2546697.449 | F21: 42135.26 | G21: 27609440.18 | H21: 1578315.926 | I21: Others
B22: كافة قنوات التوزيع | C22: =SUM(C16:C21) -> 49417495.62 | D22: 4911052.719 | E22: 14087142.43 | F22: 6424895.732 | G22: 63504638.05 | H22: 11335948.45 | I22: All Distribution Channels
C23: Percent of Total Gross Premium (توزيع إجمالي الأقساط)
B24: الوكلاء | C24: =C16/C$22 -> 0.02991677278 | D24: =D16/D$22 -> 0.06128123265 | E24: 0.02045543131 | F24: 0.1162690871 | G24: 0.02781797702 | H24: 0.09244679705 | I24: Agents
B25: الوسطاء | C25: =C17/C$22 -> 0.4568539351 | D25: 0.3641215495 | E25: 0.7699328005 | F25: 0.4486813952 | G25: 0.5263037691 | H25: 0.4120476841 | I25: Brokers
B26: البنوك (المصارف) | C26: =C18/C$22 -> 0.00339883914 | D26: 0.2617965306 | E26: 0.01133767519 | F26: 0.4284913942 | G26: 0.005159899712 | H26: 0.3562744759 | I26: Banks
B27: المؤسسات الاستثمارية والمالية | C27: =C19/C$22 -> 0.000306752195 | D27: 0 | E27: 0.003979413876 | F27: 0 | G27: 0.001121453448 | H27: 0 | I27: Investment / Financial Institutions
B28: الوثائق المباعة عبر الانترنت | C28: =C20/C$22 -> 0.002360348586 | D28: 0 | E28: 0.01351298677 | F28: 0 | G28: 0.004834322257 | H28: 0 | I28: Policies Sold Online
B29: الأخرى | C29: =C21/C$22 -> 0.5071633522 | D29: 0.3128006873 | E29: 0.1807816923 | F29: 0.006558123549 | G29: 0.4347625785 | H29: 0.1392310429 | I29: Others
B30: كافة قنوات التوزيع | C30: =C24+C25+C26+C27+C28+C29 -> 1 | D30: =D24+D25+D26+D27+D28+D29 -> 1 | E30: 1 | F30: 1 | G30: 1 | H30: 1 | I30: All Distribution Channels
C31: Commission Paid (العمولات المدفوعة)
B32: الوكلاء | C32: 110267.9388 | D32: 21535.42529 | E32: 60309.89376 | F32: 36100.58548 | G32: =E32+C32 -> 170577.8326 | H32: =F32+D32 -> 57636.01077 | I32: Agents
B33: الوسطاء | C33: 2259048.007 | D33: 163955.3952 | E33: 1203203.137 | F33: 176223.2664 | G33: 3462251.144 | H33: 340178.6616 | I33: Brokers
B34: البنوك (المصارف) | C34: 64813.12633 | D34: 159667.6276 | E34: 51282.33006 | F34: 115893.0064 | G34: 116095.4564 | H34: 275560.634 | I34: Banks
B35: المؤسسات الاستثمارية والمالية | C35: 3925.653673 | D35: 0 | E35: 7240.162 | F35: 0 | G35: 11165.81567 | H35: 0 | I35: Investment / Financial Institutions
B36: الوثائق المباعة عبر الانترنت | C36: 0 | D36: 0 | E36: 126.3416 | F36: 0 | G36: =E36+C36 -> 126.3416 | H36: =F36+D36 -> 0 | I36: Policies Sold Online
B37: الأخرى | C37: 1285321.001 | D37: 192938.7476 | E37: 364790.7576 | F37: 5380.141 | G37: =E37+C37 -> 1650111.759 | H37: =F37+D37 -> 198318.8886 | I37: Others
B38: كافة قنوات التوزيع | C38: =SUM(C32:C37) -> 3723375.727 | D38: =SUM(D32:D37) -> 538097.1957 | E38: 1686952.622 | F38: 333596.9993 | G38: =SUM(G32:G37) -> 5410328.349 | H38: 871694.195 | I38: All Distribution Channels
C39: Commission Ratio (نسبة العمولات )
B40: الوكلاء | C40: =C32/C16 -> 0.07458539281 | D40: =D32/D16 -> 0.0715568747 | E40: 0.2092941148 | F40: 0.0483263393 | G40: 0.09655874283 | H40: =H32/H16 -> 0.05499765628 | I40: Agents
B41: الوسطاء | C41: =C33/C17 -> 0.1000615803 | D41: 0.09168636053 | E41: 0.110933631 | F41: 0.06113066233 | G41: 0.1035897159 | H41: =H33/H17 -> 0.07282856087 | I41: Brokers
B42: البنوك (المصارف) | C42: =C34/C18 -> 0.3858794292 | D42: 0.1241876444 | E42: 0.321085603 | F42: 0.04209679584 | G42: 0.3542978503 | H42: =H34/H18 -> 0.06822987931 | I42: Banks
B43: المؤسسات الاستثمارية والمالية | C43: =C35/C19 -> 0.2589664905 | D43: - | E43: =E35/E19 -> 0.1291535263 | F43: - | G43: 0.1567847286 | H43: - | I43: Investment / Financial Institutions
B44: الوثائق المباعة عبر الانترنت | C44: =C36/C20 -> 0 | D44: - | E44: =E36/E20 -> 0.000663700455 | F44: - | G44: 0.0004115336293 | H44: - | I44: Policies Sold Online
B45: الأخرى | C45: =C37/C21 -> 0.0512841318 | D45: 0.1255963911 | E45: 0.1432407127 | F45: 0.1276873811 | G45: 0.05976621577 | H45: 0.1256522128 | I45: Others
B46: كافة قنوات التوزيع | C46: =C38/C22 -> 0.07534529382 | D46: =D38/D22 -> 0.109568605 | E46: 0.1197512292 | F46: 0.05192255457 | G46: 0.08519579853 | H46: 0.07689645015 | I46: All Distribution Channels

Sheet 9A
B6: إجمالي المُخصصات الفنية حسب فرع التأمين
B7: الشركات الوطنية والاجنبية
B8: Gross Technical Provisions by Line of Business
B9: National & Foreign Companies
B11: جدول رقم 9A | I11: TABLE 9A
B12: بالألف درهم | I12: AED in 000's
B13: فروع التأمين | C13: الشركات الوطنية | E13: الشركات الأجنبية | G13: الاجمالي | I13: Line of Business
C14: NATIONAL COMPANIES | E14: FOREIGN COMPANIES | G14: TOTAL
C15: 2024 | D15: 2025 | E15: 2024 | F15: 2025 | G15: 2024 | H15: 2025
B16: تأمين الحريق | C16: 11895231.5 | D16: 8925745.651 | E16: 2117687.53 | F16: 1598675.568 | G16: =E16+C16 -> 14012919.03 | H16: =F16+D16 -> 10524421.22 | I16: Fire
B17: التأمين البحري والطيران | C17: 2698166.805 | D17: 2461677.096 | E17: 446090.2901 | F17: 411289.7802 | G17: 3144257.095 | H17: 2872966.876 | I17: Marine & Aviation
B18: تأمين السيارات والمركبات الأخرى | C18: 5341467.654 | D18: 6499888.642 | E18: 1901888.116 | F18: 2041496.288 | G18: 7243355.77 | H18: 8541384.931 | I18: Motor & Transportation
B19: التأمين الهندسي والانشاءات والطاقة | C19: 7247381.227 | D19: 6446217.287 | E19: 622209.4232 | F19: 579578.9773 | G19: 7869590.65 | H19: 7025796.264 | I19: Engineering, Construction & Energy
B20: أخرى | C20: 4506160.303 | D20: 5449970.163 | E20: 771210.0921 | F20: 680150.067 | G20: 5277370.395 | H20: 6130120.23 | I20: Other
B21: اعادة التأمين غير النسبية - المسؤوليات والممتلكات | C21: 12508.36623 | D21: 13717.45961 | E21: 0 | F21: 0 | G21: 12508.36623 | H21: 13717.45961 | I21: Reinsurance - Property & Liability
B22: المجموع - تأمين الممتلكات والمسؤوليات | C22: =C16+C17+C18+C19+C20+C21 -> 31700915.85 | D22: 29797216.3 | E22: =E16+E17+E18+E19+E20+E21 -> 5859085.452 | F22: =F16+F17+F18+F19+F20+F21 -> 5311190.681 | G22: =G16+G17+G18+G19+G20+G21 -> 37560001.31 | H22: 35108406.98 | I22: Total - Property & Liability Insurance
B24: المجموع - تأمين صحي | C24: 13133585.83 | D24: 15036856.81 | E24: 3856356.188 | F24: 4738938.283 | G24: =E24+C24 -> 16989942.02 | H24: =F24+D24 -> 19775795.09 | I24: Total - Health Insurance
B26: تأمين حياة جماعي | C26: 723214.3783 | D26: 744414.2061 | E26: 151500.6134 | F26: 168485.7897 | G26: =E26+C26 -> 874714.9917 | H26: =F26+D26 -> 912899.9957 | I26: Group Life
B27: تأمين ائتمان حياة جماعي | C27: 1032487.063 | D27: 1079017.157 | E27: 11429 | F27: 10033 | G27: 1043916.063 | H27: 1089050.157 | I27: Group Credit Life
B28: تأمين حياة فردي | C28: 7443270.899 | D28: 7794465.9 | E28: 27782776.54 | F28: 31084913.43 | G28: 35226047.44 | H28: 38879379.33 | I28: Individual Life
B29: دفعات الحياة وتكوين الأموال | C29: 0 | D29: 0 | E29: 537927.8518 | F29: 492814.9835 | G29: 537927.8518 | H29: 492814.9835 | I29: Annuities & Fund Accumulation
B30: المجموع - تأمين الأشخاص وعمليات تكوين الأموال | C30: =C26+C27+C28+C29 -> 9198972.341 | D30: =D26+D27+D28+D29 -> 9617897.263 | E30: =E26+E27+E28+E29 -> 28483634 | F30: 31756247.2 | G30: 37682606.34 | H30: 41374144.46 | I30: Total - Insurance of Persons & Fund Accumulation
B32: المجموع - كافة فروع التأمين | C32: =C22+C24+C30 -> 54033474.02 | D32: =D22+D24+D30 -> 54451970.37 | E32: =E22+E24+E30 -> 38199075.64 | F32: 41806376.16 | G32: 92232549.66 | H32: 96258346.53 | I32: TOTAL - All Types of Business Combined

Sheet 9B
B6: إجمالي المُخصصات الفنية حسب فرع التأمين
B7: شركات التأمين التقليدي الوطنية وشركات التأمين التكافلي الوطنية
B8: Gross Technical Provisions by Line of Business
B9: Traditional & Takaful National Companies
B11: جدول رقم 9B | I11: TABLE 9B
B12: بالألف درهم | I12: AED in 000's
B13: فروع التأمين | C13: شركات التأمين التقليدي الوطنية | E13: شركات التأمين التكافلي الوطنية | G13: الشركات الوطنية | I13: Line of Business
C14: TRADITIONAL COMPANIES | E14: TAKAFUL OPERATORS | G14: NATIONAL COMPANIES
C15: 2024 | D15: 2025 | E15: 2024 | F15: 2025 | G15: 2024 | H15: 2025
B16: تأمين الحريق | C16: 10707022.76 | D16: 8007273.842 | E16: 1188208.741 | F16: 918471.8088 | G16: =E16+C16 -> 11895231.5 | H16: =F16+D16 -> 8925745.651 | I16: Fire
B17: التأمين البحري والطيران | C17: 2604050.889 | D17: 2348137.815 | E17: 94115.9168 | F17: 113539.2811 | G17: 2698166.805 | H17: 2461677.096 | I17: Marine & Aviation
B18: تأمين السيارات والمركبات الأخرى | C18: 4110999.917 | D18: 4832303.567 | E18: 1230467.737 | F18: 1667585.076 | G18: 5341467.654 | H18: 6499888.642 | I18: Motor & Transportation
B19: التأمين الهندسي والانشاءات والطاقة | C19: 6800716.896 | D19: 5978612.037 | E19: 446664.3312 | F19: 467605.2497 | G19: 7247381.227 | H19: 6446217.287 | I19: Engineering, Construction & Energy
B20: أخرى | C20: 3993618.737 | D20: 4815130.384 | E20: 512541.5668 | F20: 634839.779 | G20: 4506160.303 | H20: 5449970.163 | I20: Other
B21: اعادة التأمين غير النسبية - المسؤوليات والممتلكات | C21: 12508.36623 | D21: 13717.45961 | E21: 0 | F21: 0 | G21: 12508.36623 | H21: 13717.45961 | I21: Reinsurance - Property & Liability
B22: المجموع - تأمين الممتلكات والمسؤوليات | C22: =C16+C17+C18+C19+C20+C21 -> 28228917.56 | D22: 25995175.1 | E22: =E16+E17+E18+E19+E20+E21 -> 3471998.293 | F22: =F16+F17+F18+F19+F20+F21 -> 3802041.195 | G22: =G16+G17+G18+G19+G20+G21 -> 31700915.85 | H22: 29797216.3 | I22: Total - Property & Liability Insurance
B24: المجموع - تأمين صحي | C24: 11920980.51 | D24: 13767036.57 | E24: 1212605.322 | F24: 1269820.235 | G24: =E24+C24 -> 13133585.83 | H24: =F24+D24 -> 15036856.81 | I24: Total - Health Insurance
B26: تأمين حياة جماعي | C26: 645571.5584 | D26: 665460.4701 | E26: 77642.81996 | F26: 78953.736 | G26: =E26+C26 -> 723214.3783 | H26: =F26+D26 -> 744414.2061 | I26: Group Life
B27: تأمين ائتمان حياة جماعي | C27: 746990.6725 | D27: 759556.2633 | E27: 285496.3908 | F27: 319460.8936 | G27: 1032487.063 | H27: 1079017.157 | I27: Group Credit Life
B28: تأمين حياة فردي | C28: 4656399.933 | D28: 5165832.425 | E28: 2786870.966 | F28: 2628633.476 | G28: 7443270.899 | H28: 7794465.9 | I28: Individual Life
B29: دفعات الحياة وتكوين الأموال | C29: 0 | D29: 0 | E29: 0 | F29: 0 | G29: 0 | H29: 0 | I29: Annuities & Fund Accumulation
B30: المجموع - تأمين الأشخاص وعمليات تكوين الأموال | C30: =C26+C27+C28+C29 -> 6048962.164 | D30: =D26+D27+D28+D29 -> 6590849.158 | E30: =E26+E27+E28+E29 -> 3150010.177 | F30: 3027048.105 | G30: 9198972.341 | H30: 9617897.263 | I30: Total - Insurance of Persons & Fund Accumulation
B32: المجموع - كافة فروع التأمين | C32: =C22+C24+C30 -> 46198860.23 | D32: =D22+D24+D30 -> 46353060.83 | E32: =E22+E24+E30 -> 7834613.791 | F32: 8098909.535 | G32: 54033474.02 | H32: 54451970.37 | I32: TOTAL - All Types of Business Combined

Sheet 9C
B6: إجمالي المُخصصات الفنية حسب فرع التأمين
B7: شركات التأمين على الحياة وشركات التأمينات العامة وشركات التأمين على الحياة والتأمينات العامة
B8: Gross Technical Provisions by Line of Business
B9: Life, Non-Life & Composite Companies
B11: جدول رقم 9C | K11: TABLE 9C
B12: بالألف درهم | K12: AED in 000's
B13: فروع التأمين | C13: شركات التأمين على الأشخاص وتكوين الأموال | E13: شركات تأمين الممتلكات والمسؤوليات | G13: شركات التأمين (النوعين معاً) | I13: الاجمالي | K13: Line of Business
C14: LIFE COMPANIES | E14: NON-LIFE COMPANIES | G14: COMPOSITE COMPANIES | I14: TOTAL
C15: 2024 | D15: 2025 | E15: 2024 | F15: 2025 | G15: 2024 | H15: 2025 | I15: 2024 | J15: 2025
B16: تأمين الحريق | C16: 0 | D16: 0 | E16: 3688585.744 | F16: 2799336.47 | G16: 10324333.28 | H16: 7725084.749 | I16: =G16+E16+C16 -> 14012919.03 | J16: =H16+F16+D16 -> 10524421.22 | K16: Fire
B17: التأمين البحري والطيران | C17: 0 | D17: 0 | E17: 547544.2738 | F17: 522520.6312 | G17: 2596712.822 | H17: 2350446.245 | I17: 3144257.095 | J17: 2872966.876 | K17: Marine & Aviation
B18: تأمين السيارات والمركبات الأخرى | C18: 0.001 | D18: 0.001 | E18: 2998281.168 | F18: 3710429.245 | G18: 4245074.602 | H18: 4830955.685 | I18: 7243355.77 | J18: 8541384.931 | K18: Motor & Transportation
B19: التأمين الهندسي والانشاءات والطاقة | C19: 0 | D19: 0 | E19: 1394787.459 | F19: 1335172.865 | G19: 6474803.191 | H19: 5690623.399 | I19: 7869590.65 | J19: 7025796.264 | K19: Engineering, Construction & Energy
B20: أخرى | C20: 0 | D20: 0 | E20: 1099274.176 | F20: 984692.2695 | G20: 4178096.219 | H20: 5145427.96 | I20: 5277370.395 | J20: 6130120.23 | K20: Other
B21: اعادة التأمين غير النسبية - المسؤوليات والممتلكات | C21: 0 | D21: 0 | E21: 12508.36623 | F21: 13717.45961 | G21: 0 | H21: 0 | I21: 12508.36623 | J21: 13717.45961 | K21: Reinsurance - Property & Liability
B22: المجموع - تأمين الممتلكات والمسؤوليات | C22: =C16+C17+C18+C19+C20+C21 -> 0.001 | D22: =D16+D17+D18+D19+D20+D21 -> 0.001 | E22: =E16+E17+E18+E19+E20+E21 -> 9740981.187 | F22: 9365868.94 | G22: =G16+G17+G18+G19+G20+G21 -> 27819020.12 | H22: 25742538.04 | I22: 37560001.31 | J22: 35108406.98 | K22: Total - Property & Liability Insurance
B24: المجموع - تأمين صحي | C24: 1264908.822 | D24: 770662.5982 | E24: 7213917.183 | F24: 9270321.29 | G24: 8511116.011 | H24: 9734811.2 | I24: =G24+E24+C24 -> 16989942.02 | J24: 19775795.09 | K24: Total - Health Insurance
B26: تأمين حياة جماعي | C26: 176906.2657 | D26: 188518.7789 | E26: 0 | F26: 0 | G26: 697808.726 | H26: 724381.2168 | I26: =G26+E26+C26 -> 874714.9917 | J26: 912899.9957 | K26: Group Life
B27: تأمين ائتمان حياة جماعي | C27: 37395.75768 | D27: 44328.477 | E27: 0 | F27: 0 | G27: 1006520.306 | H27: 1044721.68 | I27: 1043916.063 | J27: 1089050.157 | K27: Group Credit Life
B28: تأمين حياة فردي | C28: 23766484.46 | D28: 26243568.3 | E28: 0 | F28: 0 | G28: 11459562.98 | H28: 12635811.03 | I28: 35226047.44 | J28: 38879379.33 | K28: Individual Life
B29: دفعات الحياة وتكوين الأموال | C29: 250506.8518 | D29: 236278.9835 | E29: 0 | F29: 0 | G29: 287421 | H29: 256536 | I29: 537927.8518 | J29: 492814.9835 | K29: Annuities & Fund Accumulation
B30: المجموع - تأمين الأشخاص وعمليات تكوين الأموال | C30: =C26+C27+C28+C29 -> 24231293.34 | D30: =D26+D27+D28+D29 -> 26712694.54 | E30: =E26+E27+E28+E29 -> 0 | F30: 0 | G30: =G26+G27+G28+G29 -> 13451313.01 | H30: 14661449.92 | I30: 37682606.34 | J30: 41374144.46 | K30: Total - Insurance of Persons & Fund Accumulation
B32: المجموع - كافة فروع التأمين | C32: =C22+C24+C30 -> 25496202.16 | D32: =D22+D24+D30 -> 27483357.14 | E32: =E22+E24+E30 -> 16954898.37 | F32: 18636190.23 | G32: =G22+G24+G30 -> 49781449.14 | H32: 50138799.16 | I32: 92232549.66 | J32: 96258346.53 | K32: TOTAL - All Types of Business Combined

Sheet 10A
B6: صافي المُخصصات الفنية حسب فرع التأمين
B7: الشركات الوطنية والاجنبية
B8: Net Technical Provisions by Line of Business
B9: National & Foreign Companies
B11: جدول رقم 10A | I11: TABLE 10A
B12: بالألف درهم | I12: AED in 000's
B13: فروع التأمين | C13: الشركات الوطنية | E13: الشركات الأجنبية | G13: الاجمالي | I13: Line of Business
C14: NATIONAL COMPANIES | E14: FOREIGN COMPANIES | G14: TOTAL
C15: 2024 | D15: 2025 | E15: 2024 | F15: 2025 | G15: 2024 | H15: 2025
B16: تأمين الحريق | C16: 1012364.48 | D16: 1266695.402 | E16: 730601.3529 | F16: 669903.5399 | G16: =E16+C16 -> 1742965.833 | H16: 1936598.942 | I16: Fire
B17: التأمين البحري والطيران | C17: 527481.5918 | D17: 592977.9449 | E17: 238848.0989 | F17: 219386.5547 | G17: 766329.6907 | H17: 812364.4996 | I17: Marine & Aviation
B18: تأمين السيارات والمركبات الأخرى | C18: 4082202.236 | D18: 5542900.2 | E18: 1785144.583 | F18: 1929096.533 | G18: 5867346.819 | H18: 7471996.733 | I18: Motor & Transportation
B19: التأمين الهندسي والانشاءات والطاقة | C19: 1035171.331 | D19: 1034477.48 | E19: 340726.7986 | F19: 247369.2431 | G19: 1375898.13 | H19: 1281846.723 | I19: Engineering, Construction & Energy
B20: أخرى | C20: 943347.789 | D20: 1120277.193 | E20: 275241.7717 | F20: 257411.159 | G20: 1218589.561 | H20: 1377688.352 | I20: Other
B21: اعادة التأمين غير النسبية - المسؤوليات والممتلكات | C21: 4444.323271 | D21: 3282.939027 | E21: 0 | F21: 0 | G21: 4444.323271 | H21: 3282.939027 | I21: Reinsurance - Property & Liability
B22: المجموع - تأمين الممتلكات والمسؤوليات | C22: =C16+C17+C18+C19+C20+C21 -> 7605011.751 | D22: =D16+D17+D18+D19+D20+D21 -> 9560611.159 | E22: =E16+E17+E18+E19+E20+E21 -> 3370562.605 | F22: 3323167.03 | G22: 10975574.36 | H22: 12883778.19 | I22: Total - Property & Liability Insurance
B24: المجموع - تأمين صحي | C24: 7737796.729 | D24: 8617934.841 | E24: 2928440.289 | F24: 3401171.423 | G24: =E24+C24 -> 10666237.02 | H24: =F24+D24 -> 12019106.26 | I24: Total - Health Insurance
B26: تأمين حياة جماعي | C26: 231027.6067 | D26: 263251.4145 | E26: 32655.19237 | F26: 30479.2313 | G26: =E26+C26 -> 263682.7991 | H26: =F26+D26 -> 293730.6458 | I26: Group Life
B27: تأمين ائتمان حياة جماعي | C27: 486910.2855 | D27: 482976.2316 | E27: 2789 | F27: 2474 | G27: 489699.2855 | H27: 485450.2316 | I27: Group Credit Life
B28: تأمين حياة فردي | C28: 7328132.823 | D28: 7663759.036 | E28: 26436656.84 | F28: 29772635.75 | G28: 33764789.66 | H28: 37436394.78 | I28: Individual Life
B29: دفعات الحياة وتكوين الأموال | C29: 0 | D29: 0 | E29: 537927.8518 | F29: 492814.9835 | G29: 537927.8518 | H29: 492814.9835 | I29: Annuities & Fund Accumulation
B30: المجموع - تأمين الأشخاص وعمليات تكوين الأموال | C30: =C26+C27+C28+C29 -> 8046070.715 | D30: =D26+D27+D28+D29 -> 8409986.682 | E30: =E26+E27+E28+E29 -> 27010028.88 | F30: =F26+F27+F28+F29 -> 30298403.96 | G30: =G26+G27+G28+G29 -> 35056099.6 | H30: 38708390.64 | I30: Total - Insurance of Persons & Fund Accumulation
B32: المجموع - كافة فروع التأمين | C32: =C22+C24+C30 -> 23388879.2 | D32: =D22+D24+D30 -> 26588532.68 | E32: =E22+E24+E30 -> 33309031.78 | F32: =F22+F24+F30 -> 37022742.41 | G32: =G22+G24+G30 -> 56697910.97 | H32: 63611275.1 | I32: TOTAL - All Types of Business Combined

Sheet 10B
B6: صافي المُخصصات الفنية حسب فرع التأمين
B7: شركات التأمين التقليدي الوطنية وشركات التأمين التكافلي الوطنية
B8: Net Technical Provisions by Line of Business
B9: Traditional & Takaful National Companies
B11: جدول رقم 10B | I11: TABLE 10B
B12: بالألف درهم | I12: AED in 000's
B13: فروع التأمين | C13: شركات التأمين التقليدي الوطنية | E13: شركات التأمين التكافلي الوطنية | G13: الشركات الوطنية | I13: Line of Business
C14: TRADITIONAL COMPANIES | E14: TAKAFUL OPERATORS | G14: NATIONAL COMPANIES
C15: 2024 | D15: 2025 | E15: 2024 | F15: 2025 | G15: 2024 | H15: 2025
B16: تأمين الحريق | C16: 947605.8361 | D16: 1190565.613 | E16: 64758.64405 | F16: 76129.78941 | G16: =E16+C16 -> 1012364.48 | H16: =F16+D16 -> 1266695.402 | I16: Fire
B17: التأمين البحري والطيران | C17: 502457.9645 | D17: 556466.2804 | E17: 25023.62729 | F17: 36511.66451 | G17: 527481.5918 | H17: 592977.9449 | I17: Marine & Aviation
B18: تأمين السيارات والمركبات الأخرى | C18: 3201836.923 | D18: 4129447.321 | E18: 880365.3129 | F18: 1413452.879 | G18: 4082202.236 | H18: 5542900.2 | I18: Motor & Transportation
B19: التأمين الهندسي والانشاءات والطاقة | C19: 964075.3639 | D19: 938973.9729 | E19: 71095.96705 | F19: 95503.50673 | G19: 1035171.331 | H19: 1034477.48 | I19: Engineering, Construction & Energy
B20: أخرى | C20: 771007.0411 | D20: 899215.5163 | E20: 172340.748 | F20: 221061.6771 | G20: 943347.789 | H20: 1120277.193 | I20: Other
B21: اعادة التأمين غير النسبية - المسؤوليات والممتلكات | C21: 4444.323271 | D21: 3282.939027 | E21: 0 | F21: 0 | G21: 4444.323271 | H21: 3282.939027 | I21: Reinsurance - Property & Liability
B22: المجموع - تأمين الممتلكات والمسؤوليات | C22: =C16+C17+C18+C19+C20+C21 -> 6391427.452 | D22: =D16+D17+D18+D19+D20+D21 -> 7717951.642 | E22: =E16+E17+E18+E19+E20+E21 -> 1213584.299 | F22: =F16+F17+F18+F19+F20+F21 -> 1842659.517 | G22: 7605011.751 | H22: 9560611.159 | I22: Total - Property & Liability Insurance
B24: المجموع - تأمين صحي | C24: 7148889.037 | D24: 7973263.137 | E24: 588907.6919 | F24: 644671.7046 | G24: =E24+C24 -> 7737796.729 | H24: =F24+D24 -> 8617934.841 | I24: Total - Health Insurance
B26: تأمين حياة جماعي | C26: 218651.9786 | D26: 246555.201 | E26: 12375.62806 | F26: 16696.21352 | G26: =E26+C26 -> 231027.6067 | H26: 263251.4145 | I26: Group Life
B27: تأمين ائتمان حياة جماعي | C27: 439303.2682 | D27: 433576.1298 | E27: 47607.01724 | F27: 49400.10176 | G27: 486910.2855 | H27: 482976.2316 | I27: Group Credit Life
B28: تأمين حياة فردي | C28: 4568782.089 | D28: 5067226.228 | E28: 2759350.734 | F28: 2596532.808 | G28: 7328132.823 | H28: 7663759.036 | I28: Individual Life
B29: دفعات الحياة وتكوين الأموال | C29: 0 | D29: 0 | E29: 0 | F29: 0 | G29: 0 | H29: 0 | I29: Annuities & Fund Accumulation
B30: المجموع - تأمين الأشخاص وعمليات تكوين الأموال | C30: =C26+C27+C28+C29 -> 5226737.336 | D30: =D26+D27+D28+D29 -> 5747357.559 | E30: =E26+E27+E28+E29 -> 2819333.379 | F30: 2662629.124 | G30: 8046070.715 | H30: 8409986.682 | I30: Total - Insurance of Persons & Fund Accumulation
B32: المجموع - كافة فروع التأمين | C32: =C22+C24+C30 -> 18767053.82 | D32: =D22+D24+D30 -> 21438572.34 | E32: =E22+E24+E30 -> 4621825.37 | F32: 5149960.345 | G32: 23388879.2 | H32: 26588532.68 | I32: TOTAL - All Types of Business Combined

Sheet 11A
B6: إجمالي المُخصصات الفنية حسب فرع التأمين
B7: Gross Technical Provisions by Line of Business
B8: (2025)
B11: جدول رقم 11A | K11: TABLE 11A
B12: بالألف درهم | K12: AED in 000's
B13: فروع التأمين | C13: مخصص الأقساط غير المكتسبة | D13: مخصص المخاطر غير المنتهية | E13: مخصص المطالبات تحت التسوية | F13: مخصص المطالبات المتكبدة غير المبلغة | G13: مصاريف تسوية المطالبات الموزعة | H13: مصاريف تسوية المطالبات غير الموزعة | I13: المخصص الحسابي | J13: المجموع | K13: Line of Business
C15: UPR | D15: URR | E15: OSLR | F15: IBNR | G15: ALAE | H15: ULAE | I15: MATH | J15: Total
B16: تأمين الحريق | C16: 2420519.022 | D16: 17864.96734 | E16: 6927584.466 | F16: 1041924.504 | G16: 74252.31639 | H16: 42275.94306 | I16: 0 | J16: =C16+D16+E16+F16+G16+H16+I16 -> 10524421.22 | K16: Fire
B17: التأمين البحري والطيران | C17: 798626.0643 | D17: 2522.431899 | E17: 1617508.384 | F17: 427610.0181 | G17: 11458.08826 | H17: 15241.88929 | I17: 0 | J17: =C17+D17+E17+F17+G17+H17+I17 -> 2872966.876 | K17: Marine & Aviation
B18: تأمين السيارات والمركبات الأخرى | C18: 5091670.638 | D18: 92000.76544 | E18: 1780942.518 | F18: 1479673.19 | G18: 9022.854404 | H18: 88074.96833 | I18: 0.001 | J18: 8541384.935 | K18: Motor & Transportation
B19: التأمين الهندسي والانشاءات والطاقة | C19: 2656344.282 | D19: 14106.07949 | E19: 3512491.194 | F19: 792233.119 | G19: 22657.20584 | H19: 27964.383 | I19: 0 | J19: 7025796.264 | K19: Engineering, Construction & Energy
B20: أخرى | C20: 3835487.448 | D20: 9728.007581 | E20: 1491111.96 | F20: 745498.0561 | G20: 21023.19929 | H20: 27271.55847 | I20: 0 | J20: 6130120.23 | K20: Other
B21: اعادة التأمين غير النسبية - المسؤوليات والممتلكات | C21: 2437.951524 | D21: 0 | E21: 7725.54305 | F21: 3200.787108 | G21: 0 | H21: 353.1779317 | I21: 0 | J21: 13717.45961 | K21: Reinsurance - Property & Liability
B22: المجموع - تأمين الممتلكات والمسؤوليات | C22: =C16+C17+C18+C19+C20+C21 -> 14805085.41 | D22: 136222.2517 | E22: 15337364.07 | F22: 4490139.674 | G22: 138413.6642 | H22: 201181.9201 | I22: 0.001 | J22: =J16+J17+J18+J19+J20+J21 -> 35108406.98 | K22: Total - Property & Liability Insurance
B24: المجموع - تأمين صحي | C24: 11945935.2 | D24: 79459.3875 | E24: 3759419.906 | F24: 3920745.893 | G24: 4748.593622 | H24: 65486.10537 | I24: 0 | J24: =C24+D24+E24+F24+G24+H24+I24 -> 19775795.09 | K24: Total - Health Insurance
B26: تأمين حياة جماعي | C26: 290188.4666 | D26: 1188.782582 | E26: 445264.7596 | F26: 168046.9822 | G26: 0 | H26: 4507.663688 | I26: 3703.341117 | J26: =C26+D26+E26+F26+G26+H26+I26 -> 912899.9957 | K26: Group Life
B27: تأمين ائتمان حياة جماعي | C27: 21702.00206 | D27: 0 | E27: 392426.261 | F27: 131613.8511 | G27: 0 | H27: 3445.603074 | I27: 539862.4397 | J27: 1089050.157 | K27: Group Credit Life
B28: تأمين حياة فردي | C28: 372851.927 | D28: 0 | E28: 207341.7035 | F28: 47384.35458 | G28: 0 | H28: 50.56493307 | I28: 38251750.78 | J28: 38879379.33 | K28: Individual Life
B29: دفعات الحياة وتكوين الأموال | C29: 0 | D29: 0 | E29: 0 | F29: 0 | G29: 0 | H29: 0 | I29: 492814.9835 | J29: 492814.9835 | K29: Annuities & Fund Accumulation
B30: المجموع - تأمين الأشخاص وعمليات تكوين الأموال | C30: =C26+C27+C28+C29 -> 684742.3956 | D30: 1188.782582 | E30: 1045032.724 | F30: 347045.1879 | G30: 0 | H30: 8003.831696 | I30: 39288131.54 | J30: =J26+J27+J28+J29 -> 41374144.46 | K30: Total - Insurance of Persons & Fund Accumulation
B32: المجموع - كافة فروع التأمين | C32: =C22+C24+C30 -> 27435763 | D32: 216870.4218 | E32: 20141816.7 | F32: 8757930.754 | G32: 143162.2578 | H32: 274671.8572 | I32: 39288131.54 | J32: =J22+J24+J30 -> 96258346.54 | K32: TOTAL - All Types of Business Combined

Sheet 11B
B6: صافي المخصصات الفنية حسب فرع التأمين
B7: Net Technical Provisions by Line of Business
B8: (2025)
B11: جدول رقم 11B | K11: TABLE 11B
B12: بالألف درهم | K12: AED in 000's
B13: فروع التأمين | C13: مخصص الأقساط غير المكتسبة | D13: مخصص المخاطر غير المنتهية | E13: مخصص المطالبات تحت التسوية | F13: مخصص المطالبات المتكبدة غير المبلغة | G13: مصاريف تسوية المطالبات الموزعة | H13: مصاريف تسوية المطالبات غير الموزعة | I13: المخصص الحسابي | J13: المجموع | K13: Line of Business
C15: UPR | D15: URR | E15: OSLR | F15: IBNR | G15: ALAE | H15: ULAE | I15: MATH | J15: Total
B16: تأمين الحريق | C16: 540645.8601 | D16: 23047.53873 | E16: 920082.2847 | F16: 391415.9448 | G16: 19131.37061 | H16: 42275.94306 | I16: 0 | J16: =C16+D16+E16+F16+G16+H16+I16 -> 1936598.942 | K16: Fire
B17: التأمين البحري والطيران | C17: 187912.6324 | D17: 3081.901233 | E17: 460605.8664 | F17: 142512.7338 | G17: 3009.476368 | H17: 15241.88929 | I17: 0 | J17: =C17+D17+E17+F17+G17+H17+I17 -> 812364.4996 | K17: Marine & Aviation
B18: تأمين السيارات والمركبات الأخرى | C18: 4614568.76 | D18: 91097.86843 | E18: 1420048.997 | F18: 1249781.23 | G18: 8424.912857 | H18: 88074.96833 | I18: 0.001 | J18: 7471996.737 | K18: Motor & Transportation
B19: التأمين الهندسي والانشاءات والطاقة | C19: 481287.528 | D19: 17710.64951 | E19: 526012.9271 | F19: 219762.9509 | G19: 9108.284285 | H19: 27964.383 | I19: 0 | J19: 1281846.723 | K19: Engineering, Construction & Energy
B20: أخرى | C20: 863563.0647 | D20: 3099.198628 | E20: 268604.1051 | F20: 212148.2207 | G20: 3002.204735 | H20: 27271.55847 | I20: 0 | J20: 1377688.352 | K20: Other
B21: اعادة التأمين غير النسبية - المسؤوليات والممتلكات | C21: 1941.603519 | D21: 0 | E21: 655.7606625 | F21: 332.3969139 | G21: 0 | H21: 353.1779317 | I21: 0 | J21: 3282.939027 | K21: Reinsurance - Property & Liability
B22: المجموع - تأمين الممتلكات والمسؤوليات | C22: =C16+C17+C18+C19+C20+C21 -> 6689919.448 | D22: 138037.1565 | E22: 3596009.941 | F22: 2215953.477 | G22: 42676.24885 | H22: 201181.9201 | I22: 0.001 | J22: =J16+J17+J18+J19+J20+J21 -> 12883778.19 | K22: Total - Property & Liability Insurance
B24: المجموع - تأمين صحي | C24: 7297504.807 | D24: 75374.98052 | E24: 2297622.863 | F24: 2278371.521 | G24: 4745.986053 | H24: 65486.10537 | I24: 0 | J24: =C24+D24+E24+F24+G24+H24+I24 -> 12019106.26 | K24: Total - Health Insurance
B26: تأمين حياة جماعي | C26: 134030.9667 | D26: 1188.782582 | E26: 100815.664 | F26: 52817.23451 | G26: 0 | H26: 4507.663688 | I26: 370.3343345 | J26: =C26+D26+E26+F26+G26+H26+I26 -> 293730.6458 | K26: Group Life
B27: تأمين ائتمان حياة جماعي | C27: 7757.079927 | D27: 0 | E27: 45043.07356 | F27: 34020.27621 | G27: 0 | H27: 3445.603074 | I27: 395184.1988 | J27: 485450.2316 | K27: Group Credit Life
B28: تأمين حياة فردي | C28: 371309.5227 | D28: 0 | E28: 137565.842 | F28: 33298.12972 | G28: 0 | H28: 50.56493307 | I28: 36894170.72 | J28: 37436394.78 | K28: Individual Life
B29: دفعات الحياة وتكوين الأموال | C29: 0 | D29: 0 | E29: 0 | F29: 0 | G29: 0 | H29: 0 | I29: 492814.9835 | J29: 492814.9835 | K29: Annuities & Fund Accumulation
B30: المجموع - تأمين الأشخاص وعمليات تكوين الأموال | C30: =C26+C27+C28+C29 -> 513097.5693 | D30: 1188.782582 | E30: 283424.5796 | F30: 120135.6404 | G30: 0 | H30: 8003.831696 | I30: 37782540.24 | J30: =J26+J27+J28+J29 -> 38708390.64 | K30: Total - Insurance of Persons & Fund Accumulation
B32: المجموع - كافة فروع التأمين | C32: =C22+C24+C30 -> 14500521.83 | D32: 214600.9196 | E32: 6177057.384 | F32: 4614460.639 | G32: 47422.2349 | H32: 274671.8572 | I32: 37782540.24 | J32: =J22+J24+J30 -> 63611275.1 | K32: TOTAL - All Types of Business Combined

Sheet 12A
B6: إجمالي المُطالبات المدفوعة والمتكبدة حسب فرع التأمين
B7: الشركات الوطنية والاجنبية
B8: Gross Paid and Incurred Claims by Line of Business
B9: National & Foreign Companies
B10: (2025)
B11: جدول رقم 12A | I11: TABLE 12A
B12: بالألف درهم | I12: AED in 000's
B13: فروع التأمين | C13: الشركات الوطنية | E13: الشركات الأجنبية | G13: الاجمالي | I13: Line of Business
C14: NATIONAL COMPANIES | E14: FOREIGN COMPANIES | G14: TOTAL
C15: المدفوعة | D15: المتكبدة | E15: المدفوعة | F15: المتكبدة | G15: المدفوعة | H15: المتكبدة
C16: Paid | D16: Incurred | E16: Paid | F16: Incurred | G16: Paid | H16: Incurred
B17: تأمين الحريق | C17: 4610240.142 | D17: 1401830.781 | E17: 705112.1141 | F17: 218277.4748 | G17: =C17+E17 -> 5315352.256 | H17: =D17+F17 -> 1620108.256 | I17: Fire
B18: التأمين البحري والطيران | C18: 1053424.626 | D18: 926839.8267 | E18: 167603.1733 | F18: 126836.0334 | G18: =C18+E18 -> 1221027.799 | H18: =D18+F18 -> 1053675.86 | I18: Marine & Aviation
B19: تأمين السيارات والمركبات الأخرى | C19: 4805551.471 | D19: 5077275.881 | E19: 1573957.226 | F19: 1519019.485 | G19: 6379508.697 | H19: 6596295.366 | I19: Motor & Transportation
B20: التأمين الهندسي والانشاءات والطاقة | C20: 1470025.328 | D20: 469338.7765 | E20: 120632.1734 | F20: -3161.602729 | G20: 1590657.501 | H20: 466177.1738 | I20: Engineering, Construction & Energy
B21: أخرى | C21: 844951.0283 | D21: 967826.0053 | E21: 251692.4105 | F21: 137497.1431 | G21: 1096643.439 | H21: 1105323.148 | I21: Other
B22: اعادة التأمين غير النسبية - المسؤوليات والممتلكات | C22: 3943.05335 | D22: 5401.566151 | E22: 0 | F22: 0 | G22: 3943.05335 | H22: 5401.566151 | I22: Reinsurance - Property & Liability
B23: المجموع - تأمين الممتلكات والمسؤوليات | C23: =C17+C18+C19+C20+C21+C22 -> 12788135.65 | D23: 8848512.837 | E23: =E17+E18+E19+E20+E21+E22 -> 2818997.098 | F23: =F17+F18+F19+F20+F21+F22 -> 1998468.534 | G23: =G17+G18+G19+G20+G21+G22 -> 15607132.75 | H23: =H17+H18+H19+H20+H21+H22 -> 10846981.37 | I23: Total - Property & Liability Insurance
B25: المجموع - تأمين صحي | C25: 18048424.11 | D25: 18905957.12 | E25: 8159864.764 | F25: 8524940.748 | G25: =C25+E25 -> 26208288.87 | H25: =D25+F25 -> 27430897.87 | I25: Total - Health Insurance
B27: تأمين حياة جماعي | C27: 713119.2261 | D27: 702344.2459 | E27: 86662.69065 | F27: 107199.8029 | G27: =C27+E27 -> 799781.9168 | H27: =D27+F27 -> 809544.0487 | I27: Group Life
B28: تأمين ائتمان حياة جماعي | C28: 176187.2429 | D28: 220308.7937 | E28: 2320 | F28: 1531 | G28: 178507.2429 | H28: 221839.7937 | I28: Group Credit Life
B29: تأمين حياة فردي | C29: 863651.4557 | D29: 1370142.647 | E29: 2459711.455 | F29: 5761933.286 | G29: 3323362.91 | H29: 7132075.933 | I29: Individual Life
B30: دفعات الحياة وتكوين الأموال | C30: 0 | D30: 0 | E30: 87047.12242 | F30: 41934.25407 | G30: 87047.12242 | H30: 41934.25407 | I30: Annuities & Fund Accumulation
B31: المجموع - تأمين الأشخاص وعمليات تكوين الأموال | C31: =C27+C28+C29+C30 -> 1752957.925 | D31: 2292795.687 | E31: 2635741.268 | F31: 5912598.343 | G31: =G27+G28+G29+G30 -> 4388699.193 | H31: =H27+H28+H29+H30 -> 8205394.03 | I31: Total - Insurance of Persons & Fund Accumulation
B33: المجموع - كافة فروع التأمين | C33: =C23+C25+C31 -> 32589517.68 | D33: 30047265.64 | E33: 13614603.13 | F33: 16436007.63 | G33: 46204120.81 | H33: 46483273.27 | I33: TOTAL - All Types of Business Combined

Sheet 12B
B6: إجمالي المُطالبات المدفوعة والمتكبدة حسب فرع التأمين
B7: شركات التأمين التقليدي الوطنية وشركات التأمين التكافلي الوطنية
B8: Gross Paid and Incurred Claims by Line of Business
B9: Traditional & Takaful National Companies
B10: (2025)
B11: جدول رقم 12B | I11: TABLE 12B
B12: بالألف درهم | I12: AED in 000's
B13: فروع التأمين | C13: شركات التأمين التقليدي الوطنية | E13: شركات التأمين التكافلي الوطنية | G13: الشركات الوطنية | I13: Line of Business
C14: TRADITIONAL COMPANIES | E14: TAKAFUL OPERATORS | G14: NATIONAL COMPANIES
C15: المدفوعة | D15: المتكبدة | E15: المدفوعة | F15: المتكبدة | G15: المدفوعة | H15: المتكبدة
C16: Paid | D16: Incurred | E16: Paid | F16: Incurred | G16: Paid | H16: Incurred
B17: تأمين الحريق | C17: 4167779.076 | D17: 1224922.836 | E17: 442461.0656 | F17: 176907.9455 | G17: =C17+E17 -> 4610240.142 | H17: =D17+F17 -> 1401830.781 | I17: Fire
B18: التأمين البحري والطيران | C18: 1024792.13 | D18: 896971.2227 | E18: 28632.4961 | F18: 29868.60398 | G18: =C18+E18 -> 1053424.626 | H18: =D18+F18 -> 926839.8267 | I18: Marine & Aviation
B19: تأمين السيارات والمركبات الأخرى | C19: 3889589.375 | D19: 4061037.855 | E19: 915962.0961 | F19: 1016238.026 | G19: 4805551.471 | H19: 5077275.881 | I19: Motor & Transportation
B20: التأمين الهندسي والانشاءات والطاقة | C20: 1416290.339 | D20: 439245.2241 | E20: 53734.9892 | F20: 30093.55238 | G20: 1470025.328 | H20: 469338.7765 | I20: Engineering, Construction & Energy
B21: أخرى | C21: 736848.1232 | D21: 754401.466 | E21: 108102.9052 | F21: 213424.5393 | G21: 844951.0283 | H21: 967826.0053 | I21: Other
B22: اعادة التأمين غير النسبية - المسؤوليات والممتلكات | C22: 3943.05335 | D22: 5401.566151 | E22: 0 | F22: 0 | G22: 3943.05335 | H22: 5401.566151 | I22: Reinsurance - Property & Liability
B23: المجموع - تأمين الممتلكات والمسؤوليات | C23: =C17+C18+C19+C20+C21+C22 -> 11239242.1 | D23: =D17+D18+D19+D20+D21+D22 -> 7381980.169 | E23: 1548893.552 | F23: 1466532.668 | G23: =G17+G18+G19+G20+G21+G22 -> 12788135.65 | H23: =H17+H18+H19+H20+H21+H22 -> 8848512.837 | I23: Total - Property & Liability Insurance
B25: المجموع - تأمين صحي | C25: 16452786.7 | D25: 17271893.33 | E25: 1595637.403 | F25: 1634063.791 | G25: =C25+E25 -> 18048424.11 | H25: =D25+F25 -> 18905957.12 | I25: Total - Health Insurance
B27: تأمين حياة جماعي | C27: 650460.1428 | D27: 639871.0836 | E27: 62659.08331 | F27: 62473.16226 | G27: =C27+E27 -> 713119.2261 | H27: =D27+F27 -> 702344.2459 | I27: Group Life
B28: تأمين ائتمان حياة جماعي | C28: 142431.0718 | D28: 155454.9637 | E28: 33756.17117 | F28: 64853.83001 | G28: 176187.2429 | H28: 220308.7937 | I28: Group Credit Life
B29: تأمين حياة فردي | C29: 855253.6077 | D29: 1382038.442 | E29: 8397.84797 | F29: -11895.79414 | G29: 863651.4557 | H29: 1370142.647 | I29: Individual Life
B30: دفعات الحياة وتكوين الأموال | C30: 0 | D30: 0 | E30: 0 | F30: 0 | G30: 0 | H30: 0 | I30: Annuities & Fund Accumulation
B31: المجموع - تأمين الأشخاص وعمليات تكوين الأموال | C31: =C27+C28+C29+C30 -> 1648144.822 | D31: =D27+D28+D29+D30 -> 2177364.489 | E31: 104813.1025 | F31: 115431.1981 | G31: =G27+G28+G29+G30 -> 1752957.925 | H31: =H27+H28+H29+H30 -> 2292795.687 | I31: Total - Insurance of Persons & Fund Accumulation
B33: المجموع - كافة فروع التأمين | C33: =C23+C25+C31 -> 29340173.62 | D33: 26831237.99 | E33: 3249344.058 | F33: 3216027.656 | G33: 32589517.68 | H33: 30047265.64 | I33: TOTAL - All Types of Business Combined

Sheet 13A
B6: صافي المُطالبات المدفوعة والمتكبدة حسب فرع التأمين
B7: الشركات الوطنية والاجنبية
B8: Net Paid and Incurred Claims by Line of Business
B9: National & Foreign Companies
B10: (2025)
B11: جدول رقم 13A | I11: TABLE 13A
B12: بالألف درهم | I12: AED in 000's
B13: فروع التأمين | C13: الشركات الوطنية | E13: الشركات الأجنبية | G13: الاجمالي | I13: Line of Business
C14: NATIONAL COMPANIES | E14: FOREIGN COMPANIES | G14: TOTAL
C15: المدفوعة | D15: المتكبدة | E15: المدفوعة | F15: المتكبدة | G15: المدفوعة | H15: المتكبدة
C16: Paid | D16: Incurred | E16: Paid | F16: Incurred | G16: Paid | H16: Incurred
B17: تأمين الحريق | C17: 419420.9386 | D17: 539133.795 | E17: 179963.9275 | F17: 165416.7544 | G17: =C17+E17 -> 599384.8661 | H17: 704550.5494 | I17: Fire
B18: التأمين البحري والطيران | C18: 169068.6534 | D18: 230464.1127 | E18: 94655.78878 | F18: 78149.88007 | G18: 263724.4422 | H18: 308613.9928 | I18: Marine & Aviation
B19: تأمين السيارات والمركبات الأخرى | C19: 3946736.717 | D19: 4358664.778 | E19: 1480342.188 | F19: 1449975.075 | G19: 5427078.905 | H19: 5808639.853 | I19: Motor & Transportation
B20: التأمين الهندسي والانشاءات والطاقة | C20: 303846.3282 | D20: 248861.4177 | E20: 66312.68438 | F20: -13365.55779 | G20: 370159.0126 | H20: 235495.8599 | I20: Engineering, Construction & Energy
B21: أخرى | C21: 192289.3065 | D21: 211588.131 | E21: 63958.43238 | F21: 40901.52536 | G21: 256247.7388 | H21: 252489.6563 | I21: Other
B22: اعادة التأمين غير النسبية - المسؤوليات والممتلكات | C22: 662.8300875 | D22: -70.26766501 | E22: 0 | F22: 0 | G22: 662.8300875 | H22: -70.26766501 | I22: Reinsurance - Property & Liability
B23: المجموع - تأمين الممتلكات والمسؤوليات | C23: =C17+C18+C19+C20+C21+C22 -> 5032024.774 | D23: 5588641.967 | E23: 1885233.021 | F23: =F17+F18+F19+F20+F21+F22 -> 1721077.677 | G23: =G17+G18+G19+G20+G21+G22 -> 6917257.795 | H23: =H17+H18+H19+H20+H21+H22 -> 7309719.644 | I23: Total - Property & Liability Insurance
B25: المجموع - تأمين صحي | C25: 10102321.99 | D25: 10545091.78 | E25: 5640748.072 | F25: 5895945.424 | G25: =E25+C25 -> 15743070.06 | H25: =F25+D25 -> 16441037.2 | I25: Total - Health Insurance
B27: تأمين حياة جماعي | C27: 169367.1084 | D27: 174560.3504 | E27: 13566.6876 | F27: 13874.19027 | G27: =E27+C27 -> 182933.796 | H27: =F27+D27 -> 188434.5407 | I27: Group Life
B28: تأمين ائتمان حياة جماعي | C28: 48798.92592 | D28: 44918.03118 | E28: -97 | F28: -118 | G28: =E28+C28 -> 48701.92592 | H28: =F28+D28 -> 44800.03118 | I28: Group Credit Life
B29: تأمين حياة فردي | C29: 846747.5462 | D29: 1336792.995 | E29: 2250025.065 | F29: 5586038.96 | G29: 3096772.611 | H29: 6922831.955 | I29: Individual Life
B30: دفعات الحياة وتكوين الأموال | C30: 0 | D30: 0 | E30: 87047.12242 | F30: 41934.25407 | G30: 87047.12242 | H30: 41934.25407 | I30: Annuities & Fund Accumulation
B31: المجموع - تأمين الأشخاص وعمليات تكوين الأموال | C31: =C27+C28+C29+C30 -> 1064913.58 | D31: 1556271.377 | E31: 2350541.875 | F31: =F27+F28+F29+F30 -> 5641729.404 | G31: =G27+G28+G29+G30 -> 3415455.456 | H31: =H27+H28+H29+H30 -> 7198000.781 | I31: Total - Insurance of Persons & Fund Accumulation
B33: المجموع - كافة فروع التأمين | C33: =C23+C25+C31 -> 16199260.34 | D33: 17690005.12 | E33: 9876522.968 | F33: 13258752.5 | G33: 26075783.31 | H33: 30948757.63 | I33: TOTAL - All Types of Business Combined

Sheet 13B
B6: صافي المُطالبات المدفوعة والمتكبدة حسب فرع التأمين
B7: شركات التأمين التقليدي الوطنية وشركات التأمين التكافلي الوطنية
B8: Net Paid and Incurred Claims by Line of Business
B9: Traditional & Takaful National Companies
B10: (2025)
B11: جدول رقم 13B | I11: TABLE 13B
B12: بالألف درهم | I12: AED in 000's
B13: فروع التأمين | C13: شركات التأمين التقليدي الوطنية | E13: شركات التأمين التكافلي الوطنية | G13: الشركات الوطنية | I13: Line of Business
C14: TRADITIONAL COMPANIES | E14: TAKAFUL OPERATORS | G14: NATIONAL COMPANIES
C15: المدفوعة | D15: المتكبدة | E15: المدفوعة | F15: المتكبدة | G15: المدفوعة | H15: المتكبدة
C16: Paid | D16: Incurred | E16: Paid | F16: Incurred | G16: Paid | H16: Incurred
B17: تأمين الحريق | C17: 388221.9449 | D17: 505188.3223 | E17: 31198.9937 | F17: 33945.47273 | G17: =C17+E17 -> 419420.9386 | H17: =D17+F17 -> 539133.795 | I17: Fire
B18: التأمين البحري والطيران | C18: 159367.9825 | D18: 218588.6927 | E18: 9700.67093 | F18: 11875.41998 | G18: =C18+E18 -> 169068.6534 | H18: =D18+F18 -> 230464.1127 | I18: Marine & Aviation
B19: تأمين السيارات والمركبات الأخرى | C19: 3098660.047 | D19: 3424254.084 | E19: 848076.6703 | F19: 934410.6944 | G19: 3946736.717 | H19: 4358664.778 | I19: Motor & Transportation
B20: التأمين الهندسي والانشاءات والطاقة | C20: 284629.3409 | D20: 217819.6165 | E20: 19216.98733 | F20: 31041.80125 | G20: 303846.3282 | H20: 248861.4177 | I20: Engineering, Construction & Energy
B21: أخرى | C21: 166272.706 | D21: 170623.4391 | E21: 26016.6005 | F21: 40964.69188 | G21: 192289.3065 | H21: 211588.131 | I21: Other
B22: اعادة التأمين غير النسبية - المسؤوليات والممتلكات | C22: 662.8300875 | D22: -70.26766501 | E22: 0 | F22: 0 | G22: 662.8300875 | H22: -70.26766501 | I22: Reinsurance - Property & Liability
B23: المجموع - تأمين الممتلكات والمسؤوليات | C23: =C17+C18+C19+C20+C21+C22 -> 4097814.851 | D23: 4536403.886 | E23: 934209.9228 | F23: 1052238.08 | G23: =G17+G18+G19+G20+G21+G22 -> 5032024.774 | H23: =H17+H18+H19+H20+H21+H22 -> 5588641.967 | I23: Total - Property & Liability Insurance
B25: المجموع - تأمين صحي | C25: 9390144.033 | D25: 9819714.164 | E25: 712177.9522 | F25: 725377.615 | G25: =C25+E25 -> 10102321.99 | H25: =D25+F25 -> 10545091.78 | I25: Total - Health Insurance
B27: تأمين حياة جماعي | C27: 167953.8661 | D27: 169073.8439 | E27: 1413.242259 | F27: 5486.5065 | G27: =C27+E27 -> 169367.1084 | H27: =D27+F27 -> 174560.3504 | I27: Group Life
B28: تأمين ائتمان حياة جماعي | C28: 38172.84738 | D28: 33089.77896 | E28: 10626.07854 | F28: 11828.25223 | G28: =C28+E28 -> 48798.92592 | H28: =D28+F28 -> 44918.03118 | I28: Group Credit Life
B29: تأمين حياة فردي | C29: 844617.8298 | D29: 1360207.087 | E29: 2129.71637 | F29: -23414.09191 | G29: 846747.5462 | H29: 1336792.995 | I29: Individual Life
B30: دفعات الحياة وتكوين الأموال | C30: 0 | D30: 0 | E30: 0 | F30: 0 | G30: 0 | H30: 0 | I30: Annuities & Fund Accumulation
B31: المجموع - تأمين الأشخاص وعمليات تكوين الأموال | C31: =C27+C28+C29+C30 -> 1050744.543 | D31: 1562370.71 | E31: 14169.03717 | F31: -6099.333189 | G31: =G27+G28+G29+G30 -> 1064913.58 | H31: =H27+H28+H29+H30 -> 1556271.377 | I31: Total - Insurance of Persons & Fund Accumulation
B33: المجموع - كافة فروع التأمين | C33: =C23+C25+C31 -> 14538703.43 | D33: 15918488.76 | E33: 1660556.912 | F33: 1771516.362 | G33: 16199260.34 | H33: 17690005.12 | I33: TOTAL - All Types of Business Combined

Sheet 14A
B6: نسبة الخسارة (الإجمالية) حسب فرع التأمين
B7: الشركات الوطنية والاجنبية
B8: Gross Loss Ratios by Line of Business
B9: National & Foreign Companies
B10: (2025)
B11: جدول رقم 14A | I11: TABLE 14A
B13: فروع التأمين | C13: الشركات الوطنية | E13: الشركات الأجنبية | G13: الاجمالي | I13: Line of Business
C14: NATIONAL COMPANIES | E14: FOREIGN COMPANIES | G14: TOTAL
C15: المدفوعة | D15: المتكبدة | E15: المدفوعة | F15: المتكبدة | G15: المدفوعة | H15: المتكبدة
C16: Paid | D16: Incurred | E16: Paid | F16: Incurred | G16: Paid | H16: Incurred
B17: تأمين الحريق | C17: =IFERROR('12A'!C17/'5A'!D16,"") -> 0.773912711 | D17: =IFERROR('12A'!D17/'5A'!D16,"") -> 0.235322809 | E17: =IFERROR('12A'!E17/'5A'!F16,"") -> 1.01627504 | F17: =IFERROR('12A'!F17/'5A'!F16,"") -> 0.3146023801 | G17: =IFERROR('12A'!G17/'5A'!H16,"") -> 0.7991959828 | H17: =IFERROR('12A'!H17/'5A'!H16,"") -> 0.2435932649 | I17: Fire
B18: التأمين البحري والطيران | C18: =IFERROR('12A'!C18/'5A'!D17,"") -> 0.5328187506 | D18: =IFERROR('12A'!D18/'5A'!D17,"") -> 0.4687925708 | E18: =IFERROR('12A'!E18/'5A'!F17,"") -> 0.4406355435 | F18: =IFERROR('12A'!F18/'5A'!F17,"") -> 0.3334570785 | G18: =IFERROR('12A'!G18/'5A'!H17,"") -> 0.5179452623 | H18: =IFERROR('12A'!H18/'5A'!H17,"") -> 0.4469565887 | I18: Marine & Aviation
B19: تأمين السيارات والمركبات الأخرى | C19: =IFERROR('12A'!C19/'5A'!D18,"") -> 0.6998334973 | D19: =IFERROR('12A'!D19/'5A'!D18,"") -> 0.7394047817 | E19: =IFERROR('12A'!E19/'5A'!F18,"") -> 0.687835455 | F19: =IFERROR('12A'!F19/'5A'!F18,"") -> 0.6638270986 | G19: =IFERROR('12A'!G19/'5A'!H18,"") -> 0.6968346025 | H19: =IFERROR('12A'!H19/'5A'!H18,"") -> 0.7205142398 | I19: Motor & Transportation
B20: التأمين الهندسي والانشاءات والطاقة | C20: =IFERROR('12A'!C20/'5A'!D19,"") -> 0.3861198534 | D20: =IFERROR('12A'!D20/'5A'!D19,"") -> 0.1232774811 | E20: =IFERROR('12A'!E20/'5A'!F19,"") -> 0.6361306735 | F20: =IFERROR('12A'!F20/'5A'!F19,"") -> -0.01667210676 | G20: =IFERROR('12A'!G20/'5A'!H19,"") -> 0.3979819742 | H20: =IFERROR('12A'!H20/'5A'!H19,"") -> 0.1166373728 | I20: Engineering, Construction & Energy
B21: أخرى | C21: =IFERROR('12A'!C21/'5A'!D20,"") -> 0.1668820913 | D21: =IFERROR('12A'!D21/'5A'!D20,"") -> 0.1911505192 | E21: =IFERROR('12A'!E21/'5A'!F20,"") -> 0.4442584691 | F21: =IFERROR('12A'!F21/'5A'!F20,"") -> 0.2426941288 | G21: =IFERROR('12A'!G21/'5A'!H20,"") -> 0.194795836 | H21: =IFERROR('12A'!H21/'5A'!H20,"") -> 0.1963376053 | I21: Other
B22: اعادة التأمين غير النسبية - المسؤوليات والممتلكات | C22: =IFERROR('12A'!C22/'5A'!D21,"") -> 0.6678989879 | D22: =IFERROR('12A'!D22/'5A'!D21,"") -> 0.9149509898 | E22: - | F22: - | G22: =IFERROR('12A'!G22/'5A'!H21,"") -> 0.6678989879 | H22: =IFERROR('12A'!H22/'5A'!H21,"") -> 0.9149509898 | I22: Reinsurance - Property & Liability
B23: المجموع - تأمين الممتلكات والمسؤوليات | C23: =IFERROR('12A'!C23/'5A'!D22,"") -> 0.5401061331 | D23: =IFERROR('12A'!D23/'5A'!D22,"") -> 0.3737164027 | E23: =IFERROR('12A'!E23/'5A'!F22,"") -> 0.6844481794 | F23: =IFERROR('12A'!F23/'5A'!F22,"") -> 0.4852251004 | G23: =IFERROR('12A'!G23/'5A'!H22,"") -> 0.5614940736 | H23: =IFERROR('12A'!H23/'5A'!H22,"") -> 0.3902392486 | I23: Total - Property & Liability Insurance
B25: المجموع - تأمين صحي | C25: =IFERROR('12A'!C25/'5A'!D24,"") -> 0.7489310503 | D25: =IFERROR('12A'!D25/'5A'!D24,"") -> 0.7845149381 | E25: =IFERROR('12A'!E25/'5A'!F24,"") -> 0.7628812815 | F25: =IFERROR('12A'!F25/'5A'!F24,"") -> 0.7970129299 | G25: =IFERROR('12A'!G25/'5A'!H24,"") -> 0.7532194004 | H25: =IFERROR('12A'!H25/'5A'!H24,"") -> 0.7883568647 | I25: Total - Health Insurance
B27: تأمين حياة جماعي | C27: =IFERROR('12A'!C27/'5A'!D26,"") -> 0.6128556012 | D27: =IFERROR('12A'!D27/'5A'!D26,"") -> 0.603595569 | E27: =IFERROR('12A'!E27/'5A'!F26,"") -> 0.3513651561 | F27: =IFERROR('12A'!F27/'5A'!F26,"") -> 0.4346308104 | G27: =IFERROR('12A'!G27/'5A'!H26,"") -> 0.5671221154 | H27: =IFERROR('12A'!H27/'5A'!H26,"") -> 0.5740444036 | I27: Group Life
B28: تأمين ائتمان حياة جماعي | C28: =IFERROR('12A'!C28/'5A'!D27,"") -> 0.2510676751 | D28: =IFERROR('12A'!D28/'5A'!D27,"") -> 0.3139410989 | E28: =IFERROR('12A'!E28/'5A'!F27,"") -> 0.1366152397 | F28: =IFERROR('12A'!F28/'5A'!F27,"") -> 0.090154281 | G28: =IFERROR('12A'!G28/'5A'!H27,"") -> 0.2483634323 | H28: =IFERROR('12A'!H28/'5A'!H27,"") -> 0.3086535408 | I28: Group Credit Life
B29: تأمين حياة فردي | C29: =IFERROR('12A'!C29/'5A'!D28,"") -> 0.5404800817 | D29: =IFERROR('12A'!D29/'5A'!D28,"") -> 0.8574463751 | E29: =IFERROR('12A'!E29/'5A'!F28,"") -> 0.5324506008 | F29: =IFERROR('12A'!F29/'5A'!F28,"") -> 1.247278348 | G29: =IFERROR('12A'!G29/'5A'!H28,"") -> 0.5345142115 | H29: =IFERROR('12A'!H29/'5A'!H28,"") -> 1.147089875 | I29: Individual Life
B30: دفعات الحياة وتكوين الأموال | C30: - | D30: - | E30: =IFERROR('12A'!E30/'5A'!F29,"") -> 3.091834054 | F30: =IFERROR('12A'!F30/'5A'!F29,"") -> 1.489466293 | G30: =IFERROR('12A'!G30/'5A'!H29,"") -> 3.091834054 | H30: =IFERROR('12A'!H30/'5A'!H29,"") -> 1.489466293 | I30: Annuities & Fund Accumulation
B31: المجموع - تأمين الأشخاص وعمليات تكوين الأموال | C31: =IFERROR('12A'!C31/'5A'!D30,"") -> 0.5061544427 | D31: =IFERROR('12A'!D31/'5A'!D30,"") -> 0.6620288523 | E31: =IFERROR('12A'!E31/'5A'!F30,"") -> 0.5366593019 | F31: =IFERROR('12A'!F31/'5A'!F30,"") -> 1.203855226 | G31: =IFERROR('12A'!G31/'5A'!H30,"") -> 0.5240442339 | H31: =IFERROR('12A'!H31/'5A'!H30,"") -> 0.9797867749 | I31: Total - Insurance of Persons & Fund Accumulation
C32: =IFERROR('12A'!C32/'5A'!D31,"") ->  | D32: =IFERROR('12A'!D32/'5A'!D31,"") ->  | E32: =IFERROR('12A'!E32/'5A'!F31,"") ->  | F32: =IFERROR('12A'!F32/'5A'!F31,"") ->  | G32: =IFERROR('12A'!G32/'5A'!H31,"") ->  | H32: =IFERROR('12A'!H32/'5A'!H31,"") -> 
B33: المجموع - كافة فروع التأمين | C33: =IFERROR('12A'!C33/'5A'!D32,"") -> 0.6360260831 | D33: =IFERROR('12A'!D33/'5A'!D32,"") -> 0.5864107859 | E33: =IFERROR('12A'!E33/'5A'!F32,"") -> 0.6901807275 | F33: =IFERROR('12A'!F33/'5A'!F32,"") -> 0.833209429 | G33: =IFERROR('12A'!G33/'5A'!H32,"") -> 0.6510793612 | H33: =IFERROR('12A'!H33/'5A'!H32,"") -> 0.6550130017 | I33: TOTAL - All Types of Business Combined

Sheet 14B
B6: نسبة الخسارة (الإجمالية) حسب فرع التأمين
B7: شركات التأمين التقليدي الوطنية وشركات التأمين التكافلي الوطنية
B8: Gross Loss Ratios by Line of Business
B9: Traditional & Takaful National Companies
B10: (2025)
B11: جدول رقم 14B | I11: TABLE 14B
B13: فروع التأمين | C13: شركات التأمين التقليدي الوطنية | E13: شركات التأمين التكافلي الوطنية | G13: الشركات الوطنية | I13: Line of Business
C14: TRADITIONAL COMPANIES | E14: TAKAFUL OPERATORS | G14: NATIONAL COMPANIES
C15: المدفوعة | D15: المتكبدة | E15: المدفوعة | F15: المتكبدة | G15: المدفوعة | H15: المتكبدة
C16: Paid | D16: Incurred | E16: Paid | F16: Incurred | G16: Paid | H16: Incurred
B17: تأمين الحريق | C17: =IFERROR('12B'!C17/'5B'!D16,"") -> 0.7895246742 | D17: =IFERROR('12B'!D17/'5B'!D16,"") -> 0.2320436821 | E17: =IFERROR('12B'!E17/'5B'!F16,"") -> 0.6523967722 | F17: =IFERROR('12B'!F17/'5B'!F16,"") -> 0.2608459401 | G17: =IFERROR('12B'!G17/'5B'!H16,"") -> 0.773912711 | H17: =IFERROR('12B'!H17/'5B'!H16,"") -> 0.235322809 | I17: Fire
B18: التأمين البحري والطيران | C18: =IFERROR('12B'!C18/'5B'!D17,"") -> 0.5617997847 | D18: =IFERROR('12B'!D18/'5B'!D17,"") -> 0.4917272735 | E18: =IFERROR('12B'!E18/'5B'!F17,"") -> 0.187195127 | F18: =IFERROR('12B'!F18/'5B'!F17,"") -> 0.1952766219 | G18: =IFERROR('12B'!G18/'5B'!H17,"") -> 0.5328187506 | H18: =IFERROR('12B'!H18/'5B'!H17,"") -> 0.4687925708 | I18: Marine & Aviation
B19: تأمين السيارات والمركبات الأخرى | C19: =IFERROR('12B'!C19/'5B'!D18,"") -> 0.7043522549 | D19: =IFERROR('12B'!D19/'5B'!D18,"") -> 0.7353992656 | E19: =IFERROR('12B'!E19/'5B'!F18,"") -> 0.6812735426 | F19: =IFERROR('12B'!F19/'5B'!F18,"") -> 0.7558566924 | G19: =IFERROR('12B'!G19/'5B'!H18,"") -> 0.6998334973 | H19: =IFERROR('12B'!H19/'5B'!H18,"") -> 0.7394047817 | I19: Motor & Transportation
B20: التأمين الهندسي والانشاءات والطاقة | C20: =IFERROR('12B'!C20/'5B'!D19,"") -> 0.3996842379 | D20: =IFERROR('12B'!D20/'5B'!D19,"") -> 0.1239572056 | E20: =IFERROR('12B'!E20/'5B'!F19,"") -> 0.2038114303 | F20: =IFERROR('12B'!F20/'5B'!F19,"") -> 0.1141418291 | G20: =IFERROR('12B'!G20/'5B'!H19,"") -> 0.3861198534 | H20: =IFERROR('12B'!H20/'5B'!H19,"") -> 0.1232774811 | I20: Engineering, Construction & Energy
B21: أخرى | C21: =IFERROR('12B'!C21/'5B'!D20,"") -> 0.1670251625 | D21: =IFERROR('12B'!D21/'5B'!D20,"") -> 0.1710040693 | E21: =IFERROR('12B'!E21/'5B'!F20,"") -> 0.1659133843 | F21: =IFERROR('12B'!F21/'5B'!F20,"") -> 0.3275581498 | G21: =IFERROR('12B'!G21/'5B'!H20,"") -> 0.1668820913 | H21: =IFERROR('12B'!H21/'5B'!H20,"") -> 0.1911505192 | I21: Other
B22: اعادة التأمين غير النسبية - المسؤوليات والممتلكات | C22: =IFERROR('12B'!C22/'5B'!D21,"") -> 0.6678989879 | D22: =IFERROR('12B'!D22/'5B'!D21,"") -> 0.9149509898 | E22: =IFERROR('12B'!E22/'5B'!F21,"") ->  | F22: =IFERROR('12B'!F22/'5B'!F21,"") ->  | G22: =IFERROR('12B'!G22/'5B'!H21,"") -> 0.6678989879 | H22: =IFERROR('12B'!H22/'5B'!H21,"") -> 0.9149509898 | I22: Reinsurance - Property & Liability
B23: المجموع - تأمين الممتلكات والمسؤوليات | C23: =IFERROR('12B'!C23/'5B'!D22,"") -> 0.5459595563 | D23: =IFERROR('12B'!D23/'5B'!D22,"") -> 0.3585884692 | E23: =IFERROR('12B'!E23/'5B'!F22,"") -> 0.5011202934 | F23: =IFERROR('12B'!F23/'5B'!F22,"") -> 0.4744737168 | G23: =IFERROR('12B'!G23/'5B'!H22,"") -> 0.5401061331 | H23: =IFERROR('12B'!H23/'5B'!H22,"") -> 0.3737164027 | I23: Total - Property & Liability Insurance
B25: المجموع - تأمين صحي | C25: =IFERROR('12B'!C25/'5B'!D24,"") -> 0.7484280644 | D25: =IFERROR('12B'!D25/'5B'!D24,"") -> 0.7856887666 | E25: =IFERROR('12B'!E25/'5B'!F24,"") -> 0.7541570912 | F25: =IFERROR('12B'!F25/'5B'!F24,"") -> 0.7723188191 | G25: =IFERROR('12B'!G25/'5B'!H24,"") -> 0.7489310503 | H25: =IFERROR('12B'!H25/'5B'!H24,"") -> 0.7845149381 | I25: Total - Health Insurance
B27: تأمين حياة جماعي | C27: =IFERROR('12B'!C27/'5B'!D26,"") -> 0.5764801124 | D27: =IFERROR('12B'!D27/'5B'!D26,"") -> 0.567095399 | E27: =IFERROR('12B'!E27/'5B'!F26,"") -> 1.776547299 | F27: =IFERROR('12B'!F27/'5B'!F26,"") -> 1.771275956 | G27: =IFERROR('12B'!G27/'5B'!H26,"") -> 0.6128556012 | H27: =IFERROR('12B'!H27/'5B'!H26,"") -> 0.603595569 | I27: Group Life
B28: تأمين ائتمان حياة جماعي | C28: =IFERROR('12B'!C28/'5B'!D27,"") -> 0.4888766173 | D28: =IFERROR('12B'!D28/'5B'!D27,"") -> 0.5335794772 | E28: =IFERROR('12B'!E28/'5B'!F27,"") -> 0.08225019499 | F28: =IFERROR('12B'!F28/'5B'!F27,"") -> 0.158022666 | G28: =IFERROR('12B'!G28/'5B'!H27,"") -> 0.2510676751 | H28: =IFERROR('12B'!H28/'5B'!H27,"") -> 0.3139410989 | I28: Group Credit Life
B29: تأمين حياة فردي | C29: =IFERROR('12B'!C29/'5B'!D28,"") -> 0.6424607996 | D29: =IFERROR('12B'!D29/'5B'!D28,"") -> 1.038178049 | E29: =IFERROR('12B'!E29/'5B'!F28,"") -> 0.03148578861 | F29: =IFERROR('12B'!F29/'5B'!F28,"") -> -0.04460052873 | G29: =IFERROR('12B'!G29/'5B'!H28,"") -> 0.5404800817 | H29: =IFERROR('12B'!H29/'5B'!H28,"") -> 0.8574463751 | I29: Individual Life
B30: دفعات الحياة وتكوين الأموال | C30: - | D30: - | E30: - | F30: - | G30: - | H30: - | I30: Annuities & Fund Accumulation
B31: المجموع - تأمين الأشخاص وعمليات تكوين الأموال | C31: =IFERROR('12B'!C31/'5B'!D30,"") -> 0.5991316151 | D31: =IFERROR('12B'!D31/'5B'!D30,"") -> 0.791512909 | E31: =IFERROR('12B'!E31/'5B'!F30,"") -> 0.1471273303 | F31: =IFERROR('12B'!F31/'5B'!F30,"") -> 0.1620320706 | G31: =IFERROR('12B'!G31/'5B'!H30,"") -> 0.5061544427 | H31: =IFERROR('12B'!H31/'5B'!H30,"") -> 0.6620288523 | I31: Total - Insurance of Persons & Fund Accumulation
B33: المجموع - كافة فروع التأمين | C33: =IFERROR('12B'!C33/'5B'!D32,"") -> 0.6473968319 | D33: =IFERROR('12B'!D33/'5B'!D32,"") -> 0.5920366625 | E33: =IFERROR('12B'!E33/'5B'!F32,"") -> 0.5489639503 | F33: =IFERROR('12B'!F33/'5B'!F32,"") -> 0.5433352747 | G33: =IFERROR('12B'!G33/'5B'!H32,"") -> 0.6360260831 | H33: =IFERROR('12B'!H33/'5B'!H32,"") -> 0.5864107859 | I33: TOTAL - All Types of Business Combined

Sheet 15A
B6: نسبة الخسارة (الصافية) حسب فرع التأمين
B7: الشركات الوطنية والاجنبية
B8: Net Loss Ratios by Line of Business
B9: National & Foreign Companies
B10: (2025)
B11: جدول رقم 15A | I11: TABLE 15A
B13: فروع التأمين | C13: الشركات الوطنية | E13: الشركات الأجنبية | G13: الاجمالي | I13: Line of Business
C14: NATIONAL COMPANIES | E14: FOREIGN COMPANIES | G14: TOTAL
C15: المدفوعة | D15: المتكبدة | E15: المدفوعة | F15: المتكبدة | G15: المدفوعة | H15: المتكبدة
C16: Paid | D16: Incurred | E16: Paid | F16: Incurred | G16: Paid | H16: Incurred
B17: تأمين الحريق | C17: =IFERROR('13A'!C17/'6A'!D16,"") -> 0.4208946253 | D17: =IFERROR('13A'!D17/'6A'!D16,"") -> 0.5410281074 | E17: =IFERROR('13A'!E17/'6A'!F16,"") -> 0.5697592919 | F17: =IFERROR('13A'!F17/'6A'!F16,"") -> 0.5237034675 | G17: =IFERROR('13A'!G17/'6A'!H16,"") -> 0.4567235082 | H17: =IFERROR('13A'!H17/'6A'!H16,"") -> 0.5368583974 | I17: Fire
B18: التأمين البحري والطيران | C18: =IFERROR('13A'!C18/'6A'!D17,"") -> 0.4819703928 | D18: =IFERROR('13A'!D18/'6A'!D17,"") -> 0.6569927464 | E18: =IFERROR('13A'!E18/'6A'!F17,"") -> 0.49615072 | F18: =IFERROR('13A'!F18/'6A'!F17,"") -> 0.4096328367 | G18: =IFERROR('13A'!G18/'6A'!H17,"") -> 0.486965765 | H18: =IFERROR('13A'!H18/'6A'!H17,"") -> 0.5698540789 | I18: Marine & Aviation
B19: تأمين السيارات والمركبات الأخرى | C19: =IFERROR('13A'!C19/'6A'!D18,"") -> 0.7025098588 | D19: =IFERROR('13A'!D19/'6A'!D18,"") -> 0.7758320854 | E19: =IFERROR('13A'!E19/'6A'!F18,"") -> 0.6823489219 | F19: =IFERROR('13A'!F19/'6A'!F18,"") -> 0.6683515047 | G19: =IFERROR('13A'!G19/'6A'!H18,"") -> 0.6968933492 | H19: =IFERROR('13A'!H19/'6A'!H18,"") -> 0.7458897415 | I19: Motor & Transportation
B20: التأمين الهندسي والانشاءات والطاقة | C20: =IFERROR('13A'!C20/'6A'!D19,"") -> 0.5634429294 | D20: =IFERROR('13A'!D20/'6A'!D19,"") -> 0.4614806671 | E20: =IFERROR('13A'!E20/'6A'!F19,"") -> 0.7223353625 | F20: =IFERROR('13A'!F20/'6A'!F19,"") -> -0.1455892658 | G20: =IFERROR('13A'!G20/'6A'!H19,"") -> 0.5865573549 | H20: =IFERROR('13A'!H20/'6A'!H19,"") -> 0.3731688923 | I20: Engineering, Construction & Energy
B21: أخرى | C21: =IFERROR('13A'!C21/'6A'!D20,"") -> 0.1396487574 | D21: =IFERROR('13A'!D21/'6A'!D20,"") -> 0.153664393 | E21: =IFERROR('13A'!E21/'6A'!F20,"") -> 0.255476045 | F21: =IFERROR('13A'!F21/'6A'!F20,"") -> 0.1633773616 | G21: =IFERROR('13A'!G21/'6A'!H20,"") -> 0.1574680713 | H21: =IFERROR('13A'!H21/'6A'!H20,"") -> 0.1551586733 | I21: Other
B22: اعادة التأمين غير النسبية - المسؤوليات والممتلكات | C22: =IFERROR('13A'!C22/'6A'!D21,"") -> 0.152543721 | D22: =IFERROR('13A'!D22/'6A'!D21,"") -> -0.01617140092 | E22: - | F22: - | G22: =IFERROR('13A'!G22/'6A'!H21,"") -> 0.152543721 | H22: =IFERROR('13A'!H22/'6A'!H21,"") -> -0.01617140092 | I22: Reinsurance - Property & Liability
B23: المجموع - تأمين الممتلكات والمسؤوليات | C23: =IFERROR('13A'!C23/'6A'!D22,"") -> 0.5662932749 | D23: =IFERROR('13A'!D23/'6A'!D22,"") -> 0.62893378 | E23: =IFERROR('13A'!E23/'6A'!F22,"") -> 0.624606557 | F23: =IFERROR('13A'!F23/'6A'!F22,"") -> 0.5702193786 | G23: =IFERROR('13A'!G23/'6A'!H22,"") -> 0.5810784612 | H23: =IFERROR('13A'!H23/'6A'!H22,"") -> 0.6140468909 | I23: Total - Property & Liability Insurance
B25: المجموع - تأمين صحي | C25: =IFERROR('13A'!C25/'6A'!D24,"") -> 0.72292803 | D25: =IFERROR('13A'!D25/'6A'!D24,"") -> 0.7546128936 | E25: =IFERROR('13A'!E25/'6A'!F24,"") -> 0.7634159187 | F25: =IFERROR('13A'!F25/'6A'!F24,"") -> 0.7979541959 | G25: =IFERROR('13A'!G25/'6A'!H24,"") -> 0.7369315871 | H25: =IFERROR('13A'!H25/'6A'!H24,"") -> 0.7696033617 | I25: Total - Health Insurance
B27: تأمين حياة جماعي | C27: =IFERROR('13A'!C27/'6A'!D26,"") -> 0.4237735397 | D27: =IFERROR('13A'!D27/'6A'!D26,"") -> 0.4367675535 | E27: =IFERROR('13A'!E27/'6A'!F26,"") -> 0.2347133851 | F27: =IFERROR('13A'!F27/'6A'!F26,"") -> 0.240033401 | G27: =IFERROR('13A'!G27/'6A'!H26,"") -> 0.3998856466 | H27: =IFERROR('13A'!H27/'6A'!H26,"") -> 0.4119100451 | I27: Group Life
B28: تأمين ائتمان حياة جماعي | C28: =IFERROR('13A'!C28/'6A'!D27,"") -> 0.1988463646 | D28: =IFERROR('13A'!D28/'6A'!D27,"") -> 0.1830324548 | E28: =IFERROR('13A'!E28/'6A'!F27,"") -> -0.0241774676 | F28: =IFERROR('13A'!F28/'6A'!F27,"") -> -0.02941176471 | G28: =IFERROR('13A'!G28/'6A'!H27,"") -> 0.195258987 | H28: =IFERROR('13A'!H28/'6A'!H27,"") -> 0.1796152522 | I28: Group Credit Life
B29: تأمين حياة فردي | C29: =IFERROR('13A'!C29/'6A'!D28,"") -> 0.5688950904 | D29: =IFERROR('13A'!D29/'6A'!D28,"") -> 0.8981366114 | E29: =IFERROR('13A'!E29/'6A'!F28,"") -> 0.5062852063 | F29: =IFERROR('13A'!F29/'6A'!F28,"") -> 1.25693217 | G29: =IFERROR('13A'!G29/'6A'!H28,"") -> 0.5219931803 | H29: =IFERROR('13A'!H29/'6A'!H28,"") -> 1.166915212 | I29: Individual Life
B30: دفعات الحياة وتكوين الأموال | C30: - | D30: - | E30: =IFERROR('13A'!E30/'6A'!F29,"") -> 3.092083049 | F30: =IFERROR('13A'!F30/'6A'!F29,"") -> 1.489586244 | G30: =IFERROR('13A'!G30/'6A'!H29,"") -> 3.092083049 | H30: =IFERROR('13A'!H30/'6A'!H29,"") -> 1.489586244 | I30: Annuities & Fund Accumulation
B31: المجموع - تأمين الأشخاص وعمليات تكوين الأموال | C31: =IFERROR('13A'!C31/'6A'!D30,"") -> 0.499143554 | D31: =IFERROR('13A'!D31/'6A'!D30,"") -> 0.7294515163 | E31: =IFERROR('13A'!E31/'6A'!F30,"") -> 0.5184085417 | F31: =IFERROR('13A'!F31/'6A'!F30,"") -> 1.244275094 | G31: =IFERROR('13A'!G31/'6A'!H30,"") -> 0.5122442091 | H31: =IFERROR('13A'!H31/'6A'!H30,"") -> 1.079543933 | I31: Total - Insurance of Persons & Fund Accumulation
B33: المجموع - كافة فروع التأمين | C33: =IFERROR('13A'!C33/'6A'!D32,"") -> 0.6481375209 | D33: =IFERROR('13A'!D33/'6A'!D32,"") -> 0.7077826904 | E33: =IFERROR('13A'!E33/'6A'!F32,"") -> 0.6610239037 | F33: =IFERROR('13A'!F33/'6A'!F32,"") -> 0.887392493 | G33: =IFERROR('13A'!G33/'6A'!H32,"") -> 0.6529588457 | H33: =IFERROR('13A'!H33/'6A'!H32,"") -> 0.7749820903 | I33: TOTAL - All Types of Business Combined

Sheet 15B
B6: نسبة الخسارة (الصافية) حسب فرع التأمين
B7: شركات التأمين التقليدي الوطنية وشركات التأمين التكافلي الوطنية
B8: Net Loss Ratios by Line of Business
B9: Traditional & Takaful National Companies
B10: (2025)
B11: جدول رقم 15B | I11: TABLE 15B
B13: فروع التأمين | C13: شركات التأمين التقليدي الوطنية | E13: شركات التأمين التكافلي الوطنية | G13: الشركات الوطنية | I13: Line of Business
C14: TRADITIONAL COMPANIES | E14: TAKAFUL OPERATORS | G14: NATIONAL COMPANIES
C15: المدفوعة | D15: المتكبدة | E15: المدفوعة | F15: المتكبدة | G15: المدفوعة | H15: المتكبدة
C16: Paid | D16: Incurred | E16: Paid | F16: Incurred | G16: Paid | H16: Incurred
B17: تأمين الحريق | C17: =IFERROR('13B'!C17/'6B'!D16,"") -> 0.4325685072 | D17: =IFERROR('13B'!D17/'6B'!D16,"") -> 0.5628959447 | E17: =IFERROR('13B'!E17/'6B'!F16,"") -> 0.315084554 | F17: =IFERROR('13B'!F17/'6B'!F16,"") -> 0.3428217666 | G17: =IFERROR('13B'!G17/'6B'!H16,"") -> 0.4208946253 | H17: =IFERROR('13B'!H17/'6B'!H16,"") -> 0.5410281074 | I17: Fire
B18: التأمين البحري والطيران | C18: =IFERROR('13B'!C18/'6B'!D17,"") -> 0.508144358 | D18: =IFERROR('13B'!D18/'6B'!D17,"") -> 0.6969694238 | E18: =IFERROR('13B'!E18/'6B'!F17,"") -> 0.2610583746 | F18: =IFERROR('13B'!F18/'6B'!F17,"") -> 0.3195838577 | G18: =IFERROR('13B'!G18/'6B'!H17,"") -> 0.4819703928 | H18: =IFERROR('13B'!H18/'6B'!H17,"") -> 0.6569927464 | I18: Marine & Aviation
B19: تأمين السيارات والمركبات الأخرى | C19: =IFERROR('13B'!C19/'6B'!D18,"") -> 0.700703442 | D19: =IFERROR('13B'!D19/'6B'!D18,"") -> 0.7743303836 | E19: =IFERROR('13B'!E19/'6B'!F18,"") -> 0.7091899921 | F19: =IFERROR('13B'!F19/'6B'!F18,"") -> 0.781385382 | G19: =IFERROR('13B'!G19/'6B'!H18,"") -> 0.7025098588 | H19: =IFERROR('13B'!H19/'6B'!H18,"") -> 0.7758320854 | I19: Motor & Transportation
B20: التأمين الهندسي والانشاءات والطاقة | C20: =IFERROR('13B'!C20/'6B'!D19,"") -> 0.5974180163 | D20: =IFERROR('13B'!D20/'6B'!D19,"") -> 0.4571888576 | E20: =IFERROR('13B'!E20/'6B'!F19,"") -> 0.3058335248 | F20: =IFERROR('13B'!F20/'6B'!F19,"") -> 0.4940224671 | G20: =IFERROR('13B'!G20/'6B'!H19,"") -> 0.5634429294 | H20: =IFERROR('13B'!H20/'6B'!H19,"") -> 0.4614806671 | I20: Engineering, Construction & Energy
B21: أخرى | C21: =IFERROR('13B'!C21/'6B'!D20,"") -> 0.1460655403 | D21: =IFERROR('13B'!D21/'6B'!D20,"") -> 0.1498875277 | E21: =IFERROR('13B'!E21/'6B'!F20,"") -> 0.1090355895 | F21: =IFERROR('13B'!F21/'6B'!F20,"") -> 0.1716830501 | G21: =IFERROR('13B'!G21/'6B'!H20,"") -> 0.1396487574 | H21: =IFERROR('13B'!H21/'6B'!H20,"") -> 0.153664393 | I21: Other
B22: اعادة التأمين غير النسبية - المسؤوليات والممتلكات | C22: =IFERROR('13B'!C22/'6B'!D21,"") -> 0.152543721 | D22: =IFERROR('13B'!D22/'6B'!D21,"") -> -0.01617140092 | E22: - | F22: - | G22: =IFERROR('13B'!G22/'6B'!H21,"") -> 0.152543721 | H22: =IFERROR('13B'!H22/'6B'!H21,"") -> -0.01617140092 | I22: Reinsurance - Property & Liability
B23: المجموع - تأمين الممتلكات والمسؤوليات | C23: =IFERROR('13B'!C23/'6B'!D22,"") -> 0.5650255054 | D23: =IFERROR('13B'!D23/'6B'!D22,"") -> 0.6255001731 | E23: =IFERROR('13B'!E23/'6B'!F22,"") -> 0.5719220902 | F23: =IFERROR('13B'!F23/'6B'!F22,"") -> 0.6441787735 | G23: =IFERROR('13B'!G23/'6B'!H22,"") -> 0.5662932749 | H23: =IFERROR('13B'!H23/'6B'!H22,"") -> 0.62893378 | I23: Total - Property & Liability Insurance
B25: المجموع - تأمين صحي | C25: =IFERROR('13B'!C25/'6B'!D24,"") -> 0.7320483037 | D25: =IFERROR('13B'!D25/'6B'!D24,"") -> 0.765537256 | E25: =IFERROR('13B'!E25/'6B'!F24,"") -> 0.6209294507 | F25: =IFERROR('13B'!F25/'6B'!F24,"") -> 0.6324378937 | G25: =IFERROR('13B'!G25/'6B'!H24,"") -> 0.72292803 | H25: =IFERROR('13B'!H25/'6B'!H24,"") -> 0.7546128936 | I25: Total - Health Insurance
B27: تأمين حياة جماعي | C27: =IFERROR('13B'!C27/'6B'!D26,"") -> 0.4321669817 | D27: =IFERROR('13B'!D27/'6B'!D26,"") -> 0.4350488291 | E27: =IFERROR('13B'!E27/'6B'!F26,"") -> 0.1281002942 | F27: =IFERROR('13B'!F27/'6B'!F26,"") -> 0.4973125394 | G27: =IFERROR('13B'!G27/'6B'!H26,"") -> 0.4237735397 | H27: =IFERROR('13B'!H27/'6B'!H26,"") -> 0.4367675535 | I27: Group Life
B28: تأمين ائتمان حياة جماعي | C28: =IFERROR('13B'!C28/'6B'!D27,"") -> 0.3590736438 | D28: =IFERROR('13B'!D28/'6B'!D27,"") -> 0.3112596601 | E28: =IFERROR('13B'!E28/'6B'!F27,"") -> 0.07639112532 | F28: =IFERROR('13B'!F28/'6B'!F27,"") -> 0.08503357986 | G28: =IFERROR('13B'!G28/'6B'!H27,"") -> 0.1988463646 | H28: =IFERROR('13B'!H28/'6B'!H27,"") -> 0.1830324548 | I28: Group Credit Life
B29: تأمين حياة فردي | C29: =IFERROR('13B'!C29/'6B'!D28,"") -> 0.6644898756 | D29: =IFERROR('13B'!D29/'6B'!D28,"") -> 1.070121665 | E29: =IFERROR('13B'!E29/'6B'!F28,"") -> 0.009799452114 | F29: =IFERROR('13B'!F29/'6B'!F28,"") -> -0.1077351312 | G29: =IFERROR('13B'!G29/'6B'!H28,"") -> 0.5688950904 | H29: =IFERROR('13B'!H29/'6B'!H28,"") -> 0.8981366114 | I29: Individual Life
B30: دفعات الحياة وتكوين الأموال | C30: - | D30: - | E30: - | F30: - | G30: - | H30: - | I30: Annuities & Fund Accumulation
B31: المجموع - تأمين الأشخاص وعمليات تكوين الأموال | C31: =IFERROR('13B'!C31/'6B'!D30,"") -> 0.5949794632 | D31: =IFERROR('13B'!D31/'6B'!D30,"") -> 0.8846855235 | E31: =IFERROR('13B'!E31/'6B'!F30,"") -> 0.03855904191 | F31: =IFERROR('13B'!F31/'6B'!F30,"") -> -0.01659847746 | G31: =IFERROR('13B'!G31/'6B'!H30,"") -> 0.499143554 | H31: =IFERROR('13B'!H31/'6B'!H30,"") -> 0.7294515163 | I31: Total - Insurance of Persons & Fund Accumulation
B33: المجموع - كافة فروع التأمين | C33: =IFERROR('13B'!C33/'6B'!D32,"") -> 0.6655184777 | D33: =IFERROR('13B'!D33/'6B'!D32,"") -> 0.7286790366 | E33: =IFERROR('13B'!E33/'6B'!F32,"") -> 0.527516834 | F33: =IFERROR('13B'!F33/'6B'!F32,"") -> 0.5627658383 | G33: =IFERROR('13B'!G33/'6B'!H32,"") -> 0.6481375209 | H33: =IFERROR('13B'!H33/'6B'!H32,"") -> 0.7077826904 | I33: TOTAL - All Types of Business Combined

Sheet 16A
B6: نسبة العمولات ونسبة المصاريف والنسبة المجمعة (الإجمالية) حسب فرع التأمين
B7: الشركات الوطنية والاجنبية
B8: Gross Commission, Expense & Combined Ratios by Line of Business
B9: National & Foreign Companies
B10: (2025)
B11: جدول رقم 16A | L11: TABLE 16A
B13: فروع التأمين | C13: الشركات الوطنية | F13: الشركات الأجنبية | I13: الاجمالي | L13: Line of Business
C14: NATIONAL COMPANIES | F14: FOREIGN COMPANIES | I14: TOTAL
C15: نسبة العمولات | D15: نسبة المصاريف | E15: النسبة المجمعة | F15: نسبة العمولات | G15: نسبة المصاريف | H15: النسبة المجمعة | I15: نسبة العمولات | J15: نسبة المصاريف | K15: النسبة المجمعة
C16: Commission Ratio | D16: Expense Ratio | E16: Combined Ratio | F16: Commission Ratio | G16: Expense Ratio | H16: Combined Ratio | I16: Commission Ratio | J16: Expense Ratio | K16: Combined Ratio
B17: تأمين الحريق | C17: 0.08644896659 | D17: 0.06426784461 | E17: 0.3860396202 | F17: 0.1513763734 | G17: 0.1350617573 | H17: 0.6010405109 | I17: 0.09322220271 | J17: 0.07165307544 | K17: 0.408468543 | L17: Fire
B18: التأمين البحري والطيران | C18: 0.08678350173 | D18: 0.07066929399 | E18: 0.6262453666 | F18: 0.1975473071 | G18: 0.1359188295 | H18: 0.6669232151 | I18: 0.1046549148 | J18: 0.08119711393 | K18: 0.6328086174 | L18: Marine & Aviation
B19: تأمين السيارات والمركبات الأخرى | C19: 0.1361305072 | D19: 0.1211736041 | E19: 0.996708893 | F19: 0.1797492075 | G19: 0.1363670463 | H19: 0.9799433523 | I19: 0.1470329436 | J19: 0.1249711849 | K19: 0.9925183683 | L19: Motor & Transportation
B20: التأمين الهندسي والانشاءات والطاقة | C20: 0.06702417677 | D20: 0.06512877061 | E20: 0.2554304285 | F20: 0.2134049538 | G20: 0.1922631767 | H20: 0.3889960237 | I20: 0.07396942204 | J20: 0.0711608443 | K20: 0.2617676391 | L20: Engineering, Construction & Energy
B21: أخرى | C21: 0.09269415592 | D21: 0.1027326105 | E21: 0.3865772857 | F21: 0.1771642067 | G21: 0.1595196997 | H21: 0.5793780352 | I21: 0.1011947912 | J21: 0.1084473737 | K21: 0.4059797703 | L21: Other
B22: اعادة التأمين غير النسبية - المسؤوليات والممتلكات | C22: 0.4434141908 | D22: 0.1653010085 | E22: 1.523666189 | F22: - | G22: - | H22: - | I22: 0.4434141908 | J22: 0.1653010085 | K22: 1.523666189 | L22: Reinsurance - Property & Liability
B23: المجموع - تأمين الممتلكات والمسؤوليات | C23: 0.09918635859 | D23: 0.08969491815 | E23: 0.5625976795 | F23: 0.1778072876 | G23: 0.1418641782 | H23: 0.8048965661 | I23: 0.1108360462 | J23: 0.09742511913 | K23: 0.598500414 | L23: Total - Property & Liability Insurance
B25: المجموع - تأمين صحي | C25: 0.04728844605 | D25: 0.07108142336 | E25: 0.9028848075 | F25: 0.08792697761 | G25: 0.1091942022 | H25: 0.9941341097 | I25: 0.0597808736 | J25: 0.08279742564 | K25: 0.930935164 | L25: Total - Health Insurance
B27: تأمين حياة جماعي | C27: 0.1181023594 | D27: 0.0829319673 | E27: 0.8046298957 | F27: 0.07930471048 | G27: 0.2055646024 | H27: 0.7195001232 | I27: 0.1113168276 | J27: 0.1043798557 | K27: 0.7897410869 | L27: Group Life
B28: تأمين ائتمان حياة جماعي | C28: 0.1155153581 | D28: 0.1144592375 | E28: 0.5439156945 | F28: 0.09351077612 | G28: 0.2128135673 | H28: 0.3964786244 | I28: 0.1149954414 | J28: 0.1167831198 | K28: 0.540432102 | L28: Group Credit Life
B29: تأمين حياة فردي | C29: 0.1094483305 | D29: 0.101759207 | E29: 1.068653913 | F29: 0.02982566025 | G29: 0.10322305 | H29: 1.380327058 | I29: 0.05028902484 | J29: 0.1028468361 | K29: 1.300225736 | L29: Individual Life
B30: دفعات الحياة وتكوين الأموال | C30: - | D30: - | E30: - | F30: 0.02950880847 | G30: 0.01487931986 | H30: 1.533854421 | I30: 0.02950880847 | J30: 0.01487931986 | K30: 1.533854421 | L30: Annuities & Fund Accumulation
B31: المجموع - تأمين الأشخاص وعمليات تكوين الأموال | C31: 0.113585263 | D31: 0.09800695676 | E31: 0.8736210721 | F31: 0.03252884252 | G31: 0.1082350659 | H31: 1.344619134 | I31: 0.06604914988 | J31: 0.1040053039 | K31: 1.149841229 | L31: Total - Insurance of Persons & Fund Accumulation
B33: المجموع - كافة فروع التأمين | C33: 0.07575090497 | D33: 0.08150241373 | E33: 0.7436641046 | F33: 0.09290023466 | G33: 0.1157765967 | H33: 1.04188626 | I33: 0.08051787614 | J33: 0.09102955241 | K33: 0.8265604303 | L33: TOTAL - All Types of Business Combined

Sheet 16B
B6: نسبة العمولات ونسبة المصاريف والنسبة المجمعة (الإجمالية) حسب فرع التأمين
B7: شركات التأمين التقليدي الوطنية وشركات التأمين التكافلي الوطنية
B8: Gross Commission, Expense & Combined Ratios by Line of Business
B9: Traditional & Takaful National Companies
B10: (2025)
B11: جدول رقم 16B | L11: TABLE 16B
B13: فروع التأمين | C13: شركات التأمين التقليدي الوطنية | F13: شركات التأمين التكافلي الوطنية | I13: الشركات الوطنية | L13: Line of Business
C14: TRADITIONAL COMPANIES | F14: TAKAFUL OPERATORS | I14: NATIONAL COMPANIES
C15: نسبة العمولات | D15: نسبة المصاريف | E15: النسبة المجمعة | F15: نسبة العمولات | G15: نسبة المصاريف | H15: النسبة المجمعة | I15: نسبة العمولات | J15: نسبة المصاريف | K15: النسبة المجمعة
C16: Commission Ratio | D16: Expense Ratio | E16: Combined Ratio | F16: Commission Ratio | G16: Expense Ratio | H16: Combined Ratio | I16: Commission Ratio | J16: Expense Ratio | K16: Combined Ratio
B17: تأمين الحريق | C17: 0.08032082236 | D17: 0.06148580942 | E17: 0.3738503139 | F17: 0.1341474646 | G17: 0.08592185516 | H17: 0.4809152599 | I17: 0.08644896659 | J17: 0.06426784461 | K17: 0.3860396202 | L17: Fire
B18: التأمين البحري والطيران | C18: 0.08343155365 | D18: 0.06845196585 | E18: 0.643610793 | F18: 0.1267583502 | G18: 0.09711282896 | H18: 0.419147801 | I18: 0.08678350173 | J18: 0.07066929399 | K18: 0.6262453666 | L18: Marine & Aviation
B19: تأمين السيارات والمركبات الأخرى | C19: 0.1199212809 | D19: 0.1222724203 | E19: 0.9775929669 | F19: 0.2027068835 | G19: 0.1166604212 | H19: 1.075223997 | I19: 0.1361305072 | J19: 0.1211736041 | K19: 0.996708893 | L19: Motor & Transportation
B20: التأمين الهندسي والانشاءات والطاقة | C20: 0.05864696268 | D20: 0.06326510622 | E20: 0.2458692745 | F20: 0.1796158457 | G20: 0.09017684533 | H20: 0.3839345201 | I20: 0.06702417677 | J20: 0.06512877061 | K20: 0.2554304285 | L20: Engineering, Construction & Energy
B21: أخرى | C21: 0.08416034479 | D21: 0.09966894849 | E21: 0.3548333625 | F21: 0.1504749043 | G21: 0.1234760607 | H21: 0.6015091148 | I21: 0.09269415592 | J21: 0.1027326105 | K21: 0.3865772857 | L21: Other
B22: اعادة التأمين غير النسبية - المسؤوليات والممتلكات | C22: 0.4434141908 | D22: 0.1653010085 | E22: 1.523666189 | I22: 0.4434141908 | J22: 0.1653010085 | K22: 1.523666189 | L22: Reinsurance - Property & Liability
B23: المجموع - تأمين الممتلكات والمسؤوليات | C23: 0.08841541618 | D23: 0.08692763072 | E23: 0.5339315161 | F23: 0.1709245917 | G23: 0.1081260176 | H23: 0.753524326 | I23: 0.09918635859 | J23: 0.08969491815 | K23: 0.5625976795 | L23: Total - Property & Liability Insurance
B25: المجموع - تأمين صحي | C25: 0.04480253333 | D25: 0.06573619934 | E25: 0.8962274992 | F25: 0.07311716646 | G25: 0.1266184884 | H25: 0.972054474 | I25: 0.04728844605 | J25: 0.07108142336 | K25: 0.9028848075 | L25: Total - Health Insurance
B27: تأمين حياة جماعي | C27: 0.1198835781 | D27: 0.08032584246 | E27: 0.7673048195 | F27: 0.06111922371 | G27: 0.1663047533 | H27: 1.998699933 | I27: 0.1181023594 | J27: 0.0829319673 | K27: 0.8046298957 | L27: Group Life
B28: تأمين ائتمان حياة جماعي | C28: 0.06509686256 | D28: 0.09267720246 | E28: 0.6913535422 | F28: 0.1513067935 | G28: 0.1299220213 | H28: 0.4392514808 | I28: 0.1155153581 | J28: 0.1144592375 | K28: 0.5439156945 | L28: Group Credit Life
B29: تأمين حياة فردي | C29: 0.06333123388 | D29: 0.08874821924 | E29: 1.190257503 | F29: 0.3396226173 | G29: 0.166698135 | H29: 0.4617202236 | I29: 0.1094483305 | J29: 0.101759207 | K29: 1.068653913 | L29: Individual Life
B30: دفعات الحياة وتكوين الأموال | L30: Annuities & Fund Accumulation
B31: المجموع - تأمين الأشخاص وعمليات تكوين الأموال | C31: 0.08671426912 | D31: 0.08570973243 | E31: 0.9639369106 | F31: 0.2173463809 | G31: 0.1454921279 | H31: 0.5248705794 | I31: 0.113585263 | J31: 0.09800695676 | K31: 0.8736210721 | L31: Total - Insurance of Persons & Fund Accumulation
B33: المجموع - كافة فروع التأمين | C33: 0.06715720422 | D33: 0.07657454656 | E33: 0.7357684133 | F33: 0.1415500821 | G33: 0.1192334932 | H33: 0.80411885 | I33: 0.07575090497 | J33: 0.08150241373 | K33: 0.7436641046 | L33: TOTAL - All Types of Business Combined

Sheet 17A
B6: نسبة العمولات ونسبة المصاريف والنسبة المجمعة (الصافية) حسب فرع التأمين
B7: الشركات الوطنية والاجنبية
B8: Net Commission, Expense & Combined Ratios by Line of Business
B9: National & Foreign Companies
B10: (2025)
B11: جدول رقم 17A | L11: TABLE 17A
B13: فروع التأمين | C13: الشركات الوطنية | F13: الشركات الأجنبية | I13: الاجمالي | L13: Line of Business
C14: NATIONAL COMPANIES | F14: FOREIGN COMPANIES | I14: TOTAL
C15: نسبة العمولات | D15: نسبة المصاريف | E15: النسبة المجمعة | F15: نسبة العمولات | G15: نسبة المصاريف | H15: النسبة المجمعة | I15: نسبة العمولات | J15: نسبة المصاريف | K15: النسبة المجمعة
C16: Commission Ratio | D16: Expense Ratio | E16: Combined Ratio | F16: Commission Ratio | G16: Expense Ratio | H16: Combined Ratio | I16: Commission Ratio | J16: Expense Ratio | K16: Combined Ratio
B17: تأمين الحريق | C17: 0.01922977511 | D17: 0.3841922281 | E17: 0.9444501106 | F17: 0.2118869246 | G17: 0.2966779485 | H17: 1.032268341 | I17: 0.06559867249 | J17: 0.363129212 | K17: 0.9655862818 | L17: Fire
B18: التأمين البحري والطيران | C18: 0.05819069156 | D18: 0.3983015407 | E18: 1.113484979 | F18: 0.2157209947 | G18: 0.2709872038 | H18: 0.8963410352 | I18: 0.1136846506 | J18: 0.3534519057 | K18: 1.036990635 | L18: Marine & Aviation
B19: تأمين السيارات والمركبات الأخرى | C19: 0.1313089337 | D19: 0.1481053681 | E19: 1.055246387 | F19: 0.1816641517 | G19: 0.1438342109 | H19: 0.9938498674 | I19: 0.1453370795 | J19: 0.1469154931 | K19: 1.038142314 | L19: Motor & Transportation
B20: التأمين الهندسي والانشاءات والطاقة | C20: -0.05975438372 | D20: 0.4598026883 | E20: 0.8615289717 | F20: 0.1185702031 | G20: 0.397150576 | H20: 0.3701315133 | I20: -0.0338131208 | J20: 0.4506885502 | K20: 0.7900443217 | L20: Engineering, Construction & Energy
B21: أخرى | C21: -0.002302262724 | D21: 0.3777566096 | E21: 0.5291187399 | F21: 0.1198879423 | G21: 0.360994929 | H21: 0.644260233 | I21: 0.01649594682 | J21: 0.3751779284 | K21: 0.5468325486 | L21: Other
B22: اعادة التأمين غير النسبية - المسؤوليات والممتلكات | C22: 0.580987699 | D22: 0.2245895232 | E22: 0.7894058212 | I22: 0.580987699 | J22: 0.2245895232 | K22: 0.7894058212 | L22: Reinsurance - Property & Liability
B23: المجموع - تأمين الممتلكات والمسؤوليات | C23: 0.08377387057 | D23: 0.2389981817 | E23: 0.9517058323 | F23: 0.1799365501 | G23: 0.1935834848 | H23: 0.9437394135 | I23: 0.1081556766 | J23: 0.2274833993 | K23: 0.9496859668 | L23: Total - Property & Liability Insurance
B25: المجموع - تأمين صحي | C25: 0.05949611855 | D25: 0.1225822036 | E25: 0.9366912158 | F25: 0.0609329173 | G25: 0.1580702317 | H25: 1.016957345 | I25: 0.05999306453 | J25: 0.1348564575 | K25: 0.9644528837 | L25: Total - Health Insurance
B27: تأمين حياة جماعي | C27: 0.2243610804 | D27: 0.2414519497 | E27: 0.9025805837 | F27: -0.08759697332 | G27: 0.8771741852 | H27: 1.029610613 | I27: 0.1849449452 | J27: 0.3217759334 | K27: 0.9186309236 | L27: Group Life
B28: تأمين ائتمان حياة جماعي | C28: 0.1973408472 | D28: 0.3272969054 | E28: 0.7076702074 | F28: -0.3312562313 | G28: 0.9007976072 | H28: 0.5401296112 | I28: 0.1888382701 | J28: 0.3365217652 | K28: 0.7049752874 | L28: Group Credit Life
B29: تأمين حياة فردي | C29: 0.1101119323 | D29: 0.1092473142 | E29: 1.117495858 | F29: 0.02988594306 | G29: 0.1072974525 | H29: 1.394115565 | I29: 0.05001355977 | J29: 0.1077866464 | K29: 1.324715418 | L29: Individual Life
B30: دفعات الحياة وتكوين الأموال | F30: 0.0295111849 | G30: 0.01488051813 | H30: 1.533977947 | I30: 0.0295111849 | J30: 0.01488051813 | K30: 1.533977947 | L30: Annuities & Fund Accumulation
B31: المجموع - تأمين الأشخاص وعمليات تكوين الأموال | C31: 0.1415479471 | D31: 0.1590949683 | E31: 1.030094432 | F31: 0.02806639742 | G31: 0.1172401207 | H31: 1.389581612 | I31: 0.0643777635 | J31: 0.1306326651 | K31: 1.274554362 | L31: Total - Insurance of Persons & Fund Accumulation
B33: المجموع - كافة فروع التأمين | C33: 0.07513157837 | D33: 0.1670880752 | E33: 0.9500023439 | F33: 0.07499892431 | G33: 0.1528537239 | H33: 1.115245141 | I33: 0.07508194704 | J33: 0.1617624201 | K33: 1.011826457 | L33: TOTAL - All Types of Business Combined

Sheet 17B
B6: نسبة العمولات ونسبة المصاريف والنسبة المجمعة (الصافية) حسب فرع التأمين
B7: شركات التأمين التقليدي الوطنية وشركات التأمين التكافلي الوطنية
B8: Net Commission, Expense & Combined Ratios by Line of Business
B9: Traditional & Takaful National Companies
B10: (2025)
B11: جدول رقم 17B | L11: TABLE 17B
B13: فروع التأمين | C13: شركات التأمين التقليدي الوطنية | F13: شركات التأمين التكافلي الوطنية | I13: الشركات الوطنية | L13: Line of Business
C14: TRADITIONAL COMPANIES | F14: TAKAFUL OPERATORS | I14: NATIONAL COMPANIES
C15: نسبة العمولات | D15: نسبة المصاريف | E15: النسبة المجمعة | F15: نسبة العمولات | G15: نسبة المصاريف | H15: النسبة المجمعة | I15: نسبة العمولات | J15: نسبة المصاريف | K15: النسبة المجمعة
C16: Commission Ratio | D16: Expense Ratio | E16: Combined Ratio | F16: Commission Ratio | G16: Expense Ratio | H16: Combined Ratio | I16: Commission Ratio | J16: Expense Ratio | K16: Combined Ratio
B17: تأمين الحريق | C17: 0.01607416575 | D17: 0.3616501872 | E17: 0.9406202977 | F17: 0.04783167928 | G17: 0.5885094353 | H17: 0.9791628812 | I17: 0.01922977511 | J17: 0.3841922281 | K17: 0.9444501106 | L17: Fire
B18: التأمين البحري والطيران | C18: 0.05248515224 | D18: 0.3981311617 | E18: 1.147585738 | F18: 0.1063462614 | G18: 0.3997395636 | H18: 0.8256696827 | I18: 0.05819069156 | J18: 0.3983015407 | K18: 1.113484979 | L18: Marine & Aviation
B19: تأمين السيارات والمركبات الأخرى | C19: 0.1098419681 | D19: 0.1526872148 | E19: 1.036859566 | F19: 0.2106938194 | G19: 0.1311616891 | H19: 1.12324089 | I19: 0.1313089337 | J19: 0.1481053681 | K19: 1.055246387 | L19: Motor & Transportation
B20: التأمين الهندسي والانشاءات والطاقة | C20: -0.1035247348 | D20: 0.4705417474 | E20: 0.8242058702 | F20: 0.272125682 | G20: 0.3783758883 | H20: 1.144524037 | I20: -0.05975438372 | J20: 0.4598026883 | K20: 0.8615289717 | L20: Engineering, Construction & Energy
B21: أخرى | C21: -0.03768143755 | D21: 0.3862626894 | E21: 0.4984687796 | F21: 0.1664845927 | G21: 0.337175831 | H21: 0.6753434739 | I21: -0.002302262724 | J21: 0.3777566096 | K21: 0.5291187399 | L21: Other
B22: اعادة التأمين غير النسبية - المسؤوليات والممتلكات | C22: 0.580987699 | D22: 0.2245895232 | E22: 0.7894058212 | G22: - | H22: - | I22: 0.580987699 | J22: 0.2245895232 | K22: 0.7894058212 | L22: Reinsurance - Property & Liability
B23: المجموع - تأمين الممتلكات والمسؤوليات | C23: 0.05886833347 | D23: 0.2467459978 | E23: 0.9311145043 | F23: 0.1943528525 | G23: 0.2045983772 | H23: 1.043130003 | I23: 0.08377387057 | J23: 0.2389981817 | K23: 0.9517058323 | L23: Total - Property & Liability Insurance
B25: المجموع - تأمين صحي | C25: 0.05274299283 | D25: 0.1126578552 | E25: 0.9309381041 | F25: 0.1350211795 | G25: 0.2335733277 | H25: 1.001032401 | I25: 0.05949611855 | J25: 0.1225822036 | K25: 0.9366912158 | L25: Total - Health Insurance
B27: تأمين حياة جماعي | C27: 0.2323862141 | D27: 0.2332132534 | E27: 0.9006482966 | F27: -0.05833787918 | G27: 0.5316740164 | H27: 0.9706486765 | I27: 0.2243610804 | J27: 0.2414519497 | K27: 0.9025805837 | L27: Group Life
B28: تأمين ائتمان حياة جماعي | C28: 0.03142472721 | D28: 0.2539845887 | E28: 0.596668976 | F28: 0.3241438378 | G28: 0.3833265486 | H28: 0.7925039663 | I28: 0.1973408472 | J28: 0.3272969054 | K28: 0.7076702074 | L28: Group Credit Life
B29: تأمين حياة فردي | C29: 0.06557976037 | D29: 0.09294714442 | E29: 1.228648569 | F29: 0.3705627828 | G29: 0.2045804831 | H29: 0.4674081347 | I29: 0.1101119323 | J29: 0.1092473142 | K29: 1.117495858 | L29: Individual Life
B30: دفعات الحياة وتكوين الأموال | C30: - | D30: - | E30: - | F30: - | G30: - | H30: - | I30: - | J30: - | K30: - | L30: Annuities & Fund Accumulation
B31: المجموع - تأمين الأشخاص وعمليات تكوين الأموال | C31: 0.1002313346 | D31: 0.1335082505 | E31: 1.118425109 | F31: 0.3401143501 | G31: 0.2820639686 | H31: 0.6055798412 | I31: 0.1415479471 | J31: 0.1590949683 | K31: 1.030094432 | L31: Total - Insurance of Persons & Fund Accumulation
B33: المجموع - كافة فروع التأمين | C33: 0.058615502 | D33: 0.1588586925 | E33: 0.9461532311 | F33: 0.1897501523 | G33: 0.2241984984 | H33: 0.976714489 | I33: 0.07513157837 | J33: 0.1670880752 | K33: 0.9500023439 | L33: TOTAL - All Types of Business Combined

Sheet 18
B6: تحليل الربحية للتأمين على المركبات
B7: Motor Profitability Analysis
B8: (2025)
B11: جدول رقم 18 | G11: TABLE 18
B12: بالألف درهم | G12: AED in 000's
B13: البيــــــــان | C13: تأمين المركبات الشامل - أفراد | D13: تأمين المركبات المسؤولية المدنية - أفراد | E13: تأمين المركبات - تجاري | F13: الاجمالي | G13: DESCRIPTION
C14: Personal Motor - Comprehensive | D14: Personal Motor - Third Party Liability | E14: Commercial Motor | F14: TOTAL
B15: Gross of Reinsurance (إجمالي من إعادة التأمين)
B16: الأقساط المكتسبة | C16: 5848973.601 | D16: 1696033.816 | E16: 1609975.236 | F16: 9154982.653 | G16: Earned Premium
B17: المطالبات المتكبدة | C17: 3634016.113 | D17: 1567279.207 | E17: 1395000.046 | F17: 6596295.366 | G17: Losses Incurred
B18: العمولات | C18: 842372.8985 | D18: 316909.0186 | E18: 186802.1314 | F18: 1346084.048 | G18: Commission
B19: المصاريف | C19: 725142.0882 | D19: 229286.7143 | E19: 189680.227 | F19: 1144109.029 | G19: Expenses
B20: الأرباح / (الخسائر) | C20: =C16-C17-C18-C19 -> 647442.5009 | D20: -417441.1236 | E20: -161507.1689 | F20: 68494.20842 | G20: Profit / (Loss)
B21: نسبة الخسارة | C21: =C17/C16 -> 0.6213083459 | D21: 0.9240848808 | E21: 0.8664729838 | F21: 0.7205142398 | G21: Loss Ratio
B22: نسبة العمولات | C22: =C18/C16 -> 0.1440206361 | D22: 0.1868530071 | E22: 0.1160279533 | F22: 0.1470329436 | G22: Commission Ratio
B23: نسبة المصاريف | C23: =C19/C16 -> 0.1239776647 | D23: 0.1351899426 | E23: 0.1178156178 | F23: 0.1249711849 | G23: Expense Ratio
B24: النسبة المجمعة | C24: =SUM(C21:C23) -> 0.8893066468 | D24: =SUM(D21:D23) -> 1.246127831 | E24: =SUM(E21:E23) -> 1.100316555 | F24: =SUM(F21:F23) -> 0.9925183683 | G24: Combined Ratio
B25: Net of Reinsurance (صافي من إعادة التأمين)
B26: الأقساط المكتسبة | C26: 4801913.53 | D26: 1561114.347 | E26: 1424503.617 | F26: 7787531.494 | G26: Earned Premium
B27: المطالبات المتكبدة | C27: 3184088.659 | D27: 1427911.534 | E27: 1196639.659 | F27: 5808639.853 | G27: Losses Incurred
B28: العمولات | C28: 655093.3419 | D28: 297426.9603 | E28: 179296.7819 | F28: 1131817.084 | G28: Commission
B29: المصاريف | C29: 725142.0882 | D29: 229286.7143 | E29: 189680.227 | F29: 1144109.029 | G29: Expenses
B30: الأرباح / (الخسائر) | C30: =C26-C27-C28-C29 -> 237589.4411 | D30: -393510.8618 | E30: -141113.0514 | F30: -297034.472 | G30: Profit / (Loss)
B31: نسبة الخسارة | C31: =C27/C26 -> 0.6630874628 | D31: 0.9146745316 | E31: 0.840039748 | F31: 0.7458897415 | G31: Loss Ratio
B32: نسبة العمولات | C32: =C28/C26 -> 0.1364233941 | D32: 0.1905222131 | E32: 0.1258661472 | F32: 0.1453370795 | G32: Commission Ratio
B33: نسبة المصاريف | C33: =C29/C26 -> 0.1510110675 | D33: 0.1468737474 | E33: 0.1331553144 | F33: 0.1469154931 | G33: Expense Ratio
B34: النسبة المجمعة | C34: =SUM(C31:C33) -> 0.9505219243 | D34: 1.252070492 | E34: 1.09906121 | F34: 1.038142314 | G34: Combined Ratio

Sheet 19
B6: تحليل الربحية للتأمين الصحي
B7: Health Profitability Analysis
B8: (2025)
B11: جدول رقم 19 | G11: TABLE 19
B12: بالألف درهم | G12: AED in 000's
B13: البيــــــــان | C13: التأمين الصحي الفردي | D13: التأمين الصحي الجماعي | E13: تأمين الحوادث الشخصية | F13: الاجمالي | G13: DESCRIPTION
C14: Health Insurance, Individual | D14: Health Insurance, Group | E14: Personal Accident Insurance | F14: TOTAL
B15: Gross of Reinsurance (إجمالي من إعادة التأمين)
B16: الأقساط المكتسبة | C16: 1482263.732 | D16: 32783228.39 | E16: 529534.2109 | F16: 34795026.33 | G16: Earned Premium
B17: المطالبات المتكبدة | C17: 985584.8475 | D17: 26317050.87 | E17: 128262.1503 | F17: 27430897.87 | G17: Losses Incurred
B18: العمولات | C18: 186527.977 | D18: 1824621.003 | E18: 68928.09148 | F18: 2080077.071 | G18: Commission
B19: المصاريف | C19: 192796.9572 | D19: 2583396.433 | E19: 104745.2149 | F19: 2880938.605 | G19: Expenses
B20: الأرباح / (الخسائر) | C20: =C16-C17-C18-C19 -> 117353.9505 | D20: =D16-D17-D18-D19 -> 2058160.084 | E20: 227598.7543 | F20: =F16-F17-F18-F19 -> 2403112.789 | G20: Profit / (Loss)
B21: نسبة الخسارة | C21: =C17/C16 -> 0.6649186822 | D21: 0.8027595866 | E21: 0.2422169288 | F21: =F17/F16 -> 0.7883568647 | G21: Loss Ratio
B22: نسبة العمولات | C22: =C18/C16 -> 0.1258399386 | D22: =D18/D16 -> 0.05565714825 | E22: 0.1301674001 | F22: =F18/F16 -> 0.0597808736 | G22: Commission Ratio
B23: نسبة المصاريف | C23: =C19/C16 -> 0.1300692671 | D23: 0.07880238037 | E23: 0.1978063225 | F23: =F19/F16 -> 0.08279742564 | G23: Expense Ratio
B24: النسبة المجمعة | C24: =SUM(C21:C23) -> 0.9208278878 | D24: =SUM(D21:D23) -> 0.9372191152 | E24: =SUM(E21:E23) -> 0.5701906514 | F24: =SUM(F21:F23) -> 0.930935164 | G24: Combined Ratio
B25: Net of Reinsurance (صافي من إعادة التأمين)
B26: الأقساط المكتسبة | C26: 825689.7446 | D26: 20197411.39 | E26: 339899.626 | F26: 21363000.76 | G26: Earned Premium
B27: المطالبات المتكبدة | C27: 443717.5573 | D27: 15896178.8 | E27: 101140.8479 | F27: 16441037.2 | G27: Losses Incurred
B28: العمولات | C28: 161686.5245 | D28: 1066028.411 | E28: 53916.94781 | F28: 1281631.883 | G28: Commission
B29: المصاريف | C29: 192796.9572 | D29: 2583396.433 | E29: 104745.2149 | F29: 2880938.605 | G29: Expenses
B30: الأرباح / (الخسائر) | C30: =C26-C27-C28-C29 -> 27488.70557 | D30: =D26-D27-D28-D29 -> 651807.7513 | E30: =E26-E27-E28-E29 -> 80096.61546 | F30: =F26-F27-F28-F29 -> 759393.0723 | G30: Profit / (Loss)
B31: نسبة الخسارة | C31: =C27/C26 -> 0.5373901762 | D31: 0.7870404028 | E31: 0.2975609271 | F31: =F27/F26 -> 0.7696033617 | G31: Loss Ratio
B32: نسبة العمولات | C32: =C28/C26 -> 0.19581995 | D32: 0.05278044747 | E32: 0.1586260875 | F32: =F28/F26 -> 0.05999306453 | G32: Commission Ratio
B33: نسبة المصاريف | C33: =C29/C26 -> 0.2334980645 | D33: 0.1279073037 | E33: 0.3081651372 | F33: =F29/F26 -> 0.1348564575 | G33: Expense Ratio
B34: النسبة المجمعة | C34: =SUM(C31:C33) -> 0.9667081906 | D34: 0.9677281539 | E34: 0.7643521518 | F34: =SUM(F31:F33) -> 0.9644528837 | G34: Combined Ratio

Sheet 20A
B6: الموجودات المستثمرة حسب الفئة
B7: الشركات الوطنية والاجنبية
B8: Invested Assets by Class
B9: National & Foreign Companies
B11: جدول رقم 20A | I11: TABLE 20A
B12: بالألف درهم | I12: AED in 000's
B13: فروع التأمين | C13: الشركات الوطنية | E13: الشركات الأجنبية | G13: الاجمالي | I13: Asset Class
C14: NATIONAL COMPANIES | E14: FOREIGN COMPANIES | G14: TOTAL
C15: 2024 | D15: 2025 | E15: 2024 | F15: 2025 | G15: 2024 | H15: 2025
B16: استثمارات عقارية | C16: 3984316.042 | D16: 4072133.251 | E16: 77480.84465 | F16: 90499.64176 | G16: =E16+C16 -> 4061796.887 | H16: =F16+D16 -> 4162632.893 | I16: Real estate investments
B17: الأوراق المالية وسندات الدين | C17: 15539267.48 | D17: 19691325.96 | E17: 20768329.48 | F17: 24018169.12 | G17: =E17+C17 -> 36307596.96 | H17: =F17+D17 -> 43709495.08 | I17: Equity and debt securities
B18: النقد والودائع | C18: 18338579.17 | D18: 19846721.11 | E18: 6687110.699 | F18: 7170463.277 | G18: =E18+C18 -> 25025689.86 | H18: 27017184.39 | I18: Cash and deposits
B19: قروض مضمونة بوثائق التأمين على الحياة | C19: 40126.112 | D19: 40316.139 | E19: 68286.26168 | F19: 65167.79583 | G19: 108412.3737 | H19: 105483.9348 | I19: Loans secured by Life policies
B20: قروض وودائع وأدوات مالية أخرى مصنفة A | C20: 3672826.548 | D20: 4221376.69 | E20: 1265937.611 | F20: 1580525.416 | G20: 4938764.158 | H20: 5801902.106 | I20: Loans, Deposits and Other Instruments that are A Rated
B21: الاستثمار في الشركات الزميلة | C21: 476570.6264 | D21: 291245.6338 | E21: 48803.36428 | F21: 52836.17241 | G21: =E21+C21 -> 525373.9907 | H21: 344081.8062 | I21: Investment in associates
B22: موجودات مستثمرة أخرى | C22: 6502206.152 | D22: 7162278.436 | E22: 7428674.625 | F22: 8080476.727 | G22: =E22+C22 -> 13930880.78 | H22: =F22+D22 -> 15242755.16 | I22: Other invested assets
B23: إجمالي الموجودات المستثمرة | C23: =SUM(C16,C17:C22) -> 48553892.12 | D23: =SUM(D16,D17:D22) -> 55325397.23 | E23: =SUM(E16,E17:E22) -> 36344622.88 | F23: 41058138.15 | G23: =SUM(G16,G17:G22) -> 84898515.01 | H23: 96383535.38 | I23: Total Invested Assets
B25: Percent of Total (النسبة من الإجمالي)
B27: فروع التأمين | C27: الشركات الوطنية | E27: الشركات الأجنبية | G27: الاجمالي | I27: Asset Class
C28: NATIONAL COMPANIES | E28: FOREIGN COMPANIES | G28: TOTAL
C29: 2024 | D29: 2025 | E29: 2024 | F29: 2025 | G29: 2024 | H29: 2025
B30: استثمارات عقارية | C30: =C16/C$23 -> 0.08205966335 | D30: 0.07360332605 | E30: 0.002131837903 | F30: 0.002204182796 | G30: 0.04784296741 | H30: 0.04318821546 | I30: Real estate investments
B31: الأوراق المالية وسندات الدين | C31: 0.3200416444 | D31: 0.3559183838 | E31: 0.5714278435 | F31: 0.5849794999 | G31: 0.4276587989 | H31: 0.4534954535 | I31: Equity and debt securities
B32: النقد والودائع | C32: 0.3776953476 | D32: 0.3587271327 | E32: 0.1839917481 | F32: 0.1746417056 | G32: 0.2947718209 | H32: 0.2803091242 | I32: Cash and deposits
B33: قروض مضمونة بوثائق التأمين على الحياة | C33: 0.0008264242112 | D33: 0.0007287094358 | E33: 0.001878854594 | F33: 0.001587207768 | G33: 0.00127696431 | H33: 0.00109441861 | I33: Loans secured by Life policies
B34: قروض وودائع وأدوات مالية أخرى مصنفة A | C34: 0.07564432813 | D34: 0.07630088353 | E34: 0.03483149666 | F34: 0.03849481461 | G34: 0.05817256236 | H34: 0.06019598766 | I34: Loans, Deposits and Other Instruments that are A Rated
B35: الاستثمار في الشركات الزميلة | C35: 0.009815291949 | D35: 0.005264230324 | E35: 0.001342794626 | F35: 0.001286862356 | G35: 0.006188258896 | H35: 0.003569923066 | I35: Investment in associates
B36: موجودات مستثمرة أخرى | C36: 0.1339173003 | D36: 0.1294573342 | E36: 0.2043954246 | F36: 0.196805727 | G36: 0.1640886272 | H36: 0.1581468775 | I36: Other invested assets
B37: إجمالي الموجودات المستثمرة | C37: =C23/C$23 -> 1 | D37: 1 | E37: 1 | F37: 1 | G37: 1 | H37: 1 | I37: Total Invested Assets

Sheet 20B
B6: الموجودات المستثمرة حسب الفئة
B7: شركات التأمين التقليدي الوطنية وشركات التأمين التكافلي الوطنية
B8: Invested Assets by Class
B9: Traditional & Takaful National Companies
B11: جدول رقم 20B | I11: TABLE 20B
B12: بالألف درهم | I12: AED in 000's
B13: فروع التأمين | C13: شركات التأمين التقليدي الوطنية | E13: شركات التأمين التكافلي الوطنية | G13: الشركات الوطنية | I13: Asset Class
C14: TRADITIONAL COMPANIES | E14: TAKAFUL OPERATORS | G14: NATIONAL COMPANIES
C15: 2024 | D15: 2025 | E15: 2024 | F15: 2025 | G15: 2024 | H15: 2025
B16: استثمارات عقارية | C16: 3390071.277 | D16: 3556118.125 | E16: 594244.7649 | F16: 516015.126 | G16: =E16+C16 -> 3984316.042 | H16: =F16+D16 -> 4072133.251 | I16: Real estate investments
B17: الأوراق المالية وسندات الدين | C17: 14243166.46 | D17: 18272336.77 | E17: 1296101.02 | F17: 1418989.196 | G17: =E17+C17 -> 15539267.48 | H17: =F17+D17 -> 19691325.96 | I17: Equity and debt securities
B18: النقد والودائع | C18: 16031217.05 | D18: 17197984.46 | E18: 2307362.119 | F18: 2648736.649 | G18: =E18+C18 -> 18338579.17 | H18: 19846721.11 | I18: Cash and deposits
B19: قروض مضمونة بوثائق التأمين على الحياة | C19: 40126.112 | D19: 40316.139 | E19: 0 | F19: 0 | G19: 40126.112 | H19: 40316.139 | I19: Loans secured by Life policies
B20: قروض وودائع وأدوات مالية أخرى مصنفة A | C20: 3450503.81 | D20: 3988330.77 | E20: 222322.7373 | F20: 233045.9194 | G20: 3672826.548 | H20: 4221376.69 | I20: Loans, Deposits and Other Instruments that are A Rated
B21: الاستثمار في الشركات الزميلة | C21: 291043.9102 | D21: 252014.3928 | E21: 185526.7162 | F21: 39231.241 | G21: =E21+C21 -> 476570.6264 | H21: 291245.6338 | I21: Investment in associates
B22: موجودات مستثمرة أخرى | C22: 3851739.808 | D22: 4558144.82 | E22: 2650466.344 | F22: 2604133.616 | G22: =E22+C22 -> 6502206.152 | H22: =F22+D22 -> 7162278.436 | I22: Other invested assets
B23: إجمالي الموجودات المستثمرة | C23: =SUM(C16,C17:C22) -> 41297868.42 | D23: =SUM(D16,D17:D22) -> 47865245.48 | E23: =SUM(E16,E17:E22) -> 7256023.701 | F23: =SUM(F16,F17:F22) -> 7460151.748 | G23: 48553892.12 | H23: 55325397.23 | I23: Total Invested Assets
B25: Percent of Total (النسبة من الإجمالي)
B27: فروع التأمين | C27: شركات التأمين التقليدي الوطنية | E27: شركات التأمين التكافلي الوطنية | G27: الشركات الوطنية | I27: Asset Class
C28: TRADITIONAL COMPANIES | E28: TAKAFUL OPERATORS | G28: NATIONAL COMPANIES
C29: 2024 | D29: 2025 | E29: 2024 | F29: 2025 | G29: 2024 | H29: 2025
B30: استثمارات عقارية | C30: =C16/C$23 -> 0.08208828703 | D30: 0.07429436723 | E30: 0.0818967508 | F30: 0.0691695214 | G30: 0.08205966335 | H30: 0.07360332605 | I30: Real estate investments
B31: الأوراق المالية وسندات الدين | C31: =C17/C$23 -> 0.344888659 | D31: 0.3817453892 | E31: 0.1786241437 | F31: 0.1902091598 | G31: 0.3200416444 | H31: 0.3559183838 | I31: Equity and debt securities
B32: النقد والودائع | C32: =C18/C$23 -> 0.3881850967 | D32: 0.3593000369 | E32: 0.3179926381 | F32: 0.3550513098 | G32: 0.3776953476 | H32: 0.3587271327 | I32: Cash and deposits
B33: قروض مضمونة بوثائق التأمين على الحياة | C33: =C19/C$23 -> 0.0009716267094 | D33: 0.0008422841792 | E33: 0 | F33: 0 | G33: 0.0008264242112 | H33: 0.0007287094358 | I33: Loans secured by Life policies
B34: قروض وودائع وأدوات مالية أخرى مصنفة A | C34: =C20/C$23 -> 0.08355162003 | D34: 0.08332414742 | E34: 0.03063974795 | F34: 0.03123876393 | G34: 0.07564432813 | H34: 0.07630088353 | I34: Loans, Deposits and Other Instruments that are A Rated
B35: الاستثمار في الشركات الزميلة | C35: =C21/C$23 -> 0.007047431776 | D35: 0.005265080963 | E35: 0.02556864805 | F35: 0.005258772519 | G35: 0.009815291949 | H35: 0.005264230324 | I35: Investment in associates
B36: موجودات مستثمرة أخرى | C36: =C22/C$23 -> 0.09326727879 | D36: 0.09522869411 | E36: 0.3652780714 | F36: 0.3490724725 | G36: 0.1339173003 | H36: 0.1294573342 | I36: Other invested assets
B37: إجمالي الموجودات المستثمرة | C37: =C30+C31+C32+C33+C34+C35+C36 -> 1 | D37: =D30+D31+D32+D33+D34+D35+D36 -> 1 | E37: 1 | F37: 1 | G37: 1 | H37: 1 | I37: Total Invested Assets

Sheet 21A
B6: قائمة المركز المالي
B7: الشركات الوطنية والاجنبية
B8: Statement of Financial Position
B9: National & Foreign Companies
B11: جدول رقم 21A | I11: TABLE 21A
B12: بالألف درهم | I12: AED in 000's
B13: البيــــــــان | C13: الشركات الوطنية | E13: الشركات الأجنبية | G13: الاجمالي | I13: DESCRIPTION
C14: NATIONAL COMPANIES | E14: FOREIGN COMPANIES | G14: TOTAL
C15: 2024 | D15: 2025 | E15: 2024 | F15: 2025 | G15: 2024 | H15: 2025
B16: الموجودات | I16: Assets
B17: إجمالي الموجودات المستثمرة | C17: 48553892.13 | D17: 55325397.23 | E17: 36344622.89 | F17: 41058138.16 | G17: =C17+E17 -> 84898515.02 | H17: =D17+F17 -> 96383535.39 | I17: Total Invested Assets
B18: مستردات إعادة التأمين | C18: 30644594.83 | D18: 27863437.69 | E18: 4890043.865 | F18: 4783633.752 | G18: =C18+E18 -> 35534638.7 | H18: =D18+F18 -> 32647071.44 | I18: Reinsurance recoverable
B19: ذمم إعادة التأمين المدينة | C19: 2374152.828 | D19: 1430686.575 | E19: 360576.2605 | F19: 463880.725 | G19: 2734729.089 | H19: 1894567.3 | I19: Reinsurance receivables
B20: ذمم تأمين مدينة | C20: 10008811.27 | D20: 10113051.89 | E20: 3131237.443 | F20: 3714979.414 | G20: 13140048.71 | H20: 13828031.3 | I20: Insurance receivables
B21: ذمم مدينة ودفعات مقدمة أخرى | C21: 5699916.074 | D21: 5950891.814 | E21: 1954107.401 | F21: 1634219.187 | G21: 7654023.475 | H21: 7585111.001 | I21: Other receivables and prepayments
B22: تكاليف الاستحواذ المؤجلة | C22: 1473084.89 | D22: 1856461.984 | E22: 4527817.922 | F22: 4715804.304 | G22: 6000902.812 | H22: 6572266.288 | I22: Deferred policy acquisition costs
B23: الممتلكات والآلات والمعدات | C23: 1440417.324 | D23: 1416874.411 | E23: 152347.7191 | F23: 152047.2688 | G23: 1592765.043 | H23: 1568921.679 | I23: Property, machinery and equipment
B24: ودائع قانونية إلزامية | C24: 901906.288 | D24: 1074870.509 | E24: 389813.3618 | F24: 378057.6952 | G24: 1291719.65 | H24: 1452928.204 | I24: Statutory deposits
B25: الموجودات غير الملموسة | C25: 289715.7695 | D25: 340433.0599 | E25: 115933.8095 | F25: 122681.8257 | G25: 405649.579 | H25: 463114.8857 | I25: Intangible assets
B26: أخرى | C26: 2197378.727 | D26: 2517983.176 | E26: 0 | F26: 0 | G26: 2197378.727 | H26: 2517983.176 | I26: Others
B27: مجموع الموجودات | C27: =SUM(C17:C26) -> 103583870.1 | D27: =SUM(D17:D26) -> 107890088.3 | E27: =SUM(E17:E26) -> 51866500.67 | F27: 57023442.33 | G27: 155450370.8 | H27: 164913530.7 | I27: Total Assets
B29: المطلوبات | I29: Liabilities
B30: إجمالي المخصصات الفنية | C30: 54033474.01 | D30: 54451970.36 | E30: 38199075.64 | F30: 41806376.17 | G30: =C30+E30 -> 92232549.66 | H30: =D30+F30 -> 96258346.53 | I30: Total Technical Provisions
B31: أقساط تأمين مقبوضة مقدما | C31: 303167.8578 | D31: 328855.9101 | E31: 14168.6339 | F31: 17412.84562 | G31: 317336.4917 | H31: 346268.7557 | I31: Premiums collected in advance
B32: ذمم التأمين الدائنة | C32: 5812046.103 | D32: 5921320.466 | E32: 1154883.758 | F32: 1378943.053 | G32: 6966929.861 | H32: 7300263.519 | I32: Insurance payable
B33: ذمم اعادة التأمين الدائنة | C33: 6988171.941 | D33: 7565033.971 | E33: 716633.194 | F33: 942955.8857 | G33: 7704805.135 | H33: 8507989.856 | I33: Reinsurance payables
B34: عمولات اعادة التامين غير المكتسبة | C34: 545281.8979 | D34: 575462.1945 | E34: 110839.7609 | F34: 118285.6349 | G34: 656121.6588 | H34: 693747.8294 | I34: Unearned reinsurance commissions
B35: المصاريف المستحقة والمطلوبات الأخرى | C35: 9235766.75 | D35: 10003453.82 | E35: 5015049.931 | F35: 5433735.073 | G35: 14250816.68 | H35: 15437188.89 | I35: Accrued expenses and other liabilities
B36: ذمم الوكالة/المضاربة دائنة | C36: 354970.6184 | D36: 561758.7833 | E36: 0 | F36: 0 | G36: 354970.6184 | H36: 561758.7833 | I36: Wakala / Mudaraba Payable
B37: القروض | C37: 886167.3871 | D37: 650863.9126 | E37: 0 | F37: 18364.798 | G37: 886167.3871 | H37: 669228.7106 | I37: Borrowings
B38: تعويضات مكافآت نهاية الخدمة للموظفين | C38: 395799.3523 | D38: 412632.0291 | E38: 72220.60969 | F38: 71038.21767 | G38: 468019.962 | H38: 483670.2467 | I38: End of service indemnity
B39: أخرى | C39: 20963.20655 | D39: 20983.31219 | E39: 0 | F39: 0 | G39: 20963.20655 | H39: 20983.31219 | I39: Others
B40: مجموع المطلوبات | C40: =SUM(C30:C39) -> 78575809.13 | D40: =SUM(D30:D39) -> 80492334.76 | E40: =SUM(E30:E39) -> 45282871.53 | F40: 49787111.68 | G40: 123858680.7 | H40: 130279446.4 | I40: Total Liabilities
B42: حقوق المساهمين العائدة لمساهمي الشركة الأُم | I42: Equity Attributable to Equityholders of Parent
B43: الرصيد الصافي في حساب المشتركين | C43: 3983.293 | D43: 27730.475 | E43: 39042.28843 | F43: 39330.97517 | G43: =C43+E43 -> 43025.58143 | H43: =D43+F43 -> 67061.45017 | I43: Net balance in participants' funds
B44: رأس المال المصدر والمدفوع | C44: 6866926.325 | D44: 5991701.336 | E44: 100000 | F44: 100000 | G44: 6966926.325 | H44: 6091701.336 | I44: Issued and paid up share capital
B45: علاوة إصدار | C45: 110925.311 | D45: 110925.311 | E45: 0 | F45: 0 | G45: 110925.311 | H45: 110925.311 | I45: Share premium
B46: أسهم الخزينة | C46: -40633.285 | D46: -11656.553 | E46: 0 | F46: 0 | G46: -40633.285 | H46: -11656.553 | I46: Treasury shares
B47: رأس المال الإضافي المدفوع | C47: 15000 | D47: 15000 | E47: 38000 | F47: 38000 | G47: 53000 | H47: 53000 | I47: Additional paid in capital
B48: الأرباح/الخسائر المدورة | C48: 6526713.567 | D48: 8401717.604 | E48: -74113.62929 | F48: -442284.9376 | G48: 6452599.937 | H48: 7959432.666 | I48: Retained earnings/loss
B49: حساب الشركة الأم | C49: 0.5935079346 | D49: 0 | E49: 6482511.994 | F49: 7455273.588 | G49: 6482512.588 | H49: 7455273.588 | I49: Head Office Account
B50: حقوق الأقلية | C50: 492766.6199 | D50: 478510.812 | E50: 0 | F50: 0 | G50: 492766.6199 | H50: 478510.812 | I50: Minority interest
B51: الإحتياطيات | C51: 11032378.58 | D51: 12383824.58 | E51: -1811.508244 | F51: 46011.02692 | G51: 11030567.07 | H51: 12429835.61 | I51: Reserves
B52: مجموع حقوق المساهمين | C52: =SUM(C43:C51) -> 25008061 | D52: =SUM(D43:D51) -> 27397753.57 | E52: =SUM(E43:E51) -> 6583629.145 | F52: 7236330.653 | G52: 31591690.15 | H52: 34634084.22 | I52: Total Equity
B54: مجموع حقوق المساهمين والمطلوبات | C54: =SUM(C40+C52) -> 103583870.1 | D54: =SUM(D40+D52) -> 107890088.3 | E54: =SUM(E40+E52) -> 51866500.68 | F54: 57023442.33 | G54: 155450370.8 | H54: 164913530.7 | I54: Total Equity and Liabilities

Sheet 21B
B6: قائمة المركز المالي
B7: شركات التأمين التقليدي الوطنية وشركات التأمين التكافلي الوطنية
B8: Statement of Financial Position
B9: Traditional & Takaful National Companies
B11: جدول رقم 21B | I11: TABLE 21B
B12: بالألف درهم | I12: AED in 000's
B13: البيــــــــان | C13: شركات التأمين التقليدي الوطنية | E13: شركات التأمين التكافلي الوطنية | G13: الشركات الوطنية | I13: DESCRIPTION
C14: TRADITIONAL COMPANIES | E14: TAKAFUL OPERATORS | G14: NATIONAL COMPANIES
C15: 2024 | D15: 2025 | E15: 2024 | F15: 2025 | G15: 2024 | H15: 2025
B16: الموجودات | I16: Assets
B17: إجمالي الموجودات المستثمرة | C17: 41297868.42 | D17: 47865245.48 | E17: 7256023.704 | F17: 7460151.751 | G17: =E17+C17 -> 48553892.13 | H17: =F17+D17 -> 55325397.23 | I17: Total Invested Assets
B18: مستردات إعادة التأمين | C18: 27431806.41 | D18: 24914488.5 | E18: 3212788.424 | F18: 2948949.19 | G18: =E18+C18 -> 30644594.83 | H18: 27863437.69 | I18: Reinsurance recoverable
B19: ذمم إعادة التأمين المدينة | C19: 2068566.539 | D19: 1159070.941 | E19: 305586.2895 | F19: 271615.6337 | G19: 2374152.828 | H19: 1430686.575 | I19: Reinsurance receivables
B20: ذمم تأمين مدينة | C20: 9140375.48 | D20: 9284914.463 | E20: 868435.7877 | F20: 828137.4256 | G20: 10008811.27 | H20: 10113051.89 | I20: Insurance receivables
B21: ذمم مدينة ودفعات مقدمة أخرى | C21: 4106937.539 | D21: 3157866.725 | E21: 1592978.535 | F21: 2793025.089 | G21: 5699916.074 | H21: 5950891.814 | I21: Other receivables and prepayments
B22: تكاليف الاستحواذ المؤجلة | C22: 1163756.722 | D22: 1465142.128 | E22: 309328.1682 | F22: 391319.8561 | G22: 1473084.89 | H22: 1856461.984 | I22: Deferred policy acquisition costs
B23: الممتلكات والآلات والمعدات | C23: 1328810.022 | D23: 1317324.248 | E23: 111607.3027 | F23: 99550.163 | G23: 1440417.324 | H23: 1416874.411 | I23: Property, machinery and equipment
B24: ودائع قانونية إلزامية | C24: 547065.592 | D24: 704642.242 | E24: 354840.696 | F24: 370228.267 | G24: 901906.288 | H24: 1074870.509 | I24: Statutory deposits
B25: الموجودات غير الملموسة | C25: 221882.1695 | D25: 272806.0569 | E25: 67833.6 | F25: 67627.003 | G25: 289715.7695 | H25: 340433.0599 | I25: Intangible assets
B26: أخرى | C26: 0 | D26: 0 | E26: 2197378.727 | F26: 2517983.176 | G26: =E26+C26 -> 2197378.727 | H26: =F26+D26 -> 2517983.176 | I26: Others
B27: مجموع الموجودات | C27: =SUM(C17:C26) -> 87307068.9 | D27: =SUM(D17:D26) -> 90141500.78 | E27: =SUM(E17:E26) -> 16276801.23 | F27: 17748587.55 | G27: 103583870.1 | H27: 107890088.3 | I27: Total Assets
B29: المطلوبات | I29: Liabilities
B30: إجمالي المخصصات الفنية | C30: 46198860.22 | D30: 46353060.83 | E30: 7834613.789 | F30: 8098909.535 | G30: =E30+C30 -> 54033474.01 | H30: 54451970.36 | I30: Total Technical Provisions
B31: أقساط تأمين مقبوضة مقدما | C31: 275072.583 | D31: 298617.8877 | E31: 28095.27486 | F31: 30238.02235 | G31: 303167.8578 | H31: 328855.9101 | I31: Premiums collected in advance
B32: ذمم التأمين الدائنة | C32: 5329149.961 | D32: 5162569.036 | E32: 482896.1424 | F32: 758751.43 | G32: 5812046.103 | H32: 5921320.466 | I32: Insurance payable
B33: ذمم اعادة التأمين الدائنة | C33: 5874522.622 | D33: 6408286.117 | E33: 1113649.319 | F33: 1156747.854 | G33: 6988171.941 | H33: 7565033.971 | I33: Reinsurance payables
B34: عمولات اعادة التامين غير المكتسبة | C34: 453623.5373 | D34: 471595.1695 | E34: 91658.36066 | F34: 103867.025 | G34: 545281.8979 | H34: 575462.1945 | I34: Unearned reinsurance commissions
B35: المصاريف المستحقة والمطلوبات الأخرى | C35: 5096524.594 | D35: 4485410.774 | E35: 4139242.156 | F35: 5518043.046 | G35: 9235766.75 | H35: 10003453.82 | I35: Accrued expenses and other liabilities
B36: ذمم الوكالة/المضاربة دائنة | C36: 0 | D36: 0 | E36: 354970.6184 | F36: 561758.7833 | G36: 354970.6184 | H36: 561758.7833 | I36: Wakala / Mudaraba Payable
B37: القروض | C37: 726914.3871 | D37: 492361.9126 | E37: 159253 | F37: 158502 | G37: 886167.3871 | H37: 650863.9126 | I37: Borrowings
B38: تعويضات مكافآت نهاية الخدمة للموظفين | C38: 359535.0678 | D38: 377515.088 | E38: 36264.28458 | F38: 35116.9411 | G38: 395799.3523 | H38: 412632.0291 | I38: End of service indemnity
B39: أخرى | C39: 0 | D39: 0 | E39: 20963.20655 | F39: 20963.20655 | G39: 20963.20655 | H39: 20963.20655 | I39: Others
B40: مجموع المطلوبات | C40: =SUM(C30:C39) -> 64314202.98 | D40: =SUM(D30:D39) -> 64049416.81 | E40: =SUM(E30:E39) -> 14261606.15 | F40: 16442897.84 | G40: 78575809.13 | H40: 80492314.66 | I40: Total Liabilities
B42: حقوق المساهمين العائدة لمساهمي الشركة الأُم | I42: Equity Attributable to Equityholders of Parent
B43: الرصيد الصافي في حساب المشتركين | C43: 0 | D43: 0 | E43: 3983.293 | F43: 27730.475 | G43: =E43+C43 -> 3983.293 | H43: 27730.475 | I43: Net balance in participants' funds
B44: رأس المال المصدر والمدفوع | C44: 4209416.327 | D44: 4108477.148 | E44: 2657509.998 | F44: 1883224.188 | G44: 6866926.325 | H44: 5991701.336 | I44: Issued and paid up share capital
B45: علاوة إصدار | C45: 109726.921 | D45: 109726.921 | E45: 1198.39 | F45: 1198.39 | G45: 110925.311 | H45: 110925.311 | I45: Share premium
B46: أسهم الخزينة | C46: -4660.318 | D46: -4660.318 | E46: -35972.967 | F46: -6996.235 | G46: -40633.285 | H46: -11656.553 | I46: Treasury shares
B47: رأس المال الإضافي المدفوع | C47: 15000 | D47: 15000 | E47: 0 | F47: 0 | G47: =E47+C47 -> 15000 | H47: =F47+D47 -> 15000 | I47: Additional paid in capital
B48: الأرباح/الخسائر المدورة | C48: 7184820.825 | D48: 9075485.504 | E48: -658107.258 | F48: -673767.9005 | G48: 6526713.567 | H48: 8401717.604 | I48: Retained earnings/loss
B49: حساب الشركة الأم | C49: 0.5935079346 | D49: 0 | E49: 0 | F49: 0 | G49: 0.5935079346 | H49: 0 | I49: Head Office Account
B50: حقوق الأقلية | C50: 445847.311 | D50: 420692.488 | E50: 46919.30893 | F50: 57818.32397 | G50: 492766.6199 | H50: 478510.812 | I50: Minority interest
B51: الإحتياطيات | C51: 11032714.26 | D51: 12367362.22 | E51: -335.6828713 | F51: 16462.36303 | G51: 11032378.58 | H51: 12383824.58 | I51: Reserves
B52: مجموع حقوق المساهمين | C52: =SUM(C43:C51) -> 22992865.92 | D52: =SUM(D43:D51) -> 26092083.96 | E52: =SUM(E43:E51) -> 2015195.082 | F52: 1305669.604 | G52: 25008061 | H52: 27397753.57 | I52: Total Equity
B54: مجموع حقوق المساهمين والمطلوبات | C54: =SUM(C40+C52) -> 87307068.9 | D54: =SUM(D40+D52) -> 90141500.78 | E54: =SUM(E40+E52) -> 16276801.23 | F54: 17748567.45 | G54: 103583870.1 | H54: 107890068.2 | I54: Total Equity and Liabilities

Sheet 22A
B6: قائمة الدخل
B7: الشركات الوطنية والاجنبية
B8: Income Statement
B9: National & Foreign Companies
B11: جدول رقم 22A | I11: TABLE 22A
B12: بالألف درهم | I12: AED in 000's
B13: البيــــــــان | C13: الشركات الوطنية | E13: الشركات الأجنبية | G13: الاجمالي | I13: DESCRIPTION
C14: NATIONAL COMPANIES | E14: FOREIGN COMPANIES | G14: TOTAL
C15: 2024 | D15: 2025 | E15: 2024 | F15: 2025 | G15: 2024 | H15: 2025
B16: الدخل الاكتتابي | I16: Underwriting Income
B17: اجمالي الأقساط المكتتبة | C17: 47688245.24 | D17: 54328548.33 | E17: 17422523.53 | F17: 20512038.16 | G17: =E17+C17 -> 65110768.76 | H17: =F17+D17 -> 74840586.5 | I17: Gross Written Premium
B18: صافي الأقساط المكتتبة | C18: 22371557.98 | D18: 26625944.07 | E18: 13358331.2 | F18: 15272730.44 | G18: =E18+C18 -> 35729889.17 | H18: =F18+D18 -> 41898674.51 | I18: Net Written Premium
B19: صافي الأقساط المكتسبة | C19: 20685320.79 | D19: 24993554.32 | E19: 12578452.38 | F19: 14941249.34 | G19: 33263773.17 | H19: 39934803.67 | I19: Net Premiums Earned
B20: صافي المطالبات ومصاريف تسوية المطالبات المدفوعة | C20: 13458609.54 | D20: 16199260.34 | E20: 9090169.977 | F20: 9876522.977 | G20: 22548779.52 | H20: 26075783.32 | I20: Net Claims & Claim Related Expenses Paid
B21: صافي المطالبات ومصاريف تسوية المطالبات المتكبدة | C21: 15172719.76 | D21: 17690005.13 | E21: 9780205.899 | F21: 13258752.51 | G21: 24952925.65 | H21: 30948757.64 | I21: Net Claims & Claim Related Expenses Incurred
B22: أجر الوكالة/حصة المضاربة المكتسبة | C22: -1106.011 | D22: -1221.28 | E22: 0 | F22: 0 | G22: -1106.011 | H22: -1221.28 | I22: Wakala / Mudaraba Fees Earned
B23: صافي العمولات المدفوعة | C23: 1492913.251 | D23: 2214383.797 | E23: 1110271.728 | F23: 1301118.139 | G23: 2603184.979 | H23: 3515501.936 | I23: Net Commissions Paid
B24: صافي العمولات المتكبدة | C24: 1239188.426 | D24: 1877805.186 | E24: 1089997.333 | F24: 1120577.629 | G24: 2329185.759 | H24: 2998382.815 | I24: Net Commissions Incurred
B25: تكاليف الاستحواذ الأخرى | C25: 898029.3001 | D25: 865213.5131 | E25: 388461.1302 | F25: 408051.7508 | G25: 1286490.43 | H25: 1273265.264 | I25: Other Acquisition Expenses
B26: مصاريف عمومية | C26: 2601130.736 | D26: 2882906.458 | E26: 1522014.611 | F26: 1662763.399 | G26: 4123145.346 | H26: 4545669.857 | I26: General Expenses
B27: الضرائب والتراخيص والرسوم | C27: 356027.9718 | D27: 440467.7825 | E27: 112375.0131 | F27: 213010.4456 | G27: 468402.9849 | H27: 653478.2281 | I27: Taxes, Licenses and Fees
B28: تكاليف الإكتتاب الاخرى | C28: =SUM(C25:C27) -> 3855188.007 | D28: 4188587.754 | E28: 2022850.754 | F28: 2283825.595 | G28: 5878038.761 | H28: 6472413.349 | I28: Other Underwriting Expenses
B29: صافي دخل / (خسارة) الاكتتاب | C29: =C19-C21-C24-C28 -> 418224.6053 | D29: 1237156.252 | E29: -314601.6055 | F29: -1721906.387 | G29: 103622.9998 | H29: -484750.1349 | I29: Net Underwriting Income / (Loss)
B31: الدخل الاستثماري | I31: Investment Income
B32: دخل مكتسب من الاستثمارات العقارية | C32: 142814.4926 | D32: 156599.1251 | E32: 3378.529808 | F32: 3131.09411 | G32: =E32+C32 -> 146193.0224 | H32: 159730.2192 | I32: Earned Income from Real Estate Investments
B33: دخل مكتسب من الاستثمارات الاخرى | C33: 1996193.529 | D33: 2200225.005 | E33: 467002.3529 | F33: 478214.6109 | G33: =E33+C33 -> 2463195.882 | H33: =F33+D33 -> 2678439.616 | I33: Earned Income from Other Investments
B34: صافي الربح / (الخسارة) المحققة على الاستثمارات | C34: 86026.73417 | D34: 116007.2162 | E34: 675068.7168 | F34: 439886.2278 | G34: 761095.451 | H34: 555893.4441 | I34: Net Realized Gain / (Loss) on Investments
B35: صافي الربح / (الخسارة) غير المحققة على الاستثمارات | C35: 232616.2314 | D35: 336789.0699 | E35: 2086315.366 | F35: 3339686.798 | G35: 2318931.598 | H35: 3676475.868 | I35: Net Unrealized Gain / (Loss) on Investments
B36: تعديلات في الاستثمارات متدنية القيمة | C36: 12491.46768 | D36: 25027.58061 | E36: -2538.13686 | F36: 656.7265337 | G36: 9953.330824 | H36: 25684.30715 | I36: Adjustment for Impaired Investments
B37: ربح / (خسارة) صرف العملات الأجنبية على الاستثمارات | C37: -1491.67595 | D37: -1071.56038 | E37: -2922.463129 | F37: -78403.40012 | G37: -4414.139079 | H37: -79474.9605 | I37: Foreign Exchange Gain / (Loss) on Investments
B38: إجمالي دخل الاستثمار | C38: =SUM(C32:C37) -> 2468650.779 | D38: 2833576.437 | E38: 3226304.366 | F38: 4183172.058 | G38: 5694955.145 | H38: 7016748.494 | I38: Gross Investment Income
B39: مصاريف الاستثمار | C39: 305060.6884 | D39: 274657.4694 | E39: -3702.137804 | F39: 6249.695161 | G39: 301358.5506 | H39: 280907.1645 | I39: Investment Expenses
B40: صافي دخل الاستثمار | C40: =C38-C39 -> 2163590.091 | D40: 2558918.968 | E40: 3230006.504 | F40: 4176922.362 | G40: 5393596.595 | H40: 6735841.33 | I40: Net Investment Income
B41: دخل تشغيلي آخر | C41: 661281.8889 | D41: 697097.1784 | E41: 455703.3572 | F41: 788234.3066 | G41: 1116985.246 | H41: 1485331.485 | I41: Other Operating Income
B42: مصاريف تشغيلية أخرى | C42: 1035967.269 | D42: 1114299.116 | E42: 2943941.316 | F42: 2610570.399 | G42: =E42+C42 -> 3979908.585 | H42: =F42+D42 -> 3724869.515 | I42: Other Operating Expenses
B43: إجمالي الربح / الخسارة قبل حساب القروض وتوزيعات الأرباح | C43: =C29+C40+C41-C42 -> 2207129.316 | D43: 3378873.282 | E43: 427166.9392 | F43: 632679.883 | G43: 2634296.255 | H43: 4011553.165 | I43: Total Profit / (Loss) prior to Loans & Dividends
B44: أخرى | C44: 0 | D44: 0 | E44: 0 | F44: 0 | G44: =E44+C44 -> 0 | H44: =F44+D44 -> 0 | I44: Others
B45: إجمالي الربح / الخسارة قبل توزيعات الأرباح على حاملي الوثائق | C45: =C43-C44 -> 2207129.316 | D45: 3378873.282 | E45: 427166.9392 | F45: 632679.883 | G45: 2634296.255 | H45: 4011553.165 | I45: Total Profit / (Loss) prior to Policyholder Dividends
B46: توزيعات الأرباح على حاملي الوثائق | C46: 20928.51052 | D46: 15074.21897 | E46: 0 | F46: 0 | G46: =E46+C46 -> 20928.51052 | H46: =F46+D46 -> 15074.21897 | I46: Policyholder Dividends
B47: إجمالي الربح / (الخسارة) | C47: =C45-C46 -> 2186200.806 | D47: 3363799.063 | E47: 427166.9392 | F47: 632679.883 | G47: 2613367.745 | H47: 3996478.946 | I47: Total Profit / (Loss)

Sheet 22B
B6: قائمة الدخل
B7: شركات التأمين التقليدي الوطنية وشركات التأمين التكافلي الوطنية
B8: Income Statement
B9: Traditional & Takaful National Companies
B11: جدول رقم 22B | I11: TABLE 22B
B12: بالألف درهم | I12: AED in 000's
B13: البيــــــــان | C13: شركات التأمين التقليدي الوطنية | E13: شركات التأمين التكافلي الوطنية | G13: الشركات الوطنية | I13: DESCRIPTION
C14: TRADITIONAL COMPANIES | E14: TAKAFUL OPERATORS | G14: NATIONAL COMPANIES
C15: 2024 | D15: 2025 | E15: 2024 | F15: 2025 | G15: 2024 | H15: 2025
B16: الدخل الاكتتابي | I16: Underwriting Income
B17: اجمالي الأقساط المكتتبة | C17: 42205169.11 | D17: 47981831.86 | E17: 5483076.133 | F17: 6346716.472 | G17: =E17+C17 -> 47688245.24 | H17: =F17+D17 -> 54328548.33 | I17: Gross Written Premium
B18: صافي الأقساط المكتتبة | C18: 19689092.06 | D18: 23135877.94 | E18: 2682465.915 | F18: 3490066.131 | G18: =E18+C18 -> 22371557.98 | H18: =F18+D18 -> 26625944.07 | I18: Net Written Premium
B19: صافي الأقساط المكتسبة | C19: 18186592.35 | D19: 21845679.59 | E19: 2498728.439 | F19: 3147874.727 | G19: 20685320.79 | H19: 24993554.32 | I19: Net Premiums Earned
B20: صافي المطالبات ومصاريف تسوية المطالبات المدفوعة | C20: 12100207.56 | D20: 14538703.42 | E20: 1358401.988 | F20: 1660556.917 | G20: 13458609.54 | H20: 16199260.34 | I20: Net Claims & Claim Related Expenses Paid
B21: صافي المطالبات ومصاريف تسوية المطالبات المتكبدة | C21: 13778939.35 | D21: 15918488.77 | E21: 1393780.406 | F21: 1771516.365 | G21: 15172719.76 | H21: 17690005.13 | I21: Net Claims & Claim Related Expenses Incurred
B22: أجر الوكالة/حصة المضاربة المكتسبة | C22: 0 | D22: 0 | E22: -1106.011 | F22: -1221.28 | G22: -1106.011 | H22: -1221.28 | I22: Wakala / Mudaraba Fees Earned
B23: صافي العمولات المدفوعة | C23: 976252.1124 | D23: 1556442.763 | E23: 516661.1386 | F23: 657941.0341 | G23: 1492913.251 | H23: 2214383.797 | I23: Net Commissions Paid
B24: صافي العمولات المتكبدة | C24: 785231.0065 | D24: 1280495.475 | E24: 453957.4195 | F24: 597309.7112 | G24: 1239188.426 | H24: 1877805.186 | I24: Net Commissions Incurred
B25: تكاليف الاستحواذ الأخرى | C25: 802858.0368 | D25: 822941.3826 | E25: 95171.26324 | F25: 42272.13046 | G25: 898029.3001 | H25: 865213.5131 | I25: Other Acquisition Expenses
B26: مصاريف عمومية | C26: 2109622.607 | D26: 2299826.192 | E26: 491508.1284 | F26: 583080.2663 | G26: 2601130.736 | H26: 2882906.458 | I26: General Expenses
B27: الضرائب والتراخيص والرسوم | C27: 304816.4779 | D27: 368556.5108 | E27: 51211.4939 | F27: 71911.2717 | G27: 356027.9718 | H27: 440467.7825 | I27: Taxes, Licenses and Fees
B28: تكاليف الإكتتاب الاخرى | C28: =SUM(C25:C27) -> 3217297.122 | D28: 3491324.085 | E28: =SUM(E25:E27) -> 637890.8855 | F28: 697263.6684 | G28: =SUM(G25:G27) -> 3855188.007 | H28: 4188587.754 | I28: Other Underwriting Expenses
B29: صافي دخل / (خسارة) الاكتتاب | C29: =C19-C21-C24-C28 -> 405124.8766 | D29: =D19-D21-D24-D28 -> 1155371.27 | E29: =E19-E21-E24-E28 -> 13099.72868 | F29: 81784.98268 | G29: =G19-G21-G24-G28 -> 418224.6053 | H29: =H19-H21-H24-H28 -> 1237156.252 | I29: Net Underwriting Income / (Loss)
B31: الدخل الاستثماري | I31: Investment Income
B32: دخل مكتسب من الاستثمارات العقارية | C32: 133555.6374 | D32: 137135.2467 | E32: 9258.85528 | F32: 19463.87848 | G32: =E32+C32 -> 142814.4926 | H32: 156599.1251 | I32: Earned Income from Real Estate Investments
B33: دخل مكتسب من الاستثمارات الاخرى | C33: 1732570.12 | D33: 1971658.741 | E33: 263623.4088 | F33: 228566.2648 | G33: =E33+C33 -> 1996193.529 | H33: =F33+D33 -> 2200225.005 | I33: Earned Income from Other Investments
B34: صافي الربح / (الخسارة) المحققة على الاستثمارات | C34: 62606.67232 | D34: 87451.79118 | E34: 23420.06185 | F34: 28555.42506 | G34: 86026.73417 | H34: 116007.2162 | I34: Net Realized Gain / (Loss) on Investments
B35: صافي الربح / (الخسارة) غير المحققة على الاستثمارات | C35: 159276.2031 | D35: 209436.916 | E35: 73340.02835 | F35: 127352.1539 | G35: 232616.2314 | H35: 336789.0699 | I35: Net Unrealized Gain / (Loss) on Investments
B36: تعديلات في الاستثمارات متدنية القيمة | C36: -697.695766 | D36: 27719.70394 | E36: 13189.16345 | F36: -2692.12333 | G36: 12491.46768 | H36: 25027.58061 | I36: Adjustment for Impaired Investments
B37: ربح / (خسارة) صرف العملات الأجنبية على الاستثمارات | C37: -1491.67595 | D37: -1071.56038 | E37: 0 | F37: 0 | G37: -1491.67595 | H37: -1071.56038 | I37: Foreign Exchange Gain / (Loss) on Investments
B38: إجمالي دخل الاستثمار | C38: =SUM(C32:C37) -> 2085819.261 | D38: 2432330.838 | E38: 382831.5177 | F38: =SUM(F32:F37) -> 401245.5988 | G38: =SUM(G32:G37) -> 2468650.779 | H38: 2833576.437 | I38: Gross Investment Income
B39: مصاريف الاستثمار | C39: 183321.5848 | D39: 191225.8617 | E39: 121739.1035 | F39: 83431.60765 | G39: 305060.6884 | H39: 274657.4694 | I39: Investment Expenses
B40: صافي دخل الاستثمار | C40: =C38-C39 -> 1902497.677 | D40: 2241104.976 | E40: 261092.4142 | F40: 317813.9912 | G40: 2163590.091 | H40: 2558918.968 | I40: Net Investment Income
B41: دخل تشغيلي آخر | C41: 590251.8408 | D41: 603180.6011 | E41: 71030.04809 | F41: 93916.5773 | G41: 661281.8889 | H41: 697097.1784 | I41: Other Operating Income
B42: مصاريف تشغيلية أخرى | C42: 737411.9899 | D42: 829861.7829 | E42: 298555.2791 | F42: 284437.3336 | G42: 1035967.269 | H42: 1114299.116 | I42: Other Operating Expenses
B43: إجمالي الربح / الخسارة قبل حساب القروض وتوزيعات الأرباح | C43: =C29+C40+C41-C42 -> 2160462.404 | D43: =D29+D40+D41-D42 -> 3169795.064 | E43: 46666.91187 | F43: =F29+F40+F41-F42 -> 209078.2176 | G43: =G29+G40+G41-G42 -> 2207129.316 | H43: =H29+H40+H41-H42 -> 3378873.282 | I43: Total Profit / (Loss) prior to Loans & Dividends
B44: أخرى | C44: 0 | D44: 0 | E44: 0 | F44: 0 | G44: =E44+C44 -> 0 | H44: =F44+D44 -> 0 | I44: Others
B45: إجمالي الربح / الخسارة قبل توزيعات الأرباح على حاملي الوثائق | C45: =C43-C44 -> 2160462.404 | D45: =D43-D44 -> 3169795.064 | E45: =E43-E44 -> 46666.91187 | F45: 209078.2176 | G45: 2207129.316 | H45: =H43-H44 -> 3378873.282 | I45: Total Profit / (Loss) prior to Policyholder Dividends
B46: توزيعات الأرباح على حاملي الوثائق | C46: 20928.51052 | D46: 15074.21897 | E46: 0 | F46: 0 | G46: =E46+C46 -> 20928.51052 | H46: 15074.21897 | I46: Policyholder Dividends
B47: إجمالي الربح / (الخسارة) | C47: =C45-C46 -> 2139533.894 | D47: =D45-D46 -> 3154720.845 | E47: 46666.91187 | F47: =F45-F46 -> 209078.2176 | G47: =G45-G46 -> 2186200.806 | H47: 3363799.063 | I47: Total Profit / (Loss)

Sheet 23A
B6: تحليل الملاءة المالية
B7: Solvency Analysis
B8: (2025)
B11: جدول رقم 23A | D11: TABLE 23A
B12: بالألف درهم | D12: AED in 000's
B13: البيــــــــان | C13: الاجمالي | D13: DESCRIPTION
C14: TOTAL
B15: متطلب الحد الأدنى لرأس المال (MCR) | C15: 5550000 | D15: Minimum Capital Requirement (MCR)
B16: مخاطر الإكتتاب - التأمينات العامة | C16: 2609987.772 | D16: Underwriting Risk - Property and Liability Insurance
B17: مخاطر الإكتتاب - التأمين على الحياة | C17: 394941.5714 | D17: Underwriting Risk - Life Insurance
B18: مخاطر الإكتتاب - التأمين الصحي | C18: 1998489.47 | D18: Underwriting Risk - Health Insurance
B19: المخاطر الاستثمارية | C19: 5393766.534 | D19: Investment Risk
B20: مخاطر الائتمان | C20: 3484892.887 | D20: Credit Risk
B21: المتطلب الأساسي لملاءة رأس المال (BSCR) | C21: 9796121.733 | D21: Basic Solvency Capital Required (BSCR)
B22: المخاطر التشغيلية | C22: 2896094.981 | D22: Operational Risk
B23: متطلب ملاءة رأس المال (SCR) | C23: 12692216.71 | D23: Solvency Capital Requirement (SCR)
B24: المبلغ الأدنى للضمان (MGF) | C24: 9776365.204 | D24: Minimum Guarantee Fund (MGF)
B26: صافي الموجودات المقبولة مطروحا منها المطلوبات | C26: 25227163.03 | D26: Admissible Assets less Liabilities
B28: الفائض / (العجز) في هامش الحد الأدنى لرأس المال | C28: 19559732.03 | D28: MCR Solvency Margin - Surplus / (Deficit)
B29: الفائض / (العجز) في هامش ملاءة رأس المال | C29: 12444744.41 | D29: SCR Solvency Margin - Surplus / (Deficit)
B30: الفائض / (العجز) في هامش المبلغ الأدنى للضمان | C30: 15360595.92 | D30: MGF Solvency Margin - Surplus / (Deficit)
B32: نسبة الحد الأدنى لرأس المال | C32: 4.545434779 | D32: MCR Solvency Ratio
B33: نسبة ملاءة رأس المال | C33: 1.98760891 | D33: SCR Solvency Ratio
B34: نسبة المبلغ الأدنى للضمان | C34: 2.580423552 | D34: MGF Solvency Ratio

Sheet 23B
B6: تحليل الملاءة المالية للشركات الوطنية
B7: Solvency Analysis for National Companies
B8: (2025)
B11: جدول رقم 23B | D11: TABLE 23B
B12: بالألف درهم | D12: AED in 000's
B13: البيــــــــان | C13: الشركات الوطنية | D13: DESCRIPTION
C14: NATIONAL COMPANIES
B15: متطلب الحد الأدنى لرأس المال (MCR) | C15: 3000000 | D15: Minimum Capital Requirement (MCR)
B16: مخاطر الإكتتاب - التأمينات العامة | C16: 2082911.834 | D16: Underwriting Risk - Property and Liability Insurance
B17: مخاطر الإكتتاب - التأمين على الحياة | C17: 129932.4234 | D17: Underwriting Risk - Life Insurance
B18: مخاطر الإكتتاب - التأمين الصحي | C18: 1387470.29 | D18: Underwriting Risk - Health Insurance
B19: المخاطر الاستثمارية | C19: 4533838.72 | D19: Investment Risk
B20: مخاطر الائتمان | C20: 2552700.937 | D20: Credit Risk
B21: المتطلب الأساسي لملاءة رأس المال (BSCR) | C21: 7431536.927 | D21: Basic Solvency Capital Required (BSCR)
B22: المخاطر التشغيلية | C22: 2117625.576 | D22: Operational Risk
B23: متطلب ملاءة رأس المال (SCR) | C23: 9549162.503 | D23: Solvency Capital Requirement (SCR)
B24: المبلغ الأدنى للضمان (MGF) | C24: 6689332.854 | D24: Minimum Guarantee Fund (MGF)
B26: صافي الموجودات المقبولة مطروحا منها المطلوبات | C26: 19191258.03 | D26: Admissible Assets less Liabilities
B28: الفائض / (العجز) في هامش الحد الأدنى لرأس المال | C28: 15527298.86 | D28: MCR Solvency Margin - Surplus / (Deficit)
B29: الفائض / (العجز) في هامش ملاءة رأس المال | C29: 8959249.533 | D29: SCR Solvency Margin - Surplus / (Deficit)
B30: الفائض / (العجز) في هامش المبلغ الأدنى للضمان | C30: 11819079.18 | D30: MGF Solvency Margin - Surplus / (Deficit)
B32: نسبة الحد الأدنى لرأس المال | C32: 6.39708601 | D32: MCR Solvency Ratio
B33: نسبة ملاءة رأس المال | C33: 2.00973206 | D33: SCR Solvency Ratio
B34: نسبة المبلغ الأدنى للضمان | C34: 2.868934533 | D34: MGF Solvency Ratio

Sheet 24A
B6: إجمالي الأقساط المكتتبة حسب الإمارة
B7: Gross Written Premium by Emirate
B8: (2025)
B11: جدول رقم 24A | M11: TABLE 24A
B12: بالألف درهم | M12: AED in 000's
B13: فروع التأمين | C13: أم القيوين | D13: الشارقة | E13: رأس الخيمة | F13: الفجيرة | G13: دبي | H13: عجمان | I13: أبو ظبي | J13: داخل الدولة | K13: خارج الدولة | L13: جميع المواقع | M13: Line of Business
C14: Umm Al Quwain | D14: Sharjah | E14: Ras Al Khaimah | F14: Fujairah | G14: Dubai | H14: Ajman | I14: Abu Dhabi | J14: Within UAE | K14: Outside UAE | L14: All Locations
B15: تأمين الحريق | C15: 4863.72485 | D15: 105364.4125 | E15: 38454.27312 | F15: 76574.45913 | G15: 3042334.646 | H15: 11980.49009 | I15: 1563378.869 | J15: =C15+D15+E15+F15+G15+H15+I15 -> 4842950.874 | K15: 2044237.302 | L15: =J15+K15 -> 6887188.176 | M15: Fire
B16: التأمين البحري والطيران | C16: 28.23453 | D16: 73620.38928 | E16: 7132.41214 | F16: 11051.69397 | G16: 1065982.036 | H16: 2503.2624 | I16: 620693.9316 | J16: =C16+D16+E16+F16+G16+H16+I16 -> 1781011.96 | K16: 477542.3591 | L16: =J16+K16 -> 2258554.319 | M16: Marine & Aviation
B17: تأمين السيارات والمركبات الأخرى | C17: 494.99179 | D17: 370084.2808 | E17: 251874.2342 | F17: 156516.519 | G17: 6168510.679 | H17: 46333.40074 | I17: 2177408.375 | J17: 9171222.48 | K17: 904683.2252 | L17: 10075905.71 | M17: Motor & Transportation
B18: التأمين الهندسي والانشاءات والطاقة | C18: 10.815 | D18: 84734.21611 | E18: 15039.43579 | F18: 13879.62911 | G18: 1209977.501 | H18: 6628.073266 | I18: 1554370.576 | J18: 2884640.246 | K18: 1399442.138 | L18: 4284082.384 | M18: Engineering, Construction & Energy
B19: أخرى | C19: 19556.92267 | D19: 209348.3651 | E19: 72770.63555 | F19: 36421.47633 | G19: 4229813.031 | H19: 88082.89493 | I19: 1470093.547 | J19: 6126086.873 | K19: 381189.8756 | L19: 6507276.748 | M19: Other
B20: اعادة التأمين غير النسبية - المسؤوليات والممتلكات | C20: 0 | D20: 99.80868 | E20: 0 | F20: 0 | G20: 1259.11907 | H20: 0 | I20: 4295.32004 | J20: 5654.24779 | K20: 0 | L20: 5654.24779 | M20: Reinsurance - Property & Liability
B21: المجموع - تأمين الممتلكات والمسؤوليات | C21: =C15+C16+C17+C18+C19+C20 -> 24954.68884 | D21: 843251.4724 | E21: 385270.9908 | F21: 294443.7775 | G21: 15717877.01 | H21: 155528.1214 | I21: 7390240.619 | J21: =J15+J16+J17+J18+J19+J20 -> 24811566.68 | K21: =K15+K16+K17+K18+K19+K20 -> 5207094.9 | L21: =L15+L16+L17+L18+L19+L20 -> 30018661.58 | M21: Total - Property & Liability Insurance
B23: المجموع - تأمين صحي | C23: 16718.41692 | D23: 1810268.392 | E23: 148646.7816 | F23: 139917.5772 | G23: 21668028.88 | H23: 129874.1176 | I23: 11924704.25 | J23: =C23+D23+E23+F23+G23+H23+I23 -> 35838158.42 | K23: 584538.7146 | L23: =J23+K23 -> 36422697.13 | M23: Total - Health Insurance
B25: تأمين حياة جماعي | C25: 2460.445356 | D25: 37745.72123 | E25: 5229.541545 | F25: 4310.824261 | G25: 625838.4728 | H25: 5545.919708 | I25: 355785.6347 | J25: =C25+D25+E25+F25+G25+H25+I25 -> 1036916.56 | K25: 411346.781 | L25: =J25+K25 -> 1448263.341 | M25: Group Life
B26: تأمين ائتمان حياة جماعي | C26: 0 | D26: 240.45257 | E26: 84090.10578 | F26: 0 | G26: 433048.4508 | H26: 0 | I26: 180968.1394 | J26: 698347.1485 | K26: 22188.39342 | L26: 720535.5419 | M26: Group Credit Life
B27: تأمين حياة فردي | C27: 7054.223807 | D27: 151400.655 | E27: 18498.47032 | F27: 8139.505843 | G27: 5308906.143 | H27: 38247.8589 | I27: 585050.4273 | J27: 6117297.284 | K27: 84977.73784 | L27: 6202275.022 | M27: Individual Life
B28: دفعات الحياة وتكوين الأموال | C28: 0 | D28: 0 | E28: 0 | F28: 0 | G28: 28121.94059 | H28: 0 | I28: 31.93859959 | J28: 28153.87919 | K28: 0 | L28: 28153.87919 | M28: Annuities & Fund Accumulation
B29: المجموع - تأمين الأشخاص وعمليات تكوين الأموال | C29: =C25+C26+C27+C28 -> 9514.669163 | D29: 189386.8288 | E29: 107818.1176 | F29: 12450.3301 | G29: 6395915.007 | H29: 43793.77861 | I29: 1121836.14 | J29: =C29+D29+E29+F29+G29+H29+I29 -> 7880714.871 | K29: =K25+K26+K27+K28 -> 518512.9123 | L29: 8399227.783 | M29: Total - Insurance of Persons & Fund Accumulation
B31: المجموع - كافة فروع التأمين | C31: =C21+C23+C29 -> 51187.77492 | D31: 2842906.693 | E31: 641735.8901 | F31: 446811.6848 | G31: 43781820.9 | H31: 329196.0176 | I31: 20436781.01 | J31: =J21+J23+J29 -> 68530439.97 | K31: =K21+K23+K29 -> 6310146.526 | L31: 74840586.49 | M31: TOTAL - All Types of Business Combined
G88: ` | H88: ` | I88: `

Sheet 24B
B6: صافي الأقساط المكتتبة حسب الإمارة
B7: Net Written Premium by Emirate
B8: (2025)
B11: جدول رقم 24B | M11: TABLE 24B
B12: بالألف درهم | M12: AED in 000's
B13: فروع التأمين | C13: أم القيوين | D13: الشارقة | E13: رأس الخيمة | F13: الفجيرة | G13: دبي | H13: عجمان | I13: أبو ظبي | J13: داخل الدولة | K13: خارج الدولة | L13: جميع المواقع | M13: Line of Business
C14: Umm Al Quwain | D14: Sharjah | E14: Ras Al Khaimah | F14: Fujairah | G14: Dubai | H14: Ajman | I14: Abu Dhabi | J14: Within UAE | K14: Outside UAE | L14: All Locations
B15: تأمين الحريق | C15: 4733.217081 | D15: 27295.89694 | E15: 5985.813223 | F15: 48847.58002 | G15: 594960.7294 | H15: 2198.423233 | I15: 180198.1457 | J15: =C15+D15+E15+F15+G15+H15+I15 -> 864219.8056 | K15: 540115.8325 | L15: =J15+K15 -> 1404335.638 | M15: Fire
B16: التأمين البحري والطيران | C16: 8.47038 | D16: 18100.39143 | E16: 1590.871903 | F16: 1789.680664 | G16: 245708.311 | H16: 555.3389603 | I16: 112536.6126 | J16: 380289.677 | K16: 162602.2833 | L16: =J16+K16 -> 542891.9603 | M16: Marine & Aviation
B17: تأمين السيارات والمركبات الأخرى | C17: 494.99179 | D17: 311680.8558 | E17: 233135.2839 | F17: 147335.9195 | G17: 5534152.681 | H17: 43402.83858 | I17: 1652199.245 | J17: 7922401.815 | K17: 801842.4783 | L17: 8724244.294 | M17: Motor & Transportation
B18: التأمين الهندسي والانشاءات والطاقة | C18: 0.304566567 | D18: -1207.468094 | E18: 3591.332817 | F18: 3532.47291 | G18: 71391.94792 | H18: 17.57679658 | I18: 287276.2612 | J18: 364602.4281 | K18: 308936.607 | L18: 673539.0352 | M18: Engineering, Construction & Energy
B19: أخرى | C19: 3436.412014 | D19: 51209.62889 | E19: 20840.92496 | F19: -140721.1914 | G19: 1375411.088 | H19: 16419.13945 | I19: 395749.7202 | J19: 1722345.722 | K19: 72047.29726 | L19: 1794393.019 | M19: Other
B20: اعادة التأمين غير النسبية - المسؤوليات والممتلكات | C20: 0 | D20: 99.80868 | E20: 0 | F20: 0 | G20: 1133.56007 | H20: 0 | I20: 2683.52582 | J20: 3916.89457 | K20: 0 | L20: 3916.89457 | M20: Reinsurance - Property & Liability
B21: المجموع - تأمين الممتلكات والمسؤوليات | C21: =C15+C16+C17+C18+C19+C20 -> 8673.395832 | D21: 407179.1137 | E21: 265144.2268 | F21: 60784.46164 | G21: 7822758.317 | H21: 62593.31702 | I21: 2630643.511 | J21: =J15+J16+J17+J18+J19+J20 -> 11257776.34 | K21: =K15+K16+K17+K18+K19+K20 -> 1885544.498 | L21: 13143320.84 | M21: Total - Property & Liability Insurance
B23: المجموع - تأمين صحي | C23: 9054.35258 | D23: 856216.0791 | E23: 97411.17541 | F23: 105431.116 | G23: 12987994.09 | H23: 79198.97932 | I23: 9140952.861 | J23: =C23+D23+E23+F23+G23+H23+I23 -> 23276258.65 | K23: -1203589.091 | L23: =J23+K23 -> 22072669.56 | M23: Total - Health Insurance
B25: تأمين حياة جماعي | C25: 944.698452 | D25: 13387.05623 | E25: 2148.185367 | F25: -1541.182221 | G25: 210847.1482 | H25: 2551.939399 | I25: 97121.61832 | J25: =C25+D25+E25+F25+G25+H25+I25 -> 325459.4638 | K25: 161742.8929 | L25: =J25+K25 -> 487202.3567 | M25: Group Life
B26: تأمين ائتمان حياة جماعي | C26: 0 | D26: 55.82048 | E26: 41502.95003 | F26: 0 | G26: 136011.4872 | H26: 0 | I26: 53536.44844 | J26: =C26+D26+E26+F26+G26+H26+I26 -> 231106.7061 | K26: 17968.33384 | L26: 249075.0399 | M26: Group Credit Life
B27: تأمين حياة فردي | C27: 7026.870692 | D27: 148811.3401 | E27: 18383.19158 | F27: 8100.279343 | G27: 5064418.226 | H27: 38074.70243 | I27: 567513.2824 | J27: =C27+D27+E27+F27+G27+H27+I27 -> 5852327.893 | K27: 65927.20926 | L27: 5918255.102 | M27: Individual Life
B28: دفعات الحياة وتكوين الأموال | C28: 0 | D28: 0 | E28: 0 | F28: 0 | G28: 28120.27307 | H28: 0 | I28: 31.33898039 | J28: =C28+D28+E28+F28+G28+H28+I28 -> 28151.61205 | K28: 0 | L28: 28151.61205 | M28: Annuities & Fund Accumulation
B29: المجموع - تأمين الأشخاص وعمليات تكوين الأموال | C29: =C25+C26+C27+C28 -> 7971.569144 | D29: 162254.2168 | E29: 62034.32697 | F29: 6559.097122 | G29: 5439397.135 | H29: 40626.64183 | I29: 718202.6881 | J29: =J25+J26+J27+J28 -> 6437045.675 | K29: =K25+K26+K27+K28 -> 245638.436 | L29: =L25+L26+L27+L28 -> 6682684.111 | M29: Total - Insurance of Persons & Fund Accumulation
B31: المجموع - كافة فروع التأمين | C31: =C21+C23+C29 -> 25699.31756 | D31: 1425649.41 | E31: 424589.7292 | F31: 172774.6748 | G31: 26250149.54 | H31: 182418.9382 | I31: 12489799.06 | J31: =J21+J23+J29 -> 40971080.67 | K31: =K21+K23+K29 -> 927593.8431 | L31: 41898674.51 | M31: TOTAL - All Types of Business Combined

Sheet 25
B6: عدد وثائق التأمين حسب الإمارة
B7: Number of Policies by Emirate
B8: (2025)
B11: جدول رقم 25 | M11: TABLE 25
B13: فروع التأمين | C13: أم القيوين | D13: الشارقة | E13: رأس الخيمة | F13: الفجيرة | G13: دبي | H13: عجمان | I13: أبو ظبي | J13: داخل الدولة | K13: خارج الدولة | L13: جميع المواقع | M13: Line of Business
C14: Umm Al Quwain | D14: Sharjah | E14: Ras Al Khaimah | F14: Fujairah | G14: Dubai | H14: Ajman | I14: Abu Dhabi | J14: Within UAE | K14: Outside UAE | L14: All Locations
B15: تأمين الحريق | C15: 330 | D15: 6998 | E15: 2366 | F15: 1668 | G15: 111805 | H15: 1929 | I15: 32736 | J15: =C15+D15+E15+F15+G15+H15+I15 -> 157832 | K15: 65017 | L15: =J15+K15 -> 222849 | M15: Fire
B16: التأمين البحري والطيران | C16: 2 | D16: 12497 | E16: 198 | F16: 379 | G16: 178451 | H16: 770 | I16: 23099 | J16: 215396 | K16: 37430 | L16: 252826 | M16: Marine & Aviation
B17: تأمين السيارات والمركبات الأخرى | C17: 233 | D17: 175430 | E17: 209563 | F17: 81609 | G17: 2575788 | H17: 18100 | I17: 1470037 | J17: 4530760 | K17: 1076323 | L17: 5607083 | M17: Motor & Transportation
B18: التأمين الهندسي والانشاءات والطاقة | C18: 1 | D18: 2315 | E18: 1156 | F18: 380 | G18: 29529 | H18: 170 | I18: 15909 | J18: 49460 | K18: 30986 | L18: 80446 | M18: Engineering, Construction & Energy
B19: أخرى | C19: 57917 | D19: 532892 | E19: 224168 | F19: 87953 | G19: 4750966 | H19: 245555 | I19: 1822082 | J19: 7721533 | K19: 145490 | L19: 7867023 | M19: Other
B20: اعادة التأمين غير النسبية - المسؤوليات والممتلكات | C20: 0 | D20: 33 | E20: 0 | F20: 0 | G20: 276 | H20: 0 | I20: 723 | J20: 1032 | K20: 0 | L20: 1032 | M20: Reinsurance - Property & Liability
B21: المجموع - تأمين الممتلكات والمسؤوليات | C21: =C15+C16+C17+C18+C19+C20 -> 58483 | D21: =D15+D16+D17+D18+D19+D20 -> 730165 | E21: =E15+E16+E17+E18+E19+E20 -> 437451 | F21: =F15+F16+F17+F18+F19+F20 -> 171989 | G21: =G15+G16+G17+G18+G19+G20 -> 7646815 | H21: =H15+H16+H17+H18+H19+H20 -> 266524 | I21: =I15+I16+I17+I18+I19+I20 -> 3364586 | J21: =J15+J16+J17+J18+J19+J20 -> 12676013 | K21: =K15+K16+K17+K18+K19+K20 -> 1355246 | L21: =L15+L16+L17+L18+L19+L20 -> 14031259 | M21: Total - Property & Liability Insurance
B23: المجموع - تأمين صحي | C23: 4637 | D23: 358715 | E23: 55156 | F23: 202479 | G23: 1312257 | H23: 49994 | I23: 636678 | J23: =C23+D23+E23+F23+G23+H23+I23 -> 2619916 | K23: 215939 | L23: =J23+K23 -> 2835855 | M23: Total - Health Insurance
B25: تأمين حياة جماعي | C25: 22 | D25: 2296 | E25: 108 | F25: 99 | G25: 8882 | H25: 80 | I25: 2764 | J25: =C25+D25+E25+F25+G25+H25+I25 -> 14251 | K25: 1574 | L25: =J25+K25 -> 15825 | M25: Group Life
B26: تأمين ائتمان حياة جماعي | C26: 0 | D26: 3 | E26: 38 | F26: 0 | G26: 792 | H26: 0 | I26: 165 | J26: 998 | K26: 247 | L26: =J26+K26 -> 1245 | M26: Group Credit Life
B27: تأمين حياة فردي | C27: 274 | D27: 7502 | E27: 821 | F27: 349 | G27: 293010 | H27: 1574 | I27: 31950 | J27: 335480 | K27: 30392 | L27: =J27+K27 -> 365872 | M27: Individual Life
B28: دفعات الحياة وتكوين الأموال | C28: 0 | D28: 0 | E28: 0 | F28: 0 | G28: 508 | H28: 0 | I28: 1 | J28: 509 | K28: 0 | L28: =J28+K28 -> 509 | M28: Annuities & Fund Accumulation
B29: المجموع - تأمين الأشخاص وعمليات تكوين الأموال | C29: =C25+C26+C27+C28 -> 296 | D29: =D25+D26+D27+D28 -> 9801 | E29: =E25+E26+E27+E28 -> 967 | F29: =F25+F26+F27+F28 -> 448 | G29: =G25+G26+G27+G28 -> 303192 | H29: =H25+H26+H27+H28 -> 1654 | I29: =I25+I26+I27+I28 -> 34880 | J29: =J25+J26+J27+J28 -> 351238 | K29: =K25+K26+K27+K28 -> 32213 | L29: =L25+L26+L27+L28 -> 383451 | M29: Total - Insurance of Persons & Fund Accumulation
B31: المجموع - كافة فروع التأمين | C31: =C21+C23+C29 -> 63416 | D31: =D21+D23+D29 -> 1098681 | E31: 493574 | F31: 374916 | G31: 9262264 | H31: 318172 | I31: 4036144 | J31: 15647167 | K31: 1603398 | L31: 17250565 | M31: TOTAL - All Types of Business Combined

Sheet 26A
B6: إجمالي الأقساط غير المكتسبة حسب الإمارة
B7: Gross Unearned Premium Reserve by Emirate
B8: (2025)
B11: جدول رقم 26A | M11: TABLE 26A
B12: بالألف درهم | M12: AED in 000's
B13: فروع التأمين | C13: أم القيوين | D13: الشارقة | E13: رأس الخيمة | F13: الفجيرة | G13: دبي | H13: عجمان | I13: أبو ظبي | J13: داخل الدولة | K13: خارج الدولة | L13: جميع المواقع | M13: Line of Business
C14: Umm Al Quwain | D14: Sharjah | E14: Ras Al Khaimah | F14: Fujairah | G14: Dubai | H14: Ajman | I14: Abu Dhabi | J14: Within UAE | K14: Outside UAE | L14: All Locations
B15: تأمين الحريق | C15: 175.7817116 | D15: 32513.92247 | E15: 14152.55855 | F15: 12186.14499 | G15: 996906.972 | H15: 2996.285468 | I15: 578326.5119 | J15: =C15+D15+E15+F15+G15+H15+I15 -> 1637258.177 | K15: 783260.8446 | L15: =J15+K15 -> 2420519.022 | M15: Fire
B16: التأمين البحري والطيران | C16: 37.74609973 | D16: 15847.45474 | E16: 3797.461615 | F16: 2692.740931 | G16: 388698.5803 | H16: 1184.093197 | I16: 196007.8958 | J16: 608265.9726 | K16: 190360.0916 | L16: 798626.0643 | M16: Marine & Aviation
B17: تأمين السيارات والمركبات الأخرى | C17: 266.92866 | D17: 129904.9044 | E17: 117174.4764 | F17: 81280.62467 | G17: 3241233.165 | H17: 14468.1036 | I17: 1126319.551 | J17: 4710647.754 | K17: 381022.8838 | L17: 5091670.638 | M17: Motor & Transportation
B18: التأمين الهندسي والانشاءات والطاقة | C18: 0 | D18: 78664.02188 | E18: 35545.35668 | F18: 7330.674913 | G18: 833324.5338 | H18: 5403.379628 | I18: 1115705.403 | J18: 2075973.37 | K18: 580370.9126 | L18: 2656344.282 | M18: Engineering, Construction & Energy
B19: أخرى | C19: 77.56644839 | D19: 28037.10082 | E19: 18638.65098 | F19: 2911.987076 | G19: 3081781.045 | H19: 5984.553687 | I19: 507151.1426 | J19: 3644582.047 | K19: 190905.4007 | L19: 3835487.448 | M19: Other
B20: اعادة التأمين غير النسبية - المسؤوليات والممتلكات | C20: 0 | D20: 0 | E20: 0 | F20: 0 | G20: 0 | H20: 0 | I20: 2437.951524 | J20: 2437.951524 | K20: 0 | L20: 2437.951524 | M20: Reinsurance - Property & Liability
B21: المجموع - تأمين الممتلكات والمسؤوليات | C21: =C15+C16+C17+C18+C19+C20 -> 558.0229198 | D21: 284967.4043 | E21: 189308.5042 | F21: 106402.1726 | G21: 8541944.297 | H21: 30036.41558 | I21: 3525948.456 | J21: 12679165.27 | K21: 2125920.133 | L21: 14805085.41 | M21: Total - Property & Liability Insurance
B23: المجموع - تأمين صحي | C23: 2621.754843 | D23: 274279.3742 | E23: 51744.96547 | F23: 46027.68084 | G23: 7500065.41 | H23: 34640.3642 | I23: 3808946.763 | J23: =C23+D23+E23+F23+G23+H23+I23 -> 11718326.31 | K23: 227608.8904 | L23: =J23+K23 -> 11945935.2 | M23: Total - Health Insurance
B25: تأمين حياة جماعي | C25: 402.9802468 | D25: 12519.45513 | E25: 1531.034084 | F25: 466.8933484 | G25: 164166.4403 | H25: 1767.23128 | I25: 74292.69109 | J25: =C25+D25+E25+F25+G25+H25+I25 -> 255146.7255 | K25: 35041.74109 | L25: =J25+K25 -> 290188.4666 | M25: Group Life
B26: تأمين ائتمان حياة جماعي | C26: 0 | D26: 0 | E26: 0 | F26: 0 | G26: 20051.54806 | H26: 0 | I26: 0 | J26: 20051.54806 | K26: 1650.454 | L26: 21702.00206 | M26: Group Credit Life
B27: تأمين حياة فردي | C27: 0 | D27: 129.6546959 | E27: 0 | F27: 0 | G27: 351205.619 | H27: 0 | I27: 164.9571555 | J27: 351500.2308 | K27: 21351.69617 | L27: 372851.927 | M27: Individual Life
B28: دفعات الحياة وتكوين الأموال | C28: 0 | D28: 0 | E28: 0 | F28: 0 | G28: 0 | H28: 0 | I28: 0 | J28: 0 | K28: 0 | L28: 0 | M28: Annuities & Fund Accumulation
B29: المجموع - تأمين الأشخاص وعمليات تكوين الأموال | C29: =C25+C26+C27+C28 -> 402.9802468 | D29: 12649.10983 | E29: 1531.034084 | F29: 466.8933484 | G29: 535423.6073 | H29: 1767.23128 | I29: 74457.64824 | J29: 626698.5044 | K29: 58043.89126 | L29: 684742.3956 | M29: Total - Insurance of Persons & Fund Accumulation
B31: المجموع - كافة فروع التأمين | C31: =C21+C23+C29 -> 3582.75801 | D31: 571895.8883 | E31: 242584.5038 | F31: 152896.7468 | G31: 16577433.31 | H31: 66444.01106 | I31: 7409352.867 | J31: 25024190.09 | K31: 2411572.915 | L31: 27435763 | M31: TOTAL - All Types of Business Combined

Sheet 26B
B6: صافي الأقساط غير المكتسبة حسب الإمارة
B7: Net Unearned Premium Reserve by Emirate
B8: (2025)
B11: جدول رقم 26B | M11: TABLE 26B
B12: بالألف درهم | M12: AED in 000's
B13: فروع التأمين | C13: أم القيوين | D13: الشارقة | E13: رأس الخيمة | F13: الفجيرة | G13: دبي | H13: عجمان | I13: أبو ظبي | J13: داخل الدولة | K13: خارج الدولة | L13: جميع المواقع | M13: Line of Business
C14: Umm Al Quwain | D14: Sharjah | E14: Ras Al Khaimah | F14: Fujairah | G14: Dubai | H14: Ajman | I14: Abu Dhabi | J14: Within UAE | K14: Outside UAE | L14: All Locations
B15: تأمين الحريق | C15: 141.2873095 | D15: 9382.1224 | E15: 1839.8214 | F15: 2742.252887 | G15: 180413.5414 | H15: 545.3422531 | I15: 43263.22455 | J15: =C15+D15+E15+F15+G15+H15+I15 -> 238327.5922 | K15: 302318.268 | L15: =J15+K15 -> 540645.8601 | M15: Fire
B16: التأمين البحري والطيران | C16: 15.79172078 | D16: 5325.660805 | E16: 435.5809973 | F16: 344.3380105 | G16: 83740.40647 | H16: 406.6855387 | I16: -21131.34482 | J16: 69137.11872 | K16: 118775.5137 | L16: 187912.6324 | M16: Marine & Aviation
B17: تأمين السيارات والمركبات الأخرى | C17: 266.92866 | D17: 108804.7346 | E17: 114517.9965 | F17: 80840.98608 | G17: 2945033.772 | H17: 13945.98069 | I17: 977917.8676 | J17: 4241328.266 | K17: 373240.4936 | L17: 4614568.76 | M17: Motor & Transportation
B18: التأمين الهندسي والانشاءات والطاقة | C18: -0.1530517064 | D18: 4958.303694 | E18: 1586.840832 | F18: 1906.168523 | G18: 69285.05315 | H18: 507.5825246 | I18: 76172.67009 | J18: 154416.4658 | K18: 326871.0622 | L18: 481287.528 | M18: Engineering, Construction & Energy
B19: أخرى | C19: 26.3609584 | D19: 7410.867468 | E19: 4594.854409 | F19: 1523.195574 | G19: 634574.1119 | H19: 1187.239354 | I19: 137010.5517 | J19: 786327.1813 | K19: 77235.88342 | L19: 863563.0647 | M19: Other
B20: اعادة التأمين غير النسبية - المسؤوليات والممتلكات | C20: 0 | D20: 0 | E20: 0 | F20: 0 | G20: 0 | H20: 0 | I20: 1941.603519 | J20: 1941.603519 | K20: 0 | L20: 1941.603519 | M20: Reinsurance - Property & Liability
B21: المجموع - تأمين الممتلكات والمسؤوليات | C21: =C15+C16+C17+C18+C19+C20 -> 450.215597 | D21: =D15+D16+D17+D18+D19+D20 -> 135881.689 | E21: 122975.0942 | F21: 87356.94107 | G21: 3913046.885 | H21: 16592.83036 | I21: 1215174.573 | J21: 5491478.227 | K21: 1198441.221 | L21: 6689919.448 | M21: Total - Property & Liability Insurance
B23: المجموع - تأمين صحي | C23: 1743.814022 | D23: 200303.2605 | E23: 38387.99342 | F23: 36566.5744 | G23: 4284400.749 | H23: 21699.0366 | I23: 2838920.191 | J23: =C23+D23+E23+F23+G23+H23+I23 -> 7422021.619 | K23: -124516.8116 | L23: =J23+K23 -> 7297504.807 | M23: Total - Health Insurance
B25: تأمين حياة جماعي | C25: 301.0132794 | D25: 4884.667747 | E25: 803.6239439 | F25: 172.5389231 | G25: 59371.771 | H25: 863.6649315 | I25: 51621.75012 | J25: =C25+D25+E25+F25+G25+H25+I25 -> 118019.0299 | K25: 16011.93673 | L25: =J25+K25 -> 134030.9667 | M25: Group Life
B26: تأمين ائتمان حياة جماعي | C26: 0 | D26: 0 | E26: 0 | F26: 0 | G26: 6106.625927 | H26: 0 | I26: 0 | J26: 6106.625927 | K26: 1650.454 | L26: 7757.079927 | M26: Group Credit Life
B27: تأمين حياة فردي | C27: 0 | D27: 112.9665115 | E27: 0 | F27: 0 | G27: 349819.5035 | H27: 0 | I27: 136.5998235 | J27: 350069.0698 | K27: 21240.45289 | L27: 371309.5227 | M27: Individual Life
B28: دفعات الحياة وتكوين الأموال | C28: 0 | D28: 0 | E28: 0 | F28: 0 | G28: 0 | H28: 0 | I28: 0 | J28: 0 | K28: 0 | L28: 0 | M28: Annuities & Fund Accumulation
B29: المجموع - تأمين الأشخاص وعمليات تكوين الأموال | C29: =C25+C26+C27+C28 -> 301.0132794 | D29: =D25+D26+D27+D28 -> 4997.634259 | E29: 803.6239439 | F29: 172.5389231 | G29: 415297.9004 | H29: 863.6649315 | I29: 51758.34994 | J29: 474194.7257 | K29: 38902.84362 | L29: 513097.5693 | M29: Total - Insurance of Persons & Fund Accumulation
B31: المجموع - كافة فروع التأمين | C31: =C21+C23+C29 -> 2495.042899 | D31: =D21+D23+D29 -> 341182.5838 | E31: 162166.7115 | F31: 124096.0544 | G31: 8612745.534 | H31: 39155.53189 | I31: 4105853.113 | J31: 13387694.57 | K31: 1112827.253 | L31: 14500521.83 | M31: TOTAL - All Types of Business Combined

Sheet 27A
B6: إجمالي المطالبات المدفوعة حسب الإمارة
B7: Gross Claims Paid by Emirate
B8: (2025)
B11: جدول رقم 27A | M11: TABLE 27A
B12: بالألف درهم | M12: AED in 000's
B13: فروع التأمين | C13: أم القيوين | D13: الشارقة | E13: رأس الخيمة | F13: الفجيرة | G13: دبي | H13: عجمان | I13: أبو ظبي | J13: داخل الدولة | K13: خارج الدولة | L13: جميع المواقع | M13: Line of Business
C14: Umm Al Quwain | D14: Sharjah | E14: Ras Al Khaimah | F14: Fujairah | G14: Dubai | H14: Ajman | I14: Abu Dhabi | J14: Within UAE | K14: Outside UAE | L14: All Locations
B15: تأمين الحريق | C15: 113.2694297 | D15: 64409.24333 | E15: 16731.57507 | F15: 439849.007 | G15: 2727451.63 | H15: 14237.48747 | I15: 972195.0258 | J15: =C15+D15+E15+F15+G15+H15+I15 -> 4234987.238 | K15: 1080365.018 | L15: =J15+K15 -> 5315352.256 | M15: Fire
B16: التأمين البحري والطيران | C16: 0 | D16: 22111.62656 | E16: 512.9886629 | F16: 1336.32752 | G16: 571511.1609 | H16: 7311.527405 | I16: 193101.9272 | J16: 795885.5582 | K16: 425142.2408 | L16: 1221027.799 | M16: Marine & Aviation
B17: تأمين السيارات والمركبات الأخرى | C17: 334.86225 | D17: 341379.0226 | E17: 118311.5428 | F17: 94517.99191 | G17: 3369891.589 | H17: 28300.13891 | I17: 1908993.341 | J17: 5861728.489 | K17: 517780.2088 | L17: 6379508.697 | M17: Motor & Transportation
B18: التأمين الهندسي والانشاءات والطاقة | C18: 0 | D18: 20140.53228 | E18: 3108.946514 | F18: 53845.99652 | G18: 598750.3001 | H18: 966.6282731 | I18: 444343.2265 | J18: 1121155.63 | K18: 469501.8712 | L18: 1590657.501 | M18: Engineering, Construction & Energy
B19: أخرى | C19: 2.78622 | D19: 7146.73664 | E19: 4130.898025 | F19: 530.96693 | G19: 894053.3304 | H19: 3049.181586 | I19: 133573.229 | J19: 1042487.129 | K19: 54156.31003 | L19: 1096643.439 | M19: Other
B20: اعادة التأمين غير النسبية - المسؤوليات والممتلكات | C20: 0 | D20: 0 | E20: 0 | F20: 0 | G20: 2560.55035 | H20: 0 | I20: 1382.503 | J20: 3943.05335 | K20: 0 | L20: 3943.05335 | M20: Reinsurance - Property & Liability
B21: المجموع - تأمين الممتلكات والمسؤوليات | C21: =C15+C16+C17+C18+C19+C20 -> 450.9178997 | D21: 455187.1614 | E21: 142795.9511 | F21: 590080.2899 | G21: 8164218.561 | H21: 53864.96364 | I21: 3653589.252 | J21: 13060187.1 | K21: 2546945.649 | L21: 15607132.75 | M21: Total - Property & Liability Insurance
B23: المجموع - تأمين صحي | C23: 10347.35698 | D23: 1324880.989 | E23: 113947.7014 | F23: 62697.85489 | G23: 15187890.73 | H23: 58887.26441 | I23: 8929177.871 | J23: =C23+D23+E23+F23+G23+H23+I23 -> 25687829.77 | K23: 520459.1046 | L23: =J23+K23 -> 26208288.87 | M23: Total - Health Insurance
B25: تأمين حياة جماعي | C25: 1021.544226 | D25: 18651.75075 | E25: 3180.718587 | F25: 1867.353814 | G25: 282004.8776 | H25: 2297.188235 | I25: 205054.1127 | J25: =C25+D25+E25+F25+G25+H25+I25 -> 514077.5459 | K25: 285704.3709 | L25: =J25+K25 -> 799781.9168 | M25: Group Life
B26: تأمين ائتمان حياة جماعي | C26: 0 | D26: 2110.18357 | E26: 11400.18487 | F26: 0 | G26: 74673.14652 | H26: 0 | I26: 69938.1494 | J26: 158121.6644 | K26: 20385.57857 | L26: 178507.2429 | M26: Group Credit Life
B27: تأمين حياة فردي | C27: 5373.825105 | D27: 114976.6602 | E27: 18043.89286 | F27: 6353.317466 | G27: 2747513.059 | H27: 33224.29449 | I27: 299510.3457 | J27: 3224995.395 | K27: 98367.5157 | L27: 3323362.91 | M27: Individual Life
B28: دفعات الحياة وتكوين الأموال | C28: 0 | D28: 0 | E28: 0 | F28: 0 | G28: 84310.97396 | H28: 0 | I28: 2736.148411 | J28: 87047.12237 | K28: 5.000000237e-05 | L28: 87047.12242 | M28: Annuities & Fund Accumulation
B29: المجموع - تأمين الأشخاص وعمليات تكوين الأموال | C29: =C25+C26+C27+C28 -> 6395.369331 | D29: 135738.5945 | E29: 32624.79632 | F29: 8220.67128 | G29: 3188502.057 | H29: 35521.48273 | I29: 577238.7562 | J29: 3984241.727 | K29: 404457.4652 | L29: 4388699.193 | M29: Total - Insurance of Persons & Fund Accumulation
B31: المجموع - كافة فروع التأمين | C31: =C21+C23+C29 -> 17193.64421 | D31: 1915806.745 | E31: 289368.4488 | F31: 660998.816 | G31: 26540611.35 | H31: 148273.7108 | I31: 13160005.88 | J31: 42732258.59 | K31: 3471862.219 | L31: 46204120.81 | M31: TOTAL - All Types of Business Combined

Sheet 27B
B6: صافي المطالبات المدفوعة حسب الإمارة
B7: Net Claims Paid by Emirate
B8: (2025)
B11: جدول رقم 27B | M11: TABLE 27B
B12: بالألف درهم | M12: AED in 000's
B13: فروع التأمين | C13: أم القيوين | D13: الشارقة | E13: رأس الخيمة | F13: الفجيرة | G13: دبي | H13: عجمان | I13: أبو ظبي | J13: داخل الدولة | K13: خارج الدولة | L13: جميع المواقع | M13: Line of Business
C14: Umm Al Quwain | D14: Sharjah | E14: Ras Al Khaimah | F14: Fujairah | G14: Dubai | H14: Ajman | I14: Abu Dhabi | J14: Within UAE | K14: Outside UAE | L14: All Locations
B15: تأمين الحريق | C15: 14.89560195 | D15: 11110.17395 | E15: 2133.729154 | F15: 55524.57087 | G15: 179517.8951 | H15: 198.4959586 | I15: 84591.23204 | J15: =C15+D15+E15+F15+G15+H15+I15 -> 333090.9926 | K15: 266293.8734 | L15: =J15+K15 -> 599384.8661 | M15: Fire
B16: التأمين البحري والطيران | C16: 0 | D16: 11558.39895 | E16: 35.6239815 | F16: 28.17634 | G16: 65956.25993 | H16: 1080.411524 | I16: 32994.54717 | J16: 111653.4179 | K16: 152071.0243 | L16: 263724.4422 | M16: Marine & Aviation
B17: تأمين السيارات والمركبات الأخرى | C17: 334.86225 | D17: 304049.6603 | E17: 109543.7399 | F17: 85990.84257 | G17: 2966170.389 | H17: 25743.69344 | I17: 1429944.401 | J17: 4921777.588 | K17: 505301.3176 | L17: 5427078.905 | M17: Motor & Transportation
B18: التأمين الهندسي والانشاءات والطاقة | C18: 0 | D18: 2211.407008 | E18: 281.4397195 | F18: 9070.61912 | G18: 157804.3793 | H18: 110.1229087 | I18: 25649.01425 | J18: 195126.9823 | K18: 175032.0302 | L18: 370159.0126 | M18: Engineering, Construction & Energy
B19: أخرى | C19: 0.83587 | D19: 2230.6035 | E19: 3343.015173 | F19: 120.95685 | G19: 191722.6187 | H19: 879.5616789 | I19: 47967.73261 | J19: 246265.3243 | K19: 9982.414501 | L19: 256247.7388 | M19: Other
B20: اعادة التأمين غير النسبية - المسؤوليات والممتلكات | C20: 0 | D20: 0 | E20: 0 | F20: 0 | G20: 2555.62535 | H20: 0 | I20: -1892.795263 | J20: 662.8300875 | K20: 0 | L20: 662.8300875 | M20: Reinsurance - Property & Liability
B21: المجموع - تأمين الممتلكات والمسؤوليات | C21: =C15+C16+C17+C18+C19+C20 -> 350.593722 | D21: 331160.2437 | E21: 115337.5479 | F21: 150735.1658 | G21: 3563727.167 | H21: 28012.28551 | I21: 1619254.131 | J21: 5808577.135 | K21: 1108680.66 | L21: 6917257.795 | M21: Total - Property & Liability Insurance
B23: المجموع - تأمين صحي | C23: 5746.309009 | D23: 585459.2079 | E23: 77892.52135 | F23: 29069.15439 | G23: 8809276.551 | H23: 31758.32844 | I23: 6912520.242 | J23: =C23+D23+E23+F23+G23+H23+I23 -> 16451722.31 | K23: -708652.2572 | L23: =J23+K23 -> 15743070.06 | M23: Total - Health Insurance
B25: تأمين حياة جماعي | C25: 336.2321867 | D25: 4017.334363 | E25: 1048.797568 | F25: 378.2104212 | G25: 50429.75031 | H25: -472.5957872 | I25: 50109.15474 | J25: =C25+D25+E25+F25+G25+H25+I25 -> 105846.8838 | K25: 77086.91217 | L25: =J25+K25 -> 182933.796 | M25: Group Life
B26: تأمين ائتمان حياة جماعي | C26: 0 | D26: 165.795414 | E26: 1160.21916 | F26: 0 | G26: 18287.14885 | H26: 0 | I26: 23853.68043 | J26: 43466.84385 | K26: 5235.082065 | L26: 48701.92592 | M26: Group Credit Life
B27: تأمين حياة فردي | C27: 5370.981045 | D27: 114803.5696 | E27: 18003.09347 | F27: 6350.054737 | G27: 2531375.881 | H27: 33183.8026 | I27: 292781.2657 | J27: 3001868.648 | K27: 94903.96327 | L27: 3096772.611 | M27: Individual Life
B28: دفعات الحياة وتكوين الأموال | C28: 0 | D28: 0 | E28: 0 | F28: 0 | G28: 84310.97396 | H28: 0 | I28: 2736.148411 | J28: 87047.12237 | K28: 5.000000237e-05 | L28: 87047.12242 | M28: Annuities & Fund Accumulation
B29: المجموع - تأمين الأشخاص وعمليات تكوين الأموال | C29: =C25+C26+C27+C28 -> 5707.213231 | D29: 118986.6994 | E29: 20212.1102 | F29: 6728.265158 | G29: 2684403.754 | H29: 32711.20681 | I29: 369480.2492 | J29: 3238229.498 | K29: 177225.9576 | L29: 3415455.456 | M29: Total - Insurance of Persons & Fund Accumulation
B31: المجموع - كافة فروع التأمين | C31: =C21+C23+C29 -> 11804.11596 | D31: 1035606.151 | E31: 213442.1795 | F31: 186532.5853 | G31: 15057407.47 | H31: 92481.82077 | I31: 8901254.623 | J31: 25498528.95 | K31: 577254.3605 | L31: 26075783.31 | M31: TOTAL - All Types of Business Combined

Sheet 28A
B6: البيانات بالإجمالي لإمارة دبي
B7: Gross Results for Dubai
B8: (2025)
B11: جدول رقم 28A | H11: TABLE 28A
B12: بالألف درهم | H12: AED in 000's
B13: فروع التأمين | C13: الأقساط المكتتبة | D13: أعداد الوثائق | E13: مخصص الأقساط غير المكتسبة | F13: المطالبات المدفوعة | G13: مخصص المطالبات تحت التسوية | H13: Line of Business
C14: Written Premium | D14: Number of Policies | E14: Unearned Premium Reserve | F14: Claims Paid | G14: Outstanding Claim Reserves
B15: تأمين الحريق | C15: 3042334.646 | D15: 111805.1735 | E15: 996906.972 | F15: 2727451.63 | G15: 4546621.552 | H15: Fire
B16: التأمين البحري والطيران | C16: 1065982.036 | D16: 178450.7089 | E16: 388698.5803 | F16: 571511.1609 | G16: 1071474.059 | H16: Marine & Aviation
B17: تأمين السيارات والمركبات الأخرى | C17: 6168510.679 | D17: 2575788.304 | E17: 3241233.165 | F17: 3369891.589 | G17: 1853041.863 | H17: Motor & Transportation
B18: التأمين الهندسي والانشاءات والطاقة | C18: 1209977.501 | D18: 29528.96518 | E18: 833324.5338 | F18: 598750.3001 | G18: 1777831.625 | H18: Engineering, Construction & Energy
B19: أخرى | C19: 4229813.031 | D19: 4750966.447 | E19: 3081781.045 | F19: 894053.3304 | G19: 1357308.83 | H19: Other
B20: اعادة التأمين غير النسبية - المسؤوليات والممتلكات | C20: 1259.11907 | D20: 276 | E20: 0 | F20: 2560.55035 | G20: 0 | H20: Reinsurance - Property & Liability
B21: المجموع - تأمين الممتلكات والمسؤوليات | C21: =C15+C16+C17+C18+C19+C20 -> 15717877.01 | D21: =D15+D16+D17+D18+D19+D20 -> 7646815.599 | E21: 8541944.297 | F21: 8164218.561 | G21: 10606277.93 | H21: Total - Property & Liability Insurance
B23: المجموع - تأمين صحي | C23: 21668028.88 | D23: 1312256.936 | E23: 7500065.41 | F23: 15187890.73 | G23: 4015567.799 | H23: Total - Health Insurance
B25: تأمين حياة جماعي | C25: 625838.4728 | D25: 8881.989301 | E25: 164166.4403 | F25: 282004.8776 | G25: 315186.847 | H25: Group Life
B26: تأمين ائتمان حياة جماعي | C26: 433048.4508 | D26: 792.265754 | E26: 20051.54806 | F26: 74673.14652 | G26: 318709.9492 | H26: Group Credit Life
B27: تأمين حياة فردي | C27: 5308906.143 | D27: 293009.5645 | E27: 351205.619 | F27: 2747513.059 | G27: 34278616.96 | H27: Individual Life
B28: دفعات الحياة وتكوين الأموال | C28: 28121.94059 | D28: 508 | E28: 0 | F28: 84310.97396 | G28: 492814.9835 | H28: Annuities & Fund Accumulation
B29: المجموع - تأمين الأشخاص وعمليات تكوين الأموال | C29: =C25+C26+C27+C28 -> 6395915.007 | D29: =D25+D26+D27+D28 -> 303191.8195 | E29: 535423.6073 | F29: 3188502.057 | G29: 35405328.74 | H29: Total - Insurance of Persons & Fund Accumulation
B31: المجموع - كافة فروع التأمين | C31: =C21+C23+C29 -> 43781820.9 | D31: =D21+D23+D29 -> 9262264.354 | E31: =E21+E23+E29 -> 16577433.31 | F31: =F21+F23+F29 -> 26540611.35 | G31: =G21+G23+G29 -> 50027174.47 | H31: TOTAL - All Types of Business Combined

Sheet 28B
B6: البيانات بالصافي لإمارة دبي
B7: Net Results for Dubai
B8: (2025)
B11: جدول رقم 28B | H11: TABLE 28B
B12: بالألف درهم | H12: AED in 000's
B13: فروع التأمين | C13: الأقساط المكتتبة | D13: أعداد الوثائق | E13: مخصص الأقساط غير المكتسبة | F13: المطالبات المدفوعة | G13: مخصص المطالبات تحت التسوية | H13: Line of Business
C14: Written Premium | D14: Number of Policies | E14: Unearned Premium Reserve | F14: Claims Paid | G14: Outstanding Claim Reserves
B15: تأمين الحريق | C15: 594960.7294 | D15: 111805.1735 | E15: 180413.5414 | F15: 179517.8951 | G15: 415878.1799 | H15: Fire
B16: التأمين البحري والطيران | C16: 245708.311 | D16: 178450.7089 | E16: 83740.40647 | F16: 65956.25993 | G16: 363762.5236 | H16: Marine & Aviation
B17: تأمين السيارات والمركبات الأخرى | C17: 5534152.681 | D17: 2575788.304 | E17: 2945033.772 | F17: 2966170.389 | G17: 1525813.214 | H17: Motor & Transportation
B18: التأمين الهندسي والانشاءات والطاقة | C18: 71391.94792 | D18: 29528.96518 | E18: 69285.05315 | F18: 157804.3793 | G18: 266259.1252 | H18: Engineering, Construction & Energy
B19: أخرى | C19: 1375411.088 | D19: 4750966.447 | E19: 634574.1119 | F19: 191722.6187 | G19: 320270.6907 | H19: Other
B20: اعادة التأمين غير النسبية - المسؤوليات والممتلكات | C20: 1133.56007 | D20: 276 | E20: 0 | F20: 2555.62535 | G20: 0 | H20: Reinsurance - Property & Liability
B21: المجموع - تأمين الممتلكات والمسؤوليات | C21: =C15+C16+C17+C18+C19+C20 -> 7822758.317 | D21: =D15+D16+D17+D18+D19+D20 -> 7646815.599 | E21: =E15+E16+E17+E18+E19+E20 -> 3913046.885 | F21: =F15+F16+F17+F18+F19+F20 -> 3563727.167 | G21: =G15+G16+G17+G18+G19+G20 -> 2891983.733 | H21: Total - Property & Liability Insurance
B23: المجموع - تأمين صحي | C23: 12987994.09 | D23: 1312256.936 | E23: 4284400.749 | F23: 8809276.551 | G23: 2392926.638 | H23: Total - Health Insurance
B25: تأمين حياة جماعي | C25: 210847.1482 | D25: 8881.989301 | E25: 59371.771 | F25: 50429.75031 | G25: 55234.38518 | H25: Group Life
B26: تأمين ائتمان حياة جماعي | C26: 136011.4872 | D26: 792.265754 | E26: 6106.625927 | F26: 18287.14885 | G26: 44257.08205 | H26: Group Credit Life
B27: تأمين حياة فردي | C27: 5064418.226 | D27: 293009.5645 | E27: 349819.5035 | F27: 2531375.881 | G27: 32886706.28 | H27: Individual Life
B28: دفعات الحياة وتكوين الأموال | C28: 28120.27307 | D28: 508 | E28: 0 | F28: 84310.97396 | G28: 492814.9835 | H28: Annuities & Fund Accumulation
B29: المجموع - تأمين الأشخاص وعمليات تكوين الأموال | C29: =C25+C26+C27+C28 -> 5439397.135 | D29: =D25+D26+D27+D28 -> 303191.8195 | E29: =E25+E26+E27+E28 -> 415297.9004 | F29: =F25+F26+F27+F28 -> 2684403.754 | G29: =G25+G26+G27+G28 -> 33479012.73 | H29: Total - Insurance of Persons & Fund Accumulation
B31: المجموع - كافة فروع التأمين | C31: =C21+C23+C29 -> 26250149.54 | D31: =D21+D23+D29 -> 9262264.354 | E31: =E21+E23+E29 -> 8612745.534 | F31: =F21+F23+F29 -> 15057407.47 | G31: =G21+G23+G29 -> 38763923.11 | H31: TOTAL - All Types of Business Combined

Sheet 29A
B6: البيانات بالإجمالي لإمارة أبو ظبي
B7: Gross Results for Abu Dhabi
B8: (2025)
B11: جدول رقم 29A | H11: TABLE 29A
B12: بالألف درهم | H12: AED in 000's
B13: فروع التأمين | C13: الأقساط المكتتبة | D13: أعداد الوثائق | E13: مخصص الأقساط غير المكتسبة | F13: المطالبات المدفوعة | G13: مخصص المطالبات تحت التسوية | H13: Line of Business
C14: Written Premium | D14: Number of Policies | E14: Unearned Premium Reserve | F14: Claims Paid | G14: Outstanding Claim Reserves
B15: تأمين الحريق | C15: 1563378.869 | D15: 32735.71082 | E15: 578326.5119 | F15: 972195.0258 | G15: 2145904.62 | H15: Fire
B16: التأمين البحري والطيران | C16: 620693.9316 | D16: 23099.32746 | E16: 196007.8958 | F16: 193101.9272 | G16: 428933.8368 | H16: Marine & Aviation
B17: تأمين السيارات والمركبات الأخرى | C17: 2177408.375 | D17: 1470036.652 | E17: 1126319.551 | F17: 1908993.341 | G17: 808277.4205 | H17: Motor & Transportation
B18: التأمين الهندسي والانشاءات والطاقة | C18: 1554370.576 | D18: 15909.20496 | E18: 1115705.403 | F18: 444343.2265 | G18: 1621746.044 | H18: Engineering, Construction & Energy
B19: أخرى | C19: 1470093.547 | D19: 1822082.332 | E19: 507151.1426 | F19: 133573.229 | G19: 520780.4309 | H19: Other
B20: اعادة التأمين غير النسبية - المسؤوليات والممتلكات | C20: 4295.32004 | D20: 723 | E20: 2437.951524 | F20: 1382.503 | G20: 11279.50809 | H20: Reinsurance - Property & Liability
B21: المجموع - تأمين الممتلكات والمسؤوليات | C21: =C15+C16+C17+C18+C19+C20 -> 7390240.619 | D21: =D15+D16+D17+D18+D19+D20 -> 3364586.227 | E21: 3525948.456 | F21: 3653589.252 | G21: 5536921.86 | H21: Total - Property & Liability Insurance
B23: المجموع - تأمين صحي | C23: 11924704.25 | D23: 636678.34 | E23: 3808946.763 | F23: 8929177.871 | G23: 2941320.612 | H23: Total - Health Insurance
B25: تأمين حياة جماعي | C25: 355785.6347 | D25: 2763.550749 | E25: 74292.69109 | F25: 205054.1127 | G25: 192194.9984 | H25: Group Life
B26: تأمين ائتمان حياة جماعي | C26: 180968.1394 | D26: 164.841721 | E26: 0 | F26: 69938.1494 | G26: 613521.1778 | H26: Group Credit Life
B27: تأمين حياة فردي | C27: 585050.4273 | D27: 31950.35166 | E27: 164.9571555 | F27: 299510.3457 | G27: 2692809.601 | H27: Individual Life
B28: دفعات الحياة وتكوين الأموال | C28: 31.93859959 | D28: 1 | E28: 0 | F28: 2736.148411 | G28: 0 | H28: Annuities & Fund Accumulation
B29: المجموع - تأمين الأشخاص وعمليات تكوين الأموال | C29: =C25+C26+C27+C28 -> 1121836.14 | D29: =D25+D26+D27+D28 -> 34879.74413 | E29: =E25+E26+E27+E28 -> 74457.64824 | F29: =F25+F26+F27+F28 -> 577238.7562 | G29: =G25+G26+G27+G28 -> 3498525.778 | H29: Total - Insurance of Persons & Fund Accumulation
B31: المجموع - كافة فروع التأمين | C31: =C21+C23+C29 -> 20436781.01 | D31: =D21+D23+D29 -> 4036144.311 | E31: 7409352.867 | F31: 13160005.88 | G31: 11976768.25 | H31: TOTAL - All Types of Business Combined

Sheet 29B
B6: البيانات بالصافي لإمارة أبو ظبي
B7: Net Results for Abu Dhabi
B8: (2025)
B11: جدول رقم 29B | H11: TABLE 29B
B12: بالألف درهم | H12: AED in 000's
B13: فروع التأمين | C13: الأقساط المكتتبة | D13: أعداد الوثائق | E13: مخصص الأقساط غير المكتسبة | F13: المطالبات المدفوعة | G13: مخصص المطالبات تحت التسوية | H13: Line of Business
C14: Written Premium | D14: Number of Policies | E14: Unearned Premium Reserve | F14: Claims Paid | G14: Outstanding Claim Reserves
B15: تأمين الحريق | C15: 180198.1457 | D15: 32735.71082 | E15: 43263.22455 | F15: 84591.23204 | G15: 273471.9518 | H15: Fire
B16: التأمين البحري والطيران | C16: 112536.6126 | D16: 23099.32746 | E16: -21131.34482 | F16: 32994.54717 | G16: -44642.20949 | H16: Marine & Aviation
B17: تأمين السيارات والمركبات الأخرى | C17: 1652199.245 | D17: 1470036.652 | E17: 977917.8676 | F17: 1429944.401 | G17: 641072.0679 | H17: Motor & Transportation
B18: التأمين الهندسي والانشاءات والطاقة | C18: 287276.2612 | D18: 15909.20496 | E18: 76172.67009 | F18: 25649.01425 | G18: 124158.639 | H18: Engineering, Construction & Energy
B19: أخرى | C19: 395749.7202 | D19: 1822082.332 | E19: 137010.5517 | F19: 47967.73261 | G19: 109383.038 | H19: Other
B20: اعادة التأمين غير النسبية - المسؤوليات والممتلكات | C20: 2683.52582 | D20: 723 | E20: 1941.603519 | F20: -1892.795263 | G20: 1341.335508 | H20: Reinsurance - Property & Liability
B21: المجموع - تأمين الممتلكات والمسؤوليات | C21: =C15+C16+C17+C18+C19+C20 -> 2630643.511 | D21: =D15+D16+D17+D18+D19+D20 -> 3364586.227 | E21: =E15+E16+E17+E18+E19+E20 -> 1215174.573 | F21: =F15+F16+F17+F18+F19+F20 -> 1619254.131 | G21: =G15+G16+G17+G18+G19+G20 -> 1104784.823 | H21: Total - Property & Liability Insurance
B23: المجموع - تأمين صحي | C23: 9140952.861 | D23: 636678.34 | E23: 2838920.191 | F23: 6912520.242 | G23: 2187252.114 | H23: Total - Health Insurance
B25: تأمين حياة جماعي | C25: 97121.61832 | D25: 2763.550749 | E25: 51621.75012 | F25: 50109.15474 | G25: 70937.80414 | H25: Group Life
B26: تأمين ائتمان حياة جماعي | C26: 53536.44844 | D26: 164.841721 | E26: 0 | F26: 23853.68043 | G26: 409027.3232 | H26: Group Credit Life
B27: تأمين حياة فردي | C27: 567513.2824 | D27: 31950.35166 | E27: 136.5998235 | F27: 292781.2657 | G27: 2674943.623 | H27: Individual Life
B28: دفعات الحياة وتكوين الأموال | C28: 31.33898039 | D28: 1 | E28: 0 | F28: 2736.148411 | G28: 0 | H28: Annuities & Fund Accumulation
B29: المجموع - تأمين الأشخاص وعمليات تكوين الأموال | C29: =C25+C26+C27+C28 -> 718202.6881 | D29: =D25+D26+D27+D28 -> 34879.74413 | E29: =E25+E26+E27+E28 -> 51758.34994 | F29: =F25+F26+F27+F28 -> 369480.2492 | G29: =G25+G26+G27+G28 -> 3154908.751 | H29: Total - Insurance of Persons & Fund Accumulation
B31: المجموع - كافة فروع التأمين | C31: =C21+C23+C29 -> 12489799.06 | D31: =D21+D23+D29 -> 4036144.311 | E31: =E21+E23+E29 -> 4105853.113 | F31: =F21+F23+F29 -> 8901254.623 | G31: =G21+G23+G29 -> 6446945.688 | H31: TOTAL - All Types of Business Combined

Sheet 30A
B6: البيانات بالإجمالي لإمارة عجمان
B7: Gross Results for Ajman
B8: (2025)
B11: جدول رقم 30A | H11: TABLE 30A
B12: بالألف درهم | H12: AED in 000's
B13: فروع التأمين | C13: الأقساط المكتتبة | D13: أعداد الوثائق | E13: مخصص الأقساط غير المكتسبة | F13: المطالبات المدفوعة | G13: مخصص المطالبات تحت التسوية | H13: Line of Business
C14: Written Premium | D14: Number of Policies | E14: Unearned Premium Reserve | F14: Claims Paid | G14: Outstanding Claim Reserves
B15: تأمين الحريق | C15: 11980.49009 | D15: 1929 | E15: 2996.285468 | F15: 14237.48747 | G15: 17975.60026 | H15: Fire
B16: التأمين البحري والطيران | C16: 2503.2624 | D16: 770 | E16: 1184.093197 | F16: 7311.527405 | G16: 899.7372594 | H16: Marine & Aviation
B17: تأمين السيارات والمركبات الأخرى | C17: 46333.40074 | D17: 18100 | E17: 14468.1036 | F17: 28300.13891 | G17: 28925.27167 | H17: Motor & Transportation
B18: التأمين الهندسي والانشاءات والطاقة | C18: 6628.073266 | D18: 170 | E18: 5403.379628 | F18: 966.6282731 | G18: 4922.852261 | H18: Engineering, Construction & Energy
B19: أخرى | C19: 88082.89493 | D19: 245555 | E19: 5984.553687 | F19: 3049.181586 | G19: 9622.727127 | H19: Other
B20: اعادة التأمين غير النسبية - المسؤوليات والممتلكات | C20: 0 | D20: 0 | E20: 0 | F20: 0 | G20: 0 | H20: Reinsurance - Property & Liability
B21: المجموع - تأمين الممتلكات والمسؤوليات | C21: =C15+C16+C17+C18+C19+C20 -> 155528.1214 | D21: =D15+D16+D17+D18+D19+D20 -> 266524 | E21: 30036.41558 | F21: 53864.96364 | G21: 62346.18858 | H21: Total - Property & Liability Insurance
B23: المجموع - تأمين صحي | C23: 129874.1176 | D23: 49994 | E23: 34640.3642 | F23: 58887.26441 | G23: 16669.5604 | H23: Total - Health Insurance
B25: تأمين حياة جماعي | C25: 5545.919708 | D25: 80 | E25: 1767.23128 | F25: 2297.188235 | G25: 1765.292665 | H25: Group Life
B26: تأمين ائتمان حياة جماعي | C26: 0 | D26: 0 | E26: 0 | F26: 0 | G26: 0 | H26: Group Credit Life
B27: تأمين حياة فردي | C27: 38247.8589 | D27: 1574 | E27: 0 | F27: 33224.29449 | G27: 142437.4426 | H27: Individual Life
B28: دفعات الحياة وتكوين الأموال | C28: 0 | D28: 0 | E28: 0 | F28: 0 | G28: 0 | H28: Annuities & Fund Accumulation
B29: المجموع - تأمين الأشخاص وعمليات تكوين الأموال | C29: =C25+C26+C27+C28 -> 43793.77861 | D29: =D25+D26+D27+D28 -> 1654 | E29: 1767.23128 | F29: 35521.48273 | G29: 144202.7353 | H29: Total - Insurance of Persons & Fund Accumulation
B31: المجموع - كافة فروع التأمين | C31: =C21+C23+C29 -> 329196.0176 | D31: =D21+D23+D29 -> 318172 | E31: 66444.01106 | F31: 148273.7108 | G31: 223218.4843 | H31: TOTAL - All Types of Business Combined

Sheet 30B
B6: البيانات بالصافي لإمارة عجمان
B7: Net Results for Ajman
B8: (2025)
B11: جدول رقم 30B | H11: TABLE 30B
B12: بالألف درهم | H12: AED in 000's
B13: فروع التأمين | C13: الأقساط المكتتبة | D13: أعداد الوثائق | E13: مخصص الأقساط غير المكتسبة | F13: المطالبات المدفوعة | G13: مخصص المطالبات تحت التسوية | H13: Line of Business
C14: Written Premium | D14: Number of Policies | E14: Unearned Premium Reserve | F14: Claims Paid | G14: Outstanding Claim Reserves
B15: تأمين الحريق | C15: 2198.423233 | D15: 1929 | E15: 545.3422531 | F15: 198.4959586 | G15: 11643.74124 | H15: Fire
B16: التأمين البحري والطيران | C16: 555.3389603 | D16: 770 | E16: 406.6855387 | F16: 1080.411524 | G16: 196.4923825 | H16: Marine & Aviation
B17: تأمين السيارات والمركبات الأخرى | C17: 43402.83858 | D17: 18100 | E17: 13945.98069 | F17: 25743.69344 | G17: 26580.34295 | H17: Motor & Transportation
B18: التأمين الهندسي والانشاءات والطاقة | C18: 17.57679658 | D18: 170 | E18: 507.5825246 | F18: 110.1229087 | G18: 1797.291103 | H18: Engineering, Construction & Energy
B19: أخرى | C19: 16419.13945 | D19: 245555 | E19: 1187.239354 | F19: 879.5616789 | G19: 978.064364 | H19: Other
B20: اعادة التأمين غير النسبية - المسؤوليات والممتلكات | C20: 0 | D20: 0 | E20: 0 | F20: 0 | G20: 0 | H20: Reinsurance - Property & Liability
B21: المجموع - تأمين الممتلكات والمسؤوليات | C21: =C15+C16+C17+C18+C19+C20 -> 62593.31702 | D21: =D15+D16+D17+D18+D19+D20 -> 266524 | E21: 16592.83036 | F21: 28012.28551 | G21: 41195.93204 | H21: Total - Property & Liability Insurance
B23: المجموع - تأمين صحي | C23: 79198.97932 | D23: 49994 | E23: 21699.0366 | F23: 31758.32844 | G23: 9816.504303 | H23: Total - Health Insurance
B25: تأمين حياة جماعي | C25: 2551.939399 | D25: 80 | E25: 863.6649315 | F25: -472.5957872 | G25: 455.1079974 | H25: Group Life
B26: تأمين ائتمان حياة جماعي | C26: 0 | D26: 0 | E26: 0 | F26: 0 | G26: 0 | H26: Group Credit Life
B27: تأمين حياة فردي | C27: 38074.70243 | D27: 1574 | E27: 0 | F27: 33183.8026 | G27: 142281.3265 | H27: Individual Life
B28: دفعات الحياة وتكوين الأموال | C28: 0 | D28: 0 | E28: 0 | F28: 0 | G28: 0 | H28: Annuities & Fund Accumulation
B29: المجموع - تأمين الأشخاص وعمليات تكوين الأموال | C29: =C25+C26+C27+C28 -> 40626.64183 | D29: =D25+D26+D27+D28 -> 1654 | E29: 863.6649315 | F29: 32711.20681 | G29: 142736.4345 | H29: Total - Insurance of Persons & Fund Accumulation
B31: المجموع - كافة فروع التأمين | C31: =C21+C23+C29 -> 182418.9382 | D31: =D21+D23+D29 -> 318172 | E31: 39155.53189 | F31: 92481.82077 | G31: 193748.8708 | H31: TOTAL - All Types of Business Combined

Sheet 31A
B6: البيانات بالإجمالي لإمارة أم القيوين
B7: Gross Results for Umm Al Quwain
B8: (2025)
B11: جدول رقم 31A | H11: TABLE 31A
B12: بالألف درهم | H12: AED in 000's
B13: فروع التأمين | C13: الأقساط المكتتبة | D13: أعداد الوثائق | E13: مخصص الأقساط غير المكتسبة | F13: المطالبات المدفوعة | G13: مخصص المطالبات تحت التسوية | H13: Line of Business
C14: Written Premium | D14: Number of Policies | E14: Unearned Premium Reserve | F14: Claims Paid | G14: Outstanding Claim Reserves
B15: تأمين الحريق | C15: 4863.72485 | D15: 330 | E15: 175.7817116 | F15: 113.2694297 | G15: 267.0382565 | H15: Fire
B16: التأمين البحري والطيران | C16: 28.23453 | D16: 2 | E16: 37.74609973 | F16: 0 | G16: 9.291413978 | H16: Marine & Aviation
B17: تأمين السيارات والمركبات الأخرى | C17: 494.99179 | D17: 233 | E17: 266.92866 | F17: 334.86225 | G17: 436.7951889 | H17: Motor & Transportation
B18: التأمين الهندسي والانشاءات والطاقة | C18: 10.815 | D18: 1 | E18: 0 | F18: 0 | G18: 13.38848834 | H18: Engineering, Construction & Energy
B19: أخرى | C19: 19556.92267 | D19: 57917 | E19: 77.56644839 | F19: 2.78622 | G19: 144.9354096 | H19: Other
B20: اعادة التأمين غير النسبية - المسؤوليات والممتلكات | C20: 0 | D20: 0 | E20: 0 | F20: 0 | G20: 0 | H20: Reinsurance - Property & Liability
B21: المجموع - تأمين الممتلكات والمسؤوليات | C21: =C15+C16+C17+C18+C19+C20 -> 24954.68884 | D21: =D15+D16+D17+D18+D19+D20 -> 58483 | E21: 558.0229198 | F21: 450.9178997 | G21: 871.4487573 | H21: Total - Property & Liability Insurance
B23: المجموع - تأمين صحي | C23: 16718.41692 | D23: 4637 | E23: 2621.754843 | F23: 10347.35698 | G23: 1260.338466 | H23: Total - Health Insurance
B25: تأمين حياة جماعي | C25: 2460.445356 | D25: 22 | E25: 402.9802468 | F25: 1021.544226 | G25: 706.3866852 | H25: Group Life
B26: تأمين ائتمان حياة جماعي | C26: 0 | D26: 0 | E26: 0 | F26: 0 | G26: 0 | H26: Group Credit Life
B27: تأمين حياة فردي | C27: 7054.223807 | D27: 274 | E27: 0 | F27: 5373.825105 | G27: 22325.86359 | H27: Individual Life
B28: دفعات الحياة وتكوين الأموال | C28: 0 | D28: 0 | E28: 0 | F28: 0 | G28: 0 | H28: Annuities & Fund Accumulation
B29: المجموع - تأمين الأشخاص وعمليات تكوين الأموال | C29: =C25+C26+C27+C28 -> 9514.669163 | D29: =D25+D26+D27+D28 -> 296 | E29: 402.9802468 | F29: 6395.369331 | G29: 23032.25028 | H29: Total - Insurance of Persons & Fund Accumulation
B31: المجموع - كافة فروع التأمين | C31: =C21+C23+C29 -> 51187.77492 | D31: =D21+D23+D29 -> 63416 | E31: 3582.75801 | F31: 17193.64421 | G31: 25164.0375 | H31: TOTAL - All Types of Business Combined

Sheet 31B
B6: البيانات بالصافي لإمارة أم القيوين
B7: Net Results for Umm Al Quwain
B8: (2025)
B11: جدول رقم 31B | H11: TABLE 31B
B12: بالألف درهم | H12: AED in 000's
B13: فروع التأمين | C13: الأقساط المكتتبة | D13: أعداد الوثائق | E13: مخصص الأقساط غير المكتسبة | F13: المطالبات المدفوعة | G13: مخصص المطالبات تحت التسوية | H13: Line of Business
C14: Written Premium | D14: Number of Policies | E14: Unearned Premium Reserve | F14: Claims Paid | G14: Outstanding Claim Reserves
B15: تأمين الحريق | C15: 4733.217081 | D15: 330 | E15: 141.2873095 | F15: 14.89560195 | G15: 20.04557186 | H15: Fire
B16: التأمين البحري والطيران | C16: 8.47038 | D16: 2 | E16: 15.79172078 | F16: 0 | G16: 3.760062497 | H16: Marine & Aviation
B17: تأمين السيارات والمركبات الأخرى | C17: 494.99179 | D17: 233 | E17: 266.92866 | F17: 334.86225 | G17: 436.7686479 | H17: Motor & Transportation
B18: التأمين الهندسي والانشاءات والطاقة | C18: 0.304566567 | D18: 1 | E18: -0.1530517064 | F18: 0 | G18: 5.838976296 | H18: Engineering, Construction & Energy
B19: أخرى | C19: 3436.412014 | D19: 57917 | E19: 26.3609584 | F19: 0.83587 | G19: 47.3566753 | H19: Other
B20: اعادة التأمين غير النسبية - المسؤوليات والممتلكات | C20: 0 | D20: 0 | E20: 0 | F20: 0 | G20: 0 | H20: Reinsurance - Property & Liability
B21: المجموع - تأمين الممتلكات والمسؤوليات | C21: =C15+C16+C17+C18+C19+C20 -> 8673.395832 | D21: =D15+D16+D17+D18+D19+D20 -> 58483 | E21: 450.215597 | F21: 350.593722 | G21: 513.7699339 | H21: Total - Property & Liability Insurance
B23: المجموع - تأمين صحي | C23: 9054.35258 | D23: 4637 | E23: 1743.814022 | F23: 5746.309009 | G23: 749.8993753 | H23: Total - Health Insurance
B25: تأمين حياة جماعي | C25: 944.698452 | D25: 22 | E25: 301.0132794 | F25: 336.2321867 | G25: 186.4786666 | H25: Group Life
B26: تأمين ائتمان حياة جماعي | C26: 0 | D26: 0 | E26: 0 | F26: 0 | G26: 0 | H26: Group Credit Life
B27: تأمين حياة فردي | C27: 7026.870692 | D27: 274 | E27: 0 | F27: 5370.981045 | G27: 22312.63629 | H27: Individual Life
B28: دفعات الحياة وتكوين الأموال | C28: 0 | D28: 0 | E28: 0 | F28: 0 | G28: 0 | H28: Annuities & Fund Accumulation
B29: المجموع - تأمين الأشخاص وعمليات تكوين الأموال | C29: =C25+C26+C27+C28 -> 7971.569144 | D29: =D25+D26+D27+D28 -> 296 | E29: 301.0132794 | F29: 5707.213231 | G29: 22499.11495 | H29: Total - Insurance of Persons & Fund Accumulation
B31: المجموع - كافة فروع التأمين | C31: =C21+C23+C29 -> 25699.31756 | D31: =D21+D23+D29 -> 63416 | E31: 2495.042899 | F31: 11804.11596 | G31: 23762.78426 | H31: TOTAL - All Types of Business Combined

Sheet 32A
B6: البيانات بالإجمالي لإمارة الشارقة
B7: Gross Results for Sharjah
B8: (2025)
B11: جدول رقم 32A | H11: TABLE 32A
B12: بالألف درهم | H12: AED in 000's
B13: فروع التأمين | C13: الأقساط المكتتبة | D13: أعداد الوثائق | E13: مخصص الأقساط غير المكتسبة | F13: المطالبات المدفوعة | G13: مخصص المطالبات تحت التسوية | H13: Line of Business
C14: Written Premium | D14: Number of Policies | E14: Unearned Premium Reserve | F14: Claims Paid | G14: Outstanding Claim Reserves
B15: تأمين الحريق | C15: 105364.4125 | D15: 6997.847256 | E15: 32513.92247 | F15: 64409.24333 | G15: 83298.54271 | H15: Fire
B16: التأمين البحري والطيران | C16: 73620.38928 | D16: 12496.72654 | E16: 15847.45474 | F16: 22111.62656 | G16: 31322.12764 | H16: Marine & Aviation
B17: تأمين السيارات والمركبات الأخرى | C17: 370084.2808 | D17: 175430.4435 | E17: 129904.9044 | F17: 341379.0226 | G17: 185504.7902 | H17: Motor & Transportation
B18: التأمين الهندسي والانشاءات والطاقة | C18: 84734.21611 | D18: 2314.766953 | E18: 78664.02188 | F18: 20140.53228 | G18: 88679.32459 | H18: Engineering, Construction & Energy
B19: أخرى | C19: 209348.3651 | D19: 532892.3099 | E19: 28037.10082 | F19: 7146.73664 | G19: 36979.24087 | H19: Other
B20: اعادة التأمين غير النسبية - المسؤوليات والممتلكات | C20: 99.80868 | D20: 33 | E20: 0 | F20: 0 | G20: 0 | H20: Reinsurance - Property & Liability
B21: المجموع - تأمين الممتلكات والمسؤوليات | C21: =C15+C16+C17+C18+C19+C20 -> 843251.4724 | D21: =D15+D16+D17+D18+D19+D20 -> 730165.0941 | E21: 284967.4043 | F21: 455187.1614 | G21: 425784.026 | H21: Total - Property & Liability Insurance
B23: المجموع - تأمين صحي | C23: 1810268.392 | D23: 358714.6795 | E23: 274279.3742 | F23: 1324880.989 | G23: 572243.7649 | H23: Total - Health Insurance
B25: تأمين حياة جماعي | C25: 37745.72123 | D25: 2295.984072 | E25: 12519.45513 | F25: 18651.75075 | G25: 15378.70514 | H25: Group Life
B26: تأمين ائتمان حياة جماعي | C26: 240.45257 | D26: 3.366781008 | E26: 0 | F26: 2110.18357 | G26: 361.7829276 | H26: Group Credit Life
B27: تأمين حياة فردي | C27: 151400.655 | D27: 7502.367646 | E27: 129.6546959 | F27: 114976.6602 | G27: 781249.6634 | H27: Individual Life
B28: دفعات الحياة وتكوين الأموال | C28: 0 | D28: 0 | E28: 0 | F28: 0 | G28: 0 | H28: Annuities & Fund Accumulation
B29: المجموع - تأمين الأشخاص وعمليات تكوين الأموال | C29: =C25+C26+C27+C28 -> 189386.8288 | D29: =D25+D26+D27+D28 -> 9801.718499 | E29: 12649.10983 | F29: 135738.5945 | G29: 796990.1515 | H29: Total - Insurance of Persons & Fund Accumulation
B31: المجموع - كافة فروع التأمين | C31: =C21+C23+C29 -> 2842906.693 | D31: =D21+D23+D29 -> 1098681.492 | E31: 571895.8883 | F31: 1915806.745 | G31: 1795017.942 | H31: TOTAL - All Types of Business Combined

Sheet 32B
B6: البيانات بالصافي لإمارة الشارقة
B7: Net Results for Sharjah
B8: (2025)
B11: جدول رقم 32B | H11: TABLE 32B
B12: بالألف درهم | H12: AED in 000's
B13: فروع التأمين | C13: الأقساط المكتتبة | D13: أعداد الوثائق | E13: مخصص الأقساط غير المكتسبة | F13: المطالبات المدفوعة | G13: مخصص المطالبات تحت التسوية | H13: Line of Business
C14: Written Premium | D14: Number of Policies | E14: Unearned Premium Reserve | F14: Claims Paid | G14: Outstanding Claim Reserves
B15: تأمين الحريق | C15: 27295.89694 | D15: 6997.847256 | E15: 9382.1224 | F15: 11110.17395 | G15: 16914.26124 | H15: Fire
B16: التأمين البحري والطيران | C16: 18100.39143 | D16: 12496.72654 | E16: 5325.660805 | F16: 11558.39895 | G16: 13497.37204 | H16: Marine & Aviation
B17: تأمين السيارات والمركبات الأخرى | C17: 311680.8558 | D17: 175430.4435 | E17: 108804.7346 | F17: 304049.6603 | G17: 152058.7525 | H17: Motor & Transportation
B18: التأمين الهندسي والانشاءات والطاقة | C18: -1207.468094 | D18: 2314.766953 | E18: 4958.303694 | F18: 2211.407008 | G18: 9356.948294 | H18: Engineering, Construction & Energy
B19: أخرى | C19: 51209.62889 | D19: 532892.3099 | E19: 7410.867468 | F19: 2230.6035 | G19: 6974.135643 | H19: Other
B20: اعادة التأمين غير النسبية - المسؤوليات والممتلكات | C20: 99.80868 | D20: 33 | E20: 0 | F20: 0 | G20: 0 | H20: Reinsurance - Property & Liability
B21: المجموع - تأمين الممتلكات والمسؤوليات | C21: =C15+C16+C17+C18+C19+C20 -> 407179.1137 | D21: =D15+D16+D17+D18+D19+D20 -> 730165.0941 | E21: 135881.689 | F21: 331160.2437 | G21: 198801.4697 | H21: Total - Property & Liability Insurance
B23: المجموع - تأمين صحي | C23: 856216.0791 | D23: 358714.6795 | E23: 200303.2605 | F23: 585459.2079 | G23: 196266.3883 | H23: Total - Health Insurance
B25: تأمين حياة جماعي | C25: 13387.05623 | D25: 2295.984072 | E25: 4884.667747 | F25: 4017.334363 | G25: 3482.589338 | H25: Group Life
B26: تأمين ائتمان حياة جماعي | C26: 55.82048 | D26: 3.366781008 | E26: 0 | F26: 165.795414 | G26: 84.18891602 | H26: Group Credit Life
B27: تأمين حياة فردي | C27: 148811.3401 | D27: 7502.367646 | E27: 112.9665115 | F27: 114803.5696 | G27: 777359.8536 | H27: Individual Life
B28: دفعات الحياة وتكوين الأموال | C28: 0 | D28: 0 | E28: 0 | F28: 0 | G28: 0 | H28: Annuities & Fund Accumulation
B29: المجموع - تأمين الأشخاص وعمليات تكوين الأموال | C29: =C25+C26+C27+C28 -> 162254.2168 | D29: =D25+D26+D27+D28 -> 9801.718499 | E29: 4997.634259 | F29: 118986.6994 | G29: 780926.6319 | H29: Total - Insurance of Persons & Fund Accumulation
B31: المجموع - كافة فروع التأمين | C31: =C21+C23+C29 -> 1425649.41 | D31: =D21+D23+D29 -> 1098681.492 | E31: 341182.5838 | F31: 1035606.151 | G31: 1175994.49 | H31: TOTAL - All Types of Business Combined

Sheet 33A
B6: البيانات بالإجمالي لإمارة رأس الخيمة
B7: Gross Results for Ras Al Khaimah
B8: (2025)
B11: جدول رقم 33A | H11: TABLE 33A
B12: بالألف درهم | H12: AED in 000's
B13: فروع التأمين | C13: الأقساط المكتتبة | D13: أعداد الوثائق | E13: مخصص الأقساط غير المكتسبة | F13: المطالبات المدفوعة | G13: مخصص المطالبات تحت التسوية | H13: Line of Business
C14: Written Premium | D14: Number of Policies | E14: Unearned Premium Reserve | F14: Claims Paid | G14: Outstanding Claim Reserves
B15: تأمين الحريق | C15: 38454.27312 | D15: 2366.268418 | E15: 14152.55855 | F15: 16731.57507 | G15: 38149.59326 | H15: Fire
B16: التأمين البحري والطيران | C16: 7132.41214 | D16: 198.2371387 | E16: 3797.461615 | F16: 512.9886629 | G16: 3634.52153 | H16: Marine & Aviation
B17: تأمين السيارات والمركبات الأخرى | C17: 251874.2342 | D17: 209562.6011 | E17: 117174.4764 | F17: 118311.5428 | G17: 134188.5751 | H17: Motor & Transportation
B18: التأمين الهندسي والانشاءات والطاقة | C18: 15039.43579 | D18: 1156.062906 | E18: 35545.35668 | F18: 3108.946514 | G18: 8462.747548 | H18: Engineering, Construction & Energy
B19: أخرى | C19: 72770.63555 | D19: 224167.9106 | E19: 18638.65098 | F19: 4130.898025 | G19: 17972.74028 | H19: Other
B20: اعادة التأمين غير النسبية - المسؤوليات والممتلكات | C20: 0 | D20: 0 | E20: 0 | F20: 0 | G20: 0 | H20: Reinsurance - Property & Liability
B21: المجموع - تأمين الممتلكات والمسؤوليات | C21: =C15+C16+C17+C18+C19+C20 -> 385270.9908 | D21: =D15+D16+D17+D18+D19+D20 -> 437451.0801 | E21: =E15+E16+E17+E18+E19+E20 -> 189308.5042 | F21: =F15+F16+F17+F18+F19+F20 -> 142795.9511 | G21: =G15+G16+G17+G18+G19+G20 -> 202408.1777 | H21: Total - Property & Liability Insurance
B23: المجموع - تأمين صحي | C23: 148646.7816 | D23: 55156.04486 | E23: 51744.96547 | F23: 113947.7014 | G23: 30623.66341 | H23: Total - Health Insurance
B25: تأمين حياة جماعي | C25: 5229.541545 | D25: 108.0724005 | E25: 1531.034084 | F25: 3180.718587 | G25: 2671.349821 | H25: Group Life
B26: تأمين ائتمان حياة جماعي | C26: 84090.10578 | D26: 38.01469321 | E26: 0 | F26: 11400.18487 | G26: 17930.5736 | H26: Group Credit Life
B27: تأمين حياة فردي | C27: 18498.47032 | D27: 820.6260739 | E27: 0 | F27: 18043.89286 | G27: 80480.0442 | H27: Individual Life
B28: دفعات الحياة وتكوين الأموال | C28: 0 | D28: 0 | E28: 0 | F28: 0 | G28: 0 | H28: Annuities & Fund Accumulation
B29: المجموع - تأمين الأشخاص وعمليات تكوين الأموال | C29: =C25+C26+C27+C28 -> 107818.1176 | D29: =D25+D26+D27+D28 -> 966.7131677 | E29: =E25+E26+E27+E28 -> 1531.034084 | F29: =F25+F26+F27+F28 -> 32624.79632 | G29: =G25+G26+G27+G28 -> 101081.9676 | H29: Total - Insurance of Persons & Fund Accumulation
B31: المجموع - كافة فروع التأمين | C31: =C21+C23+C29 -> 641735.8901 | D31: =D21+D23+D29 -> 493573.8381 | E31: 242584.5038 | F31: 289368.4488 | G31: 334113.8088 | H31: TOTAL - All Types of Business Combined

Sheet 33B
B6: البيانات بالصافي لإمارة رأس الخيمة
B7: Net Results for Ras Al Khaimah
B8: (2025)
B11: جدول رقم 33B | H11: TABLE 33B
B12: بالألف درهم | H12: AED in 000's
B13: فروع التأمين | C13: الأقساط المكتتبة | D13: أعداد الوثائق | E13: مخصص الأقساط غير المكتسبة | F13: المطالبات المدفوعة | G13: مخصص المطالبات تحت التسوية | H13: Line of Business
C14: Written Premium | D14: Number of Policies | E14: Unearned Premium Reserve | F14: Claims Paid | G14: Outstanding Claim Reserves
B15: تأمين الحريق | C15: 5985.813223 | D15: 2366.268418 | E15: 1839.8214 | F15: 2133.729154 | G15: 6347.163495 | H15: Fire
B16: التأمين البحري والطيران | C16: 1590.871903 | D16: 198.2371387 | E16: 435.5809973 | F16: 35.6239815 | G16: 494.6449199 | H16: Marine & Aviation
B17: تأمين السيارات والمركبات الأخرى | C17: 233135.2839 | D17: 209562.6011 | E17: 114517.9965 | F17: 109543.7399 | G17: 109201.417 | H17: Motor & Transportation
B18: التأمين الهندسي والانشاءات والطاقة | C18: 3591.332817 | D18: 1156.062906 | E18: 1586.840832 | F18: 281.4397195 | G18: 893.0547336 | H18: Engineering, Construction & Energy
B19: أخرى | C19: 20840.92496 | D19: 224167.9106 | E19: 4594.854409 | F19: 3343.015173 | G19: 1877.76698 | H19: Other
B20: اعادة التأمين غير النسبية - المسؤوليات والممتلكات | C20: 0 | D20: 0 | E20: 0 | F20: 0 | G20: 0 | H20: Reinsurance - Property & Liability
B21: المجموع - تأمين الممتلكات والمسؤوليات | C21: =C15+C16+C17+C18+C19+C20 -> 265144.2268 | D21: =D15+D16+D17+D18+D19+D20 -> 437451.0801 | E21: =E15+E16+E17+E18+E19+E20 -> 122975.0942 | F21: =F15+F16+F17+F18+F19+F20 -> 115337.5479 | G21: =G15+G16+G17+G18+G19+G20 -> 118814.0471 | H21: Total - Property & Liability Insurance
B23: المجموع - تأمين صحي | C23: 97411.17541 | D23: 55156.04486 | E23: 38387.99342 | F23: 77892.52135 | G23: 25124.33464 | H23: Total - Health Insurance
B25: تأمين حياة جماعي | C25: 2148.185367 | D25: 108.0724005 | E25: 803.6239439 | F25: 1048.797568 | G25: 832.8210101 | H25: Group Life
B26: تأمين ائتمان حياة جماعي | C26: 41502.95003 | D26: 38.01469321 | E26: 0 | F26: 1160.21916 | G26: 2523.973146 | H26: Group Credit Life
B27: تأمين حياة فردي | C27: 18383.19158 | D27: 820.6260739 | E27: 0 | F27: 18003.09347 | G27: 80128.66421 | H27: Individual Life
B28: دفعات الحياة وتكوين الأموال | C28: 0 | D28: 0 | E28: 0 | F28: 0 | G28: 0 | H28: Annuities & Fund Accumulation
B29: المجموع - تأمين الأشخاص وعمليات تكوين الأموال | C29: =C25+C26+C27+C28 -> 62034.32697 | D29: =D25+D26+D27+D28 -> 966.7131677 | E29: 803.6239439 | F29: 20212.1102 | G29: 83485.45836 | H29: Total - Insurance of Persons & Fund Accumulation
B31: المجموع - كافة فروع التأمين | C31: =C21+C23+C29 -> 424589.7292 | D31: =D21+D23+D29 -> 493573.8381 | E31: 162166.7115 | F31: 213442.1795 | G31: 227423.8401 | H31: TOTAL - All Types of Business Combined

Sheet 34A
B6: البيانات بالإجمالي لإمارة الفجيرة
B7: Gross Results for Fujairah
B8: (2025)
B11: جدول رقم 34A | H11: TABLE 34A
B12: بالألف درهم | H12: AED in 000's
B13: فروع التأمين | C13: الأقساط المكتتبة | D13: أعداد الوثائق | E13: مخصص الأقساط غير المكتسبة | F13: المطالبات المدفوعة | G13: مخصص المطالبات تحت التسوية | H13: Line of Business
C14: Written Premium | D14: Number of Policies | E14: Unearned Premium Reserve | F14: Claims Paid | G14: Outstanding Claim Reserves
B15: تأمين الحريق | C15: 76574.45913 | D15: 1668 | E15: 12186.14499 | F15: 439849.007 | G15: 18738.09032 | H15: Fire
B16: التأمين البحري والطيران | C16: 11051.69397 | D16: 379 | E16: 2692.740931 | F16: 1336.32752 | G16: 1269.244239 | H16: Marine & Aviation
B17: تأمين السيارات والمركبات الأخرى | C17: 156516.519 | D17: 81609 | E17: 81280.62467 | F17: 94517.99191 | G17: 29133.58923 | H17: Motor & Transportation
B18: التأمين الهندسي والانشاءات والطاقة | C18: 13879.62911 | D18: 380 | E18: 7330.674913 | F18: 53845.99652 | G18: 9478.562045 | H18: Engineering, Construction & Energy
B19: أخرى | C19: 36421.47633 | D19: 87953 | E19: 2911.987076 | F19: 530.96693 | G19: 3294.263859 | H19: Other
B20: اعادة التأمين غير النسبية - المسؤوليات والممتلكات | C20: 0 | D20: 0 | E20: 0 | F20: 0 | G20: 0 | H20: Reinsurance - Property & Liability
B21: المجموع - تأمين الممتلكات والمسؤوليات | C21: =C15+C16+C17+C18+C19+C20 -> 294443.7775 | D21: =D15+D16+D17+D18+D19+D20 -> 171989 | E21: =E15+E16+E17+E18+E19+E20 -> 106402.1726 | F21: =F15+F16+F17+F18+F19+F20 -> 590080.2899 | G21: =G15+G16+G17+G18+G19+G20 -> 61913.74969 | H21: Total - Property & Liability Insurance
B23: المجموع - تأمين صحي | C23: 139917.5772 | D23: 202479 | E23: 46027.68084 | F23: 62697.85489 | G23: 15243.88572 | H23: Total - Health Insurance
B25: تأمين حياة جماعي | C25: 4310.824261 | D25: 99 | E25: 466.8933484 | F25: 1867.353814 | G25: 1725.100498 | H25: Group Life
B26: تأمين ائتمان حياة جماعي | C26: 0 | D26: 0 | E26: 0 | F26: 0 | G26: 0 | H26: Group Credit Life
B27: تأمين حياة فردي | C27: 8139.505843 | D27: 349 | E27: 0 | F27: 6353.317466 | G27: 27279.76157 | H27: Individual Life
B28: دفعات الحياة وتكوين الأموال | C28: 0 | D28: 0 | E28: 0 | F28: 0 | G28: 0 | H28: Annuities & Fund Accumulation
B29: المجموع - تأمين الأشخاص وعمليات تكوين الأموال | C29: =C25+C26+C27+C28 -> 12450.3301 | D29: =D25+D26+D27+D28 -> 448 | E29: =E25+E26+E27+E28 -> 466.8933484 | F29: =F25+F26+F27+F28 -> 8220.67128 | G29: =G25+G26+G27+G28 -> 29004.86207 | H29: Total - Insurance of Persons & Fund Accumulation
B31: المجموع - كافة فروع التأمين | C31: =C21+C23+C29 -> 446811.6848 | D31: =D21+D23+D29 -> 374916 | E31: 152896.7468 | F31: 660998.816 | G31: 106162.4975 | H31: TOTAL - All Types of Business Combined

Sheet 34B
B6: البيانات بالصافي لإمارة الفجيرة
B7: Net Results for Fujairah
B8: (2025)
B11: جدول رقم 34B | H11: TABLE 34B
B12: بالألف درهم | H12: AED in 000's
B13: فروع التأمين | C13: الأقساط المكتتبة | D13: أعداد الوثائق | E13: مخصص الأقساط غير المكتسبة | F13: المطالبات المدفوعة | G13: مخصص المطالبات تحت التسوية | H13: Line of Business
C14: Written Premium | D14: Number of Policies | E14: Unearned Premium Reserve | F14: Claims Paid | G14: Outstanding Claim Reserves
B15: تأمين الحريق | C15: 48847.58002 | D15: 1668 | E15: 2742.252887 | F15: 55524.57087 | G15: 2739.332656 | H15: Fire
B16: التأمين البحري والطيران | C16: 1789.680664 | D16: 379 | E16: 344.3380105 | F16: 28.17634 | G16: 243.5784782 | H16: Marine & Aviation
B17: تأمين السيارات والمركبات الأخرى | C17: 147335.9195 | D17: 81609 | E17: 80840.98608 | F17: 85990.84257 | G17: 26799.85062 | H17: Motor & Transportation
B18: التأمين الهندسي والانشاءات والطاقة | C18: 3532.47291 | D18: 380 | E18: 1906.168523 | F18: 9070.61912 | G18: 1720.29519 | H18: Engineering, Construction & Energy
B19: أخرى | C19: -140721.1914 | D19: 87953 | E19: 1523.195574 | F19: 120.95685 | G19: 466.3855993 | H19: Other
B20: اعادة التأمين غير النسبية - المسؤوليات والممتلكات | C20: 0 | D20: 0 | E20: 0 | F20: 0 | G20: 0 | H20: Reinsurance - Property & Liability
B21: المجموع - تأمين الممتلكات والمسؤوليات | C21: =C15+C16+C17+C18+C19+C20 -> 60784.46164 | D21: =D15+D16+D17+D18+D19+D20 -> 171989 | E21: =E15+E16+E17+E18+E19+E20 -> 87356.94107 | F21: =F15+F16+F17+F18+F19+F20 -> 150735.1658 | G21: =G15+G16+G17+G18+G19+G20 -> 31969.44255 | H21: Total - Property & Liability Insurance
B23: المجموع - تأمين صحي | C23: 105431.116 | D23: 202479 | E23: 36566.5744 | F23: 29069.15439 | G23: 8085.9085 | H23: Total - Health Insurance
B25: تأمين حياة جماعي | C25: -1541.182221 | D25: 99 | E25: 172.5389231 | F25: 378.2104212 | G25: 317.9731092 | H25: Group Life
B26: تأمين ائتمان حياة جماعي | C26: 0 | D26: 0 | E26: 0 | F26: 0 | G26: 0 | H26: Group Credit Life
B27: تأمين حياة فردي | C27: 8100.279343 | D27: 349 | E27: 0 | F27: 6350.054737 | G27: 27258.50809 | H27: Individual Life
B28: دفعات الحياة وتكوين الأموال | C28: 0 | D28: 0 | E28: 0 | F28: 0 | G28: 0 | H28: Annuities & Fund Accumulation
B29: المجموع - تأمين الأشخاص وعمليات تكوين الأموال | C29: =C25+C26+C27+C28 -> 6559.097122 | D29: =D25+D26+D27+D28 -> 448 | E29: =E25+E26+E27+E28 -> 172.5389231 | F29: =F25+F26+F27+F28 -> 6728.265158 | G29: =G25+G26+G27+G28 -> 27576.4812 | H29: Total - Insurance of Persons & Fund Accumulation
B31: المجموع - كافة فروع التأمين | C31: =C21+C23+C29 -> 172774.6748 | D31: =D21+D23+D29 -> 374916 | E31: =E21+E23+E29 -> 124096.0544 | F31: =F21+F23+F29 -> 186532.5853 | G31: =G21+G23+G29 -> 67631.83224 | H31: TOTAL - All Types of Business Combined

Sheet Ins. Companies
A3: دليل شركات التأمين في دولة الإمارات العربية المتحدة
A4: Directory of insurance companies in the UAE
A7: رقم القيد | B7: الاسم | C7: الشكل القانوني | D7: جنسية الشركة | E7: تأمين تقليدي / تأمين تكافلي | F7: أنواع التأمين | G7: الموقع الالكتروني | H7: تاريخ القيد | I7: Insurance Type | J7: Traditional Insurance / Takaful Insurance | K7: Company Nationality | L7: Legal Type | M7: Name | N7: Registration Number
G8: Web Site | H8: Registration Date
A9: 1 | B9: شركة أبوظبي الوطنية للتامين | C9: شركة مساهمة عامة | D9: الإمارات العربية المتحدة | E9: تأمين تقليدي | F9: تأمين الممتلكات والمسؤوليات + تأمين الأشخاص وعمليات تكوين الأموال | G9: www.adnic.ae | H9: 1984-07-22 | I9: Property and Liability Insurance + Insurance of Persons and Fund Accumulation Operations | J9: Traditional Insurance | K9: United Arab Emirate | L9: Public Joint Stock | M9: Abu Dhabi National Insurance Company | N9: 1
A10: 2 | B10: شركة الامارات للتأمين (ش.م.ع) | C10: شركة مساهمة عامة | D10: الإمارات العربية المتحدة | E10: تأمين تقليدي | F10: تأمين الممتلكات والمسؤوليات + تأمين الأشخاص وعمليات تكوين الأموال | G10: www.eminsco.com | H10: 1985-08-26 | I10: Property and Liability Insurance + Insurance of Persons and Fund Accumulation Operations | J10: Traditional Insurance | K10: United Arab Emirate | L10: Public Joint Stock | M10: Emirates Insurance Company (PSC) | N10: 2
A11: 3 | B11: شركة العين الاهلية للتأمين | C11: شركة مساهمة عامة | D11: الإمارات العربية المتحدة | E11: تأمين تقليدي | F11: تأمين الممتلكات والمسؤوليات + تأمين الأشخاص وعمليات تكوين الأموال | G11: www.alaininsurance.com | H11: 1984-08-08 | I11: Property and Liability Insurance + Insurance of Persons and Fund Accumulation Operations | J11: Traditional Insurance | K11: United Arab Emirate | L11: Public Joint Stock | M11: Al Ain Ahlia Insurance Company | N11: 3
A12: 4 | B12: شركة دبي للتأمين شركة مساهمة عامة | C12: شركة مساهمة عامة | D12: الإمارات العربية المتحدة | E12: تأمين تقليدي | F12: تأمين الممتلكات والمسؤوليات + تأمين الأشخاص وعمليات تكوين الأموال | G12: www.dubins.ae | H12: 1984-11-13 | I12: Property and Liability Insurance + Insurance of Persons and Fund Accumulation Operations | J12: Traditional Insurance | K12: United Arab Emirate | L12: Public Joint Stock | M12: Dubai Insurance Company (PSC) | N12: 4
A13: 5 | B13: شركة الظفرة للتأمين | C13: شركة مساهمة عامة | D13: الإمارات العربية المتحدة | E13: تأمين تقليدي | F13: تأمين الممتلكات والمسؤوليات + تأمين الأشخاص وعمليات تكوين الأموال | G13: www.aldhafrainsurance.ae | H13: 1984-11-14 | I13: Property and Liability Insurance + Insurance of Persons and Fund Accumulation Operations | J13: Traditional Insurance | K13: United Arab Emirate | L13: Public Joint Stock | M13: Al dhafra Insurance Company | N13: 5
A14: 6 | B14: سكون تكافل ش م ع | C14: شركة مساهمة عامة | D14: الإمارات العربية المتحدة | E14: تأمين تكافلي | F14: تأمين الممتلكات والمسؤوليات + تأمين الأشخاص وعمليات تكوين الأموال | G14: www.sukoontakaful.com | H14: 1984-12-15 | I14: Property and Liability Insurance + Insurance of Persons and Fund Accumulation Operations | J14: Takaful Insurance | K14: United Arab Emirate | L14: Public Joint Stock | M14: Sukoon Takaful PJSC | N14: 6
A15: 7 | B15: شركة رأس الخيمة الوطنية للتأمين | C15: شركة مساهمة عامة | D15: الإمارات العربية المتحدة | E15: تأمين تقليدي | F15: تأمين الممتلكات والمسؤوليات + تأمين الأشخاص وعمليات تكوين الأموال | G15: www.rakinsurance.com | H15: 1998-12-20 | I15: Property and Liability Insurance + Insurance of Persons and Fund Accumulation Operations | J15: Traditional Insurance | K15: United Arab Emirate | L15: Public Joint Stock | M15: Ras Al Khaimah National Insurance Company P.S.C | N15: 7
A16: 8 | B16: شركة التأمين فيدلتي المتحدة | C16: شركة مساهمة عامة | D16: الإمارات العربية المتحدة | E16: تأمين تقليدي | F16: تأمين الممتلكات والمسؤوليات + تأمين الأشخاص وعمليات تكوين الأموال | G16: www.fidelityunited.ae | H16: 1984-12-22 | I16: Property and Liability Insurance + Insurance of Persons and Fund Accumulation Operations | J16: Traditional Insurance | K16: United Arab Emirate | L16: Public Joint Stock | M16: United Fidelity Insurance Company | N16: 8
A17: 9 | B17: شركة سكون للتأمين (مساهمة عامة) | C17: شركة مساهمة عامة | D17: الإمارات العربية المتحدة | E17: تأمين تقليدي | F17: تأمين الممتلكات والمسؤوليات + تأمين الأشخاص وعمليات تكوين الأموال | G17: www.sukoon.com | H17: 1984-12-24 | I17: Property and Liability Insurance + Insurance of Persons and Fund Accumulation Operations | J17: Traditional Insurance | K17: United Arab Emirate | L17: Public Joint Stock | M17: Sukoon Insurance Company (PJSC) | N17: 9
A18: 10 | B18: شركة الوثبة الوطنية للتأمين | C18: شركة مساهمة عامة | D18: الإمارات العربية المتحدة | E18: تأمين تقليدي | F18: تأمين الممتلكات والمسؤوليات | G18: www.awnic.com | H18: 1984-12-24 | I18: Property and Liability Insurance | J18: Traditional Insurance | K18: United Arab Emirate | L18: Public Joint Stock | M18: Al Wathba National Insurance Company | N18: 10
A19: 11 | B19: شركة الفجيرة الوطنية للتأمين - ش . م . ع | C19: شركة مساهمة عامة | D19: الإمارات العربية المتحدة | E19: تأمين تقليدي | F19: تأمين الممتلكات والمسؤوليات + تأمين الأشخاص وعمليات تكوين الأموال | G19: www.afnic.ae | H19: 1984-12-25 | I19: Property and Liability Insurance + Insurance of Persons and Fund Accumulation Operations | J19: Traditional Insurance | K19: United Arab Emirate | L19: Public Joint Stock | M19: Al Fujairah National Insurance Company PSC | N19: 11
A20: 12 | B20: شركة الشارقة للتأمين | C20: شركة مساهمة عامة | D20: الإمارات العربية المتحدة | E20: تأمين تقليدي | F20: تأمين الممتلكات والمسؤوليات + تأمين الأشخاص وعمليات تكوين الأموال | G20: www.sharjahinsurance.co.ae | H20: 1984-12-25 | I20: Property and Liability Insurance + Insurance of Persons and Fund Accumulation Operations | J20: Traditional Insurance | K20: United Arab Emirate | L20: Public Joint Stock | M20: Sharjah Insurance Company (P.S.C) | N20: 12
A21: 14 | B21: شركة أورينت للتأمين | C21: شركة مساهمة عامة | D21: الإمارات العربية المتحدة | E21: تأمين تقليدي | F21: تأمين الممتلكات والمسؤوليات + تأمين الأشخاص وعمليات تكوين الأموال | G21: www.insuranceuae.com | H21: 1984-12-29 | I21: Property and Liability Insurance + Insurance of Persons and Fund Accumulation Operations | J21: Traditional Insurance | K21: United Arab Emirate | L21: Public Joint Stock | M21: Orient Insurance Company | N21: 14
A22: 15 | B22: شركة البحيرة الوطنية للتأمين | C22: شركة مساهمة عامة | D22: الإمارات العربية المتحدة | E22: تأمين تقليدي | F22: تأمين الممتلكات والمسؤوليات + تأمين الأشخاص وعمليات تكوين الأموال | G22: www.albuhaira.com | H22: 1984-12-30 | I22: Property and Liability Insurance + Insurance of Persons and Fund Accumulation Operations | J22: Traditional Insurance | K22: United Arab Emirate | L22: Public Joint Stock | M22: Al Buharia National Insurance Company | N22: 15
A23: 16 | B23: شركة الصقر الوطنية للتأمين (شركة مساهمة عامة) | C23: شركة مساهمة عامة | D23: الإمارات العربية المتحدة | E23: تأمين تقليدي | F23: تأمين الممتلكات والمسؤوليات + تأمين الأشخاص وعمليات تكوين الأموال | G23: www.alsagrins.ae | H23: 1989-10-26 | I23: Property and Liability Insurance + Insurance of Persons and Fund Accumulation Operations | J23: Traditional Insurance | K23: United Arab Emirate | L23: Public Joint Stock | M23: Al Sagr National Insurance Company (PSC) | N23: 16
A24: 17 | B24: الشركة الإسلامية العربية للتأمين (سلامة) | C24: شركة مساهمة عامة | D24: الإمارات العربية المتحدة | E24: تأمين تكافلي | F24: تأمين الممتلكات والمسؤوليات + تأمين الأشخاص وعمليات تكوين الأموال | G24: www.salama.ae | H24: 1984-12-25 | I24: Property and Liability Insurance + Insurance of Persons and Fund Accumulation Operations | J24: Takaful Insurance | K24: United Arab Emirate | L24: Public Joint Stock | M24: Islamic Arab Insurance Company "SALAMA" | N24: 17
A25: 18 | B25: اللاينس للتأمين | C25: شركة مساهمة عامة | D25: الإمارات العربية المتحدة | E25: تأمين تقليدي | F25: تأمين الممتلكات والمسؤوليات + تأمين الأشخاص وعمليات تكوين الأموال | G25: www.alliance-uae.com | H25: 1984-12-31 | I25: Property and Liability Insurance + Insurance of Persons and Fund Accumulation Operations | J25: Traditional Insurance | K25: United Arab Emirate | L25: Public Joint Stock | M25: Alliance Insurance Company | N25: 18
A26: 20 | B26: شركة التأمين العربية ش م ل | C26: فرع شركة أجنبية | D26: لبنان | E26: تأمين تقليدي | F26: تأمين الممتلكات والمسؤوليات + تأمين الأشخاص وعمليات تكوين الأموال | G26: www.arabiainsurance.com | H26: 1984-11-01 | I26: Property and Liability Insurance + Insurance of Persons and Fund Accumulation Operations | J26: Traditional Insurance | K26: Lebanon | L26: Foreign Company Branch | M26: Arabia Insurance Company sal | N26: 20
A27: 21 | B27: شركة التأمين الأردنية المساهمة المحدودة | C27: فرع شركة أجنبية | D27: الأردن | E27: تأمين تقليدي | F27: تأمين الممتلكات والمسؤوليات | G27: www.jicjo.com | H27: 1984-12-01 | I27: Property and Liability Insurance | J27: Traditional Insurance | K27: Jordan | L27: Foreign Company Branch | M27: Jordan Insurance Company Ltd | N27: 21
A28: 22 | B28: شركة التأمين العربية السعودية ش . م . ب(م) | C28: فرع شركة خليجية | D28: البحرين | E28: تأمين تقليدي | F28: تأمين الممتلكات والمسؤوليات | G28: www.damana.com | H28: 1984-12-13 | I28: Property and Liability Insurance | J28: Traditional Insurance | K28: Bahrain | L28: GCC Company Branch | M28: Saudi Arabian Insurance Company B.S.C (C) | N28: 22
A29: 30 | B29: شركة سهامي بيمة ايران | C29: فرع شركة أجنبية | D29: ايران | E29: تأمين تقليدي | F29: تأمين الممتلكات والمسؤوليات | G29: www.bimehir.ae | H29: 1984-12-19 | I29: Property and Liability Insurance | J29: Traditional Insurance | K29: Iran, Islamic Republic of | L29: Foreign Company Branch | M29: Iran Insurance Company | N29: 30
A30: 32 | B30: ميتسوى سوميتومو انشورانس كومبانى ليمتد | C30: فرع شركة أجنبية | D30: اليابان | E30: تأمين تقليدي | F30: تأمين الممتلكات والمسؤوليات | G30: www.ms-ins.com | H30: 1984-12-22 | I30: Property and Liability Insurance | J30: Traditional Insurance | K30: Japan | L30: Foreign Company Branch | M30: Mitsui Sumitomo Insurance Company Ltd | N30: 32
A31: 34 | B31: اميركان لايف انشورنس كومباني | C31: فرع شركة أجنبية | D31: الولايات المتحدة الامريكية | E31: تأمين تقليدي | F31: تأمين الممتلكات والمسؤوليات + تأمين الأشخاص وعمليات تكوين الأموال | G31: www.metlife .ae | H31: 1984-12-23 | I31: Property and Liability Insurance + Insurance of Persons and Fund Accumulation Operations | J31: Traditional Insurance | K31: United States of America | L31: Foreign Company Branch | M31: American Life Insurance Company | N31: 34
A32: 37 | B32: ذي أورينتال أنشورانس كومباني ليمتد | C32: فرع شركة أجنبية | D32: الهند | E32: تأمين تقليدي | F32: تأمين الممتلكات والمسؤوليات | G32: www.orientalinsurance.org.in | H32: 1984-12-29 | I32: Property and Liability Insurance | J32: Traditional Insurance | K32: India | L32: Foreign Company Branch | M32: The Oriental Insurance Company Limited | N32: 37
A33: 38 | B33: شركة قطر للتأمين | C33: فرع شركة أجنبية | D33: قطر | E33: تأمين تقليدي | F33: تأمين الممتلكات والمسؤوليات | G33: www.qatarinsurance.com | H33: 1984-12-29 | I33: Property and Liability Insurance | J33: Traditional Insurance | K33: Qatar | L33: Foreign Company Branch | M33: Qatar Insurance Company | N33: 38
A34: 42 | B34: الإتحاد الوطني - شركة الضمان العامة للشرق الأدنى | C34: فرع شركة أجنبية | D34: لبنان | E34: تأمين تقليدي | F34: تأمين الممتلكات والمسؤوليات + تأمين الأشخاص وعمليات تكوين الأموال | G34: www.unic.ae | H34: 1984-12-29 | I34: Property and Liability Insurance + Insurance of Persons and Fund Accumulation Operations | J34: Traditional Insurance | K34: Lebanon | L34: Foreign Company Branch | M34: Al Ittihad Al Watani - General Insurance Company for the Near East | N34: 42
A35: 43 | B35: الشركة القطرية العامة للتأمين وإعادة التأمين ش.م.ق | C35: فرع شركة أجنبية | D35: قطر | E35: تأمين تقليدي | F35: تأمين الممتلكات والمسؤوليات + تأمين الأشخاص وعمليات تكوين الأموال | G35: www.qgirco.com | H35: 1984-12-29 | I35: Property and Liability Insurance + Insurance of Persons and Fund Accumulation Operations | J35: Traditional Insurance | K35: Qatar | L35: Foreign Company Branch | M35: Qatar General Insurance & Reinsurance Company S.A.Q | N35: 43
